Workbook

Sheet Cover
D2: ARP model
D4: Release for 2024/25 charge setting
B6: ='Version control'!F7 -> Model date: | D6: ='Version control'!H7 -> 2022-10-27
B8: ='Version control'!F9 -> Development stage: | D8: ='Version control'!H9 -> Release for charge setting
B10: ='Version control'!F11 -> Model number: | D10: ='Version control'!H11 -> 7
B12: ='Version control'!F13 -> DCUSA text version: | D12: ='Version control'!H13 -> Attachment A_2024-25 Charging Methodologies Pre-Release (shared 06/10/2022)
B14: ='Version control'!F15 -> DCUSA text schedule: | D14: ='Version control'!H15 -> Schedules 16 & 20
B16: DISCLAIMER | D16: Neither the authors nor Cambridge Economic Policy Associates/TNEI accept or assume any responsibility or duty of care to any third party.
D17: © All rights reserved by Cambridge Economic Policy Associates Ltd (CEPA) and TNEI Services Ltd (TNEI).
B19: Charging year: | D19: 2024/25
B21: DNO name: | D21: National Grid Electricity Distribution (East Midlands)
B23: Data version: | D23: [enter data version name]
B25: Notes: | D25: [enter DNO comments, if any]
B27: Key:
B28: Format | D28: Description
D29: Cell intentionally blank
B30: Value | D30: Hardcoded input
B31: Value | D31: User input
B32: Value | D32: Model output
B33: Value | D33: Calculation
B34: Value | D34: Value from another worksheet
B35: Value | D35: Value used on another worksheet
B36: Value | D36: Issue identified in a check
B37: Text | D37: Label
B38: Text | D38: Annotation
B39: Text | D39: Column heading
B40: Text | D40: Level 1 heading
B41: Text | D41: Level 2 heading
B42: Text | D42: Level 3 and 4 heading
B43: Sheet tab colour | D43: Information sheet
B44: Sheet tab colour | D44: User control sheet
B45: Sheet tab colour | D45: Input sheet
B46: Sheet tab colour | D46: Calculation sheet
B47: Sheet tab colour | D47: Output sheet

Sheet Version control
A1: =MID(CELL("filename",A1),FIND("]",CELL("filename",A1))+1,255) -> Version control
A2: =Cover!D21&" - "&Cover!D23 -> National Grid Electricity Distribution (East Midlands) - [enter data version name]
A3: =Cover!D2&" - "&Cover!D8&" v"&Cover!D10&" - "&Cover!D19 -> ARP model - Release for charge setting v7 - 2024/25
A4: =J63 & IF(J63 = 1, " issue", " issues") &" identified in checks on this sheet" -> 0 issues identified in checks on this sheet
B5: Model version
F7: Model date: | H7: =LOOKUP(2,1/(F20:F32<>""),F20:F32) -> 2022-10-27
F9: Development stage: | H9: =LOOKUP(2,1/(G20:G32<>""),G20:G32) -> Release for charge setting
F11: Model number: | H11: =LOOKUP(2,1/(H20:H32<>""),H20:H32) -> 7
F13: DCUSA text version: | H13: =LOOKUP(2,1/(I20:I32<>""),I20:I32) -> Attachment A_2024-25 Charging Methodologies Pre-Release (shared 06/10/2022)
F15: DCUSA text schedule: | H15: =LOOKUP(2,1/(J20:J32<>""),J20:J32) -> Schedules 16 & 20
B17: Version log
F19: Model date | G19: Development stage | H19: Model number | I19: DCUSA text version | J19: DCUSA text schedule | K19: Author | L19: Description of changes
F20: 2018-05-30 | G20: Pre-release | H20: 1 | I20: 2019-20 pre-release plus Expert Panel clarifications | J20: Schedules 16 & 20 | K20: CEPA-TNEI | L20: -
F21: 2018-07-20 | G21: Pre-release | H21: 2 | I21: DCUSA v10.3 (released 28/06/2018) | J21: Schedules 16 & 20 | K21: CEPA-TNEI | L21: References to DCUSA text updated to comply with version 10.3 (released 28/06/2018).
F22: 2018-10-16 | G22: Release for charge setting | H22: 3 | I22: 01 April 2020 DCUSA Charging Methodologies Pre-Release (released 09/10/2018) | J22: Schedules 16 & 20 | K22: CEPA-TNEI | L22: Updated references to legal text version.
F23: 2019-07-17 | G23: Pre-release | H23: 4 | I23: DCP 268 Draft Legal Text v2.0 (shared 10/06/2019) | J23: Schedules 16 & 20 | K23: CEPA-TNEI | L23: Implemented DCP268 as per service 1 request (received 10/06/2019): replaced 33 existing tariffs with 16 enduring tariffs, modified structure of fixed inputs and inputs by customer type, modified pseudo-load coefficient calculation, modified revenue matching calculation, modified ARP_Load characteristics.
F24: 2019-11-08 | G24: Release for charge setting | H24: 5 | I24: Attachment A_01 April 2021 Charging Methodologies Pre-Release_Issued October 2019 (shared 10/10/2019) | J24: Schedules 16 & 20 | K24: CEPA-TNEI | L24: Updated references to legal text version, and implemented DCP332 and DCP333, assuming implementation of DCP 356 (as described in the user guide).
F25: 2020-01-30 | G25: Release for charge setting | H25: 6 | I25: 01 April 2021 Charging Methodologies Pre-Release – December 2019 (Schedules 15-16-17-18-20-29) (DCPs 268-332-333-341-342-356) (shared 19/12/2019) | J25: Schedules 16 & 20 | K25: CEPA-TNEI | L25: Updated references to legal text version, and implemented DCP341 and DCP 356.
F26: 2020-05-26 | G26: Pre-release | H26: 6 | I26: Attachment A_DCP 361 Draft Legal Text v0.2 (shared 15/04/2020) | J26: Schedules 16 & 20 | K26: CEPA-TNEI | L26: Implemented DCP 361.
F27: 2020-11-06 | G27: Release for charge setting | H27: 7 | I27: 01 April 2022 Charging Methodologies Pre-Release – October 2020 (Schedules 16, 17, 18, 20 and 29) DCP 361 | J27: Schedules 16 & 20 | K27: CEPA-TNEI | L27: Updated references to legal text version.
F28: 2021-01-29 | G28: Pre-release | H28: 7 | I28: Attachment A_DCP 379 Draft Legal Text.pdf (shared 14/01/2021) | J28: Schedules 16 & 20 | K28: CEPA-TNEI | L28: Implemented DCP 379
F29: 2021-11-22 | G29: Release for charge setting | H29: 7 | I29: Attachment A_Charging Methodologies Pre-Release_01042023 (shared 15/11/2021) | J29: Schedules 16 & 20 | K29: CEPA-TNEI | L29: Release for charge setting. Cover sheet, version control and annotation changes only.
F30: 2022-10-27 | G30: Release for charge setting | H30: 7 | I30: Attachment A_2024-25 Charging Methodologies Pre-Release (shared 06/10/2022) | J30: Schedules 16 & 20 | K30: CEPA-TNEI | L30: Release for charge setting.
B33: Model checks
E35: Issues identified by in-built model checks, by sheet
F36: ="ARP_"&F40 -> ARP_Inputs by customer type | H36: Input 501 | I36: number of issues | J36: ='ARP_Inputs by customer type'!$H$1994 -> 0
F37: ="ARP_"&F41 -> ARP_Inputs by network level | H37: Input 502 | I37: number of issues | J37: ='ARP_Inputs by network level'!$H$218 -> 0
F38: ="ARP_"&F42 -> ARP_General inputs | H38: Input 503 | I38: number of issues | J38: ='ARP_General inputs'!$H$125 -> 0
F39: Fixed inputs | H39: Input 504 | I39: number of issues | J39: ='Fixed inputs'!H197 -> 0
F40: Inputs by customer type | H40: Section 501 | I40: number of issues | J40: ='Inputs by customer type'!H216 -> 0
F41: Inputs by network level | H41: Section 502 | I41: number of issues | J41: ='General inputs'!H118 -> 0
F42: General inputs | H42: Section 503 | I42: number of issues | J42: ='General inputs'!H118 -> 0
F43: Standing Charge Factors | H43: Section 504 | I43: number of issues | J43: ='Standing charge factors'!H58 -> 0
F44: Load & loss characteristics | H44: Section 505 | I44: number of issues | J44: ='Load & loss characteristics'!H183 -> 0
F45: Customer contributions | H45: Section 506 | I45: number of issues | J45: ='Customer contributions'!H70 -> 0
F46: Volume adjustments | H46: Section 507 | I46: number of issues | J46: ='Volume adjustments'!H693 -> 0
F47: Pseudo-load coefficients | H47: Section 508 | I47: number of issues | J47: ='Pseudo-load coefficients'!H306 -> 0
F48: System peak demand | H48: Section 509 | I48: number of issues | J48: ='System peak demand'!H281 -> 0
F49: Service model assets | H49: Section 510 | I49: number of issues | J49: ='Service model assets'!H38 -> 0
F50: Unit costs | H50: Section 511 | I50: number of issues | J50: ='Unit costs'!H131 -> 0
F51: Initial unit rates | H51: Section 512 | I51: number of issues | J51: ='Initial unit rates'!H241 -> 0
F52: Service model charges | H52: Section 513 | I52: number of issues | J52: ='Service model charges'!H48 -> 0
F53: Unit rate charges | H53: Section 514 | I53: number of issues | J53: ='Unit rate charges'!H223 -> 0
F54: Capacity charges | H54: Section 515 | I54: number of issues | J54: ='Capacity charges'!H295 -> 0
F55: Reactive power charges | H55: Section 516 | I55: number of issues | J55: ='Reactive power charges'!H254 -> 0
F56: Fixed charges | H56: Section 517 | I56: number of issues | J56: ='Fixed charges'!H165 -> 0
F57: SoLR & bad debt adders | H57: Section 518 | I57: number of issues | J57: ='SoLR & bad debt adders'!H71 -> 0
F58: Revenue matching | H58: Section 519 | I58: number of issues | J58: ='Revenue matching'!H433 -> 0
F59: Rounding | H59: Section 520 | I59: number of issues | J59: =Rounding!H178 -> 0
F60: Net revenue summary | H60: Section 521 | I60: number of issues | J60: ='Net revenue summary'!H146 -> 0
F61: Tariff summary | H61: Output 501 | I61: number of issues | J61: ='Tariff summary'!H641 -> 0
F62: Typical bills | H62: Output 502 | I62: number of issues | J62: ='Typical bills'!H121 -> 0
F63: Total | I63: number of issues | J63: =IFERROR(SUM(J36:J62), 1) -> 0
B65: Version log lists
F67: Development stages
F68: Working draft
F69: Interim release
F70: Pre-release
F71: Release for charge setting
F78: …
B80: End of sheet

Sheet Model map
A1: =MID(CELL("filename",A1),FIND("]",CELL("filename",A1))+1,255) -> Model map
A2: =Cover!D21&" - "&Cover!D23 -> National Grid Electricity Distribution (East Midlands) - [enter data version name]
A3: =Cover!D2&" - "&Cover!D8&" v"&Cover!D10&" - "&Cover!D19 -> ARP model - Release for charge setting v7 - 2024/25
B5: Model map
B65: End of sheet

Sheet Index
A1: =MID(CELL("filename",A1),FIND("]",CELL("filename",A1))+1,255) -> Index
A2: =Cover!D21&" - "&Cover!D23 -> National Grid Electricity Distribution (East Midlands) - [enter data version name]
A3: =Cover!D2&" - "&Cover!D8&" v"&Cover!D10&" - "&Cover!D19 -> ARP model - Release for charge setting v7 - 2024/25
B5: Description
C7: This sheet contains links to each sheet of the model and the main sections within them.
C8: It also contains links to more granular sections within the sheets for inputs, calculations and outputs.
B10: Index of sheets and main sections
C12: The following table provides links to all the sheets within this model and the main sections within them.
F14: Sheet | G14: Section
F15: Cover
F16: Version control | G16: ='Version control'!$B$5 -> Model version
G17: ='Version control'!$B$17 -> Version log
G18: ='Version control'!$B$33 -> Model checks
G19: ='Version control'!$B$65 -> Version log lists
F20: Model map | G20: ='Model map'!$B$5 -> Model map
F21: Named ranges | G21: ='Named ranges'!$B$5 -> List of named ranges
F22: ARP_DNO commentary | G22: ='ARP_DNO commentary'!$B$9 -> Commentary
F23: ARP_CDCM timebands | G23: ='ARP_CDCM timebands'!$B$12 -> CDCM timebands
F24: ARP_Load characteristics | G24: ='ARP_Load characteristics'!$B$13 -> Years
G25: ='ARP_Load characteristics'!$B$20 -> Load characteristics
F26: ARP_Peaking probabilities | G26: ='ARP_Peaking probabilities'!$B$14 -> Years
G27: ='ARP_Peaking probabilities'!$B$21 -> Peaking probabilities, by distribution timeband
F28: ARP_User control | G28: ='ARP_User control'!$B$10 -> User interface
G29: ='ARP_User control'!$B$25 -> Lists
F30: ARP_Inputs by customer type | G30: ='ARP_Inputs by customer type'!$B$14 -> Load characteristics
G31: ='ARP_Inputs by customer type'!$B$56 -> Volumes
G32: ='ARP_Inputs by customer type'!$B$1998 -> Non-Domestic Aggregated (Related MPAN) distribution by bands
G33: ='ARP_Inputs by customer type'!$B$2072 -> Service model asset values
F34: ARP_Inputs by network level | G34: ='ARP_Inputs by network level'!$B$14 -> Inputs by network level
F35: ARP_General inputs | G35: ='ARP_General inputs'!$B$14 -> General inputs
F36: Fixed inputs | G36: ='Fixed inputs'!$B$11 -> Fixed inputs
F37: Inputs by customer type | G37: ='Inputs by customer type'!$B$14 -> Inputs by customer type
F38: Inputs by network level | G38: ='Inputs by network level'!$B$14 -> Inputs by network level
F39: General inputs | G39: ='General inputs'!$B$14 -> General inputs
F40: Standing charge factors | G40: ='Standing charge factors'!$B$17 -> Adjustments to standing charges
F41: Load & loss characteristics | G41: ='Load & loss characteristics'!$B$13 -> Load and loss characteristics
G42: ='Load & loss characteristics'!$B$31 -> User loss factor adjustments
F43: Customer contributions | G43: ='Customer contributions'!$B$12 -> Customer contributions
F44: Volume adjustments | G44: ='Volume adjustments'!$B$13 -> LDNO discounts
G45: ='Volume adjustments'!$B$51 -> Volume discounting
G46: ='Volume adjustments'!$B$310 -> Volume discounting for revenue matching
F47: Pseudo-load coefficients | G47: ='Pseudo-load coefficients'!$B$13 -> Step 1: Ratio of coincidence to load factor assuming units evenly spread within time bands, and peak falls in Red period
G48: ='Pseudo-load coefficients'!$B$56 -> Step 2: Calculate correction factor
G49: ='Pseudo-load coefficients'!$B$95 -> Step 3: Ratio of coincidence factor (to network asset peak) to load factor, given peaking probabilities, multiplied by correction factor
G50: ='Pseudo-load coefficients'!$B$261 -> Step 4: Results of Step 3
F51: System peak demand | G51: ='System peak demand'!$B$16 -> Common inputs for chargeable load calculations
G52: ='System peak demand'!$B$63 -> Load at system peak charged to unit rates
G53: ='System peak demand'!$B$179 -> Load at system peak charged to standing charges
G54: ='System peak demand'!$B$262 -> System peak based on chargeable load
F55: Service model assets | G55: ='Service model assets'!$B$12 -> Service model notional asset values
F56: Unit costs | G56: ='Unit costs'!$B$15 -> 500MW model costs
G57: ='Unit costs'!$B$58 -> Allocation of other costs
G58: ='Unit costs'!$B$102 -> Outputs
F59: Initial unit rates | G59: ='Initial unit rates'!$B$11 -> Inputs for yardstick and unit rate calculations
G60: ='Initial unit rates'!$B$116 -> Calculation of yardstick & unit rate charges
F61: Service model charges | G61: ='Service model charges'!$B$13 -> Inputs to service model charge calculation
G62: ='Service model charges'!$B$29 -> Allocation of service model costs
F63: Unit rate charges | G63: ='Unit rate charges'!$B$15 -> Inputs to unit rate charge calculations
G64: ='Unit rate charges'!$B$122 -> Application of standing charges to unit rates
F65: Capacity charges | G65: ='Capacity charges'!$B$17 -> Inputs to capacity charge calculations
G66: ='Capacity charges'!$B$125 -> Calculation of capacity charges
G67: ='Capacity charges'!$B$249 -> Capacity charges (and elements allocated to fixed charges)
F68: Reactive power charges | G68: ='Reactive power charges'!$B$13 -> Inputs to reactive power charge calculations
G69: ='Reactive power charges'!$B$150 -> Calculation of yardstick charges for generation
G70: ='Reactive power charges'!$B$185 -> Calculation of reactive power charges
F71: Fixed charges | G71: ='Fixed charges'!$B$14 -> Inputs to fixed charge calculations
G72: ='Fixed charges'!$B$65 -> Calculation of fixed charges
F73: SoLR & bad debt adders | G73: ='SoLR & bad debt adders'!$B$12 -> Fixed tariff adjustments
F74: Revenue matching | G74: ='Revenue matching'!$B$13 -> Pre-matching net revenue calculations
G75: ='Revenue matching'!$B$87 -> Residual charge calculation
G76: ='Revenue matching'!$B$210 -> Adjustments for negative fixed charges
G77: ='Revenue matching'!$B$408 -> Final adders
F78: Rounding | G78: =Rounding!$B$12 -> Inputs
G79: =Rounding!$B$103 -> Rounding of tariff forecast
F80: Net revenue summary | G80: ='Net revenue summary'!$B$11 -> Inputs to net revenue summary calculation
G81: ='Net revenue summary'!$B$90 -> Typical bills
F82: Tariff summary | G82: ='Tariff summary'!$B$13 -> Tariff summary
F83: Typical bills | G83: ='Typical bills'!$B$13 -> Typical bills
B85: Index of inputs, calculation sections and outputs
C87: The following table provides links to each input, calculation and output section. Each has a unique identifier for ease of reference.
F89: Sheet | G89: Section
F90: ARP_CDCM timebands | G90: ='ARP_CDCM timebands'!$C$14 -> Distribution time bands
G91: ='ARP_CDCM timebands'!$C$26 -> Special distribution time bands
F92: ARP_User control | G92: ='ARP_User control'!$C$15 -> Inputs for manually running selected year
G93: ='ARP_User control'!$C$19 -> Macro to run all years
F94: ARP_Inputs by customer type | G94: ='ARP_Inputs by customer type'!$C$16 -> Input 501-A: Load factor
G95: ='ARP_Inputs by customer type'!$C$36 -> Input 501-B: Coincidence factor
G96: ='ARP_Inputs by customer type'!$C$58 -> Input 501-C: All-the-way volumes - No residual
G97: ='ARP_Inputs by customer type'!$C$186 -> Input 501-D: All-the-way volumes - Residual Band 1
G98: ='ARP_Inputs by customer type'!$C$314 -> Input 501-E: All-the-way volumes - Residual Band 2
G99: ='ARP_Inputs by customer type'!$C$442 -> Input 501-F: All-the-way volumes - Residual Band 3
G100: ='ARP_Inputs by customer type'!$C$570 -> Input 501-G: All-the-way volumes - Residual Band 4
G101: ='ARP_Inputs by customer type'!$C$698 -> Input 501-H: LDNO LV volumes - No residual
G102: ='ARP_Inputs by customer type'!$C$826 -> Input 501-I: LDNO LV volumes - Residual band 1
G103: ='ARP_Inputs by customer type'!$C$954 -> Input 501-J: LDNO LV volumes - Residual band 2
G104: ='ARP_Inputs by customer type'!$C$1082 -> Input 501-K: LDNO LV volumes - Residual band 3
G105: ='ARP_Inputs by customer type'!$C$1210 -> Input 501-L: LDNO LV volumes - Residual band 4
G106: ='ARP_Inputs by customer type'!$C$1338 -> Input 501-M: LDNO HV volumes - No residual
G107: ='ARP_Inputs by customer type'!$C$1466 -> Input 501-N: LDNO HV volumes - Residual band 1
G108: ='ARP_Inputs by customer type'!$C$1594 -> Input 501-O: LDNO HV volumes - Residual band 2
G109: ='ARP_Inputs by customer type'!$C$1722 -> Input 501-P: LDNO HV volumes - Residual band 3
G110: ='ARP_Inputs by customer type'!$C$1850 -> Input 501-Q: LDNO HV volumes - Residual band 4
G111: ='ARP_Inputs by customer type'!$C$1978 -> Input 501-R: 'Designated Property' MPANs with EDCM-level LDNO boundaries
G112: ='ARP_Inputs by customer type'!$C$2003 -> Input 501-S: All the way non-domestic aggregated (related MPAN) distribution by bands
G113: ='ARP_Inputs by customer type'!$C$2026 -> Input 501-T: LDNO LV non-domestic aggregated (related MPAN) distribution by bands
G114: ='ARP_Inputs by customer type'!$C$2049 -> Input 501-U: LDNO HV non-domestic aggregated (related MPAN) distribution by bands
G115: ='ARP_Inputs by customer type'!$C$2076 -> Input 501-V: LV customer service model asset values
G116: ='ARP_Inputs by customer type'!$C$2096 -> Input 501-W: HV customer service model asset values
G117: ='ARP_Inputs by customer type'!$C$2116 -> Input 501-X: LV UMS customer service model asset values
F118: ARP_Inputs by network level | G118: ='ARP_Inputs by network level'!$C$16 -> Input 502-A: Diversity allowance between top and bottom of network level
G119: ='ARP_Inputs by network level'!$C$30 -> Input 502-B: Proportion of EHV/HV load going through 132kV/HV direct transformation
G120: ='ARP_Inputs by network level'!$C$44 -> Input 502-C: Loss adjustment factors to transmission
G121: ='ARP_Inputs by network level'!$C$58 -> Input 502-D: Average kVAr by kVA, by network level
G122: ='ARP_Inputs by network level'!$C$72 -> Input 502-E: Customer contributions under current connection charging policy
G123: ='ARP_Inputs by network level'!$C$120 -> Input 502-F: Gross asset cost by network level
G124: ='ARP_Inputs by network level'!$C$134 -> Input 502-G: Peaking probabilities, by timeband & network level
F125: ARP_General inputs | G125: ='ARP_General inputs'!$C$16 -> Input 503-A: Split of hours by distribution timeband
G126: ='ARP_General inputs'!$C$28 -> Input 503-B: Embedded network (LDNO) discount percentages
G127: ='ARP_General inputs'!$C$38 -> Input 503-C: CDCM target revenue
G128: ='ARP_General inputs'!$C$99 -> Input 503-D: Financial and general assumptions
G129: ='ARP_General inputs'!$C$104 -> Input 503-E: Transmission exit charges
G130: ='ARP_General inputs'!$C$108 -> Input 503-F: Other expenditure
F131: Fixed inputs | G131: ='Fixed inputs'!$C$13 -> Input 504-A: Conversions and time
G132: ='Fixed inputs'!$C$20 -> Input 504-B: Input 101-B: Rounding
G133: ='Fixed inputs'!$C$33 -> Input 504-C: Financial and general assumptions
G134: ='Fixed inputs'!$C$43 -> Input 504-D: Mappings
G135: ='Fixed inputs'!$C$84 -> Input 504-E: Standing charge factors
G136: ='Fixed inputs'!$C$99 -> Input 504-F: Flags
G137: ='Fixed inputs'!$C$141 -> Input 504-G: Identifiers for customer groupings
G138: ='Fixed inputs'!$C$151 -> Input 504-H: Decimal places for error checks
G139: ='Fixed inputs'!$C$155 -> Input 504-I: Map of applicable MPANs
G140: ='Fixed inputs'!$C$162 -> Input 504-J: Revenue matching inputs
F141: Inputs by customer type | G141: ='Inputs by customer type'!$C$16 -> Section 501-A: Load characteristics
G142: ='Inputs by customer type'!$C$21 -> Section 501-B: Volume forecasts for the charging year
G143: ='Inputs by customer type'!$C$166 -> Section 501-C: Non-Domestic Aggregated (Related MPAN) distribution by bands
G144: ='Inputs by customer type'!$C$186 -> Section 501-D: Service model asset values
F145: Inputs by network level | G145: ='Inputs by network level'!$C$16 -> Section 502-A: Network and load inputs
G146: ='Inputs by network level'!$C$26 -> Section 502-B: Customer contributions under current connection charging policy
G147: ='Inputs by network level'!$C$34 -> Section 502-C: DRM asset costs
G148: ='Inputs by network level'!$C$38 -> Section 502-D: Peaking probabilities by network level
F149: General inputs | G149: ='General inputs'!$C$16 -> Section 503-A: Inputs by distribution timeband
G150: ='General inputs'!$C$28 -> Section 503-B: LDNO discount inputs
G151: ='General inputs'!$C$38 -> Section 503-C: CDCM target revenue
G152: ='General inputs'!$C$93 -> Section 503-D: Financial and general assumptions
G153: ='General inputs'!$C$99 -> Section 503-E: Transmission exit charges
G154: ='General inputs'!$C$103 -> Section 503-F: Other expenditure
F155: Standing charge factors | G155: ='Standing charge factors'!$C$19 -> Section 504-A: Adjustments to standing charges
F156: Load & loss characteristics | G156: ='Load & loss characteristics'!$C$17 -> Section 505-A: Load characteristics
G157: ='Load & loss characteristics'!$C$25 -> Section 505-B: Loss adjustment factors
G158: ='Load & loss characteristics'!$C$35 -> Section 505-C: Proportion of relevant load going through 132kV/HV direct transformation
G159: ='Load & loss characteristics'!$C$40 -> Section 505-D: Network use factors
G160: ='Load & loss characteristics'!$C$121 -> Section 505-E: User loss factors
F161: Customer contributions | G161: ='Customer contributions'!$C$16 -> Section 506-A: Network use factors
G162: ='Customer contributions'!$C$38 -> Section 506-B: Customer contributions
F163: Volume adjustments | G163: ='Volume adjustments'!$C$15 -> Section 507-A: LDNO discounts
G164: ='Volume adjustments'!$C$53 -> Section 507-B: Aggregation of volumes
G165: ='Volume adjustments'!$C$225 -> Section 507-C: Volume discounting
G166: ='Volume adjustments'!$C$332 -> Section 507-D: No residual volume discounting
G167: ='Volume adjustments'!$C$361 -> Section 507-E: Residual band 1 volume discounting
G168: ='Volume adjustments'!$C$390 -> Section 507-F: Residual band 2 volume discounting
G169: ='Volume adjustments'!$C$419 -> Section 507-G: Residual band 3 volume discounting
G170: ='Volume adjustments'!$C$448 -> Section 507-H: Residual band 4 volume discounting
G171: ='Volume adjustments'!$C$477 -> Section 507-I: Discounted volumes by residual band
G172: ='Volume adjustments'!$C$523 -> Section 507-J: Volumes by residual band
G173: ='Volume adjustments'!$C$657 -> Section 507-K: Non-domestic aggregated (related MPAN) distribution across bands
F174: Pseudo-load coefficients | G174: ='Pseudo-load coefficients'!$C$18 -> Section 508-A: Flags and hours in timebands
G175: ='Pseudo-load coefficients'!$C$28 -> Section 508-B: Average load by timeband
G176: ='Pseudo-load coefficients'!$C$36 -> Section 508-C: Aggregated groups for pseudo-load coefficients
G177: ='Pseudo-load coefficients'!$C$52 -> Section 508-D: Ratio of coincidence to load factor assuming units evenly spread within time bands, and peak falls in Red period
G178: ='Pseudo-load coefficients'!$C$60 -> Section 508-E: Load characteristics for all customers
G179: ='Pseudo-load coefficients'!$C$65 -> Section 508-F: Aggregated load characteristics for grouped customers
G180: ='Pseudo-load coefficients'!$C$87 -> Section 508-G: Calculation of correction factor
G181: ='Pseudo-load coefficients'!$C$100 -> Section 508-H: Peaking probabilities, by network level
G182: ='Pseudo-load coefficients'!$C$174 -> Section 508-I: Peaking probabilities, by network level and customer type
G183: ='Pseudo-load coefficients'!$C$221 -> Section 508-J: Ratio of coincidence factor to load factor, based on uniform distribution in timebands and peaking probabilities
G184: ='Pseudo-load coefficients'!$C$265 -> Section 508-K: Load coefficient
G185: ='Pseudo-load coefficients'!$C$269 -> Section 508-L: Pseudo load coefficients, by unit rate
F186: System peak demand | G186: ='System peak demand'!$C$18 -> Section 509-A: Common inputs for chargeable load calculations
G187: ='System peak demand'!$C$67 -> Section 509-B: System peak load, by unit rate
G188: ='System peak demand'!$C$138 -> Section 509-C: System peak load, all unit rates
G189: ='System peak demand'!$C$164 -> Section 509-D: Unit rate contributions to chargeable peak load
G190: ='System peak demand'!$C$184 -> Section 509-E: Adjustment of import and exceeded capacity
G191: ='System peak demand'!$C$194 -> Section 509-F: Calculation of LV circuit diversity factor
G192: ='System peak demand'!$C$236 -> Section 509-G: Import/exceeded capacity contribution to system peak
G193: ='System peak demand'!$C$249 -> Section 509-H: Estimated capacity contribution to system peak
G194: ='System peak demand'!$C$266 -> Section 509-I: System peak based on chargeable load
F195: Service model assets | G195: ='Service model assets'!$C$14 -> Section 510-A: Service model notional asset values
F196: Unit costs | G196: ='Unit costs'!$C$19 -> Section 511-A: Financial data
G197: ='Unit costs'!$C$27 -> Section 511-B: Diversity and loss adjustment factors
G198: ='Unit costs'!$C$35 -> Section 511-C: Maximum demand
G199: ='Unit costs'!$C$42 -> Section 511-D: Rerouting matrix
G200: ='Unit costs'!$C$50 -> Section 511-E: Annuitised cost of assets
G201: ='Unit costs'!$C$62 -> Section 511-F: System simultaneous peak load based on charegable units
G202: ='Unit costs'!$C$69 -> Section 511-G: Notional asset values, by network level
G203: ='Unit costs'!$C$80 -> Section 511-H: Other operating costs
G204: ='Unit costs'!$C$92 -> Section 511-I: Other operating costs by network level
G205: ='Unit costs'!$C$104 -> Section 511-J: Notional asset values by network level
G206: ='Unit costs'!$C$110 -> Section 511-K: Unit costs
G207: ='Unit costs'!$C$117 -> Section 511-L: Values used for allocating costs to service models
F208: Initial unit rates | G208: ='Initial unit rates'!$C$13 -> Section 512-A: Inputs for yardstick and unit rate calculations
... 75 more rows

Sheet Named ranges
A1: =MID(CELL("filename",A1),FIND("]",CELL("filename",A1))+1,255) -> Named ranges
A2: =Cover!D21&" - "&Cover!D23 -> National Grid Electricity Distribution (East Midlands) - [enter data version name]
A3: =Cover!D2&" - "&Cover!D8&" v"&Cover!D10&" - "&Cover!D19 -> ARP model - Release for charge setting v7 - 2024/25
B5: List of named ranges
F7: charging_year | G7: Year for which charges are being calculated | H7: Cover
F8: charging_year_selected | G8: Charging year currently selected for ARP | H8: ARP_User control
F9: check_decimals | G9: Number of decimal places of precision for in-built model checks | H9: Fixed inputs
F10: days_in_year | G10: Days in the charging year | H10: General inputs
F11: DNO_name | G11: Name of DNO | H11: Cover
F12: hours_in_day | G12: Hours per day | H12: Fixed inputs
F13: hours_in_year | G13: Hours in the charging year | H13: General inputs
F14: hundred | G14: Equal to 100 | H14: Fixed inputs
F15: live_results_bills | G15: Typical bills for selected charging year | H15: Typical bills
F16: live_results_tariffs | G16: Tariffs for selected charging year | H16: Tariff summary
F17: PowerFactor | G17: Power factor, equal to 0.95 | H17: Fixed inputs
F18: results_4_bills | G18: Typical bills for current charging year | H18: Typical bills
F19: results_4_tariffs | G19: Tariffs for current charging year | H19: Tariff summary
F20: results_5_bills | G20: Typical bills for current charging year + 1 | H20: Typical bills
F21: results_5_tariffs | G21: Tariffs for current charging year + 1 | H21: Tariff summary
F22: results_6_bills | G22: Typical bills for current charging year + 2 | H22: Typical bills
F23: results_6_tariffs | G23: Tariffs for current charging year + 2 | H23: Tariff summary
F24: results_7_bills | G24: Typical bills for current charging year + 3 | H24: Typical bills
F25: results_7_tariffs | G25: Tariffs for current charging year + 3 | H25: Tariff summary
F26: results_8_bills | G26: Typical bills for current charging year + 4 | H26: Typical bills
F27: results_8_tariffs | G27: Tariffs for current charging year + 4 | H27: Tariff summary
F28: ten | G28: Equal to 10 | H28: Fixed inputs
F29: thousand | G29: Equal to 1000 | H29: Fixed inputs
F30: year_selection | G30: Index for selected charging year | H30: ARP_User control
B32: End of sheet

Sheet ARP_DNO commentary
A1: =MID(CELL("filename",A1),FIND("]",CELL("filename",A1))+1,255) -> ARP_DNO commentary
A2: =Cover!D21&" - "&Cover!D23 -> National Grid Electricity Distribution (East Midlands) - [enter data version name]
A3: =Cover!D2&" - "&Cover!D8&" v"&Cover!D10&" - "&Cover!D19 -> ARP model - Release for charge setting v7 - 2024/25
B5: Description
C7: This sheet contains the DNO's commentary on its forecast of CDCM input data for the four years following the charging year, as required by DCUSA Schedule 20, Paragraph 2.1 (e).
B9: Commentary
B20: End of sheet

Sheet ARP_CDCM timebands
A1: =MID(CELL("filename",A1),FIND("]",CELL("filename",A1))+1,255) -> ARP_CDCM timebands
A2: =Cover!D21&" - "&Cover!D23 -> National Grid Electricity Distribution (East Midlands) - [enter data version name]
A3: =Cover!D2&" - "&Cover!D8&" v"&Cover!D10&" - "&Cover!D19 -> ARP model - Release for charge setting v7 - 2024/25
B5: Click here to return to model map | G5: Units | H5: Constants | J5: =TRANSPOSE('ARP_User control'!G31:G35) -> 2024/25 | K5: 2025/26 | L5: 2026/27 | M5: 2027/28 | N5: 2028/29
B7: Description
C9: This sheet sets out the expected timebands that the DNO plans to use for each of the five years covered by the
C10: Annual Review Pack, as required by DCUSA Schedule 20, Paragraph 2.1 (f).
B12: CDCM timebands
C14: Distribution time bands
E16: Weekdays (including bank holidays)
F17: Red | G17: time of day | J17: 16:00 to 19:00 | K17: 16:00 to 19:00 | L17: 16:00 to 19:00 | M17: 16:00 to 19:00 | N17: 16:00 to 19:00
F18: Amber | G18: time of day | J18: 07:30 to 16:00 19:00 to 21:00 | K18: 07:30 to 16:00 19:00 to 21:00 | L18: 07:30 to 16:00 19:00 to 21:00 | M18: 07:30 to 16:00 19:00 to 21:00 | N18: 07:30 to 16:00 19:00 to 21:00
F19: Green | G19: time of day | J19: 00:00 to 07:30 21:00 to 24:00 | K19: 00:00 to 07:30 21:00 to 24:00 | L19: 00:00 to 07:30 21:00 to 24:00 | M19: 00:00 to 07:30 21:00 to 24:00 | N19: 00:00 to 07:30 21:00 to 24:00
J20: 0
E21: Weekends | J21: 0
F22: Red | G22: time of day | J22: 0 | K22: 0 | L22: 0 | M22: 0 | N22: 0
F23: Amber | G23: time of day | J23: 0 | K23: 0 | L23: 0 | M23: 0 | N23: 0
F24: Green | G24: time of day | J24: 00:00 to 24:00 | K24: 00:00 to 24:00 | L24: 00:00 to 24:00 | M24: 00:00 to 24:00 | N24: 00:00 to 24:00
J25: 0
C26: Special distribution time bands | J26: 0
J27: 0
E28: Weekdays (including bank holidays) Nov to Feb | J28: 0
F29: Black | G29: time of day | J29: 16:00 to 19:00 | K29: 16:00 to 19:00 | L29: 16:00 to 19:00 | M29: 16:00 to 19:00 | N29: 16:00 to 19:00
F30: Yellow | G30: time of day | J30: 07:30 to 16:00 19:00 to 21:00 | K30: 07:30 to 16:00 19:00 to 21:00 | L30: 07:30 to 16:00 19:00 to 21:00 | M30: 07:30 to 16:00 19:00 to 21:00 | N30: 07:30 to 16:00 19:00 to 21:00
F31: Green | G31: time of day | J31: 00:00 to 07:30 21:00 to 24:00 | K31: 00:00 to 07:30 21:00 to 24:00 | L31: 00:00 to 07:30 21:00 to 24:00 | M31: 00:00 to 07:30 21:00 to 24:00 | N31: 00:00 to 07:30 21:00 to 24:00
J32: 0
E33: Weekdays (including bank holidays) Mar to Oct | J33: 0
F34: Black | G34: time of day | J34: 0 | K34: 0 | L34: 0 | M34: 0 | N34: 0
F35: Yellow | G35: time of day | J35: 07:30 to 21:00 | K35: 07:30 to 21:00 | L35: 07:30 to 21:00 | M35: 07:30 to 21:00 | N35: 07:30 to 21:00
F36: Green | G36: time of day | J36: 00:00 to 07:30 21:00 to 24:00 | K36: 00:00 to 07:30 21:00 to 24:00 | L36: 00:00 to 07:30 21:00 to 24:00 | M36: 00:00 to 07:30 21:00 to 24:00 | N36: 00:00 to 07:30 21:00 to 24:00
J37: 0
E38: Weekends | J38: 0
F39: Black | G39: time of day | J39: 0 | K39: 0 | L39: 0 | M39: 0 | N39: 0
F40: Yellow | G40: time of day | J40: 0 | K40: 0 | L40: 0 | M40: 0 | N40: 0
F41: Green | G41: time of day | J41: 00:00 to 24:00 | K41: 00:00 to 24:00 | L41: 00:00 to 24:00 | M41: 00:00 to 24:00 | N41: 00:00 to 24:00
B43: End of sheet

Sheet ARP_Load characteristics
A1: =MID(CELL("filename",A1),FIND("]",CELL("filename",A1))+1,255) -> ARP_Load characteristics
A2: =Cover!D21&" - "&Cover!D23 -> National Grid Electricity Distribution (East Midlands) - [enter data version name]
A3: =Cover!D2&" - "&Cover!D8&" v"&Cover!D10&" - "&Cover!D19 -> ARP model - Release for charge setting v7 - 2024/25
B5: Click here to return to model map | G5: Units | H5: Constants | J5: Domestic Aggregated | K5: Domestic Aggregated (Related MPAN) | L5: Non-Domestic Aggregated | M5: Non-Domestic Aggregated (Related MPAN) | N5: LV Site Specific | O5: LV Sub Site Specific | P5: HV Site Specific | Q5: Unmetered Supplies | R5: LV Generation Aggregated | S5: LV Sub Generation Aggregated | T5: LV Generation Site Specific | U5: LV Generation Site Specific no RP Charge | V5: LV Sub Generation Site Specific | W5: LV Sub Generation Site Specific no RP Charge | X5: HV Generation Site Specific | Y5: HV Generation Site Specific no RP Charge
B7: Description
C9: This sheet presents historic data used to calculate average values for load characteristics, as required by DCUSA Schedule 20, Paragraph 2.1 (g).
C10: Charges for year Y are set in year Y-2 using average load characteristics from the three previous years (i.e. Y-3 to Y-5).
C11: This sheet is for information only, and is not linked to following worksheets.
B13: Years
E15: Years to which input data relate
F16: Year 1 | G16: year | H16: =LEFT(H17,4) - 1 & "/" & RIGHT(H17,2) - 1 -> 2019/20
F17: Year 2 | G17: year | H17: =LEFT(H18,4) - 1 & "/" & RIGHT(H18,2) - 1 -> 2020/21
F18: Year 3 | G18: year | H18: ='ARP_User control'!$G$28 -> 2021/22
B20: Load characteristics
E22: Load factor
F23: =$H$16 -> 2019/20 | G23: % | J23: 0.4610196929 | K23: 0.1035425589 | L23: 0.4629720668 | M23: 0.2452220712 | N23: 0.5458751489 | O23: 0.5896557346 | P23: 0.7246611843 | Q23: 0.4976167178
F24: =$H$17 -> 2020/21 | G24: % | J24: 0.4396965885 | K24: 0.120846946 | L24: 0.40165367 | M24: 0.2439230183 | N24: 0.5069411747 | O24: 0.5591867261 | P24: 0.7035513288 | Q24: 0.4974151905
F25: =$H$18 -> 2021/22 | G25: % | J25: 0.4508783659 | K25: 0.1383495083 | L25: 0.4373501291 | M25: 0.2309034831 | N25: 0.5301680152 | O25: 0.5648328936 | P25: 0.7245379843 | Q25: 0.4963662924
F26: Average | G26: % | J26: =AVERAGE(J23:J25) -> 0.4505315491 | K26: =AVERAGE(K23:K25) -> 0.1209130044 | L26: 0.4339919553 | M26: 0.2400161909 | N26: 0.5276614463 | O26: 0.5712251181 | P26: 0.7175834992 | Q26: 0.4971327336
E28: Coincidence factor
F29: =$H$16 -> 2019/20 | G29: % | J29: 0.8876751184 | L29: 0.7680659766 | N29: 0.7814160435 | O29: 0.8344519307 | P29: 0.8286234826 | Q29: 0.995220907
F30: =$H$17 -> 2020/21 | G30: % | J30: 0.8997875342 | L30: 0.7004718476 | N30: 0.7053100775 | O30: 0.7619484795 | P30: 0.8062687475 | Q30: 0.9918970512
F31: =$H$18 -> 2021/22 | G31: % | J31: 0.8542185807 | L31: 0.7457319186 | N31: 0.7664996833 | O31: 0.8306838097 | P31: 0.8388462122 | Q31: 0.9793510919
F32: Average | G32: % | J32: =AVERAGE(J29:J31) -> 0.8805604111 | L32: =AVERAGE(L29:L31) -> 0.7380899143 | N32: 0.7510752681 | O32: 0.8090280733 | P32: =AVERAGE(P29:P31) -> 0.8245794808 | Q32: 0.9888230167
B34: End of sheet

Sheet ARP_Peaking probabilities
A1: =MID(CELL("filename",A1),FIND("]",CELL("filename",A1))+1,255) -> ARP_Peaking probabilities
A2: =Cover!D21&" - "&Cover!D23 -> National Grid Electricity Distribution (East Midlands) - [enter data version name]
A3: =Cover!D2&" - "&Cover!D8&" v"&Cover!D10&" - "&Cover!D19 -> ARP model - Release for charge setting v7 - 2024/25
B5: Click here to return to model map | G5: Units | H5: Constants | J5: Transmission exit | K5: GSPs | L5: 132kV | M5: 132kV/EHV | N5: EHV | O5: EHV/HV | P5: 132kV/HV | Q5: HV | R5: HV/LV | S5: LV circuits
B7: Description
C9: This sheet presents historic data used to calculate average values for peaking probabilities, as required by
C10: DCUSA Schedule 20, Paragraph 2.1 (e).
C11: Charges for year Y are set in year Y-2 using average peaking probabilities from the three previous years (i.e. Y-3 to Y-5).
C12: This sheet is for information only, and is not linked to following worksheets.
B14: Years
E16: Years to which input data relate
F17: Year 1 | G17: year | H17: =LEFT(H18,4) - 1 & "/" & RIGHT(H18,2) - 1 -> 2019/20
F18: Year 2 | G18: year | H18: =LEFT(H19,4) - 1 & "/" & RIGHT(H19,2) - 1 -> 2020/21
F19: Year 3 | G19: year | H19: ='ARP_User control'!$G$28 -> 2021/22
B21: Peaking probabilities, by distribution timeband
E23: Red period
F24: =$H$17 -> 2019/20 | G24: % | K24: 1 | L24: 0.4709972386 | M24: 0.4709972386 | N24: 0.418577955 | O24: 0.418577955 | P24: 0.4709972386 | Q24: 0.418577955 | R24: 0.418577955 | S24: 0.418577955
F25: =$H$18 -> 2020/21 | G25: % | K25: 0.749362982 | L25: 0.4877280492 | M25: 0.4877280492 | N25: 0.4424623258 | O25: 0.4424623258 | P25: 0.4877280492 | Q25: 0.4424623258 | R25: 0.4424623258 | S25: 0.4424623258
F26: =$H$19 -> 2021/22 | G26: % | K26: 1 | L26: 0.6517033819 | M26: 0.6517033819 | N26: 0.5805267894 | O26: 0.5805267894 | P26: 0.6517033819 | Q26: 0.5805267894 | R26: 0.5805267894 | S26: 0.5805267894
F27: Average | G27: % | K27: =AVERAGE(K24:K26) -> 0.9164543273 | L27: 0.5368095566 | M27: 0.5368095566 | N27: 0.4805223567 | O27: 0.4805223567 | P27: 0.5368095566 | Q27: 0.4805223567 | R27: 0.4805223567 | S27: 0.4805223567
E29: Amber period
F30: =$H$17 -> 2019/20 | G30: % | K30: 0 | L30: 0.4643742211 | M30: 0.4643742211 | N30: 0.5005569266 | O30: 0.5005569266 | P30: 0.4643742211 | Q30: 0.5005569266 | R30: 0.5005569266 | S30: 0.5005569266
F31: =$H$18 -> 2020/21 | G31: % | K31: 0.250637018 | L31: 0.427177509 | M31: 0.427177509 | N31: 0.468458146 | O31: 0.468458146 | P31: 0.427177509 | Q31: 0.468458146 | R31: 0.468458146 | S31: 0.468458146
F32: =$H$19 -> 2021/22 | G32: % | K32: 0 | L32: 0.3293765471 | M32: 0.3293765471 | N32: 0.3756143026 | O32: 0.3756143026 | P32: 0.3293765471 | Q32: 0.3756143026 | R32: 0.3756143026 | S32: 0.3756143026
F33: Average | G33: % | K33: =AVERAGE(K30:K32) -> 0.08354567265 | L33: 0.4069760924 | M33: 0.4069760924 | N33: 0.4482097917 | O33: 0.4482097917 | P33: 0.4069760924 | Q33: 0.4482097917 | R33: 0.4482097917 | S33: 0.4482097917
E35: Green period
F36: =$H$17 -> 2019/20 | G36: % | K36: 0 | L36: 0.06462854032 | M36: 0.06462854032 | N36: 0.08086511843 | O36: 0.08086511843 | P36: 0.06462854032 | Q36: 0.08086511843 | R36: 0.08086511843 | S36: 0.08086511843
F37: =$H$18 -> 2020/21 | G37: % | K37: 0 | L37: 0.08509444189 | M37: 0.08509444189 | N37: 0.08907952827 | O37: 0.08907952827 | P37: 0.08509444189 | Q37: 0.08907952827 | R37: 0.08907952827 | S37: 0.08907952827
F38: =$H$19 -> 2021/22 | G38: % | K38: 0 | L38: 0.01892007096 | M38: 0.01892007096 | N38: 0.04385890794 | O38: 0.04385890794 | P38: 0.01892007096 | Q38: 0.04385890794 | R38: 0.04385890794 | S38: 0.04385890794
F39: Average | G39: % | K39: =AVERAGE(K36:K38) -> 0 | L39: 0.05621435106 | M39: 0.05621435106 | N39: 0.07126785155 | O39: 0.07126785155 | P39: 0.05621435106 | Q39: 0.07126785155 | R39: 0.07126785155 | S39: 0.07126785155
E41: Black period
F42: =$H$17 -> 2019/20 | G42: % | K42: 0.9447785348 | L42: 0.3521640349 | M42: 0.3521640349 | N42: 0.3549258567 | O42: 0.3549258567 | P42: 0.3521640349 | Q42: 0.3549258567 | R42: 0.3549258567 | S42: 0.3549258567
F43: =$H$18 -> 2020/21 | G43: % | K43: 0.749362982 | L43: 0.4084772928 | M43: 0.4084772928 | N43: 0.3318318014 | O43: 0.3318318014 | P43: 0.4084772928 | Q43: 0.3318318014 | R43: 0.3318318014 | S43: 0.3318318014
F44: =$H$19 -> 2021/22 | G44: % | K44: 1 | L44: 0.2878436482 | M44: 0.2878436482 | N44: 0.3047215637 | O44: 0.3047215637 | P44: 0.2878436482 | Q44: 0.3047215637 | R44: 0.3047215637 | S44: 0.3047215637
F45: Average | G45: % | K45: =AVERAGE(K42:K44) -> 0.8980471723 | L45: 0.349494992 | M45: 0.349494992 | N45: 0.3304930739 | O45: 0.3304930739 | P45: 0.349494992 | Q45: 0.3304930739 | R45: 0.3304930739 | S45: 0.3304930739
B47: End of sheet

Sheet ARP_User control
A1: =MID(CELL("filename",A1),FIND("]",CELL("filename",A1))+1,255) -> ARP_User control
A2: =Cover!D21&" - "&Cover!D23 -> National Grid Electricity Distribution (East Midlands) - [enter data version name]
A3: =Cover!D2&" - "&Cover!D8&" v"&Cover!D10&" - "&Cover!D19 -> ARP model - Release for charge setting v7 - 2024/25
B5: Description
C7: This sheet contains the user interface for the ARP, which is used to select the "live" year used for input data.
C8: It houses the Macro Button which should be pressed to update results for all years of the forecast period.
B10: User interface
C12: Users can select which year of input data is pulled into the model using the yellow cell.
C13: Users should press the "Run all years" macro button to update multi-year results on the 'Tariff summary' and 'Typical bills' sheets.
C15: Inputs for manually running selected year
E17: Year selection | G17: 2024/25
C19: Macro to run all years
B25: Lists
D27: List of years
E28: Year -3 | G28: =LEFT(G29,4) - 1 & "/" & RIGHT(G29,2) - 1 -> 2021/22 | H28: Historic
E29: Year -2 | G29: =LEFT(G30,4) - 1 & "/" & RIGHT(G30,2) - 1 -> 2022/23 | H29: Historic
E30: Year -1 | G30: =LEFT(G31,4) - 1 & "/" & RIGHT(G31,2) - 1 -> 2023/24 | H30: Historic
E31: ="Charging year (" & charging_year &")" -> Charging year (2024/25) | G31: =charging_year -> 2024/25 | H31: Current
E32: Year +1 | G32: =LEFT(G31,4) + 1 & "/" & RIGHT(G31,2) + 1 -> 2025/26 | H32: Forecast
E33: Year +2 | G33: =LEFT(G32,4) + 1 & "/" & RIGHT(G32,2) + 1 -> 2026/27 | H33: Forecast
E34: Year +3 | G34: 2027/28 | H34: Forecast
E35: Year +4 | G35: 2028/29 | H35: Forecast
E36: Year selection (index) | G36: =MATCH(G17,G28:G35) -> 4 | H36: =INDEX(H28:H35,MATCH($G$17,$G$28:$G$35,0)) -> Current
B38: End of sheet

Sheet ARP_Inputs by customer type
A1: =MID(CELL("filename",A1),FIND("]",CELL("filename",A1))+1,255) -> ARP_Inputs by customer type
A2: =Cover!D21&" - "&Cover!D23 -> National Grid Electricity Distribution (East Midlands) - [enter data version name]
A3: =Cover!D2&" - "&Cover!D8&" v"&Cover!D10&" - "&Cover!D19 -> ARP model - Release for charge setting v7 - 2024/25
A4: =H2140 & IF(H2140 = 1, " issue", " issues") &" identified in checks on this sheet" -> 0 issues identified in checks on this sheet
J5: ="Year selected ("& charging_year_selected &")" -> Year selected (2024/25) | L5: =TRANSPOSE('ARP_User control'!G28:H35) -> 2021/22 | M5: 2022/23 | N5: 2023/24 | O5: 2024/25 | P5: 2025/26 | Q5: 2026/27 | R5: 2027/28 | S5: 2028/29
B6: Click here to return to model map | G6: Units | H6: Constants | J6: ='ARP_User control'!$H$36 -> Current | L6: Historic | M6: Historic | N6: Historic | O6: Current | P6: Forecast | Q6: Forecast | R6: Forecast | S6: Forecast | U6: Legal text reference
B8: Description
C10: This sheet sets out inputs by customer type and by year.
C11: DNOs should populate the inputs for the charging year and the four following years.
C12: DNOs can also populate the three years preceding the charging year, but are not obliged to do so.
B14: Load characteristics
C16: =INDEX('Version control'!$H$36:$H$62,MATCH($A$1,'Version control'!$F$36:$F$62,0),1)&"-A: Load factor" -> Input 501-A: Load factor
E18: Load factor | I18: > | U18: Paragraphs 42 (a) and 52
F19: Domestic Aggregated | G19: % | J19: =CHOOSE(year_selection, L19,M19,N19,O19,P19,Q19,R19,S19) -> 0.4505315491 | L19: 0.4439797468 | M19: 0.4479683771 | N19: 0.4487311192 | O19: =HLOOKUP(F19,'ARP_Load characteristics'!J$5:Q$32,22,FALSE) -> 0.4505315491 | P19: =O19 -> 0.4505315491 | Q19: =P19 -> 0.4505315491 | R19: 0.4505315491 | S19: 0.4505315491
F20: Domestic Aggregated (Related MPAN) | G20: % | J20: =CHOOSE(year_selection, L20,M20,N20,O20,P20,Q20,R20,S20) -> 0.1209130044 | L20: 0.1388121956 | M20: 0.126787586 | N20: 0.120147002 | O20: =HLOOKUP(F20,'ARP_Load characteristics'!J$5:Q$32,22,FALSE) -> 0.1209130044 | P20: =O20 -> 0.1209130044 | Q20: 0.1209130044 | R20: 0.1209130044 | S20: 0.1209130044
F21: Non-Domestic Aggregated | G21: % | J21: 0.4339919553 | L21: 0.441232798 | M21: 0.4376879887 | N21: 0.4422830026 | O21: =HLOOKUP(F21,'ARP_Load characteristics'!J$5:Q$32,22,FALSE) -> 0.4339919553 | P21: =O21 -> 0.4339919553 | Q21: 0.4339919553 | R21: 0.4339919553 | S21: 0.4339919553
F22: Non-Domestic Aggregated (Related MPAN) | G22: % | J22: 0.2400161909 | L22: 0.233687314 | M22: 0.2318579585 | N22: 0.2367962178 | O22: =HLOOKUP(F22,'ARP_Load characteristics'!J$5:Q$32,22,FALSE) -> 0.2400161909 | P22: =O22 -> 0.2400161909 | Q22: 0.2400161909 | R22: 0.2400161909 | S22: 0.2400161909
F23: LV Site Specific | G23: % | J23: 0.5276614463 | L23: 0.5416716375 | M23: 0.5412321423 | N23: 0.5301044677 | O23: =HLOOKUP(F23,'ARP_Load characteristics'!J$5:Q$32,22,FALSE) -> 0.5276614463 | P23: =O23 -> 0.5276614463 | Q23: 0.5276614463 | R23: 0.5276614463 | S23: 0.5276614463
F24: LV Sub Site Specific | G24: % | J24: 0.5712251181 | L24: 0.5848687163 | M24: 0.5877153645 | N24: 0.5775803091 | O24: =HLOOKUP(F24,'ARP_Load characteristics'!J$5:Q$32,22,FALSE) -> 0.5712251181 | P24: =O24 -> 0.5712251181 | Q24: 0.5712251181 | R24: 0.5712251181 | S24: 0.5712251181
F25: HV Site Specific | G25: % | J25: 0.7175834992 | L25: 0.7278437551 | M25: 0.7285680308 | N25: 0.7205019098 | O25: =HLOOKUP(F25,'ARP_Load characteristics'!J$5:Q$32,22,FALSE) -> 0.7175834992 | P25: =O25 -> 0.7175834992 | Q25: 0.7175834992 | R25: 0.7175834992 | S25: 0.7175834992
F26: Unmetered Supplies | G26: % | J26: 0.4971327336 | L26: 0.4874323716 | M26: 0.4904377895 | N26: 0.4942101416 | O26: =HLOOKUP(F26,'ARP_Load characteristics'!J$5:Q$32,22,FALSE) -> 0.4971327336 | P26: =O26 -> 0.4971327336 | Q26: 0.4971327336 | R26: 0.4971327336 | S26: 0.4971327336
F27: LV Generation Aggregated | G27: %
F28: LV Sub Generation Aggregated | G28: %
F29: LV Generation Site Specific | G29: %
F30: LV Generation Site Specific no RP Charge | G30: %
F31: LV Sub Generation Site Specific | G31: %
F32: LV Sub Generation Site Specific no RP Charge | G32: %
F33: HV Generation Site Specific | G33: %
F34: HV Generation Site Specific no RP Charge | G34: %
C36: =INDEX('Version control'!$H$36:$H$62,MATCH($A$1,'Version control'!$F$36:$F$62,0),1)&"-B: Coincidence factor" -> Input 501-B: Coincidence factor
E38: Coincidence factor | I38: > | U38: Paragraphs 42 (b) and 52
F39: Domestic Aggregated | G39: % | J39: =CHOOSE(year_selection, L39,M39,N39,O39,P39,Q39,R39,S39) -> 0.8805604111 | L39: 0.9294355812 | M39: 0.927287765 | N39: 0.8938836098 | O39: =HLOOKUP(F39,'ARP_Load characteristics'!J$5:Q$32,28,FALSE) -> 0.8805604111 | P39: =O39 -> 0.8805604111 | Q39: 0.8805604111 | R39: 0.8805604111 | S39: 0.8805604111
F40: Domestic Aggregated (Related MPAN) | G40: %
F41: Non-Domestic Aggregated | G41: % | J41: 0.7380899143 | L41: 0.7345840722 | M41: 0.7277360837 | N41: 0.7595642973 | O41: =HLOOKUP(F41,'ARP_Load characteristics'!J$5:Q$32,28,FALSE) -> 0.7380899143 | P41: =O41 -> 0.7380899143 | Q41: 0.7380899143 | R41: 0.7380899143 | S41: 0.7380899143
F42: Non-Domestic Aggregated (Related MPAN) | G42: %
F43: LV Site Specific | G43: % | J43: 0.7510752681 | L43: 0.7524203015 | M43: 0.7496600388 | N43: 0.7575843683 | O43: =HLOOKUP(F43,'ARP_Load characteristics'!J$5:Q$32,28,FALSE) -> 0.7510752681 | P43: =O43 -> 0.7510752681 | Q43: 0.7510752681 | R43: 0.7510752681 | S43: 0.7510752681
F44: LV Sub Site Specific | G44: % | J44: 0.8090280733 | L44: 0.8132256091 | M44: 0.8060416676 | N44: 0.8135790292 | O44: =HLOOKUP(F44,'ARP_Load characteristics'!J$5:Q$32,28,FALSE) -> 0.8090280733 | P44: =O44 -> 0.8090280733 | Q44: 0.8090280733 | R44: 0.8090280733 | S44: 0.8090280733
F45: HV Site Specific | G45: % | J45: 0.8245794808 | L45: 0.8107309324 | M45: 0.8093852877 | N45: 0.8191053737 | O45: =HLOOKUP(F45,'ARP_Load characteristics'!J$5:Q$32,28,FALSE) -> 0.8245794808 | P45: =O45 -> 0.8245794808 | Q45: 0.8245794808 | R45: 0.8245794808 | S45: 0.8245794808
F46: Unmetered Supplies | G46: % | J46: 0.9888230167 | L46: 0.9311867749 | M46: 0.9506011352 | N46: 0.9713016981 | O46: =HLOOKUP(F46,'ARP_Load characteristics'!J$5:Q$32,28,FALSE) -> 0.9888230167 | P46: =O46 -> 0.9888230167 | Q46: 0.9888230167 | R46: 0.9888230167 | S46: 0.9888230167
F47: LV Generation Aggregated | G47: %
F48: LV Sub Generation Aggregated | G48: %
F49: LV Generation Site Specific | G49: %
F50: LV Generation Site Specific no RP Charge | G50: %
F51: LV Sub Generation Site Specific | G51: %
F52: LV Sub Generation Site Specific no RP Charge | G52: %
F53: HV Generation Site Specific | G53: %
F54: HV Generation Site Specific no RP Charge | G54: %
B56: Volumes
C58: =INDEX('Version control'!$H$36:$H$62,MATCH($A$1,'Version control'!$F$36:$F$62,0),1)&"-C: All-the-way volumes - No residual" -> Input 501-C: All-the-way volumes - No residual
E60: Rate 1 units | I60: > | U60: Paragraph 52
F61: Domestic Aggregated | G61: MWh | H61: All the way customers | U61: 19
F62: Domestic Aggregated (Related MPAN) | G62: MWh | H62: All the way customers | J62: =CHOOSE(year_selection, L62,M62,N62,O62,P62,Q62,R62,S62) -> 924.3914777 | M62: 907.5529688 | N62: 705.0021619 | O62: 924.3914777 | P62: =O62 -> 924.3914777 | Q62: 924.3914777 | R62: 924.3914777 | S62: =R62 -> 924.3914777 | U62: 19
F63: Non-Domestic Aggregated | G63: MWh | H63: All the way customers | J63: 0.4857257086 | M63: 0 | N63: 0.5738575633 | O63: 0.4857257086 | P63: 0.4857257086 | Q63: 0.4857257086 | R63: 0.4857257086 | S63: 0.4857257086 | U63: 19
F64: Non-Domestic Aggregated (Related MPAN) | G64: MWh | H64: All the way customers | J64: 14.97896821 | M64: 38.53275918 | N64: 33.61341236 | O64: 14.97896821 | P64: 14.97896821 | Q64: 14.97896821 | R64: 14.97896821 | S64: 14.97896821 | U64: 19
F65: LV Site Specific | G65: MWh | H65: All the way customers | J65: 170.0923137 | M65: 0 | N65: 186.5513943 | O65: 170.0923137 | P65: 170.0923137 | Q65: 170.0923137 | R65: 170.0923137 | S65: 170.0923137 | U65: 19
F66: LV Sub Site Specific | G66: MWh | H66: All the way customers | J66: 9.256438149 | M66: 0 | N66: 9.470320232 | O66: 9.256438149 | P66: 9.256438149 | Q66: 9.256438149 | R66: 9.256438149 | S66: 9.256438149 | U66: 19
F67: HV Site Specific | G67: MWh | H67: All the way customers | J67: 864.9480633 | M67: 0 | N67: 922.4959646 | O67: 864.9480633 | P67: 864.9480633 | Q67: 864.9480633 | R67: 864.9480633 | S67: 864.9480633 | U67: 19
F68: Unmetered Supplies | G68: MWh | H68: All the way customers | U68: 19
F69: LV Generation Aggregated | G69: MWh | H69: All the way customers | J69: 550.5035216 | M69: 68.2298709 | N69: 390.5844939 | O69: 550.5035216 | P69: 550.5035216 | Q69: 550.5035216 | R69: 550.5035216 | S69: 550.5035216 | U69: 19
F70: LV Sub Generation Aggregated | G70: MWh | H70: All the way customers | J70: 0 | M70: 0 | N70: 0 | O70: 0 | P70: 0 | Q70: 0 | R70: 0 | S70: 0 | U70: 19
F71: LV Generation Site Specific | G71: MWh | H71: All the way customers | J71: 4701.261161 | M71: 4775.294281 | N71: 4705.085455 | O71: 4701.261161 | P71: 4701.261161 | Q71: 4701.261161 | R71: 4701.261161 | S71: 4701.261161 | U71: 19
F72: LV Generation Site Specific no RP Charge | G72: MWh | H72: All the way customers | J72: 0 | M72: 0 | N72: 0 | O72: 0 | P72: 0 | Q72: 0 | R72: 0 | S72: 0 | U72: 19
F73: LV Sub Generation Site Specific | G73: MWh | H73: All the way customers | J73: 782.3364198 | M73: 643.5927886 | N73: 811.1143502 | O73: 782.3364198 | P73: 782.3364198 | Q73: 782.3364198 | R73: 782.3364198 | S73: 782.3364198 | U73: 19
F74: LV Sub Generation Site Specific no RP Charge | G74: MWh | H74: All the way customers | J74: 0 | M74: 0 | N74: 0 | O74: 0 | P74: 0 | Q74: 0 | R74: 0 | S74: 0 | U74: 19
F75: HV Generation Site Specific | G75: MWh | H75: All the way customers | J75: 204553.1855 | M75: 278149.1535 | N75: 234888.1591 | O75: 204553.1855 | P75: 204553.1855 | Q75: 204553.1855 | R75: 204553.1855 | S75: 204553.1855 | U75: 19
F76: HV Generation Site Specific no RP Charge | G76: MWh | H76: All the way customers | J76: 0 | M76: 0 | N76: 0 | O76: 0 | P76: 0 | Q76: 0 | R76: 0 | S76: 0 | U76: 19
E78: Rate 2 units
F79: Domestic Aggregated | G79: MWh | H79: All the way customers | O79: 0 | U79: 20
F80: Domestic Aggregated (Related MPAN) | G80: MWh | H80: All the way customers | J80: =CHOOSE(year_selection, L80,M80,N80,O80,P80,Q80,R80,S80) -> 5947.64463 | M80: 5824.431272 | N80: 5256.098298 | O80: 5947.64463 | P80: =O80 -> 5947.64463 | Q80: 5947.64463 | R80: 5947.64463 | S80: =R80 -> 5947.64463 | U80: 20
F81: Non-Domestic Aggregated | G81: MWh | H81: All the way customers | J81: =CHOOSE(year_selection, L81,M81,N81,O81,P81,Q81,R81,S81) -> 2.013741961 | M81: 0 | N81: 2.348325895 | O81: 2.013741961 | P81: 2.013741961 | Q81: 2.013741961 | R81: 2.013741961 | S81: =R81 -> 2.013741961 | U81: 20
F82: Non-Domestic Aggregated (Related MPAN) | G82: MWh | H82: All the way customers | J82: =CHOOSE(year_selection, L82,M82,N82,O82,P82,Q82,R82,S82) -> 265.6529399 | M82: 502.3648511 | N82: 488.1084326 | O82: 265.6529399 | P82: 265.6529399 | Q82: 265.6529399 | R82: 265.6529399 | S82: 265.6529399 | U82: 20
F83: LV Site Specific | G83: MWh | H83: All the way customers | J83: 700.5958932 | M83: 0 | N83: 768.809271 | O83: 700.5958932 | P83: 700.5958932 | Q83: 700.5958932 | R83: 700.5958932 | S83: 700.5958932 | U83: 20
F84: LV Sub Site Specific | G84: MWh | H84: All the way customers | J84: 36.36246992 | M84: 0 | N84: 36.89481577 | O84: 36.36246992 | P84: 36.36246992 | Q84: 36.36246992 | R84: 36.36246992 | S84: 36.36246992 | U84: 20
F85: HV Site Specific | G85: MWh | H85: All the way customers | J85: 3316.849665 | M85: 0 | N85: 3519.608772 | O85: 3316.849665 | P85: 3316.849665 | Q85: 3316.849665 | R85: 3316.849665 | S85: 3316.849665 | U85: 20
F86: Unmetered Supplies | G86: MWh | H86: All the way customers | O86: 0 | P86: 0 | Q86: 0 | R86: 0 | S86: 0 | U86: 20
F87: LV Generation Aggregated | G87: MWh | H87: All the way customers | J87: =CHOOSE(year_selection, L87,M87,N87,O87,P87,Q87,R87,S87) -> 3304.412049 | M87: 449.6334935 | N87: 1893.594472 | O87: 3304.412049 | P87: 3304.412049 | Q87: 3304.412049 | R87: 3304.412049 | S87: 3304.412049 | U87: 20
F88: LV Sub Generation Aggregated | G88: MWh | H88: All the way customers | J88: 0 | M88: 0 | N88: 0 | O88: 0 | P88: 0 | Q88: 0 | R88: 0 | S88: 0 | U88: 20
F89: LV Generation Site Specific | G89: MWh | H89: All the way customers | J89: 24162.77807 | M89: 23780.95118 | N89: 21868.96126 | O89: 24162.77807 | P89: 24162.77807 | Q89: 24162.77807 | R89: 24162.77807 | S89: 24162.77807 | U89: 20
F90: LV Generation Site Specific no RP Charge | G90: MWh | H90: All the way customers | J90: 0 | M90: 0 | N90: 0 | O90: 0 | P90: 0 | Q90: 0 | R90: 0 | S90: 0 | U90: 20
F91: LV Sub Generation Site Specific | G91: MWh | H91: All the way customers | J91: 3056.143667 | M91: 2524.606077 | N91: 3140.991371 | O91: 3056.143667 | P91: 3056.143667 | Q91: 3056.143667 | R91: 3056.143667 | S91: 3056.143667 | U91: 20
F92: LV Sub Generation Site Specific no RP Charge | G92: MWh | H92: All the way customers | J92: 0 | M92: 0 | N92: 0 | O92: 0 | P92: 0 | Q92: 0 | R92: 0 | S92: 0 | U92: 20
F93: HV Generation Site Specific | G93: MWh | H93: All the way customers | J93: 652329.434 | M93: 600091.2399 | N93: 633862.51 | O93: 652329.434 | P93: 652329.434 | Q93: 652329.434 | R93: 652329.434 | S93: 652329.434 | U93: 20
F94: HV Generation Site Specific no RP Charge | G94: MWh | H94: All the way customers | J94: 0 | M94: 0 | N94: 0 | O94: 0 | P94: 0 | Q94: 0 | R94: 0 | S94: 0 | U94: 20
E96: Rate 3 units
F97: Domestic Aggregated | G97: MWh | H97: All the way customers | O97: 0 | U97: 21
F98: Domestic Aggregated (Related MPAN) | G98: MWh | H98: All the way customers | J98: =CHOOSE(year_selection, L98,M98,N98,O98,P98,Q98,R98,S98) -> 9848.374808 | M98: 10388.83221 | N98: 6004.743198 | O98: 9848.374808 | P98: =O98 -> 9848.374808 | Q98: 9848.374808 | R98: 9848.374808 | S98: =R98 -> 9848.374808 | U98: 21
F99: Non-Domestic Aggregated | G99: MWh | H99: All the way customers | J99: 2.319408201 | M99: 0 | N99: 2.820916542 | O99: 2.319408201 | P99: 2.319408201 | Q99: 2.319408201 | R99: 2.319408201 | S99: 2.319408201 | U99: 21
F100: Non-Domestic Aggregated (Related MPAN) | G100: MWh | H100: All the way customers | J100: 1076.711336 | M100: 1825.277742 | N100: 823.0018213 | O100: 1076.711336 | P100: 1076.711336 | Q100: 1076.711336 | R100: 1076.711336 | S100: 1076.711336 | U100: 21
F101: LV Site Specific | G101: MWh | H101: All the way customers | J101: 789.5733772 | M101: 0 | N101: 1046.287335 | O101: 789.5733772 | P101: 789.5733772 | Q101: 789.5733772 | R101: 789.5733772 | S101: 789.5733772 | U101: 21
F102: LV Sub Site Specific | G102: MWh | H102: All the way customers | J102: 41.08632081 | M102: 0 | N102: 41.601864 | O102: 41.08632081 | P102: 41.08632081 | Q102: 41.08632081 | R102: 41.08632081 | S102: 41.08632081 | U102: 21
F103: HV Site Specific | G103: MWh | H103: All the way customers | J103: 4865.181969 | M103: 0 | N103: 5513.326764 | O103: 4865.181969 | P103: 4865.181969 | Q103: 4865.181969 | R103: 4865.181969 | S103: 4865.181969 | U103: 21
F104: Unmetered Supplies | G104: MWh | H104: All the way customers | O104: 0 | P104: 0 | Q104: 0 | R104: 0 | S104: 0 | U104: 21
F105: LV Generation Aggregated | G105: MWh | H105: All the way customers | J105: =CHOOSE(year_selection, L105,M105,N105,O105,P105,Q105,R105,S105) -> 1638.448704 | M105: 251.9982668 | N105: 997.0337013 | O105: 1638.448704 | P105: 1638.448704 | Q105: 1638.448704 | R105: 1638.448704 | S105: 1638.448704 | U105: 21
F106: LV Sub Generation Aggregated | G106: MWh | H106: All the way customers | J106: 0 | M106: 0 | N106: 0 | O106: 0 | P106: 0 | Q106: 0 | R106: 0 | S106: 0 | U106: 21
F107: LV Generation Site Specific | G107: MWh | H107: All the way customers | J107: 24343.70513 | M107: 24197.56164 | N107: 21559.06662 | O107: 24343.70513 | P107: 24343.70513 | Q107: 24343.70513 | R107: 24343.70513 | S107: 24343.70513 | U107: 21
F108: LV Generation Site Specific no RP Charge | G108: MWh | H108: All the way customers | J108: 0 | M108: 0 | N108: 0 | O108: 0 | P108: 0 | Q108: 0 | R108: 0 | S108: 0 | U108: 21
F109: LV Sub Generation Site Specific | G109: MWh | H109: All the way customers | J109: 5098.269325 | M109: 4216.20542 | N109: 5073.931278 | O109: 5098.269325 | P109: 5098.269325 | Q109: 5098.269325 | R109: 5098.269325 | S109: 5098.269325 | U109: 21
F110: LV Sub Generation Site Specific no RP Charge | G110: MWh | H110: All the way customers | J110: 0 | M110: 0 | N110: 0 | O110: 0 | P110: 0 | Q110: 0 | R110: 0 | S110: 0 | U110: 21
F111: HV Generation Site Specific | G111: MWh | H111: All the way customers | J111: 763459.485 | M111: 673152.9916 | N111: 707929.7195 | O111: 763459.485 | P111: 763459.485 | Q111: 763459.485 | R111: 763459.485 | S111: 763459.485 | U111: 21
F112: HV Generation Site Specific no RP Charge | G112: MWh | H112: All the way customers | J112: 0 | M112: 0 | N112: 0 | O112: 0 | P112: 0 | Q112: 0 | R112: 0 | S112: 0 | U112: 21
E114: MPANs
F115: Domestic Aggregated | G115: MPANs | H115: All the way customers | O115: 0 | P115: =O115 -> 0 | Q115: 0 | R115: 0 | S115: =R115 -> 0 | U115: 22
F116: Domestic Aggregated (Related MPAN) | G116: MPANs | H116: All the way customers | J116: =CHOOSE(year_selection, L116,M116,N116,O116,P116,Q116,R116,S116) -> 0 | M116: 0 | N116: 0 | O116: 0 | P116: 0 | Q116: 0 | R116: 0 | S116: 0 | U116: 22
F117: Non-Domestic Aggregated | G117: MPANs | H117: All the way customers | J117: 18.57556521 | M117: 0 | N117: 5.7431 | O117: 18.57556521 | P117: 18.57556521 | Q117: 18.57556521 | R117: 18.57556521 | S117: 18.57556521 | U117: 22
F118: Non-Domestic Aggregated (Related MPAN) | G118: MPANs | H118: All the way customers | J118: 0 | M118: 0 | N118: 0 | O118: 0 | P118: 0 | Q118: 0 | R118: 0 | S118: 0 | U118: 22
F119: LV Site Specific | G119: MPANs | H119: All the way customers | J119: 12.14601572 | M119: 0 | N119: 26 | O119: 12.14601572 | P119: 12.14601572 | Q119: 12.14601572 | R119: 12.14601572 | S119: 12.14601572 | U119: 22
F120: LV Sub Site Specific | G120: MPANs | H120: All the way customers | J120: 1.998910595 | M120: 0 | N120: 2 | O120: 1.998910595 | P120: 1.998910595 | Q120: 1.998910595 | R120: 1.998910595 | S120: 1.998910595 | U120: 22
F121: HV Site Specific | G121: MPANs | H121: All the way customers | J121: 156.0219108 | M121: 0 | N121: 155 | O121: 156.0219108 | P121: 156.0219108 | Q121: 156.0219108 | R121: 156.0219108 | S121: 156.0219108 | U121: 22
F122: Unmetered Supplies | G122: MPANs | H122: All the way customers | O122: 0 | P122: 0 | Q122: 0 | R122: 0 | S122: 0 | U122: 22
F123: LV Generation Aggregated | G123: MPANs | H123: All the way customers | J123: =CHOOSE(year_selection, L123,M123,N123,O123,P123,Q123,R123,S123) -> 0 | M123: 0 | N123: 0 | O123: 0 | P123: 0 | Q123: 0 | R123: 0 | S123: 0 | U123: 22
F124: LV Sub Generation Aggregated | G124: MPANs | H124: All the way customers | J124: 0 | M124: 0 | N124: 0 | O124: 0 | P124: 0 | Q124: 0 | R124: 0 | S124: 0 | U124: 22
F125: LV Generation Site Specific | G125: MPANs | H125: All the way customers | J125: 0 | M125: 734.2618603 | N125: 699.7540984 | O125: 0 | P125: 0 | Q125: 0 | R125: 0 | S125: 0 | U125: 22
F126: LV Generation Site Specific no RP Charge | G126: MPANs | H126: All the way customers | J126: 0 | M126: 0 | N126: 0 | O126: 0 | P126: 0 | Q126: 0 | R126: 0 | S126: 0 | U126: 22
F127: LV Sub Generation Site Specific | G127: MPANs | H127: All the way customers | J127: 0 | M127: 50.04201141 | N127: 44.59972678 | O127: 0 | P127: 0 | Q127: 0 | R127: 0 | S127: 0 | U127: 22
F128: LV Sub Generation Site Specific no RP Charge | G128: MPANs | H128: All the way customers | J128: 0 | M128: 0 | N128: 0 | O128: 0 | P128: 0 | Q128: 0 | R128: 0 | S128: 0 | U128: 22
F129: HV Generation Site Specific | G129: MPANs | H129: All the way customers | J129: 419.2334187 | M129: 449.383377 | N129: 471.5806011 | O129: 419.2334187 | P129: 419.2334187 | Q129: 419.2334187 | R129: 419.2334187 | S129: 419.2334187 | U129: 22
F130: HV Generation Site Specific no RP Charge | G130: MPANs | H130: All the way customers | J130: 0 | M130: 0 | N130: 0 | O130: 0 | P130: 0 | Q130: 0 | R130: 0 | S130: 0 | U130: 22
E132: Import capacity
F133: Domestic Aggregated | G133: kVA | H133: All the way customers | O133: 0 | P133: =O133 -> 0 | Q133: 0 | R133: 0 | S133: =R133 -> 0 | U133: 23
F134: Domestic Aggregated (Related MPAN) | G134: kVA | H134: All the way customers | O134: 0 | P134: 0 | Q134: 0 | R134: 0 | S134: 0 | U134: 23
F135: Non-Domestic Aggregated | G135: kVA | H135: All the way customers | O135: 0 | P135: 0 | Q135: 0 | R135: 0 | S135: 0 | U135: 23
F136: Non-Domestic Aggregated (Related MPAN) | G136: kVA | H136: All the way customers | O136: 0 | P136: 0 | Q136: 0 | R136: 0 | S136: 0 | U136: 23
F137: LV Site Specific | G137: kVA | H137: All the way customers | J137: =CHOOSE(year_selection, L137,M137,N137,O137,P137,Q137,R137,S137) -> 1845.406836 | M137: 0 | N137: 1890 | O137: 1845.406836 | P137: 1845.406836 | Q137: 1845.406836 | R137: 1845.406836 | S137: 1845.406836 | U137: 23
F138: LV Sub Site Specific | G138: kVA | H138: All the way customers | J138: 164.9969713 | M138: 0 | N138: 165 | O138: 164.9969713 | P138: 164.9969713 | Q138: 164.9969713 | R138: 164.9969713 | S138: 164.9969713 | U138: 23
F139: HV Site Specific | G139: kVA | H139: All the way customers | J139: 28960.97977 | M139: 0 | N139: 28606 | O139: 28960.97977 | P139: 28960.97977 | Q139: 28960.97977 | R139: 28960.97977 | S139: 28960.97977 | U139: 23
F140: Unmetered Supplies | G140: kVA | H140: All the way customers | O140: 0 | P140: 0 | Q140: 0 | R140: 0 | S140: 0 | U140: 23
F141: LV Generation Aggregated | G141: kVA | H141: All the way customers | O141: 0 | P141: 0 | Q141: 0 | R141: 0 | S141: 0 | U141: 23
F142: LV Sub Generation Aggregated | G142: kVA | H142: All the way customers | O142: 0 | P142: 0 | Q142: 0 | R142: 0 | S142: 0 | U142: 23
F143: LV Generation Site Specific | G143: kVA | H143: All the way customers | O143: 0 | P143: 0 | Q143: 0 | R143: 0 | S143: 0 | U143: 23
F144: LV Generation Site Specific no RP Charge | G144: kVA | H144: All the way customers | O144: 0 | P144: 0 | Q144: 0 | R144: 0 | S144: 0 | U144: 23
F145: LV Sub Generation Site Specific | G145: kVA | H145: All the way customers | O145: 0 | P145: 0 | Q145: 0 | R145: 0 | S145: 0 | U145: 23
F146: LV Sub Generation Site Specific no RP Charge | G146: kVA | H146: All the way customers | O146: 0 | P146: 0 | Q146: 0 | R146: 0 | S146: 0 | U146: 23
F147: HV Generation Site Specific | G147: kVA | H147: All the way customers | O147: 0 | P147: 0 | Q147: 0 | R147: 0 | S147: 0 | U147: 23
F148: HV Generation Site Specific no RP Charge | G148: kVA | H148: All the way customers | O148: 0 | P148: 0 | Q148: 0 | R148: 0 | S148: 0 | U148: 23
E150: Exceeded capacity
F151: Domestic Aggregated | G151: kVA | H151: All the way customers | O151: 0 | P151: =O151 -> 0 | Q151: 0 | R151: 0 | S151: =R151 -> 0 | U151: 24
F152: Domestic Aggregated (Related MPAN) | G152: kVA | H152: All the way customers | O152: 0 | P152: 0 | Q152: 0 | R152: 0 | S152: 0 | U152: 24
F153: Non-Domestic Aggregated | G153: kVA | H153: All the way customers | O153: 0 | P153: 0 | Q153: 0 | R153: 0 | S153: 0 | U153: 24
F154: Non-Domestic Aggregated (Related MPAN) | G154: kVA | H154: All the way customers | O154: 0 | P154: 0 | Q154: 0 | R154: 0 | S154: 0 | U154: 24
F155: LV Site Specific | G155: kVA | H155: All the way customers | J155: =CHOOSE(year_selection, L155,M155,N155,O155,P155,Q155,R155,S155) -> 0 | M155: 0 | N155: 0 | O155: 0 | P155: 0 | Q155: 0 | R155: 0 | S155: 0 | U155: 24
F156: LV Sub Site Specific | G156: kVA | H156: All the way customers | J156: 0 | M156: 0 | N156: 0 | O156: 0 | P156: 0 | Q156: 0 | R156: 0 | S156: 0 | U156: 24
F157: HV Site Specific | G157: kVA | H157: All the way customers | J157: 707.1324082 | M157: 0 | N157: 0 | O157: 707.1324082 | P157: 707.1324082 | Q157: 707.1324082 | R157: 707.1324082 | S157: 707.1324082 | U157: 24
F158: Unmetered Supplies | G158: kVA | H158: All the way customers | O158: 0 | P158: 0 | Q158: 0 | R158: 0 | S158: 0 | U158: 24
F159: LV Generation Aggregated | G159: kVA | H159: All the way customers | O159: 0 | P159: 0 | Q159: 0 | R159: 0 | S159: 0 | U159: 24
F160: LV Sub Generation Aggregated | G160: kVA | H160: All the way customers | O160: 0 | P160: 0 | Q160: 0 | R160: 0 | S160: 0 | U160: 24
F161: LV Generation Site Specific | G161: kVA | H161: All the way customers | O161: 0 | P161: 0 | Q161: 0 | R161: 0 | S161: 0 | U161: 24
F162: LV Generation Site Specific no RP Charge | G162: kVA | H162: All the way customers | O162: 0 | P162: 0 | Q162: 0 | R162: 0 | S162: 0 | U162: 24
F163: LV Sub Generation Site Specific | G163: kVA | H163: All the way customers | O163: 0 | P163: 0 | Q163: 0 | R163: 0 | S163: 0 | U163: 24
F164: LV Sub Generation Site Specific no RP Charge | G164: kVA | H164: All the way customers | O164: 0 | P164: 0 | Q164: 0 | R164: 0 | S164: 0 | U164: 24
F165: HV Generation Site Specific | G165: kVA | H165: All the way customers | O165: 0 | P165: 0 | Q165: 0 | R165: 0 | S165: 0 | U165: 24
F166: HV Generation Site Specific no RP Charge | G166: kVA | H166: All the way customers | O166: 0 | P166: 0 | Q166: 0 | R166: 0 | S166: 0 | U166: 24
E168: Reactive power units
F169: Domestic Aggregated | G169: MVArh | H169: All the way customers | O169: 0 | P169: =O169 -> 0 | Q169: 0 | R169: 0 | S169: =R169 -> 0 | U169: 25
F170: Domestic Aggregated (Related MPAN) | G170: MVArh | H170: All the way customers | O170: 0 | P170: 0 | Q170: 0 | R170: 0 | S170: 0 | U170: 25
F171: Non-Domestic Aggregated | G171: MVArh | H171: All the way customers | O171: 0 | P171: 0 | Q171: 0 | R171: 0 | S171: 0 | U171: 25
F172: Non-Domestic Aggregated (Related MPAN) | G172: MVArh | H172: All the way customers | O172: 0 | P172: 0 | Q172: 0 | R172: 0 | S172: 0 | U172: 25
F173: LV Site Specific | G173: MVArh | H173: All the way customers | J173: =CHOOSE(year_selection, L173,M173,N173,O173,P173,Q173,R173,S173) -> 604.2964888 | M173: 0 | N173: 864.2170855 | O173: 604.2964888 | P173: 604.2964888 | Q173: 604.2964888 | R173: 604.2964888 | S173: 604.2964888 | U173: 25
F174: LV Sub Site Specific | G174: MVArh | H174: All the way customers | J174: 39.35640208 | M174: 0 | N174: 674.9733328 | O174: 39.35640208 | P174: 39.35640208 | Q174: 39.35640208 | R174: 39.35640208 | S174: 39.35640208 | U174: 25
F175: HV Site Specific | G175: MVArh | H175: All the way customers | J175: 4982.220758 | M175: 0 | N175: 780.1476721 | O175: 4982.220758 | P175: 4982.220758 | Q175: 4982.220758 | R175: 4982.220758 | S175: 4982.220758 | U175: 25
F176: Unmetered Supplies | G176: MVArh | H176: All the way customers | O176: 0 | P176: 0 | Q176: 0 | R176: 0 | S176: 0 | U176: 25
F177: LV Generation Aggregated | G177: MVArh | H177: All the way customers | O177: 0 | P177: 0 | Q177: 0 | R177: 0 | S177: 0 | U177: 25
F178: LV Sub Generation Aggregated | G178: MVArh | H178: All the way customers | O178: 0 | P178: 0 | Q178: 0 | R178: 0 | S178: 0 | U178: 25
F179: LV Generation Site Specific | G179: MVArh | H179: All the way customers | J179: =CHOOSE(year_selection, L179,M179,N179,O179,P179,Q179,R179,S179) -> 3844.493 | M179: 3663.547554 | N179: 3497.285 | O179: 3844.493 | P179: 3844.493 | Q179: 3844.493 | R179: 3844.493 | S179: 3844.493 | U179: 25
F180: LV Generation Site Specific no RP Charge | G180: MVArh | H180: All the way customers | O180: 0 | P180: 0 | Q180: 0 | R180: 0 | S180: 0 | U180: 25
F181: LV Sub Generation Site Specific | G181: MVArh | H181: All the way customers | J181: =CHOOSE(year_selection, L181,M181,N181,O181,P181,Q181,R181,S181) -> 428.348 | M181: 397.5606234 | N181: 457.549 | O181: 428.348 | P181: 428.348 | Q181: 428.348 | R181: 428.348 | S181: 428.348 | U181: 25
F182: LV Sub Generation Site Specific no RP Charge | G182: MVArh | H182: All the way customers | O182: 0 | P182: 0 | Q182: 0 | R182: 0 | S182: 0 | U182: 25
F183: HV Generation Site Specific | G183: MVArh | H183: All the way customers | J183: =CHOOSE(year_selection, L183,M183,N183,O183,P183,Q183,R183,S183) -> 27843.537 | M183: 20979.42917 | N183: 35918.172 | O183: 27843.537 | P183: 27843.537 | Q183: 27843.537 | R183: 27843.537 | S183: 27843.537 | U183: 25
F184: HV Generation Site Specific no RP Charge | G184: MVArh | H184: All the way customers | O184: 0 | P184: 0 | Q184: 0 | R184: 0 | S184: 0 | U184: 25
C186: =INDEX('Version control'!$H$36:$H$62,MATCH($A$1,'Version control'!$F$36:$F$62,0),1)&"-D: All-the-way volumes - Residual Band 1" -> Input 501-D: All-the-way volumes - Residual Band 1
E188: Rate 1 units | I188: > | U188: Paragraph 52
F189: Domestic Aggregated | G189: MWh | H189: All the way customers | J189: =CHOOSE(year_selection, L189,M189,N189,O189,P189,Q189,R189,S189) -> 975429.937 | M189: 963611.5796 | N189: 1007155.694 | O189: 975429.937 | P189: =O189 -> 975429.937 | Q189: 975429.937 | R189: 975429.937 | S189: =R189 -> 975429.937 | U189: 28
F190: Domestic Aggregated (Related MPAN) | G190: MWh | H190: All the way customers | O190: 0 | P190: 0 | Q190: 0 | R190: 0 | S190: 0 | U190: 28
F191: Non-Domestic Aggregated | G191: MWh | H191: All the way customers | J191: 9704.71911 | M191: 10077.06762 | N191: 11465.57895 | O191: 9704.71911 | P191: 9704.71911 | Q191: 9704.71911 | R191: 9704.71911 | S191: 9704.71911 | U191: 28
F192: Non-Domestic Aggregated (Related MPAN) | G192: MWh | H192: All the way customers | O192: 0 | P192: 0 | Q192: 0 | R192: 0 | S192: 0 | U192: 28
F193: LV Site Specific | G193: MWh | H193: All the way customers | J193: 52220.85386 | M193: 54447.01281 | N193: 57274.03483 | O193: 52220.85386 | P193: 52220.85386 | Q193: 52220.85386 | R193: 52220.85386 | S193: 52220.85386 | U193: 28
F194: LV Sub Site Specific | G194: MWh | H194: All the way customers | J194: 732.6621641 | M194: 376.9984573 | N194: 749.5912795 | O194: 732.6621641 | P194: 732.6621641 | Q194: 732.6621641 | R194: 732.6621641 | S194: 732.6621641 | U194: 28
F195: HV Site Specific | G195: MWh | H195: All the way customers | J195: 60750.65608 | M195: 63516.58807 | N195: 64792.60138 | O195: 60750.65608 | P195: 60750.65608 | Q195: 60750.65608 | R195: 60750.65608 | S195: 60750.65608 | U195: 28
F196: Unmetered Supplies | G196: MWh | H196: All the way customers | J196: 9195.778212 | M196: 8811.389858 | N196: 9581.132705 | O196: 9195.778212 | P196: 9195.778212 | Q196: 9195.778212 | R196: 9195.778212 | S196: 9195.778212 | U196: 28
F197: LV Generation Aggregated | G197: MWh | H197: All the way customers | O197: 0 | P197: 0 | Q197: 0 | R197: 0 | S197: 0 | U197: 28
F198: LV Sub Generation Aggregated | G198: MWh | H198: All the way customers | O198: 0 | P198: 0 | Q198: 0 | R198: 0 | S198: 0 | U198: 28
F199: LV Generation Site Specific | G199: MWh | H199: All the way customers | O199: 0 | P199: 0 | Q199: 0 | R199: 0 | S199: 0 | U199: 28
F200: LV Generation Site Specific no RP Charge | G200: MWh | H200: All the way customers | O200: 0 | P200: 0 | Q200: 0 | R200: 0 | S200: 0 | U200: 28
F201: LV Sub Generation Site Specific | G201: MWh | H201: All the way customers | O201: 0 | P201: 0 | Q201: 0 | R201: 0 | S201: 0 | U201: 28
F202: LV Sub Generation Site Specific no RP Charge | G202: MWh | H202: All the way customers | O202: 0 | P202: 0 | Q202: 0 | R202: 0 | S202: 0 | U202: 28
F203: HV Generation Site Specific | G203: MWh | H203: All the way customers | O203: 0 | P203: 0 | Q203: 0 | R203: 0 | S203: 0 | U203: 28
F204: HV Generation Site Specific no RP Charge | G204: MWh | H204: All the way customers | O204: 0 | P204: 0 | Q204: 0 | R204: 0 | S204: 0 | U204: 28
E206: Rate 2 units
F207: Domestic Aggregated | G207: MWh | H207: All the way customers | J207: =CHOOSE(year_selection, L207,M207,N207,O207,P207,Q207,R207,S207) -> 2778294.32 | M207: 2859384.328 | N207: 3056129.707 | O207: 2778294.32 | P207: =O207 -> 2778294.32 | Q207: 2778294.32 | R207: 2778294.32 | S207: =R207 -> 2778294.32 | U207: 29
F208: Domestic Aggregated (Related MPAN) | G208: MWh | H208: All the way customers | O208: 0 | P208: 0 | Q208: 0 | R208: 0 | S208: 0 | U208: 29
F209: Non-Domestic Aggregated | G209: MWh | H209: All the way customers | J209: =CHOOSE(year_selection, L209,M209,N209,O209,P209,Q209,R209,S209) -> 40234.23044 | M209: 41491.89775 | N209: 46919.16196 | O209: 40234.23044 | P209: 40234.23044 | Q209: 40234.23044 | R209: 40234.23044 | S209: 40234.23044 | U209: 29
F210: Non-Domestic Aggregated (Related MPAN) | G210: MWh | H210: All the way customers | O210: 0 | P210: 0 | Q210: 0 | R210: 0 | S210: 0 | U210: 29
F211: LV Site Specific | G211: MWh | H211: All the way customers | J211: =CHOOSE(year_selection, L211,M211,N211,O211,P211,Q211,R211,S211) -> 215093.2924 | M211: 230531.1591 | N211: 236035.8074 | O211: 215093.2924 | P211: 215093.2924 | Q211: 215093.2924 | R211: 215093.2924 | S211: 215093.2924 | U211: 29
F212: LV Sub Site Specific | G212: MWh | H212: All the way customers | J212: 2878.148751 | M212: 1467.111316 | N212: 2920.284793 | O212: 2878.148751 | P212: 2878.148751 | Q212: 2878.148751 | R212: 2878.148751 | S212: 2878.148751 | U212: 29
F213: HV Site Specific | G213: MWh | H213: All the way customers | J213: 232962.8816 | M213: 243028.0931 | N213: 247203.9086 | O213: 232962.8816 | P213: 232962.8816 | Q213: 232962.8816 | R213: 232962.8816 | S213: 232962.8816 | U213: 29
F214: Unmetered Supplies | G214: MWh | H214: All the way customers | J214: 39548.09734 | M214: 49189.05844 | N214: 44264.45717 | O214: 39548.09734 | P214: 39548.09734 | Q214: 39548.09734 | R214: 39548.09734 | S214: 39548.09734 | U214: 29
F215: LV Generation Aggregated | G215: MWh | H215: All the way customers | O215: 0 | P215: 0 | Q215: 0 | R215: 0 | S215: 0 | U215: 29
F216: LV Sub Generation Aggregated | G216: MWh | H216: All the way customers | O216: 0 | P216: 0 | Q216: 0 | R216: 0 | S216: 0 | U216: 29
F217: LV Generation Site Specific | G217: MWh | H217: All the way customers | O217: 0 | P217: 0 | Q217: 0 | R217: 0 | S217: 0 | U217: 29
F218: LV Generation Site Specific no RP Charge | G218: MWh | H218: All the way customers | O218: 0 | P218: 0 | Q218: 0 | R218: 0 | S218: 0 | U218: 29
F219: LV Sub Generation Site Specific | G219: MWh | H219: All the way customers | O219: 0 | P219: 0 | Q219: 0 | R219: 0 | S219: 0 | U219: 29
... 1786 more rows

Sheet ARP_Inputs by network level
A1: =MID(CELL("filename",A1),FIND("]",CELL("filename",A1))+1,255) -> ARP_Inputs by network level
A2: =Cover!D21&" - "&Cover!D23 -> National Grid Electricity Distribution (East Midlands) - [enter data version name]
A3: =Cover!D2&" - "&Cover!D8&" v"&Cover!D10&" - "&Cover!D19 -> ARP model - Release for charge setting v7 - 2024/25
A4: =H218 & IF(H218 = 1, " issue", " issues") &" identified in checks on this sheet" -> 0 issues identified in checks on this sheet
J5: ="Year selected ("& charging_year_selected &")" -> Year selected (2024/25) | L5: =TRANSPOSE('ARP_User control'!G28:H35) -> 2021/22 | M5: 2022/23 | N5: 2023/24 | O5: 2024/25 | P5: 2025/26 | Q5: 2026/27 | R5: 2027/28 | S5: 2028/29
B6: Click here to return to model map | G6: Units | H6: Constants | J6: ='ARP_User control'!$H$36 -> Current | L6: Historic | M6: Historic | N6: Historic | O6: Current | P6: Forecast | Q6: Forecast | R6: Forecast | S6: Forecast | U6: Legal text reference
B8: Description
C10: This sheet sets out inputs by network level and by year.
C11: DNOs should populate the inputs for the charging year and the four following years.
C12: DNOs can also populate the three years preceding the charging year, but are not obliged to do so.
B14: Inputs by network level
C16: =INDEX('Version control'!$H$36:$H$62,MATCH($A$1,'Version control'!$F$36:$F$62,0),1)&"-A: Diversity allowance between top and bottom of network level" -> Input 502-A: Diversity allowance between top and bottom of network level
E18: Diversity allowance between top and bottom of network level | I18: > | U18: Paragraphs 26 to 28
F19: Transmission exit | G19: %
F20: GSPs | G20: % | J20: =CHOOSE(year_selection, L20,M20,N20,O20,P20,Q20,R20,S20) -> 0.02471374244 | L20: 0.02471374244 | M20: 0.02471374244 | N20: 0.02471374244 | O20: 0.02471374244 | P20: 0.02471374244 | Q20: 0.02471374244 | R20: 0.02471374244 | S20: 0.02471374244 | U20: 11
F21: 132kV | G21: % | J21: =CHOOSE(year_selection, L21,M21,N21,O21,P21,Q21,R21,S21) -> 0.04501347824 | L21: 0.04501347824 | M21: 0.04501347824 | N21: 0.04501347824 | O21: 0.04501347824 | P21: 0.04501347824 | Q21: 0.04501347824 | R21: 0.04501347824 | S21: 0.04501347824 | U21: 11
F22: 132kV/EHV | G22: % | U22: 11
F23: EHV | G23: % | J23: =CHOOSE(year_selection, L23,M23,N23,O23,P23,Q23,R23,S23) -> 0.07901764269 | L23: 0.07901764269 | M23: 0.07901764269 | N23: 0.07901764269 | O23: 0.07901764269 | P23: 0.07901764269 | Q23: 0.07901764269 | R23: 0.07901764269 | S23: 0.07901764269 | U23: 11
F24: EHV/HV | G24: % | U24: 11
F25: 132kV/HV | G25: % | U25: 11
F26: HV | G26: % | J26: =CHOOSE(year_selection, L26,M26,N26,O26,P26,Q26,R26,S26) -> 0.34 | L26: 0.34 | M26: 0.34 | N26: 0.34 | O26: 0.34 | P26: 0.34 | Q26: 0.34 | R26: 0.34 | S26: 0.34 | U26: 11
F27: HV/LV | G27: % | U27: 11
F28: LV circuits | G28: % | U28: 11
U29: 11
C30: =INDEX('Version control'!$H$36:$H$62,MATCH($A$1,'Version control'!$F$36:$F$62,0),1)&"-B: Proportion of EHV/HV load going through 132kV/HV direct transformation" -> Input 502-B: Proportion of EHV/HV load going through 132kV/HV direct transformation
E32: Proportion of EHV/HV load going through 132kV/HV direct transformation
F33: Transmission exit | G33: %
F34: GSPs | G34: % | U34: 13
F35: 132kV | G35: % | U35: 13
F36: 132kV/EHV | G36: % | U36: 13
F37: EHV | G37: % | U37: 13
F38: EHV/HV | G38: % | U38: 13
F39: 132kV/HV | G39: % | J39: =CHOOSE(year_selection, L39,M39,N39,O39,P39,Q39,R39,S39) -> 0.07504434271 | L39: 0.07504434271 | M39: 0.07504434271 | N39: 0.07504434271 | O39: 0.07504434271 | P39: 0.07504434271 | Q39: 0.07504434271 | R39: 0.07504434271 | S39: 0.07504434271 | U39: 13
F40: HV | G40: % | U40: 13
F41: HV/LV | G41: % | U41: 13
F42: LV circuits | G42: % | U42: 13
U43: 13
C44: =INDEX('Version control'!$H$36:$H$62,MATCH($A$1,'Version control'!$F$36:$F$62,0),1)&"-C: Loss adjustment factors to transmission" -> Input 502-C: Loss adjustment factors to transmission
E46: Loss adjustment factors to transmission | I46: >
F47: Transmission exit | G47: scalar | U47: Paragraph 47
F48: GSPs | G48: scalar | J48: =CHOOSE(year_selection, L48,M48,N48,O48,P48,Q48,R48,S48) -> 1 | L48: 1 | M48: 1 | N48: 1 | O48: 1 | P48: 1 | Q48: 1 | R48: 1 | S48: 1 | U48: 15
F49: 132kV | G49: scalar | J49: =CHOOSE(year_selection, L49,M49,N49,O49,P49,Q49,R49,S49) -> 1.007 | L49: 1.003 | M49: 1.002 | N49: 1.002 | O49: 1.007 | P49: 1.007 | Q49: 1.007 | R49: 1.007 | S49: 1.007 | U49: 15
F50: 132kV/EHV | G50: scalar | J50: =CHOOSE(year_selection, L50,M50,N50,O50,P50,Q50,R50,S50) -> 1.013 | L50: 1.006 | M50: 1.006 | N50: 1.006 | O50: 1.013 | P50: 1.013 | Q50: 1.013 | R50: 1.013 | S50: 1.013 | U50: 15
F51: EHV | G51: scalar | J51: =CHOOSE(year_selection, L51,M51,N51,O51,P51,Q51,R51,S51) -> 1.022 | L51: 1.014 | M51: 1.013 | N51: 1.013 | O51: 1.022 | P51: 1.022 | Q51: 1.022 | R51: 1.022 | S51: 1.022 | U51: 15
F52: EHV/HV | G52: scalar | J52: =CHOOSE(year_selection, L52,M52,N52,O52,P52,Q52,R52,S52) -> 1.032 | L52: 1.02 | M52: 1.019 | N52: 1.019 | O52: 1.032 | P52: 1.032 | Q52: 1.032 | R52: 1.032 | S52: 1.032 | U52: 15
F53: 132kV/HV | G53: scalar | U53: 15
F54: HV | G54: scalar | J54: =CHOOSE(year_selection, L54,M54,N54,O54,P54,Q54,R54,S54) -> 1.047 | L54: 1.036 | M54: 1.034 | N54: 1.034 | O54: 1.047 | P54: 1.047 | Q54: 1.047 | R54: 1.047 | S54: 1.047 | U54: 15
F55: HV/LV | G55: scalar | J55: =CHOOSE(year_selection, L55,M55,N55,O55,P55,Q55,R55,S55) -> 1.062 | L55: 1.047 | M55: 1.046 | N55: 1.046 | O55: 1.062 | P55: 1.062 | Q55: 1.062 | R55: 1.062 | S55: 1.062 | U55: 15
F56: LV circuits | G56: scalar | J56: =CHOOSE(year_selection, L56,M56,N56,O56,P56,Q56,R56,S56) -> 1.091 | L56: 1.078 | M56: 1.075 | N56: 1.075 | O56: 1.091 | P56: 1.091 | Q56: 1.091 | R56: 1.091 | S56: 1.091 | U56: 15
U57: 15
C58: =INDEX('Version control'!$H$36:$H$62,MATCH($A$1,'Version control'!$F$36:$F$62,0),1)&"-D: Average kVAr by kVA, by network level" -> Input 502-D: Average kVAr by kVA, by network level
E60: Average kVAr by kVA, by network level | I60: >
F61: Transmission exit | G61: kVAr/ kVA | U61: Paragraphs 50 to 51
F62: GSPs | G62: kVAr/ kVA | J62: =CHOOSE(year_selection, L62,M62,N62,O62,P62,Q62,R62,S62) -> 0.167671954 | L62: 0.2231987844 | M62: 0.2225178224 | N62: 0.2023657455 | O62: 0.167671954 | P62: 0.167671954 | Q62: 0.167671954 | R62: 0.167671954 | S62: 0.167671954 | U62: 17
F63: 132kV | G63: kVAr/ kVA | J63: 0.167671954 | L63: 0.2231987844 | M63: 0.2225178224 | N63: 0.2023657455 | O63: 0.167671954 | P63: 0.167671954 | Q63: 0.167671954 | R63: 0.167671954 | S63: 0.167671954 | U63: 17
F64: 132kV/EHV | G64: kVAr/ kVA | J64: 0.167671954 | L64: 0.2231987844 | M64: 0.2225178224 | N64: 0.2023657455 | O64: 0.167671954 | P64: 0.167671954 | Q64: 0.167671954 | R64: 0.167671954 | S64: 0.167671954 | U64: 17
F65: EHV | G65: kVAr/ kVA | J65: 0.167671954 | L65: 0.2231987844 | M65: 0.2225178224 | N65: 0.2023657455 | O65: 0.167671954 | P65: 0.167671954 | Q65: 0.167671954 | R65: 0.167671954 | S65: 0.167671954 | U65: 17
F66: EHV/HV | G66: kVAr/ kVA | J66: 0.167671954 | L66: 0.2231987844 | M66: 0.2225178224 | N66: 0.2023657455 | O66: 0.167671954 | P66: 0.167671954 | Q66: 0.167671954 | R66: 0.167671954 | S66: 0.167671954 | U66: 17
F67: 132kV/HV | G67: kVAr/ kVA | J67: 0.167671954 | L67: 0.2231987844 | M67: 0.2225178224 | N67: 0.2023657455 | O67: 0.167671954 | P67: 0.167671954 | Q67: 0.167671954 | R67: 0.167671954 | S67: 0.167671954 | U67: 17
F68: HV | G68: kVAr/ kVA | J68: 0.167671954 | L68: 0.2231987844 | M68: 0.2225178224 | N68: 0.2023657455 | O68: 0.167671954 | P68: 0.167671954 | Q68: 0.167671954 | R68: 0.167671954 | S68: 0.167671954 | U68: 17
F69: HV/LV | G69: kVAr/ kVA | J69: 0.167671954 | L69: 0.2231987844 | M69: 0.2225178224 | N69: 0.2023657455 | O69: 0.167671954 | P69: 0.167671954 | Q69: 0.167671954 | R69: 0.167671954 | S69: 0.167671954 | U69: 17
F70: LV circuits | G70: kVAr/ kVA | J70: 0.167671954 | L70: 0.2231987844 | M70: 0.2225178224 | N70: 0.2023657455 | O70: 0.167671954 | P70: 0.167671954 | Q70: 0.167671954 | R70: 0.167671954 | S70: 0.167671954 | U70: 17
U71: 17
C72: =INDEX('Version control'!$H$36:$H$62,MATCH($A$1,'Version control'!$F$36:$F$62,0),1)&"-E: Customer contributions under current connection charging policy" -> Input 502-E: Customer contributions under current connection charging policy
D74: Customer contributions under current connection charging policy | I74: >
E75: LV network | U75: Paragraphs 29 to 31
F76: Transmission exit | G76: %
F77: GSPs | G77: % | U77: 22
F78: 132kV | G78: % | J78: =CHOOSE(year_selection, L78,M78,N78,O78,P78,Q78,R78,S78) -> 0 | L78: 0 | M78: 0 | N78: 0 | O78: 0 | P78: 0 | Q78: 0 | R78: 0 | S78: 0 | U78: 22
F79: 132kV/EHV | G79: % | J79: 0 | L79: 0 | M79: 0 | N79: 0 | O79: 0 | P79: 0 | Q79: 0 | R79: 0 | S79: 0 | U79: 22
F80: EHV | G80: % | J80: 0 | L80: 0 | M80: 0 | N80: 0 | O80: 0 | P80: 0 | Q80: 0 | R80: 0 | S80: 0 | U80: 22
F81: EHV/HV | G81: % | J81: 0 | L81: 0 | M81: 0 | N81: 0 | O81: 0 | P81: 0 | Q81: 0 | R81: 0 | S81: 0 | U81: 22
F82: 132kV/HV | G82: % | J82: 0 | L82: 0 | M82: 0 | N82: 0 | O82: 0 | P82: 0 | Q82: 0 | R82: 0 | S82: 0 | U82: 22
F83: HV | G83: % | J83: 0.479133519 | L83: 0.479133519 | M83: 0.479133519 | N83: 0.479133519 | O83: 0.479133519 | P83: 0.479133519 | Q83: 0.479133519 | R83: 0.479133519 | S83: 0.479133519 | U83: 22
F84: HV/LV | G84: % | J84: 0.7089238456 | L84: 0.7089238456 | M84: 0.7089238456 | N84: 0.7089238456 | O84: 0.7089238456 | P84: 0.7089238456 | Q84: 0.7089238456 | R84: 0.7089238456 | S84: 0.7089238456 | U84: 22
F85: LV circuits | G85: % | J85: 0.9387141723 | L85: 0.9387141723 | M85: 0.9387141723 | N85: 0.9387141723 | O85: 0.9387141723 | P85: 0.9387141723 | Q85: 0.9387141723 | R85: 0.9387141723 | S85: 0.9387141723 | U85: 22
E86: LV substation | U86: 22
F87: Transmission exit | G87: %
F88: GSPs | G88: % | U88: 23
F89: 132kV | G89: % | J89: =CHOOSE(year_selection, L89,M89,N89,O89,P89,Q89,R89,S89) -> 0 | L89: 0 | M89: 0 | N89: 0 | O89: 0 | P89: 0 | Q89: 0 | R89: 0 | S89: 0 | U89: 23
F90: 132kV/EHV | G90: % | J90: 0 | L90: 0 | M90: 0 | N90: 0 | O90: 0 | P90: 0 | Q90: 0 | R90: 0 | S90: 0 | U90: 23
F91: EHV | G91: % | J91: 0 | L91: 0 | M91: 0 | N91: 0 | O91: 0 | P91: 0 | Q91: 0 | R91: 0 | S91: 0 | U91: 23
F92: EHV/HV | G92: % | J92: 0 | L92: 0 | M92: 0 | N92: 0 | O92: 0 | P92: 0 | Q92: 0 | R92: 0 | S92: 0 | U92: 23
F93: 132kV/HV | G93: % | J93: 0 | L93: 0 | M93: 0 | N93: 0 | O93: 0 | P93: 0 | Q93: 0 | R93: 0 | S93: 0 | U93: 23
F94: HV | G94: % | J94: 0.479133519 | L94: 0.479133519 | M94: 0.479133519 | N94: 0.479133519 | O94: 0.479133519 | P94: 0.479133519 | Q94: 0.479133519 | R94: 0.479133519 | S94: 0.479133519 | U94: 23
F95: HV/LV | G95: % | J95: 0.7089238456 | L95: 0.7089238456 | M95: 0.7089238456 | N95: 0.7089238456 | O95: 0.7089238456 | P95: 0.7089238456 | Q95: 0.7089238456 | R95: 0.7089238456 | S95: 0.7089238456 | U95: 23
F96: LV circuits | G96: % | U96: 23
E97: HV network | U97: 23
F98: Transmission exit | G98: %
F99: GSPs | G99: % | U99: 24
F100: 132kV | G100: % | J100: =CHOOSE(year_selection, L100,M100,N100,O100,P100,Q100,R100,S100) -> 0 | L100: 0 | M100: 0 | N100: 0 | O100: 0 | P100: 0 | Q100: 0 | R100: 0 | S100: 0 | U100: 24
F101: 132kV/EHV | G101: % | J101: 0 | L101: 0 | M101: 0 | N101: 0 | O101: 0 | P101: 0 | Q101: 0 | R101: 0 | S101: 0 | U101: 24
F102: EHV | G102: % | J102: 0.06542004956 | L102: 0.06542004956 | M102: 0.06542004956 | N102: 0.06542004956 | O102: 0.06542004956 | P102: 0.06542004956 | Q102: 0.06542004956 | R102: 0.06542004956 | S102: 0.06542004956 | U102: 24
F103: EHV/HV | G103: % | J103: 0.3516296229 | L103: 0.3516296229 | M103: 0.3516296229 | N103: 0.3516296229 | O103: 0.3516296229 | P103: 0.3516296229 | Q103: 0.3516296229 | R103: 0.3516296229 | S103: 0.3516296229 | U103: 24
F104: 132kV/HV | G104: % | J104: 0.3516296229 | L104: 0.3516296229 | M104: 0.3516296229 | N104: 0.3516296229 | O104: 0.3516296229 | P104: 0.3516296229 | Q104: 0.3516296229 | R104: 0.3516296229 | S104: 0.3516296229 | U104: 24
F105: HV | G105: % | J105: 0.6378391962 | L105: 0.6378391962 | M105: 0.6378391962 | N105: 0.6378391962 | O105: 0.6378391962 | P105: 0.6378391962 | Q105: 0.6378391962 | R105: 0.6378391962 | S105: 0.6378391962 | U105: 24
F106: HV/LV | G106: % | U106: 24
F107: LV circuits | G107: % | U107: 24
E108: HV substation | U108: 24
F109: Transmission exit | G109: %
F110: GSPs | G110: % | U110: 25
F111: 132kV | G111: % | J111: =CHOOSE(year_selection, L111,M111,N111,O111,P111,Q111,R111,S111) -> 0 | L111: 0 | M111: 0 | N111: 0 | O111: 0 | P111: 0 | Q111: 0 | R111: 0 | S111: 0 | U111: 25
F112: 132kV/EHV | G112: % | J112: 0 | L112: 0 | M112: 0 | N112: 0 | O112: 0 | P112: 0 | Q112: 0 | R112: 0 | S112: 0 | U112: 25
F113: EHV | G113: % | J113: 0.06542004956 | L113: 0.06542004956 | M113: 0.06542004956 | N113: 0.06542004956 | O113: 0.06542004956 | P113: 0.06542004956 | Q113: 0.06542004956 | R113: 0.06542004956 | S113: 0.06542004956 | U113: 25
F114: EHV/HV | G114: % | J114: 0.3516296229 | L114: 0.3516296229 | M114: 0.3516296229 | N114: 0.3516296229 | O114: 0.3516296229 | P114: 0.3516296229 | Q114: 0.3516296229 | R114: 0.3516296229 | S114: 0.3516296229 | U114: 25
F115: 132kV/HV | G115: % | U115: 25
F116: HV | G116: % | U116: 25
F117: HV/LV | G117: % | U117: 25
F118: LV circuits | G118: % | U118: 25
U119: 25
C120: =INDEX('Version control'!$H$36:$H$62,MATCH($A$1,'Version control'!$F$36:$F$62,0),1)&"-F: Gross asset cost by network level" -> Input 502-F: Gross asset cost by network level
E122: Gross asset cost by network level
F123: Transmission exit | G123: £
F124: GSPs | G124: £ | U124: 29
F125: 132kV | G125: £ | J125: =CHOOSE(year_selection, L125,M125,N125,O125,P125,Q125,R125,S125) -> 62504439.3 | L125: 55914776.24 | M125: 57612517.29 | N125: 59303026.29 | O125: 62504439.3 | P125: =O125*'ARP_General inputs'!P$46/'ARP_General inputs'!O$46 -> 62222573.94 | Q125: =P125*'ARP_General inputs'!Q$46/'ARP_General inputs'!P$46 -> 62616811.24 | R125: =Q125*'ARP_General inputs'!R$46/'ARP_General inputs'!Q$46 -> 63726859.41 | S125: =R125*1.02 -> 65001396.59 | U125: 29
F126: 132kV/EHV | G126: £ | J126: 32657986.31 | L126: 29214948.85 | M126: 30102002.71 | N126: 30985277.88 | O126: 32657986.31 | P126: =O126*'ARP_General inputs'!P$46/'ARP_General inputs'!O$46 -> 32510714.28 | Q126: =P126*'ARP_General inputs'!Q$46/'ARP_General inputs'!P$46 -> 32716699.6 | R126: =Q126*'ARP_General inputs'!R$46/'ARP_General inputs'!Q$46 -> 33296689.41 | S126: =R126*1.02 -> 33962623.19 | U126: 29
F127: EHV | G127: £ | J127: 40344520.34 | L127: 36091113.73 | M127: 37186948.67 | N127: 38278115.56 | O127: 40344520.34 | P127: =O127*'ARP_General inputs'!P$46/'ARP_General inputs'!O$46 -> 40162585.7 | Q127: =P127*'ARP_General inputs'!Q$46/'ARP_General inputs'!P$46 -> 40417052.66 | R127: =Q127*'ARP_General inputs'!R$46/'ARP_General inputs'!Q$46 -> 41133551.54 | S127: 41956222.57 | U127: 29
F128: EHV/HV | G128: £ | J128: 64902810.17 | L128: 58060293.78 | M128: 59823179.21 | N128: 61578555.08 | O128: 64902810.17 | P128: =O128*'ARP_General inputs'!P$46/'ARP_General inputs'!O$46 -> 64610129.3 | Q128: =P128*'ARP_General inputs'!Q$46/'ARP_General inputs'!P$46 -> 65019493.96 | R128: =Q128*'ARP_General inputs'!R$46/'ARP_General inputs'!Q$46 -> 66172136.02 | S128: 67495578.74 | U128: 29
F129: 132kV/HV | G129: £ | J129: 5465271.514 | L129: 4889083.675 | M129: 5037530.984 | N129: 5185345.936 | O129: 5465271.514 | P129: =O129*'ARP_General inputs'!P$46/'ARP_General inputs'!O$46 -> 5440625.733 | Q129: =P129*'ARP_General inputs'!Q$46/'ARP_General inputs'!P$46 -> 5475097.107 | R129: =Q129*'ARP_General inputs'!R$46/'ARP_General inputs'!Q$46 -> 5572157.647 | S129: 5683600.8 | U129: 29
F130: HV | G130: £ | J130: 149524962.6 | L130: 133760976.4 | M130: 137822362.6 | N130: 141866448 | O130: 149524962.6 | P130: =O130*'ARP_General inputs'!P$46/'ARP_General inputs'!O$46 -> 148850676 | Q130: =P130*'ARP_General inputs'!Q$46/'ARP_General inputs'!P$46 -> 149793782.1 | R130: =Q130*'ARP_General inputs'!R$46/'ARP_General inputs'!Q$46 -> 152449272.1 | S130: 155498257.5 | U130: 29
F131: HV/LV | G131: £ | J131: 68445371.86 | L131: 61229373.39 | M131: 63088481.63 | N131: 64939670.41 | O131: 68445371.86 | P131: =O131*'ARP_General inputs'!P$46/'ARP_General inputs'!O$46 -> 68136715.71 | Q131: =P131*'ARP_General inputs'!Q$46/'ARP_General inputs'!P$46 -> 68568424.55 | R131: =Q131*'ARP_General inputs'!R$46/'ARP_General inputs'!Q$46 -> 69783980.77 | S131: 71179660.38 | U131: 29
F132: LV circuits | G132: £ | J132: 136425766.3 | L132: 122042790.6 | M132: 125748377.4 | N132: 129438179.1 | O132: 136425766.3 | P132: =O132*'ARP_General inputs'!P$46/'ARP_General inputs'!O$46 -> 135810550.9 | Q132: =P132*'ARP_General inputs'!Q$46/'ARP_General inputs'!P$46 -> 136671035.8 | R132: =Q132*'ARP_General inputs'!R$46/'ARP_General inputs'!Q$46 -> 139093890.4 | S132: 141875768.2 | U132: 29
U133: 29
C134: =INDEX('Version control'!$H$36:$H$62,MATCH($A$1,'Version control'!$F$36:$F$62,0),1)&"-G: Peaking probabilities, by timeband & network level" -> Input 502-G: Peaking probabilities, by timeband & network level
C136: Red, Amber & Green peaking probabilities must sum to 100%, except for unused network levels, which should sum to 0%
E138: Red peaking probabilities, by network level | I138: >
F139: Transmission exit | G139: % | U139: Paragraphs 48 to 49
F140: GSPs | G140: % | J140: =CHOOSE(year_selection, L140,M140,N140,O140,P140,Q140,R140,S140) -> 0.9164543273 | L140: 0.8638018299 | M140: 0.8638018299 | N140: 0.891005343 | O140: =HLOOKUP($F140,'ARP_Peaking probabilities'!$K$5:$S$45,$U140,FALSE) -> 0.9164543273 | P140: =O140 -> 0.9164543273 | Q140: =P140 -> 0.9164543273 | R140: 0.9164543273 | S140: 0.9164543273 | U140: 23
F141: 132kV | G141: % | J141: 0.5368095566 | L141: 0.7410687627 | M141: 0.6474852929 | N141: 0.5648575572 | O141: =HLOOKUP($F141,'ARP_Peaking probabilities'!$K$5:$S$45,$U141,FALSE) -> 0.5368095566 | P141: =O141 -> 0.5368095566 | Q141: 0.5368095566 | R141: 0.5368095566 | S141: 0.5368095566 | U141: 23
F142: 132kV/EHV | G142: % | J142: 0.5368095566 | L142: 0.7410687627 | M142: 0.6474852929 | N142: 0.5648575572 | O142: =HLOOKUP($F142,'ARP_Peaking probabilities'!$K$5:$S$45,$U142,FALSE) -> 0.5368095566 | P142: 0.5368095566 | Q142: 0.5368095566 | R142: 0.5368095566 | S142: 0.5368095566 | U142: 23
F143: EHV | G143: % | J143: 0.4805223567 | L143: 0.6226809993 | M143: 0.5383564086 | N143: 0.4823742577 | O143: =HLOOKUP($F143,'ARP_Peaking probabilities'!$K$5:$S$45,$U143,FALSE) -> 0.4805223567 | P143: 0.4805223567 | Q143: 0.4805223567 | R143: 0.4805223567 | S143: 0.4805223567 | U143: 23
F144: EHV/HV | G144: % | J144: 0.4805223567 | L144: 0.6226809993 | M144: 0.5383564086 | N144: 0.4823742577 | O144: =HLOOKUP($F144,'ARP_Peaking probabilities'!$K$5:$S$45,$U144,FALSE) -> 0.4805223567 | P144: 0.4805223567 | Q144: 0.4805223567 | R144: 0.4805223567 | S144: 0.4805223567 | U144: 23
F145: 132kV/HV | G145: % | J145: 0.5368095566 | L145: 0.7410687627 | M145: 0.6474852929 | N145: 0.5648575572 | O145: =HLOOKUP($F145,'ARP_Peaking probabilities'!$K$5:$S$45,$U145,FALSE) -> 0.5368095566 | P145: 0.5368095566 | Q145: 0.5368095566 | R145: 0.5368095566 | S145: 0.5368095566 | U145: 23
F146: HV | G146: % | J146: 0.4805223567 | L146: 0.6226809993 | M146: 0.5383564086 | N146: 0.4823742577 | O146: =HLOOKUP($F146,'ARP_Peaking probabilities'!$K$5:$S$45,$U146,FALSE) -> 0.4805223567 | P146: 0.4805223567 | Q146: 0.4805223567 | R146: 0.4805223567 | S146: 0.4805223567 | U146: 23
F147: HV/LV | G147: % | J147: 0.4805223567 | L147: 0.6226809993 | M147: 0.5383564086 | N147: 0.4823742577 | O147: =HLOOKUP($F147,'ARP_Peaking probabilities'!$K$5:$S$45,$U147,FALSE) -> 0.4805223567 | P147: 0.4805223567 | Q147: 0.4805223567 | R147: 0.4805223567 | S147: 0.4805223567 | U147: 23
F148: LV circuits | G148: % | J148: 0.4805223567 | L148: 0.6226809993 | M148: 0.5383564086 | N148: 0.4823742577 | O148: =HLOOKUP($F148,'ARP_Peaking probabilities'!$K$5:$S$45,$U148,FALSE) -> 0.4805223567 | P148: 0.4805223567 | Q148: 0.4805223567 | R148: 0.4805223567 | S148: 0.4805223567 | U148: 23
U149: 23
E150: Amber peaking probabilities, by network level | I150: >
F151: Transmission exit | G151: % | U151: Paragraphs 48 to 49
F152: GSPs | G152: % | J152: =CHOOSE(year_selection, L152,M152,N152,O152,P152,Q152,R152,S152) -> 0.08354567265 | L152: 0.1361981701 | M152: 0.1361981701 | N152: 0.108994657 | O152: =HLOOKUP($F152,'ARP_Peaking probabilities'!$K$5:$S$45,$U152,FALSE) -> 0.08354567265 | P152: =O152 -> 0.08354567265 | Q152: 0.08354567265 | R152: 0.08354567265 | S152: 0.08354567265 | U152: 29
F153: 132kV | G153: % | J153: 0.4069760924 | L153: 0.2381512701 | M153: 0.3101918931 | N153: 0.3754525852 | O153: =HLOOKUP($F153,'ARP_Peaking probabilities'!$K$5:$S$45,$U153,FALSE) -> 0.4069760924 | P153: 0.4069760924 | Q153: 0.4069760924 | R153: 0.4069760924 | S153: 0.4069760924 | U153: 29
F154: 132kV/EHV | G154: % | J154: 0.4069760924 | L154: 0.2381512701 | M154: 0.3101918931 | N154: 0.3754525852 | O154: =HLOOKUP($F154,'ARP_Peaking probabilities'!$K$5:$S$45,$U154,FALSE) -> 0.4069760924 | P154: 0.4069760924 | Q154: 0.4069760924 | R154: 0.4069760924 | S154: 0.4069760924 | U154: 29
F155: EHV | G155: % | J155: 0.4482097917 | L155: 0.3336072936 | M155: 0.4031265517 | N155: 0.4446749618 | O155: =HLOOKUP($F155,'ARP_Peaking probabilities'!$K$5:$S$45,$U155,FALSE) -> 0.4482097917 | P155: 0.4482097917 | Q155: 0.4482097917 | R155: 0.4482097917 | S155: 0.4482097917 | U155: 29
F156: EHV/HV | G156: % | J156: 0.4482097917 | L156: 0.3336072936 | M156: 0.4031265517 | N156: 0.4446749618 | O156: =HLOOKUP($F156,'ARP_Peaking probabilities'!$K$5:$S$45,$U156,FALSE) -> 0.4482097917 | P156: 0.4482097917 | Q156: 0.4482097917 | R156: 0.4482097917 | S156: 0.4482097917 | U156: 29
F157: 132kV/HV | G157: % | J157: 0.4069760924 | L157: 0.2381512701 | M157: 0.3101918931 | N157: 0.3754525852 | O157: =HLOOKUP($F157,'ARP_Peaking probabilities'!$K$5:$S$45,$U157,FALSE) -> 0.4069760924 | P157: 0.4069760924 | Q157: 0.4069760924 | R157: 0.4069760924 | S157: 0.4069760924 | U157: 29
F158: HV | G158: % | J158: 0.4482097917 | L158: 0.3336072936 | M158: 0.4031265517 | N158: 0.4446749618 | O158: =HLOOKUP($F158,'ARP_Peaking probabilities'!$K$5:$S$45,$U158,FALSE) -> 0.4482097917 | P158: 0.4482097917 | Q158: 0.4482097917 | R158: 0.4482097917 | S158: 0.4482097917 | U158: 29
F159: HV/LV | G159: % | J159: 0.4482097917 | L159: 0.3336072936 | M159: 0.4031265517 | N159: 0.4446749618 | O159: =HLOOKUP($F159,'ARP_Peaking probabilities'!$K$5:$S$45,$U159,FALSE) -> 0.4482097917 | P159: 0.4482097917 | Q159: 0.4482097917 | R159: 0.4482097917 | S159: 0.4482097917 | U159: 29
F160: LV circuits | G160: % | J160: 0.4482097917 | L160: 0.3336072936 | M160: 0.4031265517 | N160: 0.4446749618 | O160: =HLOOKUP($F160,'ARP_Peaking probabilities'!$K$5:$S$45,$U160,FALSE) -> 0.4482097917 | P160: 0.4482097917 | Q160: 0.4482097917 | R160: 0.4482097917 | S160: 0.4482097917 | U160: 29
U161: 29
E162: Green peaking probabilities, by network level | I162: >
F163: Transmission exit | G163: % | U163: Paragraphs 48 to 49
F164: GSPs | G164: % | J164: =CHOOSE(year_selection, L164,M164,N164,O164,P164,Q164,R164,S164) -> 0 | L164: 0 | M164: 0 | N164: 0 | O164: =HLOOKUP($F164,'ARP_Peaking probabilities'!$K$5:$S$45,$U164,FALSE) -> 0 | P164: =O164 -> 0 | Q164: 0 | R164: 0 | S164: 0 | U164: 35
F165: 132kV | G165: % | J165: 0.05621435106 | L165: 0.02077996718 | M165: 0.04232281395 | N165: 0.05968985762 | O165: =HLOOKUP($F165,'ARP_Peaking probabilities'!$K$5:$S$45,$U165,FALSE) -> 0.05621435106 | P165: 0.05621435106 | Q165: 0.05621435106 | R165: 0.05621435106 | S165: 0.05621435106 | U165: 35
F166: 132kV/EHV | G166: % | J166: 0.05621435106 | L166: 0.02077996718 | M166: 0.04232281395 | N166: 0.05968985762 | O166: =HLOOKUP($F166,'ARP_Peaking probabilities'!$K$5:$S$45,$U166,FALSE) -> 0.05621435106 | P166: 0.05621435106 | Q166: 0.05621435106 | R166: 0.05621435106 | S166: 0.05621435106 | U166: 35
F167: EHV | G167: % | J167: 0.07126785155 | L167: 0.04371170716 | M167: 0.05851703966 | N167: 0.07295078056 | O167: =HLOOKUP($F167,'ARP_Peaking probabilities'!$K$5:$S$45,$U167,FALSE) -> 0.07126785155 | P167: 0.07126785155 | Q167: 0.07126785155 | R167: 0.07126785155 | S167: 0.07126785155 | U167: 35
F168: EHV/HV | G168: % | J168: 0.07126785155 | L168: 0.04371170716 | M168: 0.05851703966 | N168: 0.07295078056 | O168: =HLOOKUP($F168,'ARP_Peaking probabilities'!$K$5:$S$45,$U168,FALSE) -> 0.07126785155 | P168: 0.07126785155 | Q168: 0.07126785155 | R168: 0.07126785155 | S168: 0.07126785155 | U168: 35
F169: 132kV/HV | G169: % | J169: 0.05621435106 | L169: 0.02077996718 | M169: 0.04232281395 | N169: 0.05968985762 | O169: =HLOOKUP($F169,'ARP_Peaking probabilities'!$K$5:$S$45,$U169,FALSE) -> 0.05621435106 | P169: 0.05621435106 | Q169: 0.05621435106 | R169: 0.05621435106 | S169: 0.05621435106 | U169: 35
F170: HV | G170: % | J170: 0.07126785155 | L170: 0.04371170716 | M170: 0.05851703966 | N170: 0.07295078056 | O170: =HLOOKUP($F170,'ARP_Peaking probabilities'!$K$5:$S$45,$U170,FALSE) -> 0.07126785155 | P170: 0.07126785155 | Q170: 0.07126785155 | R170: 0.07126785155 | S170: 0.07126785155 | U170: 35
F171: HV/LV | G171: % | J171: 0.07126785155 | L171: 0.04371170716 | M171: 0.05851703966 | N171: 0.07295078056 | O171: =HLOOKUP($F171,'ARP_Peaking probabilities'!$K$5:$S$45,$U171,FALSE) -> 0.07126785155 | P171: 0.07126785155 | Q171: 0.07126785155 | R171: 0.07126785155 | S171: 0.07126785155 | U171: 35
F172: LV circuits | G172: % | J172: 0.07126785155 | L172: 0.04371170716 | M172: 0.05851703966 | N172: 0.07295078056 | O172: =HLOOKUP($F172,'ARP_Peaking probabilities'!$K$5:$S$45,$U172,FALSE) -> 0.07126785155 | P172: 0.07126785155 | Q172: 0.07126785155 | R172: 0.07126785155 | S172: 0.07126785155 | U172: 35
U173: 35
E174: Black peaking probabilities, by network level
F175: Transmission exit | G175: %
F176: GSPs | G176: % | J176: =CHOOSE(year_selection, L176,M176,N176,O176,P176,Q176,R176,S176) -> 0.8980471723 | L176: 0.7301794974 | M176: 0.7117723423 | N176: 0.8553838517 | O176: =HLOOKUP($F176,'ARP_Peaking probabilities'!$K$5:$S$45,$U176,FALSE) -> 0.8980471723 | P176: =O176 -> 0.8980471723 | Q176: 0.8980471723 | R176: 0.8980471723 | S176: 0.8980471723 | U176: 41
F177: 132kV | G177: % | J177: 0.349494992 | L177: 0.7117602951 | M177: 0.5884105078 | N177: 0.4961718607 | O177: =HLOOKUP($F177,'ARP_Peaking probabilities'!$K$5:$S$45,$U177,FALSE) -> 0.349494992 | P177: 0.349494992 | Q177: 0.349494992 | R177: 0.349494992 | S177: 0.349494992 | U177: 41
F178: 132kV/EHV | G178: % | J178: 0.349494992 | L178: 0.7117602951 | M178: 0.5884105078 | N178: 0.4961718607 | O178: =HLOOKUP($F178,'ARP_Peaking probabilities'!$K$5:$S$45,$U178,FALSE) -> 0.349494992 | P178: 0.349494992 | Q178: 0.349494992 | R178: 0.349494992 | S178: 0.349494992 | U178: 41
F179: EHV | G179: % | J179: 0.3304930739 | L179: 0.6027144227 | M179: 0.5021491762 | N179: 0.4202742698 | O179: =HLOOKUP($F179,'ARP_Peaking probabilities'!$K$5:$S$45,$U179,FALSE) -> 0.3304930739 | P179: 0.3304930739 | Q179: 0.3304930739 | R179: 0.3304930739 | S179: 0.3304930739 | U179: 41
F180: EHV/HV | G180: % | J180: 0.3304930739 | L180: 0.6027144227 | M180: 0.5021491762 | N180: 0.4202742698 | O180: =HLOOKUP($F180,'ARP_Peaking probabilities'!$K$5:$S$45,$U180,FALSE) -> 0.3304930739 | P180: 0.3304930739 | Q180: 0.3304930739 | R180: 0.3304930739 | S180: 0.3304930739 | U180: 41
F181: 132kV/HV | G181: % | J181: 0.349494992 | L181: 0.7117602951 | M181: 0.5884105078 | N181: 0.4961718607 | O181: =HLOOKUP($F181,'ARP_Peaking probabilities'!$K$5:$S$45,$U181,FALSE) -> 0.349494992 | P181: 0.349494992 | Q181: 0.349494992 | R181: 0.349494992 | S181: 0.349494992 | U181: 41
F182: HV | G182: % | J182: 0.3304930739 | L182: 0.6027144227 | M182: 0.5021491762 | N182: 0.4202742698 | O182: =HLOOKUP($F182,'ARP_Peaking probabilities'!$K$5:$S$45,$U182,FALSE) -> 0.3304930739 | P182: 0.3304930739 | Q182: 0.3304930739 | R182: 0.3304930739 | S182: 0.3304930739 | U182: 41
F183: HV/LV | G183: % | J183: 0.3304930739 | L183: 0.6027144227 | M183: 0.5021491762 | N183: 0.4202742698 | O183: =HLOOKUP($F183,'ARP_Peaking probabilities'!$K$5:$S$45,$U183,FALSE) -> 0.3304930739 | P183: 0.3304930739 | Q183: 0.3304930739 | R183: 0.3304930739 | S183: 0.3304930739 | U183: 41
F184: LV circuits | G184: % | J184: 0.3304930739 | L184: 0.6027144227 | M184: 0.5021491762 | N184: 0.4202742698 | O184: =HLOOKUP($F184,'ARP_Peaking probabilities'!$K$5:$S$45,$U184,FALSE) -> 0.3304930739 | P184: 0.3304930739 | Q184: 0.3304930739 | R184: 0.3304930739 | S184: 0.3304930739 | U184: 41
U185: 41
B186: Checks
C188: Checks are not run for historic years, for which DNOs are not obliged to enter inputs.
E190: Check for error values | G190: number of issues | H190: =SUM(IF(ISERROR(H18:T185), 1)) -> 0
E192: Check that loss adjustment factor = 1 at grid supply point | G192: number of issues | H192: =SUM(L192:S192) -> 0 | O192: =IF(O48 = 1, 0, 1) -> 0 | P192: =IF(P48 = 1, 0, 1) -> 0 | Q192: =IF(Q48 = 1, 0, 1) -> 0 | R192: =IF(R48 = 1, 0, 1) -> 0 | S192: =IF(S48 = 1, 0, 1) -> 0
E194: Peaking probabilities check - General
F195: Transmission exit | G195: number of issues
F196: GSPs | G196: number of issues | H196: =SUM(L196:S196) -> 0 | O196: =IF(ABS(SUM(O140,O152,O164) - 1) < 10^-check_decimals,0,1) -> 0 | P196: =IF(ABS(SUM(P140,P152,P164) - 1) < 10^-check_decimals,0,1) -> 0 | Q196: =IF(ABS(SUM(Q140,Q152,Q164) - 1) < 10^-check_decimals,0,1) -> 0 | R196: =IF(ABS(SUM(R140,R152,R164) - 1) < 10^-check_decimals,0,1) -> 0 | S196: =IF(ABS(SUM(S140,S152,S164) - 1) < 10^-check_decimals,0,1) -> 0
F197: 132kV | G197: number of issues
F198: 132kV/EHV | G198: number of issues
F199: EHV | G199: number of issues | H199: 0 | O199: =IF(ABS(SUM(O143,O155,O167) - 1) < 10^-check_decimals,0,1) -> 0 | P199: 0 | Q199: 0 | R199: 0 | S199: 0
F200: EHV/HV | G200: number of issues | H200: 0 | O200: 0 | P200: 0 | Q200: 0 | R200: 0 | S200: 0
F201: 132kV/HV | G201: number of issues
F202: HV | G202: number of issues | H202: 0 | O202: =IF(ABS(SUM(O146,O158,O170) - 1) < 10^-check_decimals,0,1) -> 0 | P202: 0 | Q202: 0 | R202: 0 | S202: 0
F203: HV/LV | G203: number of issues | H203: 0 | O203: 0 | P203: 0 | Q203: 0 | R203: 0 | S203: 0
F204: LV circuits | G204: number of issues | H204: =SUM(L204:S204) -> 0 | O204: 0 | P204: 0 | Q204: 0 | R204: 0 | S204: 0
E206: Peaking probabilities check - 132kV/HV
F207: Transmission exit | G207: number of issues
F208: GSPs | G208: number of issues
F209: 132kV | G209: number of issues | H209: =SUM(L209:S209) -> 0 | O209: =IF(OR(ABS(SUM(O141,O153,O165) - 1) < 10^-check_decimals, ABS(SUM(O141,O153,O165) - 0) < 10^-check_decimals),0,1) -> 0 | P209: 0 | Q209: 0 | R209: 0 | S209: 0
F210: 132kV/EHV | G210: number of issues | H210: =SUM(L210:S210) -> 0 | O210: 0 | P210: 0 | Q210: 0 | R210: 0 | S210: 0
F211: EHV | G211: number of issues
F212: EHV/HV | G212: number of issues
F213: 132kV/HV | G213: number of issues | H213: =SUM(L213:S213) -> 0 | O213: =IF(OR(ABS(SUM(O145,O157,O169) - 1) < 10^-check_decimals, ABS(SUM(O145,O157,O169) - 0) < 10^-check_decimals),0,1) -> 0 | P213: =IF(OR(ABS(SUM(P145,P157,P169) - 1) < 10^-check_decimals, ABS(SUM(P145,P157,P169) - 0) < 10^-check_decimals),0,1) -> 0 | Q213: =IF(OR(ABS(SUM(Q145,Q157,Q169) - 1) < 10^-check_decimals, ABS(SUM(Q145,Q157,Q169) - 0) < 10^-check_decimals),0,1) -> 0 | R213: =IF(OR(ABS(SUM(R145,R157,R169) - 1) < 10^-check_decimals, ABS(SUM(R145,R157,R169) - 0) < 10^-check_decimals),0,1) -> 0 | S213: =IF(OR(ABS(SUM(S145,S157,S169) - 1) < 10^-check_decimals, ABS(SUM(S145,S157,S169) - 0) < 10^-check_decimals),0,1) -> 0
F214: HV | G214: number of issues
F215: HV/LV | G215: number of issues
F216: LV circuits | G216: number of issues
E218: Summary of checks | G218: number of issues | H218: =SUM(H190,H192,H195:H204,H207:H216) -> 0
... 1 more rows

Sheet ARP_General inputs
A1: =MID(CELL("filename",A1),FIND("]",CELL("filename",A1))+1,255) -> ARP_General inputs
A2: =Cover!D21&" - "&Cover!D23 -> National Grid Electricity Distribution (East Midlands) - [enter data version name]
A3: =Cover!D2&" - "&Cover!D8&" v"&Cover!D10&" - "&Cover!D19 -> ARP model - Release for charge setting v7 - 2024/25
A4: =H125 & IF(H125 = 1, " issue", " issues") &" identified in checks on this sheet" -> 0 issues identified in checks on this sheet
J5: ="Year selected ("& charging_year_selected &")" -> Year selected (2024/25) | L5: =TRANSPOSE('ARP_User control'!G28:H35) -> 2021/22 | M5: 2022/23 | N5: 2023/24 | O5: 2024/25 | P5: 2025/26 | Q5: 2026/27 | R5: 2027/28 | S5: 2028/29
B6: Click here to return to model map | G6: Units | H6: Constants | J6: ='ARP_User control'!$H$36 -> Current | L6: Historic | M6: Historic | N6: Historic | O6: Current | P6: Forecast | Q6: Forecast | R6: Forecast | S6: Forecast | U6: Legal text reference
B8: Description
C10: This sheet sets out general inputs by year.
C11: DNOs should populate the inputs for the charging year and the four following years.
C12: DNOs can also populate the three years preceding the charging year, but are not obliged to do so.
B14: General inputs
C16: =INDEX('Version control'!$H$36:$H$62,MATCH($A$1,'Version control'!$F$36:$F$62,0),1)&"-A: Split of hours by distribution timeband" -> Input 503-A: Split of hours by distribution timeband
E18: Typical annual hours by special distribution time band | I18: > | U18: Paragraphs 40 to 41
F19: Black | G19: hours per year | J19: =CHOOSE(year_selection, L19,M19,N19,O19,P19,Q19,R19,S19) -> 258 | L19: 258 | M19: 258 | N19: 261 | O19: 258 | P19: 255 | Q19: 255 | R19: 261 | S19: 258
F20: Yellow | G20: hours per year | J20: =CHOOSE(year_selection, L20,M20,N20,O20,P20,Q20,R20,S20) -> 3265.5 | L20: 3265.5 | M20: 3265.5 | N20: 3249 | O20: 3265.5 | P20: 3268.5 | Q20: 3268.5 | R20: 3276 | S20: 3252
F21: Green | G21: hours per year | J21: =CHOOSE(year_selection, L21,M21,N21,O21,P21,Q21,R21,S21) -> 5236.5 | L21: 5236.5 | M21: 5236.5 | N21: 5274 | O21: 5236.5 | P21: 5236.5 | Q21: 5236.5 | R21: 5247 | S21: 5250
E23: Typical annual hours by distribution time band | I23: > | U23: Paragraphs 40 to 41
F24: Red | G24: hours per year | J24: =CHOOSE(year_selection, L24,M24,N24,O24,P24,Q24,R24,S24) -> 783 | L24: 783 | M24: 783 | N24: 780 | O24: 783 | P24: 783 | Q24: 783 | R24: 786 | S24: 780
F25: Amber | G25: hours per year | J25: =CHOOSE(year_selection, L25,M25,N25,O25,P25,Q25,R25,S25) -> 2740.5 | L25: 2740.5 | M25: 2740.5 | N25: 2730 | O25: 2740.5 | P25: 2740.5 | Q25: 2740.5 | R25: 2751 | S25: 2730
F26: Green | G26: hours per year | J26: =CHOOSE(year_selection, L26,M26,N26,O26,P26,Q26,R26,S26) -> 5236.5 | L26: 5236.5 | M26: 5236.5 | N26: 5274 | O26: 5236.5 | P26: 5236.5 | Q26: 5236.5 | R26: 5247 | S26: 5250
C28: =INDEX('Version control'!$H$36:$H$62,MATCH($A$1,'Version control'!$F$36:$F$62,0),1)&"-B: Embedded network (LDNO) discount percentages" -> Input 503-B: Embedded network (LDNO) discount percentages
D30: Inputs sourced from PCDM
E32: Embedded network (LDNO) discount percentages | I32: > | U32: Paragraph 53
F33: LDNO LV: LV user | G33: % | J33: =CHOOSE(year_selection, L33,M33,N33,O33,P33,Q33,R33,S33) -> 0.3157237856 | L33: 0.3050843779 | M33: 0.3029372313 | N33: 0.3012665012 | O33: 0.3157237856 | P33: =O33 -> 0.3157237856 | Q33: 0.3157237856 | R33: 0.3157237856 | S33: 0.3157237856
F34: LDNO HV: LV user | G34: % | J34: =CHOOSE(year_selection, L34,M34,N34,O34,P34,Q34,R34,S34) -> 0.4512313214 | L34: 0.447802573 | M34: 0.4403043737 | N34: 0.4415168324 | O34: 0.4512313214 | P34: =O34 -> 0.4512313214 | Q34: 0.4512313214 | R34: 0.4512313214 | S34: 0.4512313214 | W34: NHH UMS category D | X34: LV UMS (Pseudo HH Metered) | Y34: LV Generation NHH or Aggregate HH | Z34: LV Sub Generation NHH | AA34: LV Generation Intermittent | AB34: LV Generation Intermittent no RP charge | AC34: LV Generation Non-Intermittent | AD34: LV Generation Non-Intermittent no RP charge | AE34: LV Sub Generation Intermittent | AF34: LV Sub Generation Intermittent no RP charge | AG34: LV Sub Generation Non-Intermittent | AH34: LV Sub Generation Non-Intermittent no RP charge | AI34: HV Generation Intermittent | AJ34: HV Generation Intermittent no RP charge | AK34: HV Generation Non-Intermittent | AL34: HV Generation Non-Intermittent no RP charge
F35: LDNO HV: LV Sub user | G35: % | J35: =CHOOSE(year_selection, L35,M35,N35,O35,P35,Q35,R35,S35) -> 0.1823533691 | L35: 0.1927605069 | M35: 0.1825428678 | N35: 0.1845027068 | O35: 0.1823533691 | P35: 0.1823533691 | Q35: 0.1823533691 | R35: 0.1823533691 | S35: 0.1823533691
F36: LDNO HV: HV user | G36: % | J36: =CHOOSE(year_selection, L36,M36,N36,O36,P36,Q36,R36,S36) -> 0.0739562248 | L36: 0.08466062657 | M36: 0.07348663122 | N36: 0.07581248713 | O36: 0.0739562248 | P36: 0.0739562248 | Q36: 0.0739562248 | R36: 0.0739562248 | S36: 0.0739562248
C38: =INDEX('Version control'!$H$36:$H$62,MATCH($A$1,'Version control'!$F$36:$F$62,0),1)&"-C: CDCM target revenue" -> Input 503-C: CDCM target revenue
D40: The contents of this section are defined in Paragraph 1.5 of Schedule 15 (Table 1). | I40: > | U40: Paragraph 54, Schedule 15 Table 1
D41: The only rows used as inputs to the model itself are "Latest forecast of CDCM Revenue" and "Pass-through… Adjustment" items.
E43: Base Demand Revenue before inflation | G43: £ | J43: =CHOOSE(year_selection, L43,M43,N43,O43,P43,Q43,R43,S43) -> 464179063.9 | L43: 427600000 | M43: 431900000 | N43: 471695988.9 | O43: 464179063.9 | P43: 459742209.1 | Q43: 452897566.5 | R43: 442980417 | S43: 440210217
E44: Annual Iteration adjustment before inflation | G44: £ | J44: 186389.0532 | L44: -17700000 | M44: -37922630.2 | N44: 179328.2581 | O44: 186389.0532 | P44: 0 | Q44: 0 | R44: 0 | S44: 0
E45: RPI True-up before inflation | G45: £ | J45: 37498193.47 | L45: -3784139.498 | M45: -5282377.71 | N45: 13397167.23 | O45: 37498193.47 | P45: 193698.4176 | Q45: 201284.2715 | R45: 209100.5801 | S45: 0
E46: Price index adjustment (RPI index) | G46: scalar | J46: 1.276133759 | L46: 1.238 | M46: 1.321 | N46: 1.272044876 | O46: 1.276133759 | P46: 1.270379001 | Q46: 1.278428022 | R46: 1.301091531 | S46: 1.327113362
E47: Base demand revenue | G47: £ | J47: 501863646.4 | L47: =SUM(L43:L45) -> 406115860.5 | M47: 388694992.1 | N47: 485272484.4 | O47: 501863646.4 | P47: 459935907.5 | Q47: 453098850.8 | R47: 443189517.6 | S47: =SUM(S43:S45) -> 440210217
E48: Inflation adjustment | G48: £ | J48: 138581495 | L48: =L47 * (L46 - 1) -> 96655574.8 | M48: 124771092.5 | N48: 132015893.1 | O48: 138581495 | P48: 124357011.1 | Q48: 126155416.6 | R48: 133440610.3 | S48: =S47 * (S46 - 1) -> 143998643.9
E50: Pass-Through Licence Fees | G50: £ | J50: =CHOOSE(year_selection, L50,M50,N50,O50,P50,Q50,R50,S50) -> 853851.4567 | L50: 534900.8253 | M50: 545174.6706 | N50: 1259887.546 | O50: 853851.4567 | P50: 0 | Q50: 0 | R50: 0 | S50: 0
E51: Pass-Through Business Rates | G51: £ | J51: -52332059.68 | L51: -31747952.62 | M51: -35506182 | N51: -45288564.44 | O51: -52332059.68 | P51: 0 | Q51: 0 | R51: 0 | S51: 0
E52: Pass-Through Transmission Connection Point Charges | G52: £ | J52: -13137359.36 | L52: -3728130.536 | M52: -4888937.776 | N52: -8828894.048 | O52: -13137359.36 | P52: 0 | Q52: 0 | R52: 0 | S52: 0
E53: Pass-through Smart Meter Communication Licence Costs | G53: £ | J53: 7466964.618 | L53: 1681620.831 | M53: 2567042.284 | N53: 3593916.423 | O53: 7466964.618 | P53: 3498750.806 | Q53: 3531273.881 | R53: 3604283.759 | S53: 3676369.434
E54: Pass-through Smart Meter IT Costs | G54: £ | J54: 814183.5301 | L54: 426463.0053 | M54: -345676.505 | N54: 501314.7459 | O54: 814183.5301 | P54: 0 | Q54: 0 | R54: 0 | S54: 0
E55: Pass-through Ring Fence Costs | G55: £ | J55: 58679.51842 | L55: 47532.50956 | M55: 53687.68279 | N55: 56602.09432 | O55: 58679.51842 | P55: 0 | Q55: 0 | R55: 0 | S55: 0
E56: Pass-through Supplier of Last Resort Adjustment | G56: £ | J56: 1840565.047 | L56: -56798.30774 | M56: 88971026.15 | N56: 1262720.547 | O56: 1840565.047 | P56: 0 | Q56: 0 | R56: 0 | S56: 0
E57: Pass-through Eligible Bad Debt Adjustment | G57: £ | J57: 4953708.094 | L57: 1583606.985 | M57: 440248.8805 | N57: 2484409.863 | O57: 4953708.094 | P57: 0 | Q57: 0 | R57: 0 | S57: 0
E58: Pass-through COVID-19 Bad Debt Adjustment | G58: £ | J58: 0 | L58: 176638.8798 | M58: 5627.116302 | N58: 0 | O58: 0 | P58: 0 | Q58: 0 | R58: 0 | S58: 0
E59: Pass-Through Others | G59: £ | J59: 0 | L59: 0 | M59: 0 | N59: 0 | O59: 0 | P59: 0 | Q59: 0 | R59: 0 | S59: 0
E60: Allowed Pass-Through Items | G60: £ | J60: -49481466.77 | L60: =SUM(L50:L59) -> -31082118.43 | M60: 51842010.5 | N60: =SUM(N50:N59) -> -44958607.27 | O60: -49481466.77 | P60: 3498750.806 | Q60: 3531273.881 | R60: 3604283.759 | S60: =SUM(S50:S59) -> 3676369.434
E62: Broad Measure of Customer Service incentive | G62: £ | J62: =CHOOSE(year_selection, L62,M62,N62,O62,P62,Q62,R62,S62) -> 6502037.527 | L62: 5392928.088 | M62: 5458335.261 | N62: 5366976.475 | O62: 6502037.527 | P62: 0 | Q62: 0 | R62: 0 | S62: 0
E63: Quality of Service incentive | G63: £ | J63: 23598342.4 | L63: 22406021.7 | M63: 21210069.92 | N63: 25867406.28 | O63: 23598342.4 | P63: 0 | Q63: 0 | R63: 0 | S63: 0
E64: Connections Engagement incentive | G64: £ | J64: 0 | L64: 0 | M64: 0 | N64: 0 | O64: 0 | P64: 0 | Q64: 0 | R64: 0 | S64: 0
E65: Time to Connect incentive | G65: £ | J65: 2030104.311 | L65: 1884778.134 | M65: 1618078.798 | N65: 1678649.812 | O65: 2030104.311 | P65: 0 | Q65: 0 | R65: 0 | S65: 0
E66: Losses Discretionary Reward incentive | G66: £ | J66: 0 | L66: 0 | M66: 0 | N66: 0 | O66: 0 | P66: 0 | Q66: 0 | R66: 0 | S66: 0
E67: Network Innovation Allowance | G67: £ | J67: 0 | L67: 1746153 | M67: 2187222.417 | N67: 0 | O67: 0 | P67: 0 | Q67: 0 | R67: 0 | S67: 0
E68: Low Carbon Network Fund - Tier 1 unrecoverable | G68: £ | J68: 0 | L68: 0 | M68: 0 | N68: 0 | O68: 0 | P68: 0 | Q68: 0 | R68: 0 | S68: 0
E69: Low Carbon Network Fund - Tier 2 & Discretionary Funding | G69: £ | J69: 0 | L69: 61786.15 | M69: -290186.29 | N69: 0 | O69: 0 | P69: 0 | Q69: 0 | R69: 0 | S69: 0
E70: Connection Guaranteed Standards Systems & Processes penalty | G70: £ | J70: 0 | L70: 0 | M70: 0 | N70: 0 | O70: 0 | P70: 0 | Q70: 0 | R70: 0 | S70: 0
E71: Residual Losses and Growth Incentive - Losses | G71: £ | J71: 0 | L71: 0 | M71: 0 | N71: 0 | O71: 0 | P71: 0 | Q71: 0 | R71: 0 | S71: 0
E72: Residual Losses and Growth Incentive - Growth | G72: £ | J72: 0 | L72: 0 | M72: 0 | N72: 0 | O72: 0 | P72: 0 | Q72: 0 | R72: 0 | S72: 0
E73: Incentive Revenue and Other Adjustments | G73: £ | J73: 32130484.24 | L73: =SUM(L62:L72) -> 31491667.07 | M73: 30183520.1 | N73: =SUM(N62:N72) -> 32913032.57 | O73: 32130484.24 | P73: 0 | Q73: 0 | R73: 0 | S73: =SUM(S62:S72) -> 0
E75: Correction Factor | G75: £ | J75: =CHOOSE(year_selection, L75,M75,N75,O75,P75,Q75,R75,S75) -> 87467517.67 | L75: 9533329.599 | M75: 26877989.3 | N75: -15929944.13 | O75: 87467517.67 | P75: 0 | Q75: 0 | R75: 0 | S75: 0
E76: Total allowed Revenue | G76: £ | J76: =CHOOSE(year_selection, L76,M76,N76,O76,P76,Q76,R76,S76) -> 710561676.5 | L76: =L75 + L73 + L60 + L48 + L47 -> 512714313.5 | M76: 622369604.5 | N76: 589312858.6 | O76: 710561676.5 | P76: 587791669.4 | Q76: 582785541.3 | R76: 580234411.7 | S76: =S75 + S73 + S60 + S48 + S47 -> 587885230.4
E78: Other 1. Excluded services - Top-up, standby, and enhanced system security | G78: £ | J78: =CHOOSE(year_selection, L78,M78,N78,O78,P78,Q78,R78,S78) -> 0
E79: Other 2. Excluded services - Revenue protection services | G79: £ | J79: 0
E80: Other 3. Excluded services - Miscellaneous | G80: £ | J80: 0
E81: Other 4. Please describe if used | G81: £ | J81: 0
E82: Other 5. Please describe if used | G82: £ | J82: 0
E83: Total other revenue recovered by Use of System Charges | G83: £ | J83: 0 | L83: =SUM(L78:L82) -> 0 | M83: 0 | N83: =SUM(N78:N82) -> 0 | O83: 0 | P83: 0 | Q83: 0 | R83: 0 | S83: =SUM(S78:S82) -> 0
E84: Total Revenue for Use of System Charges | G84: £ | J84: 710561676.5 | L84: =L76+L83 -> 512714313.5 | M84: 622369604.5 | N84: 589312858.6 | O84: 710561676.5 | P84: 587791669.4 | Q84: 582785541.3 | R84: 580234411.7 | S84: =S76+S83 -> 587885230.4
E86: 1. Revenue raised outside CDCM - EDCM and Certain Interconnector Revenue | G86: £ | J86: =CHOOSE(year_selection, L86,M86,N86,O86,P86,Q86,R86,S86) -> 18092281.66 | L86: 11930443.02 | M86: 11116221.74 | N86: 11599766.03 | O86: 18092281.66 | P86: 14966318.6 | Q86: 14838852.85 | R86: 14773896.13 | S86: 14968700.85
E87: 2. Revenue raised outside CDCM - Voluntary under-recovery | G87: £ | J87: 0
E88: 3. Revenue raised outside CDCM - Please describe if used | G88: £ | J88: 0
E89: 4. Revenue raised outside CDCM - Please describe if used | G89: £ | J89: 0
E90: Total Revenue to be raised outside the CDCM | G90: £ | J90: 18092281.66 | L90: =SUM(L86:L89) -> 11930443.02 | M90: 11116221.74 | N90: 11599766.03 | O90: 18092281.66 | P90: 14966318.6 | Q90: 14838852.85 | R90: 14773896.13 | S90: =SUM(S86:S89) -> 14968700.85
E91: Latest forecast of CDCM Revenue | G91: £ | J91: 692469394.9 | L91: =L84-L90 -> 500783870.5 | M91: 611253382.7 | N91: 577713092.6 | O91: 692469394.9 | P91: 572825350.8 | Q91: 567946688.5 | R91: 565460515.6 | S91: =S84-S90 -> 572916529.5
E92: CDCM Revenue Used in Charging Model | G92: £ | J92: =CHOOSE(year_selection, L92,M92,N92,O92,P92,Q92,R92,S92) -> 692469394.9 | L92: =L91 -> 500783870.5 | M92: 611253382.7 | N92: 577713092.6 | O92: 692469394.9 | P92: 572825350.8 | Q92: 567946688.5 | R92: 565460515.6 | S92: =S91 -> 572916529.5
E94: Final Collected Revenue Forecast | G94: £ | J94: =CHOOSE(year_selection, L94,M94,N94,O94,P94,Q94,R94,S94) -> 654986817.9 | L94: 528851508.4 | M94: 621395184.2 | N94: 505501537.2 | O94: 654986817.9 | P94: 587791669.4 | Q94: 582785541.3 | R94: 580234411.7 | S94: 587885230.4
E95: Forecast Over / (Under) Recovery | G95: £ | J95: =CHOOSE(year_selection, L95,M95,N95,O95,P95,Q95,R95,S95) -> -55574858.65 | L95: =L94 - L83 - L76 + L87 -> 16137194.83 | M95: -974420.2221 | N95: -83811321.42 | O95: -55574858.65 | P95: 0 | Q95: 0 | R95: 0 | S95: =S94 - S83 - S76 + S87 -> 0
E96: Forecast overall percentage change to Allowed Revenue | G96: % | J96: =CHOOSE(year_selection, L96,M96,N96,O96,P96,Q96,R96,S96) -> 0.2057460924 | L96: =IF( K76 <> 0, L76 / K76 - 1, 0) -> 0 | M96: 0.2138721078 | N96: -0.05311433203 | O96: 0.2057460924 | P96: -0.1727788187 | Q96: -0.008516840861 | R96: -0.004377475799 | S96: =IF( R76 <> 0, S76 / R76 - 1, 0) -> 0.01318573747
E97: Overall % change to Use of System Charges effective 1st April of Regulatory Year to balance | G97: % | J97: =CHOOSE(year_selection, L97,M97,N97,O97,P97,Q97,R97,S97) -> 0.2957167677 | L97: =IF( K94 <> 0, L94 / K94 - 1, 0) -> 0 | M97: 0.1749899062 | N97: -0.1865055442 | O97: 0.2957167677 | P97: -0.1025900775 | Q97: -0.008516840861 | R97: -0.004377475799 | S97: =IF( R94 <> 0, S94 / R94 - 1, 0) -> 0.01318573747
C99: =INDEX('Version control'!$H$36:$H$62,MATCH($A$1,'Version control'!$F$36:$F$62,0),1)&"-D: Financial and general assumptions" -> Input 503-D: Financial and general assumptions
E101: Real post-tax cost of capital | G101: % | I101: > | J101: =CHOOSE(year_selection, L101,M101,N101,O101,P101,Q101,R101,S101) -> 0.0324 | L101: 0.0341 | M101: 0.0326 | N101: 0.0324 | O101: 0.0324 | P101: =O101 -> 0.0324 | Q101: 0.0324 | R101: 0.0324 | S101: =R101 -> 0.0324 | U101: Paragraph 57
E102: Days in the charging year | G102: days | J102: =CHOOSE(year_selection, L102,M102,N102,O102,P102,Q102,R102,S102) -> 365 | L102: 365 | M102: 365 | N102: 366 | O102: 365 | P102: 365 | Q102: 365 | R102: 366 | S102: 365
C104: =INDEX('Version control'!$H$36:$H$62,MATCH($A$1,'Version control'!$F$36:$F$62,0),1)&"-E: Transmission exit charges" -> Input 503-E: Transmission exit charges
E106: Transmission exit charges | G106: £ per year | I106: > | J106: =CHOOSE(year_selection, L106,M106,N106,O106,P106,Q106,R106,S106) -> 11225893.45 | L106: 13079170.86 | M106: 11011320.34 | N106: 9910413.511 | O106: 11225893.45 | P106: 11175269.99 | Q106: 11245819.94 | R106: 11445181.76 | S106: =R106*1.02 -> 11674085.4 | U106: Paragraph 38
C108: =INDEX('Version control'!$H$36:$H$62,MATCH($A$1,'Version control'!$F$36:$F$62,0),1)&"-F: Other expenditure" -> Input 503-F: Other expenditure
E110: Other expenditure | I110: > | U110: Paragraph 39
F111: Direct cost | G111: £ per year | J111: =CHOOSE(year_selection, L111,M111,N111,O111,P111,Q111,R111,S111) -> 51091807.17 | L111: 44469072.86 | M111: 49384746.8 | N111: 51691555.09 | O111: 51091807.17 | P111: =O111*P$46/O$46 -> 50861407.37 | Q111: =P111*Q$46/P$46 -> 51183661.22 | R111: 52091026.64 | S111: =R111*1.02 -> 53132847.17
F112: Indirect cost | G112: £ per year | J112: =CHOOSE(year_selection, L112,M112,N112,O112,P112,Q112,R112,S112) -> 209085817.1 | L112: 144357826.6 | M112: 140806480.8 | N112: 193007342.4 | O112: 209085817.1 | P112: =O112*P$46/O$46 -> 208142939.3 | Q112: 209461716.5 | R112: 213174978 | S112: =R112*1.02 -> 217438477.5
F113: Network rates | G113: £ per year | J113: =CHOOSE(year_selection, L113,M113,N113,O113,P113,Q113,R113,S113) -> 38851504.45 | L113: 32693484.43 | M113: 30176405.73 | N113: 31534757.15 | O113: 38851504.45 | P113: =O113*P$46/O$46 -> 38676302.6 | Q113: 38921352.59 | R113: 39611336.24 | S113: 40403562.97
B115: Checks
C117: Checks are not run for historic years, for which DNOs are not obliged to enter inputs.
E119: Check for error values | G119: number of issues | H119: =SUM(IF(ISERROR(H15:S114), 1)) -> 0
E121: Hours in charging year check
F122: Normal distribution timebands | G122: number of issues | H122: =SUM(L122:S122) -> 0 | M122: =IF(SUM(M19:M21) = M$102 * hours_in_day, 0, 1) -> 0 | N122: 0 | O122: 0 | P122: 0 | Q122: 0 | R122: 0 | S122: 0
F123: Special distribution timebands | G123: number of issues | H123: =SUM(L123:S123) -> 0 | M123: =IF(SUM(M24:M26) = M$102 * hours_in_day, 0, 1) -> 0 | N123: 0 | O123: 0 | P123: 0 | Q123: 0 | R123: 0 | S123: 0
E125: Summary of checks | G125: number of issues | H125: =SUM(H119, H122:H123) -> 0
B127: End of sheet

Sheet Fixed inputs
A1: =MID(CELL("filename",A1),FIND("]",CELL("filename",A1))+1,255) -> Fixed inputs
A2: =Cover!D21&" - "&Cover!D23 -> National Grid Electricity Distribution (East Midlands) - [enter data version name]
A3: =Cover!D2&" - "&Cover!D8&" v"&Cover!D10&" - "&Cover!D19 -> ARP model - Release for charge setting v7 - 2024/25
A4: =H197 & IF(H197 = 1, " issue", " issues") &" identified in checks on this sheet" -> 0 issues identified in checks on this sheet
B5: Click here to return to model map | G5: Units | H5: Constants | J5: Domestic Aggregated | K5: Domestic Aggregated (Related MPAN) | L5: Non-Domestic Aggregated | M5: Non-Domestic Aggregated (Related MPAN) | N5: LV Site Specific | O5: LV Sub Site Specific | P5: HV Site Specific | Q5: Unmetered Supplies | R5: LV Generation Aggregated | S5: LV Sub Generation Aggregated | T5: LV Generation Site Specific | U5: LV Generation Site Specific no RP Charge | V5: LV Sub Generation Site Specific | W5: LV Sub Generation Site Specific no RP Charge | X5: HV Generation Site Specific | Y5: HV Generation Site Specific no RP Charge | AQ5: Legal text reference
B7: Description
C9: This sheet sets out the inputs that should be constant across DNOs
B11: Fixed inputs
C13: =INDEX('Version control'!$H$36:$H$62,MATCH($A$1,'Version control'!$F$36:$F$62,0),1)&"-A: Conversions and time" -> Input 504-A: Conversions and time
E15: Hours per day | G15: hours | H15: 24
E16: Ten | G16: integer | H16: 10
E17: One hundred | G17: integer | H17: 100
E18: One thousand | G18: integer | H18: 1000
C20: =INDEX('Version control'!$H$36:$H$62,MATCH($A$1,'Version control'!$F$36:$F$62,0),1)&"-B: Input 101-B: Rounding" -> Input 504-B: Input 101-B: Rounding
D22: Number of decimal places each final charge should be rounded to, specified in Paragraph 14.
E24: Decimal places | I24: > | AQ24: Paragraph 14
F25: Unit rate 1 | G25: integer | H25: 3
F26: Unit rate 2 | G26: integer | H26: 3
F27: Unit rate 3 | G27: integer | H27: 3
F28: Fixed charge | G28: integer | H28: 2
F29: Capacity charge | G29: integer | H29: 2
F30: Exceeded capacity charge | G30: integer | H30: 2
F31: Reactive power charge | G31: integer | H31: 3
C33: =INDEX('Version control'!$H$36:$H$62,MATCH($A$1,'Version control'!$F$36:$F$62,0),1)&"-C: Financial and general assumptions" -> Input 504-C: Financial and general assumptions
E35: Annualisation period | G35: years | H35: 40 | I35: > | AQ35: Paragraph 57
E37: Power factor | G37: % | H37: 0.95 | I37: > | AQ37: Paragraphs 21 & 79
E39: Indirect cost proportion | G39: % | H39: 0.6 | I39: > | AQ39: Paragraph 39
E41: Network model GSP peak demand | G41: MW | H41: 500 | I41: > | AQ41: Paragraph 20
C43: =INDEX('Version control'!$H$36:$H$62,MATCH($A$1,'Version control'!$F$36:$F$62,0),1)&"-D: Mappings" -> Input 504-D: Mappings
E45: LDNO discount map
F46: LDNO LV: LV user | G46: 1 or 0 | J46: 1 | K46: 1 | L46: 1 | M46: 1 | N46: 1 | O46: 0 | P46: 0 | Q46: 1
F47: LDNO HV: LV user | G47: 1 or 0 | J47: 1 | K47: 1 | L47: 1 | M47: 1 | N47: 1 | O47: 0 | P47: 0 | Q47: 1
F48: LDNO HV: LV Sub user | G48: 1 or 0 | J48: 0 | K48: 0 | L48: 0 | M48: 0 | N48: 0 | O48: 1 | P48: 0 | Q48: 0
F49: LDNO HV: HV user | G49: 1 or 0 | J49: 0 | K49: 0 | L49: 0 | M49: 0 | N49: 0 | O49: 0 | P49: 1 | Q49: 0
E51: Network level at which users are supplied | I51: > | AQ51: Paragraph 30
E52: Network use factors based on customer contributed assets
F53: HV substation | G53: 1 or 0 | J53: 0 | K53: 0 | L53: 0 | M53: 0 | N53: 0 | O53: 0 | P53: 0 | Q53: 0 | R53: 0 | S53: 0 | T53: 0 | U53: 0 | V53: 0 | W53: 0 | X53: 0 | Y53: 0
F54: HV network | G54: 1 or 0 | J54: 0 | K54: 0 | L54: 0 | M54: 0 | N54: 0 | O54: 0 | P54: 1 | Q54: 0 | R54: 0 | S54: 0 | T54: 0 | U54: 0 | V54: 0 | W54: 0 | X54: 1 | Y54: 1
F55: LV substation | G55: 1 or 0 | J55: 0 | K55: 0 | L55: 0 | M55: 0 | N55: 0 | O55: 1 | P55: 0 | Q55: 0 | R55: 0 | S55: 1 | T55: 0 | U55: 0 | V55: 1 | W55: 1 | X55: 0 | Y55: 0
F56: LV network | G56: 1 or 0 | J56: 1 | K56: 1 | L56: 1 | M56: 1 | N56: 1 | O56: 0 | P56: 0 | Q56: 1 | R56: 1 | S56: 0 | T56: 1 | U56: 1 | V56: 0 | W56: 0 | X56: 0 | Y56: 0
E58: Network use factors (assuming generation contributes at level of connection)
E59: These assume demand and generation use the network from the point of connection.
F60: Transmission exit | G60: 1, 0 or -1 | J60: 1 | K60: 1 | L60: 1 | M60: 1 | N60: 1 | O60: 1 | P60: 1 | Q60: 1 | R60: -1 | S60: -1 | T60: -1 | U60: -1 | V60: -1 | W60: -1 | X60: -1 | Y60: -1
F61: GSPs | G61: 1, 0 or -1 | J61: 1 | K61: 1 | L61: 1 | M61: 1 | N61: 1 | O61: 1 | P61: 1 | Q61: 1 | R61: -1 | S61: -1 | T61: -1 | U61: -1 | V61: -1 | W61: -1 | X61: -1 | Y61: -1
F62: 132kV | G62: 1, 0 or -1 | J62: 1 | K62: 1 | L62: 1 | M62: 1 | N62: 1 | O62: 1 | P62: 1 | Q62: 1 | R62: -1 | S62: -1 | T62: -1 | U62: -1 | V62: -1 | W62: -1 | X62: -1 | Y62: -1
F63: 132kV/EHV | G63: 1, 0 or -1 | J63: 1 | K63: 1 | L63: 1 | M63: 1 | N63: 1 | O63: 1 | P63: 1 | Q63: 1 | R63: -1 | S63: -1 | T63: -1 | U63: -1 | V63: -1 | W63: -1 | X63: -1 | Y63: -1
F64: EHV | G64: 1, 0 or -1 | J64: 1 | K64: 1 | L64: 1 | M64: 1 | N64: 1 | O64: 1 | P64: 1 | Q64: 1 | R64: -1 | S64: -1 | T64: -1 | U64: -1 | V64: -1 | W64: -1 | X64: -1 | Y64: -1
F65: EHV/HV | G65: 1, 0 or -1 | J65: 1 | K65: 1 | L65: 1 | M65: 1 | N65: 1 | O65: 1 | P65: 1 | Q65: 1 | R65: -1 | S65: -1 | T65: -1 | U65: -1 | V65: -1 | W65: -1 | X65: -1 | Y65: -1
F66: 132kV/HV | G66: 1, 0 or -1 | J66: 1 | K66: 1 | L66: 1 | M66: 1 | N66: 1 | O66: 1 | P66: 1 | Q66: 1 | R66: -1 | S66: -1 | T66: -1 | U66: -1 | V66: -1 | W66: -1 | X66: -1 | Y66: -1
F67: HV | G67: 1, 0 or -1 | J67: 1 | K67: 1 | L67: 1 | M67: 1 | N67: 1 | O67: 1 | P67: 1 | Q67: 1 | R67: -1 | S67: -1 | T67: -1 | U67: -1 | V67: -1 | W67: -1 | X67: -1 | Y67: -1
F68: HV/LV | G68: 1, 0 or -1 | J68: 1 | K68: 1 | L68: 1 | M68: 1 | N68: 1 | O68: 1 | P68: 0 | Q68: 1 | R68: -1 | S68: -1 | T68: -1 | U68: -1 | V68: -1 | W68: -1 | X68: 0 | Y68: 0
F69: LV circuits | G69: 1, 0 or -1 | J69: 1 | K69: 1 | L69: 1 | M69: 1 | N69: 1 | O69: 0 | P69: 0 | Q69: 1 | R69: -1 | S69: 0 | T69: -1 | U69: -1 | V69: 0 | W69: 0 | X69: 0 | Y69: 0
E71: Network use factors (assuming generation makes no contribution at level of connection) | I71: > | AQ71: Paragraphs 62 & 71
E72: Equal to 0 for the network level at which generation is connected, otherwise equal to network use factor
F73: Transmission exit | G73: 1, 0 or -1 | J73: 1 | K73: 1 | L73: 1 | M73: 1 | N73: 1 | O73: 1 | P73: 1 | Q73: 1 | R73: -1 | S73: -1 | T73: -1 | U73: -1 | V73: -1 | W73: -1 | X73: -1 | Y73: -1
F74: GSPs | G74: 1, 0 or -1 | J74: 1 | K74: 1 | L74: 1 | M74: 1 | N74: 1 | O74: 1 | P74: 1 | Q74: 1 | R74: -1 | S74: -1 | T74: -1 | U74: -1 | V74: -1 | W74: -1 | X74: -1 | Y74: -1
F75: 132kV | G75: 1, 0 or -1 | J75: 1 | K75: 1 | L75: 1 | M75: 1 | N75: 1 | O75: 1 | P75: 1 | Q75: 1 | R75: -1 | S75: -1 | T75: -1 | U75: -1 | V75: -1 | W75: -1 | X75: -1 | Y75: -1
F76: 132kV/EHV | G76: 1, 0 or -1 | J76: 1 | K76: 1 | L76: 1 | M76: 1 | N76: 1 | O76: 1 | P76: 1 | Q76: 1 | R76: -1 | S76: -1 | T76: -1 | U76: -1 | V76: -1 | W76: -1 | X76: -1 | Y76: -1
F77: EHV | G77: 1, 0 or -1 | J77: 1 | K77: 1 | L77: 1 | M77: 1 | N77: 1 | O77: 1 | P77: 1 | Q77: 1 | R77: -1 | S77: -1 | T77: -1 | U77: -1 | V77: -1 | W77: -1 | X77: -1 | Y77: -1
F78: EHV/HV | G78: 1, 0 or -1 | J78: 1 | K78: 1 | L78: 1 | M78: 1 | N78: 1 | O78: 1 | P78: 1 | Q78: 1 | R78: -1 | S78: -1 | T78: -1 | U78: -1 | V78: -1 | W78: -1 | X78: -1 | Y78: -1
F79: 132kV/HV | G79: 1, 0 or -1 | J79: 1 | K79: 1 | L79: 1 | M79: 1 | N79: 1 | O79: 1 | P79: 1 | Q79: 1 | R79: -1 | S79: -1 | T79: -1 | U79: -1 | V79: -1 | W79: -1 | X79: -1 | Y79: -1
F80: HV | G80: 1, 0 or -1 | J80: 1 | K80: 1 | L80: 1 | M80: 1 | N80: 1 | O80: 1 | P80: 1 | Q80: 1 | R80: -1 | S80: -1 | T80: -1 | U80: -1 | V80: -1 | W80: -1 | X80: 0 | Y80: 0
F81: HV/LV | G81: 1, 0 or -1 | J81: 1 | K81: 1 | L81: 1 | M81: 1 | N81: 1 | O81: 1 | P81: 0 | Q81: 1 | R81: -1 | S81: 0 | T81: -1 | U81: -1 | V81: 0 | W81: 0 | X81: 0 | Y81: 0
F82: LV circuits | G82: 1, 0 or -1 | J82: 1 | K82: 1 | L82: 1 | M82: 1 | N82: 1 | O82: 0 | P82: 0 | Q82: 1 | R82: 0 | S82: 0 | T82: 0 | U82: 0 | V82: 0 | W82: 0 | X82: 0 | Y82: 0
C84: =INDEX('Version control'!$H$36:$H$62,MATCH($A$1,'Version control'!$F$36:$F$62,0),1)&"-E: Standing charge factors" -> Input 504-E: Standing charge factors
E86: Standing charge factors | I86: > | AQ86: Paragraph 74
E87: Sets the proportion of costs to be recovered through fixed and capacity charge components.
F88: Transmission exit | G88: %
F89: GSPs | G89: %
F90: 132kV | G90: %
F91: 132kV/EHV | G91: %
F92: EHV | G92: % | P92: 0.2
F93: EHV/HV | G93: % | P93: 1
F94: 132kV/HV | G94: %
F95: HV | G95: % | N95: 0.2 | O95: 1 | P95: 1
F96: HV/LV | G96: % | N96: 1 | O96: 1
F97: LV circuits | G97: % | J97: 1 | K97: 1 | L97: 1 | M97: 1 | N97: 1 | Q97: 0
C99: =INDEX('Version control'!$H$36:$H$62,MATCH($A$1,'Version control'!$F$36:$F$62,0),1)&"-F: Flags" -> Input 504-F: Flags
D101: Override discount rate applied
D102: See Schedule 16, para 125. This has been interpreted to mean that MPANs are fully discounted,
D103: and everything else is not
E104: MWh
F105: Override discount | G105: TRUE / FALSE | I105: > | J105: FALSE | K105: FALSE | L105: FALSE | M105: FALSE | N105: FALSE | O105: FALSE | P105: FALSE | Q105: FALSE | R105: TRUE | S105: TRUE | T105: TRUE | U105: TRUE | V105: TRUE | W105: TRUE | X105: TRUE | Y105: TRUE | AQ105: Paragraph 99
F106: Discount % | G106: % | R106: 0 | S106: 0 | T106: 0 | U106: 0 | V106: 0 | W106: 0 | X106: 0 | Y106: 0
E108: MPANs
F109: Override discount | G109: TRUE / FALSE | J109: FALSE | K109: FALSE | L109: FALSE | M109: FALSE | N109: FALSE | O109: FALSE | P109: FALSE | Q109: FALSE | R109: TRUE | S109: TRUE | T109: TRUE | U109: TRUE | V109: TRUE | W109: TRUE | X109: TRUE | Y109: TRUE
F110: Discount % | G110: % | R110: 1 | S110: 1 | T110: 1 | U110: 1 | V110: 1 | W110: 1 | X110: 1 | Y110: 1
E112: Import capacity (kVA)
F113: Override discount | G113: TRUE / FALSE | J113: FALSE | K113: FALSE | L113: FALSE | M113: FALSE | N113: FALSE | O113: FALSE | P113: FALSE | Q113: FALSE | R113: TRUE | S113: TRUE | T113: TRUE | U113: TRUE | V113: TRUE | W113: TRUE | X113: TRUE | Y113: TRUE
F114: Discount % | G114: % | R114: 0 | S114: 0 | T114: 0 | U114: 0 | V114: 0 | W114: 0 | X114: 0 | Y114: 0
E116: Exceeded capacity (kVA)
F117: Override discount | G117: TRUE / FALSE | J117: FALSE | K117: FALSE | L117: FALSE | M117: FALSE | N117: FALSE | O117: FALSE | P117: FALSE | Q117: FALSE | R117: TRUE | S117: TRUE | T117: TRUE | U117: TRUE | V117: TRUE | W117: TRUE | X117: TRUE | Y117: TRUE
F118: Discount % | G118: % | R118: 0 | S118: 0 | T118: 0 | U118: 0 | V118: 0 | W118: 0 | X118: 0 | Y118: 0
E120: Reactive power units (MVArh)
F121: Override discount | G121: TRUE / FALSE | J121: FALSE | K121: FALSE | L121: FALSE | M121: FALSE | N121: FALSE | O121: FALSE | P121: FALSE | Q121: FALSE | R121: TRUE | S121: TRUE | T121: TRUE | U121: TRUE | V121: TRUE | W121: TRUE | X121: TRUE | Y121: TRUE
F122: Discount % | G122: % | R122: 0 | S122: 0 | T122: 0 | U122: 0 | V122: 0 | W122: 0 | X122: 0 | Y122: 0
E124: Unmetered supply flags
E125: These are used to flag UMS tariff forecast in the pseudo load coefficient calculations, because UMS
E126: customers are subject to a different timebanding
F127: Unmetered supply flags | G127: TRUE / FALSE | J127: FALSE | K127: FALSE | L127: FALSE | M127: FALSE | N127: FALSE | O127: FALSE | P127: FALSE | Q127: TRUE | R127: FALSE | S127: FALSE | T127: FALSE | U127: FALSE | V127: FALSE | W127: FALSE | X127: FALSE | Y127: FALSE
E129: Flags used in calculation of LV diversity allowance
E130: FALSE = exclude
F131: Flag for customers included in aggregate maximum demand | G131: TRUE / FALSE | J131: TRUE | K131: FALSE | L131: TRUE | M131: FALSE | N131: TRUE | O131: TRUE | P131: TRUE | Q131: TRUE | R131: TRUE | S131: TRUE | T131: TRUE | U131: TRUE | V131: TRUE | W131: TRUE | X131: TRUE | Y131: TRUE
E133: Flags for applicability of capacity & reactive charges | I133: > | AQ133: Paragraphs 141 & 146
E134: 0 = charges not applicable to customer type
E135: For fixed charges, 1 = capacity element is allocated to fixed charges
F136: Capacity charge | G136: 1 or 0 | J136: 0 | K136: 0 | L136: 0 | M136: 0 | N136: 1 | O136: 1 | P136: 1 | Q136: 0 | R136: 0 | S136: 0 | T136: 0 | U136: 0 | V136: 0 | W136: 0 | X136: 0 | Y136: 0
F137: Exceeded capacity charge | G137: 1 or 0 | J137: 0 | K137: 0 | L137: 0 | M137: 0 | N137: 1 | O137: 1 | P137: 1 | Q137: 0 | R137: 0 | S137: 0 | T137: 0 | U137: 0 | V137: 0 | W137: 0 | X137: 0 | Y137: 0
F138: Reactive power | G138: 1 or 0 | J138: 0 | K138: 0 | L138: 0 | M138: 0 | N138: 1 | O138: 1 | P138: 1 | Q138: 0 | R138: 0 | S138: 0 | T138: 1 | U138: 0 | V138: 1 | W138: 0 | X138: 1 | Y138: 0
F139: Capacity charge allocated to fixed charge | G139: 1 or 0 | J139: 1 | K139: 0 | L139: 1 | M139: 0 | N139: 0 | O139: 0 | P139: 0 | Q139: 0 | R139: 0 | S139: 0 | T139: 0 | U139: 0 | V139: 0 | W139: 0 | X139: 0 | Y139: 0
C141: =INDEX('Version control'!$H$36:$H$62,MATCH($A$1,'Version control'!$F$36:$F$62,0),1)&"-G: Identifiers for customer groupings" -> Input 504-G: Identifiers for customer groupings
E143: Groupings for fixed charges
E144: Sets out the groups that are aggregated when calculating fixed charges. Each group is given an identifier. | I144: > | AQ144: Paragraph 83
F145: Groupings for fixed charges | G145: integer | J145: 1 | L145: 1
E147: Groupings for aggregated pseudo-load coefficients | I147: > | AQ147: Paragraph 70 c) iv
E148: Sets out the groups that are equalised for unit rates, as set out in Paragraph 70 c) iv
F149: Pseudo-load coefficient aggregation group | G149: integer | J149: 1 | K149: 1 | L149: 2 | M149: 2 | N149: 3 | O149: 4 | P149: 5
C151: =INDEX('Version control'!$H$36:$H$62,MATCH($A$1,'Version control'!$F$36:$F$62,0),1)&"-H: Decimal places for error checks" -> Input 504-H: Decimal places for error checks
E153: Decimals of precision for error checks | G153: integer | H153: 3
C155: =INDEX('Version control'!$H$36:$H$62,MATCH($A$1,'Version control'!$F$36:$F$62,0),1)&"-I: Map of applicable MPANs" -> Input 504-I: Map of applicable MPANs
E157: Map of applicable MPANs | I157: > | AQ157: Paragraphs 101 and 103
F158: Pass-through Supplier of Last Resort Adjustment | G158: 1 or 0 | J158: 1 | K158: 0 | L158: 0 | M158: 0 | N158: 0 | O158: 0 | P158: 0 | Q158: 0 | R158: 0 | S158: 0 | T158: 0 | U158: 0 | V158: 0 | W158: 0 | X158: 0 | Y158: 0
F159: Pass-through Eligible Bad Debt Adjustment | G159: 1 or 0 | J159: 1 | K159: 0 | L159: 1 | M159: 0 | N159: 1 | O159: 1 | P159: 1 | Q159: 0 | R159: 0 | S159: 0 | T159: 0 | U159: 0 | V159: 0 | W159: 0 | X159: 0 | Y159: 0
F160: Pass-through COVID-19 Bad Debt Adjustment | G160: 1 or 0 | J160: 1 | K160: 0 | L160: 1 | M160: 0 | N160: 1 | O160: 1 | P160: 1 | Q160: 0 | R160: 0 | S160: 0 | T160: 0 | U160: 0 | V160: 0 | W160: 0 | X160: 0 | Y160: 0
C162: =INDEX('Version control'!$H$36:$H$62,MATCH($A$1,'Version control'!$F$36:$F$62,0),1)&"-J: Revenue matching inputs" -> Input 504-J: Revenue matching inputs
E164: Flags for calculation of revenue matching | J164: Domestic Aggregated with Residual | K164: Domestic Aggregated (Related MPAN) | L164: Non-Domestic Aggregated No Residual | M164: Non-Domestic Aggregated Band 1 | N164: Non-Domestic Aggregated Band 2 | O164: Non-Domestic Aggregated Band 3 | P164: Non-Domestic Aggregated Band 4 | Q164: Non-Domestic Aggregated (Related MPAN) | R164: LV Site Specific No Residual | S164: LV Site Specific Band 1 | T164: LV Site Specific Band 2 | U164: LV Site Specific Band 3 | V164: LV Site Specific Band 4 | W164: LV Sub Site Specific No Residual | X164: LV Sub Site Specific Band 1 | Y164: LV Sub Site Specific Band 2 | Z164: LV Sub Site Specific Band 3 | AA164: LV Sub Site Specific Band 4 | AB164: HV Site Specific No Residual | AC164: HV Site Specific Band 1 | AD164: HV Site Specific Band 2 | AE164: HV Site Specific Band 3 | AF164: HV Site Specific Band 4 | AG164: Unmetered Supplies | AH164: LV Generation Aggregated | AI164: LV Sub Generation Aggregated | AJ164: LV Generation Site Specific | AK164: LV Generation Site Specific no RP Charge | AL164: LV Sub Generation Site Specific | AM164: LV Sub Generation Site Specific no RP Charge | AN164: HV Generation Site Specific | AO164: HV Generation Site Specific no RP Charge
F165: Residual charges | G165: TRUE or FALSE | J165: TRUE | K165: FALSE | L165: FALSE | M165: TRUE | N165: TRUE | O165: TRUE | P165: TRUE | Q165: FALSE | R165: FALSE | S165: TRUE | T165: TRUE | U165: TRUE | V165: TRUE | W165: FALSE | X165: TRUE | Y165: TRUE | Z165: TRUE | AA165: TRUE | AB165: FALSE | AC165: TRUE | AD165: TRUE | AE165: TRUE | AF165: TRUE | AG165: TRUE | AH165: FALSE | AI165: FALSE | AJ165: FALSE | AK165: FALSE | AL165: FALSE | AM165: FALSE | AN165: FALSE | AO165: FALSE
F166: Residual fixed charge | G166: TRUE or FALSE | J166: TRUE | M166: TRUE | N166: TRUE | O166: TRUE | P166: TRUE | S166: TRUE | T166: TRUE | U166: TRUE | V166: TRUE | X166: TRUE | Y166: TRUE | Z166: TRUE | AA166: TRUE | AC166: TRUE | AD166: TRUE | AE166: TRUE | AF166: TRUE | AG166: FALSE
F167: Residual, no fixed charge | G167: TRUE or FALSE | J167: FALSE | M167: FALSE | N167: FALSE | O167: FALSE | P167: FALSE | S167: FALSE | T167: FALSE | U167: FALSE | V167: FALSE | X167: FALSE | Y167: FALSE | Z167: FALSE | AA167: FALSE | AC167: FALSE | AD167: FALSE | AE167: FALSE | AF167: FALSE | AG167: TRUE
F168: Residual group | G168: integer | J168: 1 | M168: 2 | N168: 2 | O168: 2 | P168: 2 | S168: 3 | T168: 3 | U168: 3 | V168: 3 | X168: 3 | Y168: 3 | Z168: 3 | AA168: 3 | AC168: 4 | AD168: 4 | AE168: 4 | AF168: 4 | AG168: 5
F169: Residual band | G169: integer | J169: 1 | M169: 1 | N169: 2 | O169: 3 | P169: 4 | S169: 1 | T169: 2 | U169: 3 | V169: 4 | X169: 1 | Y169: 2 | Z169: 3 | AA169: 4 | AC169: 1 | AD169: 2 | AE169: 3 | AF169: 4 | AG169: 1
F170: Index of tariff before revenue matching | G170: integer | J170: 1 | K170: 2 | L170: 3 | M170: 3 | N170: 3 | O170: 3 | P170: 3 | Q170: 4 | R170: 5 | S170: 5 | T170: 5 | U170: 5 | V170: 5 | W170: 6 | X170: 6 | Y170: 6 | Z170: 6 | AA170: 6 | AB170: 7 | AC170: 7 | AD170: 7 | AE170: 7 | AF170: 7 | AG170: 8 | AH170: 9 | AI170: 10 | AJ170: 11 | AK170: 12 | AL170: 13 | AM170: 14 | AN170: 15 | AO170: 16
E172: Minimum number of MPANs in residual band | G172: integer | H172: 2
E174: Band grouping configurations
F175: The legal text requires that any bands with fewer than 2 customers are combined with another band. This input
F176: defines the different possible configurations of these band combinations. | J176: Domestic Aggregated with Residual | K176: Domestic Aggregated (Related MPAN) | L176: Non-Domestic Aggregated No Residual | M176: Non-Domestic Aggregated Band 1 | N176: Non-Domestic Aggregated Band 2 | O176: Non-Domestic Aggregated Band 3 | P176: Non-Domestic Aggregated Band 4 | Q176: Non-Domestic Aggregated (Related MPAN) | R176: LV Site Specific No Residual | S176: LV Site Specific Band 1 | T176: LV Site Specific Band 2 | U176: LV Site Specific Band 3 | V176: LV Site Specific Band 4 | W176: LV Sub Site Specific No Residual | X176: LV Sub Site Specific Band 1 | Y176: LV Sub Site Specific Band 2 | Z176: LV Sub Site Specific Band 3 | AA176: LV Sub Site Specific Band 4 | AB176: HV Site Specific No Residual | AC176: HV Site Specific Band 1 | AD176: HV Site Specific Band 2 | AE176: HV Site Specific Band 3 | AF176: HV Site Specific Band 4 | AG176: Unmetered Supplies | AH176: LV Generation Aggregated | AI176: LV Sub Generation Aggregated | AJ176: LV Generation Site Specific | AK176: LV Generation Site Specific no RP Charge | AL176: LV Sub Generation Site Specific | AM176: LV Sub Generation Site Specific no RP Charge | AN176: HV Generation Site Specific | AO176: HV Generation Site Specific no RP Charge
F177: Band grouping configuration 1 | G177: integer | J177: 1 | M177: 1 | N177: 2 | O177: 3 | P177: 4 | S177: 1 | T177: 2 | U177: 3 | V177: 4 | X177: 1 | Y177: 2 | Z177: 3 | AA177: 4 | AC177: 1 | AD177: 2 | AE177: 3 | AF177: 4 | AG177: 1
F178: Band grouping configuration 2 | G178: integer | J178: 1 | M178: 1 | N178: 1 | O178: 2 | P178: 3 | S178: 1 | T178: 1 | U178: 2 | V178: 3 | X178: 1 | Y178: 1 | Z178: 2 | AA178: 3 | AC178: 1 | AD178: 1 | AE178: 2 | AF178: 3 | AG178: 1
F179: Band grouping configuration 3 | G179: integer | J179: 1 | M179: 1 | N179: 2 | O179: 2 | P179: 3 | S179: 1 | T179: 2 | U179: 2 | V179: 3 | X179: 1 | Y179: 2 | Z179: 2 | AA179: 3 | AC179: 1 | AD179: 2 | AE179: 2 | AF179: 3 | AG179: 1
F180: Band grouping configuration 4 | G180: integer | J180: 1 | M180: 1 | N180: 2 | O180: 3 | P180: 3 | S180: 1 | T180: 2 | U180: 3 | V180: 3 | X180: 1 | Y180: 2 | Z180: 3 | AA180: 3 | AC180: 1 | AD180: 2 | AE180: 3 | AF180: 3 | AG180: 1
F181: Band grouping configuration 5 | G181: integer | J181: 1 | M181: 1 | N181: 1 | O181: 2 | P181: 2 | S181: 1 | T181: 1 | U181: 2 | V181: 2 | X181: 1 | Y181: 1 | Z181: 2 | AA181: 2 | AC181: 1 | AD181: 1 | AE181: 2 | AF181: 2 | AG181: 1
F182: Band grouping configuration 6 | G182: integer | J182: 1 | M182: 1 | N182: 1 | O182: 1 | P182: 2 | S182: 1 | T182: 1 | U182: 1 | V182: 2 | X182: 1 | Y182: 1 | Z182: 1 | AA182: 2 | AC182: 1 | AD182: 1 | AE182: 1 | AF182: 2 | AG182: 1
F183: Band grouping configuration 7 | G183: integer | J183: 1 | M183: 1 | N183: 2 | O183: 2 | P183: 2 | S183: 1 | T183: 2 | U183: 2 | V183: 2 | X183: 1 | Y183: 2 | Z183: 2 | AA183: 2 | AC183: 1 | AD183: 2 | AE183: 2 | AF183: 2 | AG183: 1
F184: Band grouping configuration 8 | G184: integer | J184: 1 | M184: 1 | N184: 1 | O184: 1 | P184: 1 | S184: 1 | T184: 1 | U184: 1 | V184: 1 | X184: 1 | Y184: 1 | Z184: 1 | AA184: 1 | AC184: 1 | AD184: 1 | AE184: 1 | AF184: 1 | AG184: 1
B186: Checks
E188: Check for error values | G188: number of issues | H188: =SUM(IF(ISERROR(H15:Y146), 1)) -> 0
E190: Check that discount overrides are either FALSE, or non-zero
F191: MWh override | G191: number of issues | H191: =SUM(J191:Y191) -> 0 | J191: =IF( OR( AND(J105 = TRUE, NOT(ISBLANK(J106))), AND(J105 = FALSE, J106 = 0)), 0, 1) -> 0 | K191: 0 | L191: 0 | M191: 0 | N191: 0 | O191: 0 | P191: 0 | Q191: 0 | R191: 0 | S191: 0 | T191: 0 | U191: 0 | V191: 0 | W191: 0 | X191: 0 | Y191: 0
F192: MPAN override | G192: number of issues | H192: =SUM(J192:Y192) -> 0 | J192: =IF( OR( AND(J109 = TRUE, NOT(ISBLANK(J110))), AND(J109 = FALSE, J110 = 0)), 0, 1) -> 0 | K192: 0 | L192: 0 | M192: 0 | N192: 0 | O192: 0 | P192: 0 | Q192: 0 | R192: 0 | S192: 0 | T192: 0 | U192: 0 | V192: 0 | W192: 0 | X192: 0 | Y192: 0
F193: Import capacity override | G193: number of issues | H193: =SUM(J193:Y193) -> 0 | J193: =IF( OR( AND(J113 = TRUE, NOT(ISBLANK(J114))), AND(J113 = FALSE, J114 = 0)), 0, 1) -> 0 | K193: 0 | L193: 0 | M193: 0 | N193: 0 | O193: 0 | P193: 0 | Q193: 0 | R193: 0 | S193: 0 | T193: 0 | U193: 0 | V193: 0 | W193: 0 | X193: 0 | Y193: 0
F194: Exceeded capacity override | G194: number of issues | H194: =SUM(J194:Y194) -> 0 | J194: =IF( OR( AND(J117 = TRUE, NOT(ISBLANK(J118))), AND(J117 = FALSE, J118 = 0)), 0, 1) -> 0 | K194: 0 | L194: 0 | M194: 0 | N194: 0 | O194: 0 | P194: 0 | Q194: 0 | R194: 0 | S194: 0 | T194: 0 | U194: 0 | V194: 0 | W194: 0 | X194: 0 | Y194: 0
F195: Reactive power override | G195: number of issues | H195: =SUM(J195:Y195) -> 0 | J195: =IF( OR( AND(J121 = TRUE, NOT(ISBLANK(J122))), AND(J121 = FALSE, J122 = 0)), 0, 1) -> 0 | K195: 0 | L195: 0 | M195: 0 | N195: 0 | O195: 0 | P195: 0 | Q195: 0 | R195: 0 | S195: 0 | T195: 0 | U195: 0 | V195: 0 | W195: 0 | X195: 0 | Y195: 0
E197: Summary of checks | G197: number of issues | H197: =H188 + SUM(H191:H195) -> 0
B199: End of sheet

Sheet Inputs by customer type
A1: =MID(CELL("filename",A1),FIND("]",CELL("filename",A1))+1,255) -> Inputs by customer type
A2: =Cover!D21&" - "&Cover!D23 -> National Grid Electricity Distribution (East Midlands) - [enter data version name]
A3: =Cover!D2&" - "&Cover!D8&" v"&Cover!D10&" - "&Cover!D19 -> ARP model - Release for charge setting v7 - 2024/25
A4: =H216 & IF(H216 = 1, " issue", " issues") &" identified in checks on this sheet" -> 0 issues identified in checks on this sheet
B5: Click here to return to model map | G5: Units | H5: Constants | J5: Domestic Aggregated | K5: Domestic Aggregated (Related MPAN) | L5: Non-Domestic Aggregated | M5: Non-Domestic Aggregated (Related MPAN) | N5: LV Site Specific | O5: LV Sub Site Specific | P5: HV Site Specific | Q5: Unmetered Supplies | R5: LV Generation Aggregated | S5: LV Sub Generation Aggregated | T5: LV Generation Site Specific | U5: LV Generation Site Specific no RP Charge | V5: LV Sub Generation Site Specific | W5: LV Sub Generation Site Specific no RP Charge | X5: HV Generation Site Specific | Y5: HV Generation Site Specific no RP Charge | AQ5: Legal text reference
B7: Description
C9: This sheet sets out the inputs by customer type to be filled in by DNOs.
E11: Charging year selected | G11: year | H11: =charging_year_selected -> 2024/25
E12: Historic / current / forecast | G12: text | H12: ='ARP_User control'!$H$36 -> Current
B14: Inputs by customer type
C16: =INDEX('Version control'!$H$36:$H$62,MATCH($A$1,'Version control'!$F$36:$F$62,0),1)&"-A: Load characteristics" -> Section 501-A: Load characteristics
E18: Load factor | G18: % | I18: > | J18: =TRANSPOSE('ARP_Inputs by customer type'!J19:J34) -> 0.4505315491 | K18: 0.1209130044 | L18: 0.4339919553 | M18: 0.2400161909 | N18: 0.5276614463 | O18: 0.5712251181 | P18: 0.7175834992 | Q18: 0.4971327336 | R18: 0 | S18: 0 | T18: 0 | U18: 0 | V18: 0 | W18: 0 | X18: 0 | Y18: 0 | AQ18: Paragraph 42 (a)
E19: Coincidence factor | G19: % | I19: > | J19: =TRANSPOSE('ARP_Inputs by customer type'!J39:J54) -> 0.8805604111 | K19: 0 | L19: 0.7380899143 | M19: 0 | N19: 0.7510752681 | O19: 0.8090280733 | P19: 0.8245794808 | Q19: 0.9888230167 | R19: 0 | S19: 0 | T19: 0 | U19: 0 | V19: 0 | W19: 0 | X19: 0 | Y19: 0 | AQ19: Paragraph 42 (b)
C21: =INDEX('Version control'!$H$36:$H$62,MATCH($A$1,'Version control'!$F$36:$F$62,0),1)&"-B: Volume forecasts for the charging year" -> Section 501-B: Volume forecasts for the charging year
D23: Volumes for all the way tariffs are entered here, separately for each residual band. | I23: > | AQ23: Paragraph 52
E25: All the way volume forecast - No Residual
F26: Rate 1 units | G26: MWh | J26: =TRANSPOSE('ARP_Inputs by customer type'!J61:J76) -> 0 | K26: 924.3914777 | L26: 0.4857257086 | M26: 14.97896821 | N26: 170.0923137 | O26: 9.256438149 | P26: 864.9480633 | Q26: 0 | R26: 550.5035216 | S26: 0 | T26: 4701.261161 | U26: 0 | V26: 782.3364198 | W26: 0 | X26: 204553.1855 | Y26: 0
F27: Rate 2 units | G27: MWh | J27: =TRANSPOSE('ARP_Inputs by customer type'!J79:J94) -> 0 | K27: 5947.64463 | L27: 2.013741961 | M27: 265.6529399 | N27: 700.5958932 | O27: 36.36246992 | P27: 3316.849665 | Q27: 0 | R27: 3304.412049 | S27: 0 | T27: 24162.77807 | U27: 0 | V27: 3056.143667 | W27: 0 | X27: 652329.434 | Y27: 0
F28: Rate 3 units | G28: MWh | J28: =TRANSPOSE('ARP_Inputs by customer type'!J97:J112) -> 0 | K28: 9848.374808 | L28: 2.319408201 | M28: 1076.711336 | N28: 789.5733772 | O28: 41.08632081 | P28: 4865.181969 | Q28: 0 | R28: 1638.448704 | S28: 0 | T28: 24343.70513 | U28: 0 | V28: 5098.269325 | W28: 0 | X28: 763459.485 | Y28: 0
F29: MPANs | G29: MPANs | J29: =TRANSPOSE('ARP_Inputs by customer type'!J115:J130) -> 0 | K29: 0 | L29: 18.57556521 | M29: 0 | N29: 12.14601572 | O29: 1.998910595 | P29: 156.0219108 | Q29: 0 | R29: 0 | S29: 0 | T29: 0 | U29: 0 | V29: 0 | W29: 0 | X29: 419.2334187 | Y29: 0
F30: Import capacity | G30: kVA | J30: =TRANSPOSE('ARP_Inputs by customer type'!J133:J148) -> 0 | K30: 0 | L30: 0 | M30: 0 | N30: 1845.406836 | O30: 164.9969713 | P30: 28960.97977 | Q30: 0 | R30: 0 | S30: 0 | T30: 0 | U30: 0 | V30: 0 | W30: 0 | X30: 0 | Y30: 0
F31: Exceeded capacity | G31: kVA | J31: =TRANSPOSE('ARP_Inputs by customer type'!J151:J166) -> 0 | K31: 0 | L31: 0 | M31: 0 | N31: 0 | O31: 0 | P31: 707.1324082 | Q31: 0 | R31: 0 | S31: 0 | T31: 0 | U31: 0 | V31: 0 | W31: 0 | X31: 0 | Y31: 0
F32: Reactive power units | G32: MVArh | J32: =TRANSPOSE('ARP_Inputs by customer type'!J169:J184) -> 0 | K32: 0 | L32: 0 | M32: 0 | N32: 604.2964888 | O32: 39.35640208 | P32: 4982.220758 | Q32: 0 | R32: 0 | S32: 0 | T32: 3844.493 | U32: 0 | V32: 428.348 | W32: 0 | X32: 27843.537 | Y32: 0
E34: All the way volume forecast - Residual Band 1
F35: Rate 1 units | G35: MWh | J35: =TRANSPOSE('ARP_Inputs by customer type'!J189:J204) -> 975429.937 | K35: 0 | L35: 9704.71911 | M35: 0 | N35: 52220.85386 | O35: 732.6621641 | P35: 60750.65608 | Q35: 9195.778212 | R35: 0 | S35: 0 | T35: 0 | U35: 0 | V35: 0 | W35: 0 | X35: 0 | Y35: 0
F36: Rate 2 units | G36: MWh | J36: =TRANSPOSE('ARP_Inputs by customer type'!J207:J222) -> 2778294.32 | K36: 0 | L36: 40234.23044 | M36: 0 | N36: 215093.2924 | O36: 2878.148751 | P36: 232962.8816 | Q36: 39548.09734 | R36: 0 | S36: 0 | T36: 0 | U36: 0 | V36: 0 | W36: 0 | X36: 0 | Y36: 0
F37: Rate 3 units | G37: MWh | J37: =TRANSPOSE('ARP_Inputs by customer type'!J225:J240) -> 4541675.869 | K37: 0 | L37: 46341.39124 | M37: 0 | N37: 242410.6948 | O37: 3252.049247 | P37: 341711.8427 | Q37: 144666.2986 | R37: 0 | S37: 0 | T37: 0 | U37: 0 | V37: 0 | W37: 0 | X37: 0 | Y37: 0
F38: MPANs | G38: MPANs | J38: =TRANSPOSE('ARP_Inputs by customer type'!J243:J258) -> 2504951.132 | K38: 0 | L38: 72708.00382 | M38: 0 | N38: 5493.545153 | O38: 21.85400318 | P38: 1340.353373 | Q38: 3868 | R38: 0 | S38: 0 | T38: 0 | U38: 0 | V38: 0 | W38: 0 | X38: 0 | Y38: 0
F39: Import capacity | G39: kVA | J39: =TRANSPOSE('ARP_Inputs by customer type'!J261:J276) -> 0 | K39: 0 | L39: 0 | M39: 0 | N39: 274832.7843 | O39: 1105.512296 | P39: 312653.4316 | Q39: 0 | R39: 0 | S39: 0 | T39: 0 | U39: 0 | V39: 0 | W39: 0 | X39: 0 | Y39: 0
F40: Exceeded capacity | G40: kVA | J40: =TRANSPOSE('ARP_Inputs by customer type'!J279:J294) -> 0 | K40: 0 | L40: 0 | M40: 0 | N40: 24184.09078 | O40: 2075.713489 | P40: 12954.82295 | Q40: 0 | R40: 0 | S40: 0 | T40: 0 | U40: 0 | V40: 0 | W40: 0 | X40: 0 | Y40: 0
F41: Reactive power units | G41: MVArh | J41: =TRANSPOSE('ARP_Inputs by customer type'!J297:J312) -> 0 | K41: 0 | L41: 0 | M41: 0 | N41: 51926.74196 | O41: 772.948487 | P41: 79970.21394 | Q41: 0 | R41: 0 | S41: 0 | T41: 0 | U41: 0 | V41: 0 | W41: 0 | X41: 0 | Y41: 0
E43: All the way volume forecast - Residual Band 2
F44: Rate 1 units | G44: MWh | J44: =TRANSPOSE('ARP_Inputs by customer type'!J317:J332) -> 0 | K44: 0 | L44: 39516.43346 | M44: 0 | N44: 93718.46423 | O44: 954.4783504 | P44: 146999.6318 | Q44: 0 | R44: 0 | S44: 0 | T44: 0 | U44: 0 | V44: 0 | W44: 0 | X44: 0 | Y44: 0
F45: Rate 2 units | G45: MWh | J45: =TRANSPOSE('ARP_Inputs by customer type'!J335:J350) -> 0 | K45: 0 | L45: 163828.8828 | M45: 0 | N45: 386018.4493 | O45: 3749.518956 | P45: 563705.1521 | Q45: 0 | R45: 0 | S45: 0 | T45: 0 | U45: 0 | V45: 0 | W45: 0 | X45: 0 | Y45: 0
F46: Rate 3 units | G46: MWh | J46: =TRANSPOSE('ARP_Inputs by customer type'!J353:J368) -> 0 | K46: 0 | L46: 188696.4973 | M46: 0 | N46: 435043.7872 | O46: 4236.619213 | P46: 826847.2856 | Q46: 0 | R46: 0 | S46: 0 | T46: 0 | U46: 0 | V46: 0 | W46: 0 | X46: 0 | Y46: 0
F47: MPANs | G47: MPANs | J47: =TRANSPOSE('ARP_Inputs by customer type'!J371:J386) -> 0 | K47: 0 | L47: 53941.20376 | M47: 0 | N47: 5852.243203 | O47: 27.99997076 | P47: 1046.955857 | Q47: 0 | R47: 0 | S47: 0 | T47: 0 | U47: 0 | V47: 0 | W47: 0 | X47: 0 | Y47: 0
F48: Import capacity | G48: kVA | J48: =TRANSPOSE('ARP_Inputs by customer type'!J389:J404) -> 0 | K48: 0 | L48: 0 | M48: 0 | N48: 677910.2799 | O48: 3423.996385 | P48: 681797.5775 | Q48: 0 | R48: 0 | S48: 0 | T48: 0 | U48: 0 | V48: 0 | W48: 0 | X48: 0 | Y48: 0
F49: Exceeded capacity | G49: kVA | J49: =TRANSPOSE('ARP_Inputs by customer type'!J407:J422) -> 0 | K49: 0 | L49: 0 | M49: 0 | N49: 4418.833487 | O49: 69.59932424 | P49: 5505.599608 | Q49: 0 | R49: 0 | S49: 0 | T49: 0 | U49: 0 | V49: 0 | W49: 0 | X49: 0 | Y49: 0
F50: Reactive power units | G50: MVArh | J50: =TRANSPOSE('ARP_Inputs by customer type'!J425:J440) -> 0 | K50: 0 | L50: 0 | M50: 0 | N50: 89900.4172 | O50: 516.8528444 | P50: 111503.2697 | Q50: 0 | R50: 0 | S50: 0 | T50: 0 | U50: 0 | V50: 0 | W50: 0 | X50: 0 | Y50: 0
E52: All the way volume forecast - Residual Band 3
F53: Rate 1 units | G53: MWh | J53: =TRANSPOSE('ARP_Inputs by customer type'!J445:J460) -> 0 | K53: 0 | L53: 48387.60416 | M53: 0 | N53: 60151.05335 | O53: 1800.497752 | P53: 106796.5551 | Q53: 0 | R53: 0 | S53: 0 | T53: 0 | U53: 0 | V53: 0 | W53: 0 | X53: 0 | Y53: 0
F54: Rate 2 units | G54: MWh | J54: =TRANSPOSE('ARP_Inputs by customer type'!J463:J478) -> 0 | K54: 0 | L54: 200607.3534 | M54: 0 | N54: 247757.1152 | O54: 7072.973888 | P54: 409536.8647 | Q54: 0 | R54: 0 | S54: 0 | T54: 0 | U54: 0 | V54: 0 | W54: 0 | X54: 0 | Y54: 0
F55: Rate 3 units | G55: MWh | J55: =TRANSPOSE('ARP_Inputs by customer type'!J481:J496) -> 0 | K55: 0 | L55: 231057.5783 | M55: 0 | N55: 279222.9073 | O55: 7991.824397 | P55: 600711.9922 | Q55: 0 | R55: 0 | S55: 0 | T55: 0 | U55: 0 | V55: 0 | W55: 0 | X55: 0 | Y55: 0
F56: MPANs | G56: MPANs | J56: =TRANSPOSE('ARP_Inputs by customer type'!J499:J514) -> 0 | K56: 0 | L56: 26404.56913 | M56: 0 | N56: 2369.538627 | O56: 35.00018354 | P56: 331.041352 | Q56: 0 | R56: 0 | S56: 0 | T56: 0 | U56: 0 | V56: 0 | W56: 0 | X56: 0 | Y56: 0
F57: Import capacity | G57: kVA | J57: =TRANSPOSE('ARP_Inputs by customer type'!J517:J532) -> 0 | K57: 0 | L57: 0 | M57: 0 | N57: 437457.8224 | O57: 6357.019394 | P57: 454251.6589 | Q57: 0 | R57: 0 | S57: 0 | T57: 0 | U57: 0 | V57: 0 | W57: 0 | X57: 0 | Y57: 0
F58: Exceeded capacity | G58: kVA | J58: =TRANSPOSE('ARP_Inputs by customer type'!J535:J550) -> 0 | K58: 0 | L58: 0 | M58: 0 | N58: 2168.537881 | O58: 49.81187025 | P58: 7290.627056 | Q58: 0 | R58: 0 | S58: 0 | T58: 0 | U58: 0 | V58: 0 | W58: 0 | X58: 0 | Y58: 0
F59: Reactive power units | G59: MVArh | J59: =TRANSPOSE('ARP_Inputs by customer type'!J553:J568) -> 0 | K59: 0 | L59: 0 | M59: 0 | N59: 62023.22914 | O59: 1238.546328 | P59: 109060.2484 | Q59: 0 | R59: 0 | S59: 0 | T59: 0 | U59: 0 | V59: 0 | W59: 0 | X59: 0 | Y59: 0
E61: All the way volume forecast - Residual Band 4
F62: Rate 1 units | G62: MWh | J62: =TRANSPOSE('ARP_Inputs by customer type'!J573:J588) -> 0 | K62: 0 | L62: 174878.8278 | M62: 0 | N62: 103177.2415 | O62: 28678.43698 | P62: 322713.4235 | Q62: 0 | R62: 0 | S62: 0 | T62: 0 | U62: 0 | V62: 0 | W62: 0 | X62: 0 | Y62: 0
F63: Rate 2 units | G63: MWh | J63: =TRANSPOSE('ARP_Inputs by customer type'!J591:J606) -> 0 | K63: 0 | L63: 725019.9596 | M63: 0 | N63: 424978.3551 | O63: 112658.7555 | P63: 1237521.599 | Q63: 0 | R63: 0 | S63: 0 | T63: 0 | U63: 0 | V63: 0 | W63: 0 | X63: 0 | Y63: 0
F64: Rate 3 units | G64: MWh | J64: =TRANSPOSE('ARP_Inputs by customer type'!J609:J624) -> 0 | K64: 0 | L64: 835070.8647 | M64: 0 | N64: 478951.7014 | O64: 127294.2619 | P64: 1815206.711 | Q64: 0 | R64: 0 | S64: 0 | T64: 0 | U64: 0 | V64: 0 | W64: 0 | X64: 0 | Y64: 0
F65: MPANs | G65: MPANs | J65: =TRANSPOSE('ARP_Inputs by customer type'!J627:J642) -> 0 | K65: 0 | L65: 29474.53586 | M65: 0 | N65: 2032.800014 | O65: 345.9649854 | P65: 378.1672404 | Q65: 0 | R65: 0 | S65: 0 | T65: 0 | U65: 0 | V65: 0 | W65: 0 | X65: 0 | Y65: 0
F66: Import capacity | G66: kVA | J66: =TRANSPOSE('ARP_Inputs by customer type'!J645:J660) -> 0 | K66: 0 | L66: 0 | M66: 0 | N66: 698054.0823 | O66: 173861.6068 | P66: 1271080.889 | Q66: 0 | R66: 0 | S66: 0 | T66: 0 | U66: 0 | V66: 0 | W66: 0 | X66: 0 | Y66: 0
F67: Exceeded capacity | G67: kVA | J67: =TRANSPOSE('ARP_Inputs by customer type'!J663:J678) -> 0 | K67: 0 | L67: 0 | M67: 0 | N67: 2509.650249 | O67: 268.2014746 | P67: 10584.56818 | Q67: 0 | R67: 0 | S67: 0 | T67: 0 | U67: 0 | V67: 0 | W67: 0 | X67: 0 | Y67: 0
F68: Reactive power units | G68: MVArh | J68: =TRANSPOSE('ARP_Inputs by customer type'!J681:J696) -> 0 | K68: 0 | L68: 0 | M68: 0 | N68: 99237.88021 | O68: 20626.51494 | P68: 253676.8872 | Q68: 0 | R68: 0 | S68: 0 | T68: 0 | U68: 0 | V68: 0 | W68: 0 | X68: 0 | Y68: 0
D70: Volumes for LNDO LV tariffs are entered here, separately for each residual band. | I70: > | AQ70: Paragraph 52
E72: LDNO LV volume forecast - No Residual
F73: Rate 1 units | G73: MWh | J73: =TRANSPOSE('ARP_Inputs by customer type'!J701:J716) -> 0 | K73: 0 | L73: 0.001688845307 | M73: 0 | N73: 1.444792823 | O73: 0 | P73: 0 | Q73: 0 | R73: 10.342 | S73: 0 | T73: 0 | U73: 0 | V73: 0 | W73: 0 | X73: 0 | Y73: 0
F74: Rate 2 units | G74: MWh | J74: =TRANSPOSE('ARP_Inputs by customer type'!J719:J734) -> 0 | K74: 0 | L74: 0.007094181841 | M74: 0 | N74: 5.407373549 | O74: 0 | P74: 0 | Q74: 0 | R74: 46.381 | S74: 0 | T74: 0 | U74: 0 | V74: 0 | W74: 0 | X74: 0 | Y74: 0
F75: Rate 3 units | G75: MWh | J75: =TRANSPOSE('ARP_Inputs by customer type'!J737:J752) -> 0 | K75: 0 | L75: 0.007163490609 | M75: 0 | N75: 7.113006746 | O75: 0 | P75: 0 | Q75: 0 | R75: 19.3 | S75: 0 | T75: 0 | U75: 0 | V75: 0 | W75: 0 | X75: 0 | Y75: 0
F76: MPANs | G76: MPANs | J76: =TRANSPOSE('ARP_Inputs by customer type'!J755:J770) -> 0 | K76: 0 | L76: 0.1156628403 | M76: 0 | N76: 0.1000642349 | O76: 0 | P76: 0 | Q76: 0 | R76: 0 | S76: 0 | T76: 0 | U76: 0 | V76: 0 | W76: 0 | X76: 0 | Y76: 0
F77: Import capacity | G77: kVA | J77: =TRANSPOSE('ARP_Inputs by customer type'!J773:J788) -> 0 | K77: 0 | L77: 0 | M77: 0 | N77: 18.81692516 | O77: 0 | P77: 0 | Q77: 0 | R77: 0 | S77: 0 | T77: 0 | U77: 0 | V77: 0 | W77: 0 | X77: 0 | Y77: 0
F78: Exceeded capacity | G78: kVA | J78: =TRANSPOSE('ARP_Inputs by customer type'!J791:J806) -> 0 | K78: 0 | L78: 0 | M78: 0 | N78: 0 | O78: 0 | P78: 0 | Q78: 0 | R78: 0 | S78: 0 | T78: 0 | U78: 0 | V78: 0 | W78: 0 | X78: 0 | Y78: 0
F79: Reactive power units | G79: MVArh | J79: =TRANSPOSE('ARP_Inputs by customer type'!J809:J824) -> 0 | K79: 0 | L79: 0 | M79: 0 | N79: 3.910955714 | O79: 0 | P79: 0 | Q79: 0 | R79: 0 | S79: 0 | T79: 0 | U79: 0 | V79: 0 | W79: 0 | X79: 0 | Y79: 0
E81: LDNO LV volume forecast - Residual Band 1
F82: Rate 1 units | G82: MWh | J82: =TRANSPOSE('ARP_Inputs by customer type'!J829:J844) -> 22204.02882 | K82: 0 | L82: 33.74284918 | M82: 0 | N82: 443.5727472 | O82: 0 | P82: 0 | Q82: 0 | R82: 0 | S82: 0 | T82: 0 | U82: 0 | V82: 0 | W82: 0 | X82: 0 | Y82: 0
F83: Rate 2 units | G83: MWh | J83: =TRANSPOSE('ARP_Inputs by customer type'!J847:J862) -> 60429.31594 | K83: 0 | L83: 141.7405768 | M83: 0 | N83: 1660.143588 | O83: 0 | P83: 0 | Q83: 0 | R83: 0 | S83: 0 | T83: 0 | U83: 0 | V83: 0 | W83: 0 | X83: 0 | Y83: 0
F84: Rate 3 units | G84: MWh | J84: =TRANSPOSE('ARP_Inputs by customer type'!J865:J880) -> 90936.62551 | K84: 0 | L84: 143.1253545 | M84: 0 | N84: 2183.798184 | O84: 0 | P84: 0 | Q84: 0 | R84: 0 | S84: 0 | T84: 0 | U84: 0 | V84: 0 | W84: 0 | X84: 0 | Y84: 0
F85: MPANs | G85: MPANs | J85: =TRANSPOSE('ARP_Inputs by customer type'!J883:J898) -> 57281.99508 | K85: 0 | L85: 452.7245412 | M85: 0 | N85: 45.2582481 | O85: 0 | P85: 0 | Q85: 0 | R85: 0 | S85: 0 | T85: 0 | U85: 0 | V85: 0 | W85: 0 | X85: 0 | Y85: 0
F86: Import capacity | G86: kVA | J86: =TRANSPOSE('ARP_Inputs by customer type'!J901:J916) -> 0 | K86: 0 | L86: 0 | M86: 0 | N86: 2802.367387 | O86: 0 | P86: 0 | Q86: 0 | R86: 0 | S86: 0 | T86: 0 | U86: 0 | V86: 0 | W86: 0 | X86: 0 | Y86: 0
F87: Exceeded capacity | G87: kVA | J87: =TRANSPOSE('ARP_Inputs by customer type'!J919:J934) -> 0 | K87: 0 | L87: 0 | M87: 0 | N87: 39.60046294 | O87: 0 | P87: 0 | Q87: 0 | R87: 0 | S87: 0 | T87: 0 | U87: 0 | V87: 0 | W87: 0 | X87: 0 | Y87: 0
F88: Reactive power units | G88: MVArh | J88: =TRANSPOSE('ARP_Inputs by customer type'!J937:J952) -> 0 | K88: 0 | L88: 0 | M88: 0 | N88: 336.0654777 | O88: 0 | P88: 0 | Q88: 0 | R88: 0 | S88: 0 | T88: 0 | U88: 0 | V88: 0 | W88: 0 | X88: 0 | Y88: 0
E90: LDNO LV volume forecast - Residual Band 2
F91: Rate 1 units | G91: MWh | J91: =TRANSPOSE('ARP_Inputs by customer type'!J957:J972) -> 0 | K91: 0 | L91: 137.3967695 | M91: 0 | N91: 796.0604543 | O91: 0 | P91: 0 | Q91: 0 | R91: 0 | S91: 0 | T91: 0 | U91: 0 | V91: 0 | W91: 0 | X91: 0 | Y91: 0
F92: Rate 2 units | G92: MWh | J92: =TRANSPOSE('ARP_Inputs by customer type'!J975:J990) -> 0 | K92: 0 | L92: 577.150354 | M92: 0 | N92: 2979.386509 | O92: 0 | P92: 0 | Q92: 0 | R92: 0 | S92: 0 | T92: 0 | U92: 0 | V92: 0 | W92: 0 | X92: 0 | Y92: 0
F93: Rate 3 units | G93: MWh | J93: =TRANSPOSE('ARP_Inputs by customer type'!J993:J1008) -> 0 | K93: 0 | L93: 582.789 | M93: 0 | N93: 3919.166328 | O93: 0 | P93: 0 | Q93: 0 | R93: 0 | S93: 0 | T93: 0 | U93: 0 | V93: 0 | W93: 0 | X93: 0 | Y93: 0
F94: MPANs | G94: MPANs | J94: =TRANSPOSE('ARP_Inputs by customer type'!J1011:J1026) -> 0 | K94: 0 | L94: 335.8709557 | M94: 0 | N94: 48.21336086 | O94: 0 | P94: 0 | Q94: 0 | R94: 0 | S94: 0 | T94: 0 | U94: 0 | V94: 0 | W94: 0 | X94: 0 | Y94: 0
F95: Import capacity | G95: kVA | J95: =TRANSPOSE('ARP_Inputs by customer type'!J1029:J1044) -> 0 | K95: 0 | L95: 0 | M95: 0 | N95: 6912.398259 | O95: 0 | P95: 0 | Q95: 0 | R95: 0 | S95: 0 | T95: 0 | U95: 0 | V95: 0 | W95: 0 | X95: 0 | Y95: 0
F96: Exceeded capacity | G96: kVA | J96: =TRANSPOSE('ARP_Inputs by customer type'!J1047:J1062) -> 0 | K96: 0 | L96: 0 | M96: 0 | N96: 7.235659728 | O96: 0 | P96: 0 | Q96: 0 | R96: 0 | S96: 0 | T96: 0 | U96: 0 | V96: 0 | W96: 0 | X96: 0 | Y96: 0
F97: Reactive power units | G97: MVArh | J97: =TRANSPOSE('ARP_Inputs by customer type'!J1065:J1080) -> 0 | K97: 0 | L97: 0 | M97: 0 | N97: 581.8278889 | O97: 0 | P97: 0 | Q97: 0 | R97: 0 | S97: 0 | T97: 0 | U97: 0 | V97: 0 | W97: 0 | X97: 0 | Y97: 0
E99: LDNO LV volume forecast - Residual Band 3
F100: Rate 1 units | G100: MWh | J100: =TRANSPOSE('ARP_Inputs by customer type'!J1085:J1100) -> 0 | K100: 0 | L100: 168.2414103 | M100: 0 | N100: 510.9332003 | O100: 0 | P100: 0 | Q100: 0 | R100: 0 | S100: 0 | T100: 0 | U100: 0 | V100: 0 | W100: 0 | X100: 0 | Y100: 0
F101: Rate 2 units | G101: MWh | J101: =TRANSPOSE('ARP_Inputs by customer type'!J1103:J1118) -> 0 | K101: 0 | L101: 706.7166854 | M101: 0 | N101: 1912.251105 | O101: 0 | P101: 0 | Q101: 0 | R101: 0 | S101: 0 | T101: 0 | U101: 0 | V101: 0 | W101: 0 | X101: 0 | Y101: 0
F102: Rate 3 units | G102: MWh | J102: =TRANSPOSE('ARP_Inputs by customer type'!J1121:J1136) -> 0 | K102: 0 | L102: 713.6211691 | M102: 0 | N102: 2515.427294 | O102: 0 | P102: 0 | Q102: 0 | R102: 0 | S102: 0 | T102: 0 | U102: 0 | V102: 0 | W102: 0 | X102: 0 | Y102: 0
F103: MPANs | G103: MPANs | J103: =TRANSPOSE('ARP_Inputs by customer type'!J1139:J1154) -> 0 | K103: 0 | L103: 164.4110114 | M103: 0 | N103: 19.52130438 | O103: 0 | P103: 0 | Q103: 0 | R103: 0 | S103: 0 | T103: 0 | U103: 0 | V103: 0 | W103: 0 | X103: 0 | Y103: 0
F104: Import capacity | G104: kVA | J104: =TRANSPOSE('ARP_Inputs by customer type'!J1157:J1172) -> 0 | K104: 0 | L104: 0 | M104: 0 | N104: 4460.59424 | O104: 0 | P104: 0 | Q104: 0 | R104: 0 | S104: 0 | T104: 0 | U104: 0 | V104: 0 | W104: 0 | X104: 0 | Y104: 0
F105: Exceeded capacity | G105: kVA | J105: =TRANSPOSE('ARP_Inputs by customer type'!J1175:J1190) -> 0 | K105: 0 | L105: 0 | M105: 0 | N105: 3.550892393 | O105: 0 | P105: 0 | Q105: 0 | R105: 0 | S105: 0 | T105: 0 | U105: 0 | V105: 0 | W105: 0 | X105: 0 | Y105: 0
F106: Reactive power units | G106: MVArh | J106: =TRANSPOSE('ARP_Inputs by customer type'!J1193:J1208) -> 0 | K106: 0 | L106: 0 | M106: 0 | N106: 401.4090879 | O106: 0 | P106: 0 | Q106: 0 | R106: 0 | S106: 0 | T106: 0 | U106: 0 | V106: 0 | W106: 0 | X106: 0 | Y106: 0
E108: LDNO LV volume forecast - Residual Band 4
F109: Rate 1 units | G109: MWh | J109: =TRANSPOSE('ARP_Inputs by customer type'!J1213:J1228) -> 0 | K109: 0 | L109: 608.0454102 | M109: 0 | N109: 876.4049051 | O109: 0 | P109: 0 | Q109: 0 | R109: 0 | S109: 0 | T109: 0 | U109: 0 | V109: 0 | W109: 0 | X109: 0 | Y109: 0
F110: Rate 2 units | G110: MWh | J110: =TRANSPOSE('ARP_Inputs by customer type'!J1231:J1246) -> 0 | K110: 0 | L110: 2554.162118 | M110: 0 | N110: 3280.088762 | O110: 0 | P110: 0 | Q110: 0 | R110: 0 | S110: 0 | T110: 0 | U110: 0 | V110: 0 | W110: 0 | X110: 0 | Y110: 0
F111: Rate 3 units | G111: MWh | J111: =TRANSPOSE('ARP_Inputs by customer type'!J1249:J1264) -> 0 | K111: 0 | L111: 2579.115782 | M111: 0 | N111: 4314.718279 | O111: 0 | P111: 0 | Q111: 0 | R111: 0 | S111: 0 | T111: 0 | U111: 0 | V111: 0 | W111: 0 | X111: 0 | Y111: 0
F112: MPANs | G112: MPANs | J112: =TRANSPOSE('ARP_Inputs by customer type'!J1267:J1282) -> 0 | K112: 0 | L112: 183.5265036 | M112: 0 | N112: 16.74710316 | O112: 0 | P112: 0 | Q112: 0 | R112: 0 | S112: 0 | T112: 0 | U112: 0 | V112: 0 | W112: 0 | X112: 0 | Y112: 0
F113: Import capacity | G113: kVA | J113: =TRANSPOSE('ARP_Inputs by customer type'!J1285:J1300) -> 0 | K113: 0 | L113: 0 | M113: 0 | N113: 7117.797098 | O113: 0 | P113: 0 | Q113: 0 | R113: 0 | S113: 0 | T113: 0 | U113: 0 | V113: 0 | W113: 0 | X113: 0 | Y113: 0
F114: Exceeded capacity | G114: kVA | J114: =TRANSPOSE('ARP_Inputs by customer type'!J1303:J1318) -> 0 | K114: 0 | L114: 0 | M114: 0 | N114: 4.109449992 | O114: 0 | P114: 0 | Q114: 0 | R114: 0 | S114: 0 | T114: 0 | U114: 0 | V114: 0 | W114: 0 | X114: 0 | Y114: 0
F115: Reactive power units | G115: MVArh | J115: =TRANSPOSE('ARP_Inputs by customer type'!J1321:J1336) -> 0 | K115: 0 | L115: 0 | M115: 0 | N115: 642.2591589 | O115: 0 | P115: 0 | Q115: 0 | R115: 0 | S115: 0 | T115: 0 | U115: 0 | V115: 0 | W115: 0 | X115: 0 | Y115: 0
D117: Volumes for LNDO HV tariffs are entered here, separately for each residual band. | I117: > | AQ117: Paragraph 52
E119: LDNO HV volume forecast - No Residual
F120: Rate 1 units | G120: MWh | J120: =TRANSPOSE('ARP_Inputs by customer type'!J1341:J1356) -> 0 | K120: 0 | L120: 0.006156730838 | M120: 0 | N120: 14.26963402 | O120: 1.783623898 | P120: 20.18597711 | Q120: 0 | R120: 8.067 | S120: 0 | T120: 11.044 | U120: 0 | V120: 0 | W120: 0 | X120: 128.713 | Y120: 0
F121: Rate 2 units | G121: MWh | J121: =TRANSPOSE('ARP_Inputs by customer type'!J1359:J1374) -> 0 | K121: 0 | L121: 0.02591556624 | M121: 0 | N121: 52.28103226 | O121: 6.622971314 | P121: 71.0456301 | Q121: 0 | R121: 46.381 | S121: 0 | T121: 156.562 | U121: 0 | V121: 0 | W121: 0 | X121: 193.765 | Y121: 0
F122: Rate 3 units | G122: MWh | J122: =TRANSPOSE('ARP_Inputs by customer type'!J1377:J1392) -> 0 | K122: 0 | L122: 0.02521764829 | M122: 0 | N122: 71.78736575 | O122: 9.237182989 | P122: 114.6212469 | Q122: 0 | R122: 19.3 | S122: 0 | T122: 105.795 | U122: 0 | V122: 0 | W122: 0 | X122: 248.323 | Y122: 0
F123: MPANs | G123: MPANs | J123: =TRANSPOSE('ARP_Inputs by customer type'!J1395:J1410) -> 0 | K123: 0 | L123: 0.3324103689 | M123: 0 | N123: 0.589017602 | O123: 0.2883891806 | P123: 3.27051687 | Q123: 0 | R123: 0 | S123: 0 | T123: 0 | U123: 0 | V123: 0 | W123: 0 | X123: 0 | Y123: 0
F124: Import capacity | G124: kVA | J124: =TRANSPOSE('ARP_Inputs by customer type'!J1413:J1428) -> 0 | K124: 0 | L124: 0 | M124: 0 | N124: 191.1151334 | O124: 44.69724834 | P124: 1056.783132 | Q124: 0 | R124: 0 | S124: 0 | T124: 0 | U124: 0 | V124: 0 | W124: 0 | X124: 0 | Y124: 0
F125: Exceeded capacity | G125: kVA | J125: =TRANSPOSE('ARP_Inputs by customer type'!J1431:J1446) -> 0 | K125: 0 | L125: 0 | M125: 0 | N125: 0 | O125: 0 | P125: 0.4148464325 | Q125: 0 | R125: 0 | S125: 0 | T125: 0 | U125: 0 | V125: 0 | W125: 0 | X125: 0 | Y125: 0
F126: Reactive power units | G126: MVArh | J126: =TRANSPOSE('ARP_Inputs by customer type'!J1449:J1464) -> 0 | K126: 0 | L126: 0 | M126: 0 | N126: 22.53154224 | O126: 3.606942693 | P126: 28.68160978 | Q126: 0 | R126: 0 | S126: 0 | T126: 19.75442191 | U126: 0 | V126: 0 | W126: 0 | X126: 9.808495823 | Y126: 0
E128: LDNO HV volume forecast - Residual Band 1
F129: Rate 1 units | G129: MWh | J129: =TRANSPOSE('ARP_Inputs by customer type'!J1469:J1484) -> 53865.61822 | K129: 0 | L129: 123.0104612 | M129: 0 | N129: 4380.988515 | O129: 141.1767381 | P129: 1417.786114 | Q129: 0 | R129: 0 | S129: 0 | T129: 0 | U129: 0 | V129: 0 | W129: 0 | X129: 0 | Y129: 0
F130: Rate 2 units | G130: MWh | J130: =TRANSPOSE('ARP_Inputs by customer type'!J1487:J1502) -> 146183.8961 | K130: 0 | L130: 517.788716 | M130: 0 | N130: 16051.04949 | O130: 524.2189725 | P130: 4989.974339 | Q130: 0 | R130: 0 | S130: 0 | T130: 0 | U130: 0 | V130: 0 | W130: 0 | X130: 0 | Y130: 0
F131: Rate 3 units | G131: MWh | J131: =TRANSPOSE('ARP_Inputs by customer type'!J1505:J1520) -> 219728.3121 | K131: 0 | L131: 503.844431 | M131: 0 | N131: 22039.78213 | O131: 731.1380868 | P131: 8050.559614 | Q131: 0 | R131: 0 | S131: 0 | T131: 0 | U131: 0 | V131: 0 | W131: 0 | X131: 0 | Y131: 0
F132: MPANs | G132: MPANs | J132: =TRANSPOSE('ARP_Inputs by customer type'!J1523:J1538) -> 137109.3555 | K132: 0 | L132: 1301.112192 | M132: 0 | N132: 266.4079207 | O132: 3.152946453 | P132: 28.09636348 | Q132: 0 | R132: 0 | S132: 0 | T132: 0 | U132: 0 | V132: 0 | W132: 0 | X132: 0 | Y132: 0
F133: Import capacity | G133: kVA | J133: =TRANSPOSE('ARP_Inputs by customer type'!J1541:J1556) -> 0 | K133: 0 | L133: 0 | M133: 0 | N133: 28462.39821 | O133: 299.4803919 | P133: 11408.69112 | Q133: 0 | R133: 0 | S133: 0 | T133: 0 | U133: 0 | V133: 0 | W133: 0 | X133: 0 | Y133: 0
F134: Exceeded capacity | G134: kVA | J134: =TRANSPOSE('ARP_Inputs by customer type'!J1559:J1574) -> 0 | K134: 0 | L134: 0 | M134: 0 | N134: 178.0100778 | O134: 65.89958381 | P134: 7.600078887 | Q134: 0 | R134: 0 | S134: 0 | T134: 0 | U134: 0 | V134: 0 | W134: 0 | X134: 0 | Y134: 0
F135: Reactive power units | G135: MVArh | J135: =TRANSPOSE('ARP_Inputs by customer type'!J1577:J1592) -> 0 | K135: 0 | L135: 0 | M135: 0 | N135: 1936.118447 | O135: 70.83932348 | P135: 460.3719068 | Q135: 0 | R135: 0 | S135: 0 | T135: 0 | U135: 0 | V135: 0 | W135: 0 | X135: 0 | Y135: 0
E137: LDNO HV volume forecast - Residual Band 2
F138: Rate 1 units | G138: MWh | J138: =TRANSPOSE('ARP_Inputs by customer type'!J1597:J1612) -> 0 | K138: 0 | L138: 500.883606 | M138: 0 | N138: 7862.36695 | O138: 183.918519 | P138: 3430.646683 | Q138: 0 | R138: 0 | S138: 0 | T138: 0 | U138: 0 | V138: 0 | W138: 0 | X138: 0 | Y138: 0
F139: Rate 2 units | G139: MWh | J139: =TRANSPOSE('ARP_Inputs by customer type'!J1615:J1630) -> 0 | K139: 0 | L139: 2108.372546 | M139: 0 | N139: 28806.11091 | O139: 682.9282098 | P139: 12074.34517 | Q139: 0 | R139: 0 | S139: 0 | T139: 0 | U139: 0 | V139: 0 | W139: 0 | X139: 0 | Y139: 0
F140: Rate 3 units | G140: MWh | J140: =TRANSPOSE('ARP_Inputs by customer type'!J1633:J1648) -> 0 | K140: 0 | L140: 2051.593117 | M140: 0 | N140: 39553.82536 | O140: 952.492853 | P140: 19480.10731 | Q140: 0 | R140: 0 | S140: 0 | T140: 0 | U140: 0 | V140: 0 | W140: 0 | X140: 0 | Y140: 0
F141: MPANs | G141: MPANs | J141: =TRANSPOSE('ARP_Inputs by customer type'!J1651:J1666) -> 0 | K141: 0 | L141: 965.2796693 | M141: 0 | N141: 283.8028814 | O141: 4.039644717 | P141: 21.94619188 | Q141: 0 | R141: 0 | S141: 0 | T141: 0 | U141: 0 | V141: 0 | W141: 0 | X141: 0 | Y141: 0
F142: Import capacity | G142: kVA | J142: =TRANSPOSE('ARP_Inputs by customer type'!J1669:J1684) -> 0 | K142: 0 | L142: 0 | M142: 0 | N142: 70206.1524 | O142: 927.5516728 | P142: 24878.7225 | Q142: 0 | R142: 0 | S142: 0 | T142: 0 | U142: 0 | V142: 0 | W142: 0 | X142: 0 | Y142: 0
F143: Exceeded capacity | G143: kVA | J143: =TRANSPOSE('ARP_Inputs by customer type'!J1687:J1702) -> 0 | K143: 0 | L143: 0 | M143: 0 | N143: 32.5253862 | O143: 2.209633712 | P143: 3.229916109 | Q143: 0 | R143: 0 | S143: 0 | T143: 0 | U143: 0 | V143: 0 | W143: 0 | X143: 0 | Y143: 0
F144: Reactive power units | G144: MVArh | J144: =TRANSPOSE('ARP_Inputs by customer type'!J1705:J1720) -> 0 | K144: 0 | L144: 0 | M144: 0 | N144: 3351.988775 | O144: 47.36862345 | P144: 641.9011572 | Q144: 0 | R144: 0 | S144: 0 | T144: 0 | U144: 0 | V144: 0 | W144: 0 | X144: 0 | Y144: 0
E146: LDNO HV volume forecast - Residual Band 3
F147: Rate 1 units | G147: MWh | J147: =TRANSPOSE('ARP_Inputs by customer type'!J1725:J1740) -> 0 | K147: 0 | L147: 613.3285709 | M147: 0 | N147: 5046.28045 | O147: 346.9380733 | P147: 2492.395681 | Q147: 0 | R147: 0 | S147: 0 | T147: 0 | U147: 0 | V147: 0 | W147: 0 | X147: 0 | Y147: 0
F148: Rate 2 units | G148: MWh | J148: =TRANSPOSE('ARP_Inputs by customer type'!J1743:J1758) -> 0 | K148: 0 | L148: 2581.687852 | M148: 0 | N148: 18488.54362 | O148: 1288.254161 | P148: 8772.120398 | Q148: 0 | R148: 0 | S148: 0 | T148: 0 | U148: 0 | V148: 0 | W148: 0 | X148: 0 | Y148: 0
F149: Rate 3 units | G149: MWh | J149: =TRANSPOSE('ARP_Inputs by customer type'!J1761:J1776) -> 0 | K149: 0 | L149: 2512.161826 | M149: 0 | N149: 25386.71839 | O149: 1796.752372 | P149: 14152.47322 | Q149: 0 | R149: 0 | S149: 0 | T149: 0 | U149: 0 | V149: 0 | W149: 0 | X149: 0 | Y149: 0
F150: MPANs | G150: MPANs | J150: =TRANSPOSE('ARP_Inputs by customer type'!J1779:J1794) -> 0 | K150: 0 | L150: 472.5106594 | M150: 0 | N150: 114.9101065 | O150: 5.049587651 | P150: 6.939258214 | Q150: 0 | R150: 0 | S150: 0 | T150: 0 | U150: 0 | V150: 0 | W150: 0 | X150: 0 | Y150: 0
F151: Import capacity | G151: kVA | J151: =TRANSPOSE('ARP_Inputs by customer type'!J1797:J1812) -> 0 | K151: 0 | L151: 0 | M151: 0 | N151: 45304.27028 | O151: 1722.099941 | P151: 16575.59566 | Q151: 0 | R151: 0 | S151: 0 | T151: 0 | U151: 0 | V151: 0 | W151: 0 | X151: 0 | Y151: 0
F152: Exceeded capacity | G152: kVA | J152: =TRANSPOSE('ARP_Inputs by customer type'!J1815:J1830) -> 0 | K152: 0 | L152: 0 | M152: 0 | N152: 15.96179903 | O152: 1.581423224 | P152: 4.27712065 | Q152: 0 | R152: 0 | S152: 0 | T152: 0 | U152: 0 | V152: 0 | W152: 0 | X152: 0 | Y152: 0
F153: Reactive power units | G153: MVArh | J153: =TRANSPOSE('ARP_Inputs by customer type'!J1833:J1848) -> 0 | K153: 0 | L153: 0 | M153: 0 | N153: 2312.57178 | O153: 113.510519 | P153: 627.8371913 | Q153: 0 | R153: 0 | S153: 0 | T153: 0 | U153: 0 | V153: 0 | W153: 0 | X153: 0 | Y153: 0
E155: LDNO HV volume forecast - Residual Band 4
F156: Rate 1 units | G156: MWh | J156: =TRANSPOSE('ARP_Inputs by customer type'!J1853:J1868) -> 0 | K156: 0 | L156: 2216.645841 | M156: 0 | N156: 8655.896576 | O156: 5526.050595 | P156: 7531.418425 | Q156: 0 | R156: 0 | S156: 0 | T156: 0 | U156: 0 | V156: 0 | W156: 0 | X156: 0 | Y156: 0
F157: Rate 2 units | G157: MWh | J157: =TRANSPOSE('ARP_Inputs by customer type'!J1871:J1886) -> 0 | K157: 0 | L157: 9330.541429 | M157: 0 | N157: 31713.44181 | O157: 20519.39011 | P157: 26507.23146 | Q157: 0 | R157: 0 | S157: 0 | T157: 0 | U157: 0 | V157: 0 | W157: 0 | X157: 0 | Y157: 0
F158: Rate 3 units | G158: MWh | J158: =TRANSPOSE('ARP_Inputs by customer type'!J1889:J1904) -> 0 | K158: 0 | L158: 9079.265715 | M158: 0 | N158: 43545.89701 | O158: 28618.78035 | P158: 42765.35961 | Q158: 0 | R158: 0 | S158: 0 | T158: 0 | U158: 0 | V158: 0 | W158: 0 | X158: 0 | Y158: 0
F159: MPANs | G159: MPANs | J159: =TRANSPOSE('ARP_Inputs by customer type'!J1907:J1922) -> 0 | K159: 0 | L159: 527.4478181 | M159: 0 | N159: 98.58006261 | O159: 49.91346733 | P159: 7.927106729 | Q159: 0 | R159: 0 | S159: 0 | T159: 0 | U159: 0 | V159: 0 | W159: 0 | X159: 0 | Y159: 0
F160: Import capacity | G160: kVA | J160: =TRANSPOSE('ARP_Inputs by customer type'!J1925:J1940) -> 0 | K160: 0 | L160: 0 | M160: 0 | N160: 72292.29699 | O160: 47098.65493 | P160: 46381.60908 | Q160: 0 | R160: 0 | S160: 0 | T160: 0 | U160: 0 | V160: 0 | W160: 0 | X160: 0 | Y160: 0
F161: Exceeded capacity | G161: kVA | J161: =TRANSPOSE('ARP_Inputs by customer type'!J1943:J1958) -> 0 | K161: 0 | L161: 0 | M161: 0 | N161: 18.47260002 | O161: 8.514838704 | P161: 6.209544771 | Q161: 0 | R161: 0 | S161: 0 | T161: 0 | U161: 0 | V161: 0 | W161: 0 | X161: 0 | Y161: 0
F162: Reactive power units | G162: MVArh | J162: =TRANSPOSE('ARP_Inputs by customer type'!J1961:J1976) -> 0 | K162: 0 | L162: 0 | M162: 0 | N162: 3700.141455 | O162: 1890.382591 | P162: 1460.365135 | Q162: 0 | R162: 0 | S162: 0 | T162: 0 | U162: 0 | V162: 0 | W162: 0 | X162: 0 | Y162: 0
E164: 'Designated Property' MPANs with EDCM-level LDNO boundaries | G164: MPANs | I164: > | J164: =TRANSPOSE('ARP_Inputs by customer type'!J1981:J1996) -> 7748.22346 | K164: 0 | L164: 183.386734 | M164: 0 | N164: 37.0223639 | O164: 5.771933063 | P164: 30.75928885 | Q164: 0 | R164: 0 | S164: 0 | T164: 0 | U164: 0 | V164: 0 | W164: 0 | X164: 0 | Y164: 0 | AQ164: Paragraphs 53A, 53B, 101 and 102
C166: =INDEX('Version control'!$H$36:$H$62,MATCH($A$1,'Version control'!$F$36:$F$62,0),1)&"-C: Non-Domestic Aggregated (Related MPAN) distribution by bands" -> Section 501-C: Non-Domestic Aggregated (Related MPAN) distribution by bands
D168: The split of Non-Domestic Aggregated (Related MPAN) units by residual band is used to allocate residual revenue | I168: > | AQ168: Paragraph 92 (a)
D169: between bands to be recovered from Non-Domestic Aggregated customers.
E171: All the way non-domestic aggregated (related MPAN) distribution by bands | J171: No residual | K171: Band 1 | L171: Band 2 | M171: Band 3 | N171: Band 4
F172: Rate 1 units | G172: % | J172: =TRANSPOSE('ARP_Inputs by customer type'!J2006:J2010) -> 1.782557703e-06 | K172: 0.0356152073 | L172: 0.1450207836 | M172: 0.1775769637 | N172: 0.6417852629
F173: Rate 2 units | G173: % | J173: =TRANSPOSE('ARP_Inputs by customer type'!J2013:J2017) -> 1.782557703e-06 | K173: 0.0356152073 | L173: 0.1450207836 | M173: 0.1775769637 | N173: 0.6417852629
F174: Rate 3 units | G174: % | J174: =TRANSPOSE('ARP_Inputs by customer type'!J2020:J2024) -> 1.782557703e-06 | K174: 0.0356152073 | L174: 0.1450207836 | M174: 0.1775769637 | N174: 0.6417852629
E176: LDNO LV non-domestic aggregated (related MPAN) distribution by bands | J176: No residual | K176: Band 1 | L176: Band 2 | M176: Band 3 | N176: Band 4
F177: Rate 1 units | G177: % | J177: =TRANSPOSE('ARP_Inputs by customer type'!J2029:J2033) -> 1.782557703e-06 | K177: 0.0356152073 | L177: 0.1450207836 | M177: 0.1775769637 | N177: 0.6417852629
F178: Rate 2 units | G178: % | J178: =TRANSPOSE('ARP_Inputs by customer type'!J2036:J2040) -> 1.782557703e-06 | K178: 0.0356152073 | L178: 0.1450207836 | M178: 0.1775769637 | N178: 0.6417852629
F179: Rate 3 units | G179: % | J179: =TRANSPOSE('ARP_Inputs by customer type'!J2043:J2047) -> 1.782557703e-06 | K179: 0.0356152073 | L179: 0.1450207836 | M179: 0.1775769637 | N179: 0.6417852629
E181: LDNO HV non-domestic aggregated (related MPAN) distribution by bands | J181: No residual | K181: Band 1 | L181: Band 2 | M181: Band 3 | N181: Band 4
F182: Rate 1 units | G182: % | J182: =TRANSPOSE('ARP_Inputs by customer type'!J2052:J2056) -> 1.782557703e-06 | K182: 0.0356152073 | L182: 0.1450207836 | M182: 0.1775769637 | N182: 0.6417852629
F183: Rate 2 units | G183: % | J183: =TRANSPOSE('ARP_Inputs by customer type'!J2059:J2063) -> 1.782557703e-06 | K183: 0.0356152073 | L183: 0.1450207836 | M183: 0.1775769637 | N183: 0.6417852629
F184: Rate 3 units | G184: % | J184: =TRANSPOSE('ARP_Inputs by customer type'!J2066:J2070) -> 1.782557703e-06 | K184: 0.0356152073 | L184: 0.1450207836 | M184: 0.1775769637 | N184: 0.6417852629
C186: =INDEX('Version control'!$H$36:$H$62,MATCH($A$1,'Version control'!$F$36:$F$62,0),1)&"-D: Service model asset values" -> Section 501-D: Service model asset values
D188: Service model costs should be entered per customer or per MWh for unmetered customers
I189: > | AQ189: Paragraphs 32 to 37
E190: LV customer service model asset values | G190: £ per MPAN | J190: =TRANSPOSE('ARP_Inputs by customer type'!J2079:J2094) -> 253.9437604 | K190: 0 | L190: 744.5977128 | M190: 0 | N190: 1485.574946 | O190: 1159.650891 | P190: 0 | Q190: 0 | R190: 0 | S190: 0 | T190: 0 | U190: 0 | V190: 0 | W190: 0 | X190: 0 | Y190: 0
E191: HV customer service model asset values | G191: £ per MPAN | J191: =TRANSPOSE('ARP_Inputs by customer type'!J2099:J2114) -> 0 | K191: 0 | L191: 0 | M191: 0 | N191: 0 | O191: 0 | P191: 10705.70643 | Q191: 0 | R191: 0 | S191: 0 | T191: 0 | U191: 0 | V191: 0 | W191: 0 | X191: 6700.088042 | Y191: 6700.088042
E193: LV UMS customer service model asset values | G193: £/MWh/year | I193: > | J193: =TRANSPOSE('ARP_Inputs by customer type'!J2119:J2134) -> 0 | K193: 0 | L193: 0 | M193: 0 | N193: 0 | O193: 0 | P193: 0 | Q193: 287.0673048 | R193: 0 | S193: 0 | T193: 0 | U193: 0 | V193: 0 | W193: 0 | X193: 0 | Y193: 0 | AQ193: Paragraph 36
B195: Checks
E197: Check that all the way non-domestic aggregated (related MPAN) distribution by bands adds to 100%
F198: Rate 1 units | G198: TRUE / FALSE | H198: =SUM(J172:N172)=1 -> TRUE
F199: Rate 2 units | G199: TRUE / FALSE | H199: =SUM(J173:N173)=1 -> TRUE
F200: Rate 3 units | G200: TRUE / FALSE | H200: TRUE
E202: Check that LDNO LV non-domestic aggregated (related MPAN) distribution by bands adds to 100%
F203: Rate 1 units | G203: TRUE / FALSE | H203: =SUM(J177:N177)=1 -> TRUE
F204: Rate 2 units | G204: TRUE / FALSE | H204: =SUM(J178:N178)=1 -> TRUE
F205: Rate 3 units | G205: TRUE / FALSE | H205: TRUE
E207: Check that LDNO HV non-domestic aggregated (related MPAN) distribution by bands adds to 100%
F208: Rate 1 units | G208: TRUE / FALSE | H208: =SUM(J182:N182)=1 -> TRUE
F209: Rate 2 units | G209: TRUE / FALSE | H209: =SUM(J183:N183)=1 -> TRUE
F210: Rate 3 units | G210: TRUE / FALSE | H210: TRUE
E212: Checks on non-domestic aggregated (related MPAN) distributions | G212: number of issues | H212: =COUNTIF(H198:H210,FALSE) -> 0
E214: Check for error values | G214: number of issues | H214: =SUM(IF(ISERROR(H16:Y194), 1)) -> 0
E216: Summary of checks | G216: number of issues | H216: =H212 + H214 -> 0
B218: End of sheet

Sheet Inputs by network level
A1: =MID(CELL("filename",A1),FIND("]",CELL("filename",A1))+1,255) -> Inputs by network level
A2: =Cover!D21&" - "&Cover!D23 -> National Grid Electricity Distribution (East Midlands) - [enter data version name]
A3: =Cover!D2&" - "&Cover!D8&" v"&Cover!D10&" - "&Cover!D19 -> ARP model - Release for charge setting v7 - 2024/25
A4: =H59 & IF(H59 = 1, " issue", " issues") &" identified in checks on this sheet" -> 0 issues identified in checks on this sheet
B5: Click here to return to model map | G5: Units | H5: Constants | J5: Transmission exit | K5: GSPs | L5: 132kV | M5: 132kV/EHV | N5: EHV | O5: EHV/HV | P5: 132kV/HV | Q5: HV | R5: HV/LV | S5: LV circuits | U5: Legal text reference
B7: Description
C9: This sheet sets out the inputs by network level to be filled in by DNOs.
E11: Charging year selected | G11: year | H11: =charging_year_selected -> 2024/25
E12: Historic / current / forecast | G12: text | H12: ='ARP_User control'!$H$36 -> Current
B14: Inputs by network level
C16: =INDEX('Version control'!$H$36:$H$62,MATCH($A$1,'Version control'!$F$36:$F$62,0),1)&"-A: Network and load inputs" -> Section 502-A: Network and load inputs
E18: Diversity allowance between top and bottom of network level | G18: % | I18: > | K18: ='ARP_Inputs by network level'!J20 -> 0.02471374244 | L18: ='ARP_Inputs by network level'!J21 -> 0.04501347824 | N18: ='ARP_Inputs by network level'!J23 -> 0.07901764269 | Q18: ='ARP_Inputs by network level'!J26 -> 0.34 | U18: Paragraphs 26 to 28
E20: Proportion of load going through 132kV/HV direct transformation | G20: % | P20: ='ARP_Inputs by network level'!J39 -> 0.07504434271
E22: Loss adjustment factors to transmission | G22: scalar | I22: > | K22: ='ARP_Inputs by network level'!J48 -> 1 | L22: ='ARP_Inputs by network level'!J49 -> 1.007 | M22: ='ARP_Inputs by network level'!J50 -> 1.013 | N22: ='ARP_Inputs by network level'!J51 -> 1.022 | O22: ='ARP_Inputs by network level'!J52 -> 1.032 | Q22: ='ARP_Inputs by network level'!J54 -> 1.047 | R22: ='ARP_Inputs by network level'!J55 -> 1.062 | S22: ='ARP_Inputs by network level'!J56 -> 1.091 | U22: Paragraph 47
E24: Average kVAr by kVA, by network level | G24: kVAr/kVA | I24: > | K24: ='ARP_Inputs by network level'!J62 -> 0.167671954 | L24: ='ARP_Inputs by network level'!J63 -> 0.167671954 | M24: ='ARP_Inputs by network level'!J64 -> 0.167671954 | N24: ='ARP_Inputs by network level'!J65 -> 0.167671954 | O24: ='ARP_Inputs by network level'!J66 -> 0.167671954 | P24: ='ARP_Inputs by network level'!J67 -> 0.167671954 | Q24: ='ARP_Inputs by network level'!J68 -> 0.167671954 | R24: ='ARP_Inputs by network level'!J69 -> 0.167671954 | S24: ='ARP_Inputs by network level'!J70 -> 0.167671954 | U24: Paragraphs 50 to 51
C26: =INDEX('Version control'!$H$36:$H$62,MATCH($A$1,'Version control'!$F$36:$F$62,0),1)&"-B: Customer contributions under current connection charging policy" -> Section 502-B: Customer contributions under current connection charging policy
I27: > | U27: Paragraphs 29 to 31
E28: Customer contributions under current connection charging policy
F29: LV network | G29: % | L29: ='ARP_Inputs by network level'!J78 -> 0 | M29: ='ARP_Inputs by network level'!J79 -> 0 | N29: ='ARP_Inputs by network level'!J80 -> 0 | O29: ='ARP_Inputs by network level'!J81 -> 0 | P29: ='ARP_Inputs by network level'!J82 -> 0 | Q29: ='ARP_Inputs by network level'!J83 -> 0.479133519 | R29: ='ARP_Inputs by network level'!J84 -> 0.7089238456 | S29: ='ARP_Inputs by network level'!J85 -> 0.9387141723
F30: LV substation | G30: % | L30: ='ARP_Inputs by network level'!J89 -> 0 | M30: ='ARP_Inputs by network level'!J90 -> 0 | N30: ='ARP_Inputs by network level'!J91 -> 0 | O30: ='ARP_Inputs by network level'!J92 -> 0 | P30: ='ARP_Inputs by network level'!J93 -> 0 | Q30: ='ARP_Inputs by network level'!J94 -> 0.479133519 | R30: ='ARP_Inputs by network level'!J95 -> 0.7089238456
F31: HV network | G31: % | L31: ='ARP_Inputs by network level'!J100 -> 0 | M31: ='ARP_Inputs by network level'!J101 -> 0 | N31: ='ARP_Inputs by network level'!J102 -> 0.06542004956 | O31: ='ARP_Inputs by network level'!J103 -> 0.3516296229 | P31: ='ARP_Inputs by network level'!J104 -> 0.3516296229 | Q31: ='ARP_Inputs by network level'!J105 -> 0.6378391962
F32: HV substation | G32: % | L32: ='ARP_Inputs by network level'!J111 -> 0 | M32: ='ARP_Inputs by network level'!J112 -> 0 | N32: ='ARP_Inputs by network level'!J113 -> 0.06542004956 | O32: ='ARP_Inputs by network level'!J114 -> 0.3516296229
C34: =INDEX('Version control'!$H$36:$H$62,MATCH($A$1,'Version control'!$F$36:$F$62,0),1)&"-C: DRM asset costs" -> Section 502-C: DRM asset costs
E36: Gross asset cost by network level | G36: £ | I36: > | L36: ='ARP_Inputs by network level'!J125 -> 62504439.3 | M36: ='ARP_Inputs by network level'!J126 -> 32657986.31 | N36: ='ARP_Inputs by network level'!J127 -> 40344520.34 | O36: ='ARP_Inputs by network level'!J128 -> 64902810.17 | P36: ='ARP_Inputs by network level'!J129 -> 5465271.514 | Q36: ='ARP_Inputs by network level'!J130 -> 149524962.6 | R36: ='ARP_Inputs by network level'!J131 -> 68445371.86 | S36: ='ARP_Inputs by network level'!J132 -> 136425766.3
C38: =INDEX('Version control'!$H$36:$H$62,MATCH($A$1,'Version control'!$F$36:$F$62,0),1)&"-D: Peaking probabilities by network level" -> Section 502-D: Peaking probabilities by network level
D40: Red, Amber & Green peaking probabilities must sum to 100%, except for unused network levels, which should sum to 0%
E42: Peaking probabilities by network level | I42: > | U42: Paragraphs 48 to 49
F43: Red | G43: % | K43: ='ARP_Inputs by network level'!J140 -> 0.9164543273 | L43: ='ARP_Inputs by network level'!J141 -> 0.5368095566 | M43: ='ARP_Inputs by network level'!J142 -> 0.5368095566 | N43: ='ARP_Inputs by network level'!J143 -> 0.4805223567 | O43: ='ARP_Inputs by network level'!J144 -> 0.4805223567 | P43: ='ARP_Inputs by network level'!J145 -> 0.5368095566 | Q43: ='ARP_Inputs by network level'!J146 -> 0.4805223567 | R43: ='ARP_Inputs by network level'!J147 -> 0.4805223567 | S43: ='ARP_Inputs by network level'!J148 -> 0.4805223567
F44: Amber | G44: % | K44: ='ARP_Inputs by network level'!J152 -> 0.08354567265 | L44: ='ARP_Inputs by network level'!J153 -> 0.4069760924 | M44: ='ARP_Inputs by network level'!J154 -> 0.4069760924 | N44: ='ARP_Inputs by network level'!J155 -> 0.4482097917 | O44: ='ARP_Inputs by network level'!J156 -> 0.4482097917 | P44: ='ARP_Inputs by network level'!J157 -> 0.4069760924 | Q44: ='ARP_Inputs by network level'!J158 -> 0.4482097917 | R44: ='ARP_Inputs by network level'!J159 -> 0.4482097917 | S44: ='ARP_Inputs by network level'!J160 -> 0.4482097917
F45: Green | G45: % | K45: ='ARP_Inputs by network level'!J164 -> 0 | L45: ='ARP_Inputs by network level'!J165 -> 0.05621435106 | M45: ='ARP_Inputs by network level'!J166 -> 0.05621435106 | N45: ='ARP_Inputs by network level'!J167 -> 0.07126785155 | O45: ='ARP_Inputs by network level'!J168 -> 0.07126785155 | P45: ='ARP_Inputs by network level'!J169 -> 0.05621435106 | Q45: ='ARP_Inputs by network level'!J170 -> 0.07126785155 | R45: ='ARP_Inputs by network level'!J171 -> 0.07126785155 | S45: ='ARP_Inputs by network level'!J172 -> 0.07126785155
F46: Black | G46: % | K46: ='ARP_Inputs by network level'!J176 -> 0.8980471723 | L46: ='ARP_Inputs by network level'!J177 -> 0.349494992 | M46: ='ARP_Inputs by network level'!J178 -> 0.349494992 | N46: ='ARP_Inputs by network level'!J179 -> 0.3304930739 | O46: ='ARP_Inputs by network level'!J180 -> 0.3304930739 | P46: ='ARP_Inputs by network level'!J181 -> 0.349494992 | Q46: ='ARP_Inputs by network level'!J182 -> 0.3304930739 | R46: ='ARP_Inputs by network level'!J183 -> 0.3304930739 | S46: ='ARP_Inputs by network level'!J184 -> 0.3304930739
B48: Checks
E50: Check for error values | G50: number of issues | H50: =SUM(IF(ISERROR(H18:AA47), 1)) -> 0
E52: Check that loss adjustment factor = 1 at grid supply point | G52: number of issues | H52: =IF(K22 = 1, 0, 1) -> 0
E54: Peaking probabilities check
E55: 0% peaking probabilities are permitted for 132kV, 132kV/EHV & 132kV/HV network levels, which do not exist for all DNOs
F56: General | G56: number of issues | H56: =SUM(K56:S56) -> 0 | K56: =IF(ABS(SUM(K43:K45) - 1) < 10^-check_decimals, 0, 1) -> 0 | N56: =IF(ABS(SUM(N43:N45) - 1) < 10^-check_decimals, 0, 1) -> 0 | O56: =IF(ABS(SUM(O43:O45) - 1) < 10^-check_decimals, 0, 1) -> 0 | Q56: =IF(ABS(SUM(Q43:Q45) - 1) < 10^-check_decimals, 0, 1) -> 0 | R56: =IF(ABS(SUM(R43:R45) - 1) < 10^-check_decimals, 0, 1) -> 0 | S56: =IF(ABS(SUM(S43:S45) - 1) < 10^-check_decimals, 0, 1) -> 0
F57: 132kV | G57: number of issues | H57: =SUM(K57:S57) -> 0 | L57: =IF(OR(ABS(SUM(L43:L45) - 1) < 10^-check_decimals, ABS(SUM(L43:L45) - 0) < 10^-check_decimals), 0, 1) -> 0 | M57: =IF(OR(ABS(SUM(M43:M45) - 1) < 10^-check_decimals, ABS(SUM(M43:M45) - 0) < 10^-check_decimals), 0, 1) -> 0 | P57: =IF(OR(ABS(SUM(P43:P45) - 1) < 10^-check_decimals, ABS(SUM(P43:P45) - 0) < 10^-check_decimals), 0, 1) -> 0
E59: Summary of checks | G59: number of issues | H59: =SUM(H50:H57) -> 0
B61: End of sheet

Sheet General inputs
A1: =MID(CELL("filename",A1),FIND("]",CELL("filename",A1))+1,255) -> General inputs
A2: =Cover!D21&" - "&Cover!D23 -> National Grid Electricity Distribution (East Midlands) - [enter data version name]
A3: =Cover!D2&" - "&Cover!D8&" v"&Cover!D10&" - "&Cover!D19 -> ARP model - Release for charge setting v7 - 2024/25
A4: =H118 & IF(H118 = 1, " issue", " issues") &" identified in checks on this sheet" -> 0 issues identified in checks on this sheet
B5: Click here to return to model map | G5: Units | H5: Constants | J5: Legal text reference
B7: Description
C9: This sheet sets out the other inputs to be filled in by DNOs
E11: Charging year selected | G11: year | H11: =charging_year_selected -> 2024/25
E12: Historic / current / forecast | G12: text | H12: ='ARP_User control'!$H$36 -> Current
B14: General inputs
C16: =INDEX('Version control'!$H$36:$H$62,MATCH($A$1,'Version control'!$F$36:$F$62,0),1)&"-A: Inputs by distribution timeband" -> Section 503-A: Inputs by distribution timeband
D18: Typical annual hours by special distribution time band | I18: > | J18: Paragraphs 40 to 41
E19: Black | G19: hours per year | H19: ='ARP_General inputs'!J19 -> 258
E20: Yellow | G20: hours per year | H20: ='ARP_General inputs'!J20 -> 3265.5
E21: Green | G21: hours per year | H21: ='ARP_General inputs'!J21 -> 5236.5
D23: Typical annual hours by distribution time band | I23: > | J23: Paragraphs 40 to 41
E24: Red | G24: hours per year | H24: ='ARP_General inputs'!J24 -> 783
E25: Amber | G25: hours per year | H25: ='ARP_General inputs'!J25 -> 2740.5
E26: Green | G26: hours per year | H26: ='ARP_General inputs'!J26 -> 5236.5
C28: =INDEX('Version control'!$H$36:$H$62,MATCH($A$1,'Version control'!$F$36:$F$62,0),1)&"-B: LDNO discount inputs" -> Section 503-B: LDNO discount inputs
D30: Inputs sourced from the PCDM
D32: Embedded network (LDNO) discount percentages | I32: > | J32: Paragraph 53
E33: LDNO LV: LV user | G33: % | H33: ='ARP_General inputs'!J33 -> 0.3157237856
E34: LDNO HV: LV user | G34: % | H34: ='ARP_General inputs'!J34 -> 0.4512313214
E35: LDNO HV: LV Sub user | G35: % | H35: ='ARP_General inputs'!J35 -> 0.1823533691
E36: LDNO HV: HV user | G36: % | H36: ='ARP_General inputs'!J36 -> 0.0739562248
C38: =INDEX('Version control'!$H$36:$H$62,MATCH($A$1,'Version control'!$F$36:$F$62,0),1)&"-C: CDCM target revenue" -> Section 503-C: CDCM target revenue
D40: The contents of this table are defined in Paragraph 1.5 of Schedule 15 (Table 1) | I40: > | J40: Paragraph 54, Schedule 15 Table 1
D41: The only rows used as inputs to the model itself are "Latest forecast of CDCM Revenue" and "Pass-through… Adjustment" items.
E43: Base Demand Revenue before inflation | G43: £ | H43: ='ARP_General inputs'!J43 -> 464179063.9
E44: Annual Iteration adjustment before inflation | G44: £ | H44: ='ARP_General inputs'!J44 -> 186389.0532
E45: RPI True-up before inflation | G45: £ | H45: ='ARP_General inputs'!J45 -> 37498193.47
E46: Price index adjustment (RPI index) | G46: scalar | H46: ='ARP_General inputs'!J46 -> 1.276133759
E47: Base demand revenue | G47: £ | H47: =SUM(H43:H45) -> 501863646.4
E48: Inflation adjustment | G48: £ | H48: =H47 * (H46 - 1) -> 138581495
E50: Pass-Through Licence Fees | G50: £ | H50: ='ARP_General inputs'!J50 -> 853851.4567
E51: Pass-Through Business Rates | G51: £ | H51: ='ARP_General inputs'!J51 -> -52332059.68
E52: Pass-Through Transmission Connection Point Charges | G52: £ | H52: ='ARP_General inputs'!J52 -> -13137359.36
E53: Pass-through Smart Meter Communication Licence Costs | G53: £ | H53: ='ARP_General inputs'!J53 -> 7466964.618
E54: Pass-through Smart Meter IT Costs | G54: £ | H54: ='ARP_General inputs'!J54 -> 814183.5301
E55: Pass-through Ring Fence Costs | G55: £ | H55: ='ARP_General inputs'!J55 -> 58679.51842
E56: Pass-through Supplier of Last Resort Adjustment | G56: £ | H56: ='ARP_General inputs'!J56 -> 1840565.047
E57: Pass-through Eligible Bad Debt Adjustment | G57: £ | H57: ='ARP_General inputs'!J57 -> 4953708.094
E58: Pass-through COVID-19 Bad Debt Adjustment | G58: £ | H58: ='ARP_General inputs'!J58 -> 0
E59: Pass-Through Others | G59: £ | H59: ='ARP_General inputs'!J59 -> 0
E60: Allowed Pass-Through Items | G60: £ | H60: =SUM(H50:H59) -> -49481466.77
E62: Broad Measure of Customer Service incentive | G62: £ | H62: ='ARP_General inputs'!J62 -> 6502037.527
E63: Quality of Service incentive | G63: £ | H63: ='ARP_General inputs'!J63 -> 23598342.4
E64: Connections Engagement incentive | G64: £ | H64: ='ARP_General inputs'!J64 -> 0
E65: Time to Connect incentive | G65: £ | H65: ='ARP_General inputs'!J65 -> 2030104.311
E66: Losses Discretionary Reward incentive | G66: £ | H66: ='ARP_General inputs'!J66 -> 0
E67: Network Innovation Allowance | G67: £ | H67: ='ARP_General inputs'!J67 -> 0
E68: Low Carbon Network Fund - Tier 1 unrecoverable | G68: £ | H68: ='ARP_General inputs'!J68 -> 0
E69: Low Carbon Network Fund - Tier 2 & Discretionary Funding | G69: £ | H69: ='ARP_General inputs'!J69 -> 0
E70: Connection Guaranteed Standards Systems & Processes penalty | G70: £ | H70: ='ARP_General inputs'!J70 -> 0
E71: Residual Losses and Growth Incentive - Losses | G71: £ | H71: ='ARP_General inputs'!J71 -> 0
E72: Residual Losses and Growth Incentive - Growth | G72: £ | H72: ='ARP_General inputs'!J72 -> 0
E73: Incentive Revenue and Other Adjustments | G73: £ | H73: =SUM(H62:H72) -> 32130484.24
E75: Correction Factor | G75: £ | H75: ='ARP_General inputs'!J75 -> 87467517.67
E76: Total allowed Revenue | G76: £ | H76: =H75 + H73 + H60 + H48 + H47 -> 710561676.5
E78: Other 1. Excluded services - Top-up, standby, and enhanced system security | G78: £ | H78: ='ARP_General inputs'!J78 -> 0
E79: Other 2. Excluded services - Revenue protection services | G79: £ | H79: ='ARP_General inputs'!J79 -> 0
E80: Other 3. Excluded services - Miscellaneous | G80: £ | H80: ='ARP_General inputs'!J80 -> 0
E81: Other 4. Please describe if used | G81: £ | H81: ='ARP_General inputs'!J81 -> 0
E82: Other 5. Please describe if used | G82: £ | H82: ='ARP_General inputs'!J82 -> 0
E83: Total other revenue recovered by Use of System Charges | G83: £ | H83: =SUM(H78:H82) -> 0
E84: Total Revenue for Use of System Charges | G84: £ | H84: =H76+H83 -> 710561676.5
E86: 1. Revenue raised outside CDCM - EDCM and Certain Interconnector Revenue | G86: £ | H86: ='ARP_General inputs'!J86 -> 18092281.66
E87: 2. Revenue raised outside CDCM - Voluntary under-recovery | G87: £ | H87: ='ARP_General inputs'!J87 -> 0
E88: 3. Revenue raised outside CDCM - Please describe if used | G88: £ | H88: ='ARP_General inputs'!J88 -> 0
E89: 4. Revenue raised outside CDCM - Please describe if used | G89: £ | H89: ='ARP_General inputs'!J89 -> 0
E90: Total Revenue to be raised outside the CDCM | G90: £ | H90: =SUM(H86:H89) -> 18092281.66
E91: Latest forecast of CDCM Revenue | G91: £ | H91: =H84-H90 -> 692469394.9
C93: =INDEX('Version control'!$H$36:$H$62,MATCH($A$1,'Version control'!$F$36:$F$62,0),1)&"-D: Financial and general assumptions" -> Section 503-D: Financial and general assumptions
E95: Real pre-tax cost of capital | G95: % | H95: ='ARP_General inputs'!J101 -> 0.0324 | I95: > | J95: Paragraph 57
E96: Days in the charging year | G96: days | H96: ='ARP_General inputs'!J102 -> 365
E97: Hours in charging year | G97: hours | H97: =days_in_year * hours_in_day -> 8760
C99: =INDEX('Version control'!$H$36:$H$62,MATCH($A$1,'Version control'!$F$36:$F$62,0),1)&"-E: Transmission exit charges" -> Section 503-E: Transmission exit charges
E101: Transmission exit charges | G101: £ per year | H101: ='ARP_General inputs'!J106 -> 11225893.45 | I101: > | J101: Paragraph 38
C103: =INDEX('Version control'!$H$36:$H$62,MATCH($A$1,'Version control'!$F$36:$F$62,0),1)&"-F: Other expenditure" -> Section 503-F: Other expenditure
E105: Other expenditure | I105: > | J105: Paragraph 39
F106: Direct cost | G106: £ per year | H106: ='ARP_General inputs'!J111 -> 51091807.17
F107: Indirect cost | G107: £ per year | H107: ='ARP_General inputs'!J112 -> 209085817.1
F108: Network rates | G108: £ per year | H108: ='ARP_General inputs'!J113 -> 38851504.45
B110: Checks
E112: Check for error values | G112: number of issues | H112: =SUM(IF(ISERROR(H6:H109), 1)) -> 0
E114: Hours in charging year check
F115: Normal distribution timebands | G115: number of issues | H115: =IF(SUM(H19:H21) = hours_in_year, 0, 1) -> 0
F116: Special distribution timebands | G116: number of issues | H116: =IF(SUM(H24:H26) = hours_in_year, 0, 1) -> 0
E118: Summary of checks | G118: number of issues | H118: =SUM(H112,H115:H116) -> 0
B120: End of sheet

Sheet Standing charge factors
A1: =MID(CELL("filename",A1),FIND("]",CELL("filename",A1))+1,255) -> Standing charge factors
A2: =Cover!D21&" - "&Cover!D23 -> National Grid Electricity Distribution (East Midlands) - [enter data version name]
A3: =Cover!D2&" - "&Cover!D8&" v"&Cover!D10&" - "&Cover!D19 -> ARP model - Release for charge setting v7 - 2024/25
A4: =H58 & IF(H58 = 1, " issue", " issues") &" identified in checks on this sheet" -> 0 issues identified in checks on this sheet
B5: Click here to return to model map | G5: Units | H5: Constants | J5: Domestic Aggregated | K5: Domestic Aggregated (Related MPAN) | L5: Non-Domestic Aggregated | M5: Non-Domestic Aggregated (Related MPAN) | N5: LV Site Specific | O5: LV Sub Site Specific | P5: HV Site Specific | Q5: Unmetered Supplies | R5: LV Generation Aggregated | S5: LV Sub Generation Aggregated | T5: LV Generation Site Specific | U5: LV Generation Site Specific no RP Charge | V5: LV Sub Generation Site Specific | W5: LV Sub Generation Site Specific no RP Charge | X5: HV Generation Site Specific | Y5: HV Generation Site Specific no RP Charge | AA5: Legal text reference
B7: Description
C9: This sheet contains standing charge factors, as described in DCUSA Schedule 16, Paragraphs 74-76.
C10: Standing charge factors are used to split network costs between those to be recovered through unit rate charges
C11: and those to be recovered through standing (capacity or fixed) charges, depending on the customer class and
C12: the network level at which costs occur.
C14: Standing charge factors are only applied for demand users.
C15: A factor of 100% implies that all costs will be allocated to standing charges.
B17: Adjustments to standing charges
C19: =INDEX('Version control'!$H$36:$H$62,MATCH($A$1,'Version control'!$F$36:$F$62,0),1)&"-A: Adjustments to standing charges" -> Section 504-A: Adjustments to standing charges
D21: Brings in standing charge factors and adjusts them for share of load going through 132/HV
E23: Raw inputs for standing charge factors, by network level | I23: > | AA23: Paragraph 74
E24: Standing charge factors as specified in Paragraph 74
F25: Transmission exit | G25: % | J25: ='Fixed inputs'!J88 -> 0 | K25: ='Fixed inputs'!K88 -> 0 | L25: ='Fixed inputs'!L88 -> 0 | M25: ='Fixed inputs'!M88 -> 0 | N25: ='Fixed inputs'!N88 -> 0 | O25: ='Fixed inputs'!O88 -> 0 | P25: ='Fixed inputs'!P88 -> 0 | Q25: ='Fixed inputs'!Q88 -> 0
F26: GSPs | G26: % | J26: ='Fixed inputs'!J89 -> 0 | K26: ='Fixed inputs'!K89 -> 0 | L26: ='Fixed inputs'!L89 -> 0 | M26: ='Fixed inputs'!M89 -> 0 | N26: ='Fixed inputs'!N89 -> 0 | O26: ='Fixed inputs'!O89 -> 0 | P26: ='Fixed inputs'!P89 -> 0 | Q26: ='Fixed inputs'!Q89 -> 0
F27: 132kV | G27: % | J27: ='Fixed inputs'!J90 -> 0 | K27: ='Fixed inputs'!K90 -> 0 | L27: ='Fixed inputs'!L90 -> 0 | M27: ='Fixed inputs'!M90 -> 0 | N27: ='Fixed inputs'!N90 -> 0 | O27: ='Fixed inputs'!O90 -> 0 | P27: ='Fixed inputs'!P90 -> 0 | Q27: ='Fixed inputs'!Q90 -> 0
F28: 132kV/EHV | G28: % | J28: ='Fixed inputs'!J91 -> 0 | K28: ='Fixed inputs'!K91 -> 0 | L28: ='Fixed inputs'!L91 -> 0 | M28: ='Fixed inputs'!M91 -> 0 | N28: ='Fixed inputs'!N91 -> 0 | O28: ='Fixed inputs'!O91 -> 0 | P28: ='Fixed inputs'!P91 -> 0 | Q28: ='Fixed inputs'!Q91 -> 0
F29: EHV | G29: % | J29: ='Fixed inputs'!J92 -> 0 | K29: ='Fixed inputs'!K92 -> 0 | L29: ='Fixed inputs'!L92 -> 0 | M29: ='Fixed inputs'!M92 -> 0 | N29: ='Fixed inputs'!N92 -> 0 | O29: ='Fixed inputs'!O92 -> 0 | P29: ='Fixed inputs'!P92 -> 0.2 | Q29: ='Fixed inputs'!Q92 -> 0
F30: EHV/HV | G30: % | J30: ='Fixed inputs'!J93 -> 0 | K30: ='Fixed inputs'!K93 -> 0 | L30: ='Fixed inputs'!L93 -> 0 | M30: ='Fixed inputs'!M93 -> 0 | N30: ='Fixed inputs'!N93 -> 0 | O30: ='Fixed inputs'!O93 -> 0 | P30: ='Fixed inputs'!P93 -> 1 | Q30: ='Fixed inputs'!Q93 -> 0
F31: 132kV/HV | G31: % | J31: ='Fixed inputs'!J94 -> 0 | K31: ='Fixed inputs'!K94 -> 0 | L31: ='Fixed inputs'!L94 -> 0 | M31: ='Fixed inputs'!M94 -> 0 | N31: ='Fixed inputs'!N94 -> 0 | O31: ='Fixed inputs'!O94 -> 0 | P31: ='Fixed inputs'!P94 -> 0 | Q31: ='Fixed inputs'!Q94 -> 0
F32: HV | G32: % | J32: ='Fixed inputs'!J95 -> 0 | K32: ='Fixed inputs'!K95 -> 0 | L32: ='Fixed inputs'!L95 -> 0 | M32: ='Fixed inputs'!M95 -> 0 | N32: ='Fixed inputs'!N95 -> 0.2 | O32: ='Fixed inputs'!O95 -> 1 | P32: ='Fixed inputs'!P95 -> 1 | Q32: ='Fixed inputs'!Q95 -> 0
F33: HV/LV | G33: % | J33: ='Fixed inputs'!J96 -> 0 | K33: ='Fixed inputs'!K96 -> 0 | L33: ='Fixed inputs'!L96 -> 0 | M33: ='Fixed inputs'!M96 -> 0 | N33: ='Fixed inputs'!N96 -> 1 | O33: ='Fixed inputs'!O96 -> 1 | P33: ='Fixed inputs'!P96 -> 0 | Q33: ='Fixed inputs'!Q96 -> 0
F34: LV circuits | G34: % | J34: ='Fixed inputs'!J97 -> 1 | K34: ='Fixed inputs'!K97 -> 1 | L34: ='Fixed inputs'!L97 -> 1 | M34: ='Fixed inputs'!M97 -> 1 | N34: ='Fixed inputs'!N97 -> 1 | O34: ='Fixed inputs'!O97 -> 0 | P34: ='Fixed inputs'!P97 -> 0 | Q34: ='Fixed inputs'!Q97 -> 0
F35: LV customers | G35: %
F36: HV customers | G36: %
E38: Proportion of load going through 132kV/HV direct transformation
F39: Proportion of load going through 132kV/HV direct transformation | G39: % | H39: ='Inputs by network level'!P20 -> 0.07504434271
E41: Standing charges factors adapted to use 132kV/HV, by network level
E42: Adjustments as described in Paragraph 75 and 76
F43: Transmission exit | G43: %
F44: GSPs | G44: %
F45: 132kV | G45: % | I45: > | J45: =IF($H$39 = 0, J27, J29 * $H$39) -> 0 | K45: =IF($H$39 = 0, K27, K29 * $H$39) -> 0 | L45: 0 | M45: 0 | N45: 0 | O45: 0 | P45: 0.01500886854 | Q45: 0 | AA45: Paragraph 76
F46: 132kV/EHV | G46: % | J46: =J28 -> 0 | K46: 0 | L46: 0 | M46: 0 | N46: 0 | O46: 0 | P46: 0 | Q46: 0
F47: EHV | G47: % | J47: 0 | K47: 0 | L47: 0 | M47: 0 | N47: 0 | O47: 0 | P47: 0.2 | Q47: 0
F48: EHV/HV | G48: % | J48: 0 | K48: 0 | L48: 0 | M48: 0 | N48: 0 | O48: 0 | P48: 1 | Q48: 0
F49: 132kV/HV | G49: % | I49: > | J49: =J30 -> 0 | K49: 0 | L49: 0 | M49: 0 | N49: 0 | O49: 0 | P49: 1 | Q49: 0 | AA49: Paragraph 75
F50: HV | G50: % | J50: =J32 -> 0 | K50: 0 | L50: 0 | M50: 0 | N50: 0.2 | O50: 1 | P50: 1 | Q50: 0
F51: HV/LV | G51: % | J51: 0 | K51: 0 | L51: 0 | M51: 0 | N51: 1 | O51: 1 | P51: 0 | Q51: 0
F52: LV circuits | G52: % | J52: 1 | K52: 1 | L52: 1 | M52: 1 | N52: 1 | O52: 0 | P52: 0 | Q52: 0
F53: LV customers | G53: %
F54: HV customers | G54: %
B56: Checks
E58: Check for error values | G58: number of issues | H58: =SUM(IF(ISERROR(H25:Y54), 1)) -> 0
B60: End of sheet

Sheet Load & loss characteristics
A1: =MID(CELL("filename",A1),FIND("]",CELL("filename",A1))+1,255) -> Load & loss characteristics
A2: =Cover!D21&" - "&Cover!D23 -> National Grid Electricity Distribution (East Midlands) - [enter data version name]
A3: =Cover!D2&" - "&Cover!D8&" v"&Cover!D10&" - "&Cover!D19 -> ARP model - Release for charge setting v7 - 2024/25
A4: =H183 & IF(H183 = 1, " issue", " issues") &" identified in checks on this sheet" -> 0 issues identified in checks on this sheet
B5: Click here to return to model map | G5: Units | H5: Constants | J5: Transmission exit | K5: GSPs | L5: 132kV | M5: 132kV/EHV | N5: EHV | O5: EHV/HV | P5: 132kV/HV | Q5: HV | R5: HV/LV | S5: LV circuits | T5: LV customers | U5: HV customers | W5: Legal text reference
B7: Description
C9: This sheet adjusts diversity allowances, coincidence factors and loss adjustment factors for use in the model
C10: This sheet then uses network use factors and loss adjustment factors to calculate user loss factors
C11: Network use factors and user loss factors are also adjusted for the share of load going through 132/HV transformation
B13: Load and loss characteristics
C15: Brings in diversity allowances to calculate coincidence and cumulative diversity factors. Also adjusts loss adjustment factors.
C17: =INDEX('Version control'!$H$36:$H$62,MATCH($A$1,'Version control'!$F$36:$F$62,0),1)&"-A: Load characteristics" -> Section 505-A: Load characteristics
E19: Network model diversity allowances | G19: % | K19: ='Inputs by network level'!K18 -> 0.02471374244 | L19: ='Inputs by network level'!L18 -> 0.04501347824 | N19: ='Inputs by network level'!N18 -> 0.07901764269 | Q19: ='Inputs by network level'!Q18 -> 0.34
E20: Coincidence factor | G20: % | J20: =IF(I20 = "", 1, I20 / (1 + J19)) -> 1 | K20: =IF(J20 = "", 1, J20 / (1 + K19)) -> 0.9758822963 | L20: =IF(K20 = "", 1, K20 / (1 + L19)) -> 0.9338466121 | M20: 0.9338466121 | N20: 0.8654600029 | O20: 0.8654600029 | P20: 0.8654600029 | Q20: 0.6458656738 | R20: 0.6458656738 | S20: 0.6458656738
E21: Network model cumulative diversity factor | G21: % | J21: =1 / J20 - 1 -> 0 | K21: =1 / K20 - 1 -> 0.02471374244 | L21: 0.07083967218 | M21: 0.07083967218 | N21: 0.1554548988 | O21: 0.1554548988 | P21: 0.1554548988 | Q21: 0.5483095644 | R21: 0.5483095644 | S21: 0.5483095644
E22: Adjustment for 132/HV diversity | G22: % | P22: =M21 -> 0.07083967218
E23: Adjusted network model cumulative diversity factor | G23: % | I23: > | J23: =IF(J22 = "", J21, J22) -> 0 | K23: 0.02471374244 | L23: 0.07083967218 | M23: 0.07083967218 | N23: 0.1554548988 | O23: 0.1554548988 | P23: 0.07083967218 | Q23: 0.5483095644 | R23: 0.5483095644 | S23: 0.5483095644 | W23: Paragraphs 42 to 44
C25: =INDEX('Version control'!$H$36:$H$62,MATCH($A$1,'Version control'!$F$36:$F$62,0),1)&"-B: Loss adjustment factors" -> Section 505-B: Loss adjustment factors
E27: Loss adjustment factor to transmission | G27: scalar | K27: ='Inputs by network level'!K22 -> 1 | L27: ='Inputs by network level'!L22 -> 1.007 | M27: ='Inputs by network level'!M22 -> 1.013 | N27: ='Inputs by network level'!N22 -> 1.022 | O27: ='Inputs by network level'!O22 -> 1.032 | Q27: ='Inputs by network level'!Q22 -> 1.047 | R27: ='Inputs by network level'!R22 -> 1.062 | S27: ='Inputs by network level'!S22 -> 1.091
E28: Adjustment for 132/HV transformation & transmission exit | G28: scalar | J28: =K27 -> 1 | P28: =O27 -> 1.032
E29: Loss adjustment factor to transmission for each DRM network level | G29: scalar | I29: > | J29: =J27 + J28 -> 1 | K29: 1 | L29: 1.007 | M29: 1.013 | N29: 1.022 | O29: 1.032 | P29: 1.032 | Q29: 1.047 | R29: 1.062 | S29: 1.091 | W29: Paragraph 47
B31: User loss factor adjustments
C33: Calculates user loss factors and makes adjustments for share of load going through 132kV/HV
C35: =INDEX('Version control'!$H$36:$H$62,MATCH($A$1,'Version control'!$F$36:$F$62,0),1)&"-C: Proportion of relevant load going through 132kV/HV direct transformation" -> Section 505-C: Proportion of relevant load going through 132kV/HV direct transformation
E37: 132kV/HV | G37: % | H37: ='Inputs by network level'!P20 -> 0.07504434271
E38: Adjustment to network use factors for 132/HV share | G38: % | M38: =1 - $H$37 -> 0.9249556573 | N38: =1 - $H$37 -> 0.9249556573 | O38: =1 - $H$37 -> 0.9249556573 | P38: =H37 -> 0.07504434271
C40: =INDEX('Version control'!$H$36:$H$62,MATCH($A$1,'Version control'!$F$36:$F$62,0),1)&"-D: Network use factors" -> Section 505-D: Network use factors
D42: Network use factors assume demand and generation use the network from the point of connection.
E44: Network use factors (assuming generation contributes at level of connection)
E45: These values are drawn from the "Fixed inputs" sheet.
F46: Domestic Aggregated | G46: 1, 0 or -1 | J46: =TRANSPOSE('Fixed inputs'!J60:Y69) -> 1 | K46: 1 | L46: 1 | M46: 1 | N46: 1 | O46: 1 | P46: 1 | Q46: 1 | R46: 1 | S46: 1
F47: Domestic Aggregated (Related MPAN) | G47: 1, 0 or -1 | J47: 1 | K47: 1 | L47: 1 | M47: 1 | N47: 1 | O47: 1 | P47: 1 | Q47: 1 | R47: 1 | S47: 1
F48: Non-Domestic Aggregated | G48: 1, 0 or -1 | J48: 1 | K48: 1 | L48: 1 | M48: 1 | N48: 1 | O48: 1 | P48: 1 | Q48: 1 | R48: 1 | S48: 1
F49: Non-Domestic Aggregated (Related MPAN) | G49: 1, 0 or -1 | J49: 1 | K49: 1 | L49: 1 | M49: 1 | N49: 1 | O49: 1 | P49: 1 | Q49: 1 | R49: 1 | S49: 1
F50: LV Site Specific | G50: 1, 0 or -1 | J50: 1 | K50: 1 | L50: 1 | M50: 1 | N50: 1 | O50: 1 | P50: 1 | Q50: 1 | R50: 1 | S50: 1
F51: LV Sub Site Specific | G51: 1, 0 or -1 | J51: 1 | K51: 1 | L51: 1 | M51: 1 | N51: 1 | O51: 1 | P51: 1 | Q51: 1 | R51: 1 | S51: 0
F52: HV Site Specific | G52: 1, 0 or -1 | J52: 1 | K52: 1 | L52: 1 | M52: 1 | N52: 1 | O52: 1 | P52: 1 | Q52: 1 | R52: 0 | S52: 0
F53: Unmetered Supplies | G53: 1, 0 or -1 | J53: 1 | K53: 1 | L53: 1 | M53: 1 | N53: 1 | O53: 1 | P53: 1 | Q53: 1 | R53: 1 | S53: 1
F54: LV Generation Aggregated | G54: 1, 0 or -1 | J54: -1 | K54: -1 | L54: -1 | M54: -1 | N54: -1 | O54: -1 | P54: -1 | Q54: -1 | R54: -1 | S54: -1
F55: LV Sub Generation Aggregated | G55: 1, 0 or -1 | J55: -1 | K55: -1 | L55: -1 | M55: -1 | N55: -1 | O55: -1 | P55: -1 | Q55: -1 | R55: -1 | S55: 0
F56: LV Generation Site Specific | G56: 1, 0 or -1 | J56: -1 | K56: -1 | L56: -1 | M56: -1 | N56: -1 | O56: -1 | P56: -1 | Q56: -1 | R56: -1 | S56: -1
F57: LV Generation Site Specific no RP Charge | G57: 1, 0 or -1 | J57: -1 | K57: -1 | L57: -1 | M57: -1 | N57: -1 | O57: -1 | P57: -1 | Q57: -1 | R57: -1 | S57: -1
F58: LV Sub Generation Site Specific | G58: 1, 0 or -1 | J58: -1 | K58: -1 | L58: -1 | M58: -1 | N58: -1 | O58: -1 | P58: -1 | Q58: -1 | R58: -1 | S58: 0
F59: LV Sub Generation Site Specific no RP Charge | G59: 1, 0 or -1 | J59: -1 | K59: -1 | L59: -1 | M59: -1 | N59: -1 | O59: -1 | P59: -1 | Q59: -1 | R59: -1 | S59: 0
F60: HV Generation Site Specific | G60: 1, 0 or -1 | J60: -1 | K60: -1 | L60: -1 | M60: -1 | N60: -1 | O60: -1 | P60: -1 | Q60: -1 | R60: 0 | S60: 0
F61: HV Generation Site Specific no RP Charge | G61: 1, 0 or -1 | J61: -1 | K61: -1 | L61: -1 | M61: -1 | N61: -1 | O61: -1 | P61: -1 | Q61: -1 | R61: 0 | S61: 0
E63: Network use factors (assuming generation contributes at level of connection) scaled for 132/HV
E64: These have been adjusted for the share of load going through 132/HV transformation
F65: Domestic Aggregated | G65: 1, 0 or -1 | J65: =IF(J$38 = "", J46, J46 * J$38) -> 1 | K65: 1 | L65: 1 | M65: 0.9249556573 | N65: 0.9249556573 | O65: 0.9249556573 | P65: 0.07504434271 | Q65: 1 | R65: 1 | S65: 1
F66: Domestic Aggregated (Related MPAN) | G66: 1, 0 or -1 | J66: 1 | K66: 1 | L66: 1 | M66: 0.9249556573 | N66: 0.9249556573 | O66: 0.9249556573 | P66: 0.07504434271 | Q66: 1 | R66: 1 | S66: 1
F67: Non-Domestic Aggregated | G67: 1, 0 or -1 | J67: 1 | K67: 1 | L67: 1 | M67: 0.9249556573 | N67: 0.9249556573 | O67: 0.9249556573 | P67: 0.07504434271 | Q67: 1 | R67: 1 | S67: 1
F68: Non-Domestic Aggregated (Related MPAN) | G68: 1, 0 or -1 | J68: 1 | K68: 1 | L68: 1 | M68: 0.9249556573 | N68: 0.9249556573 | O68: 0.9249556573 | P68: 0.07504434271 | Q68: 1 | R68: 1 | S68: 1
F69: LV Site Specific | G69: 1, 0 or -1 | J69: 1 | K69: 1 | L69: 1 | M69: 0.9249556573 | N69: 0.9249556573 | O69: 0.9249556573 | P69: 0.07504434271 | Q69: 1 | R69: 1 | S69: 1
F70: LV Sub Site Specific | G70: 1, 0 or -1 | J70: 1 | K70: 1 | L70: 1 | M70: 0.9249556573 | N70: 0.9249556573 | O70: 0.9249556573 | P70: 0.07504434271 | Q70: 1 | R70: 1 | S70: 0
F71: HV Site Specific | G71: 1, 0 or -1 | J71: 1 | K71: 1 | L71: 1 | M71: 0.9249556573 | N71: 0.9249556573 | O71: 0.9249556573 | P71: 0.07504434271 | Q71: 1 | R71: 0 | S71: 0
F72: Unmetered Supplies | G72: 1, 0 or -1 | J72: 1 | K72: 1 | L72: 1 | M72: 0.9249556573 | N72: 0.9249556573 | O72: 0.9249556573 | P72: 0.07504434271 | Q72: 1 | R72: 1 | S72: 1
F73: LV Generation Aggregated | G73: 1, 0 or -1 | J73: -1 | K73: -1 | L73: -1 | M73: -0.9249556573 | N73: -0.9249556573 | O73: -0.9249556573 | P73: -0.07504434271 | Q73: -1 | R73: -1 | S73: -1
F74: LV Sub Generation Aggregated | G74: 1, 0 or -1 | J74: -1 | K74: -1 | L74: -1 | M74: -0.9249556573 | N74: -0.9249556573 | O74: -0.9249556573 | P74: -0.07504434271 | Q74: -1 | R74: -1 | S74: 0
F75: LV Generation Site Specific | G75: 1, 0 or -1 | J75: -1 | K75: -1 | L75: -1 | M75: -0.9249556573 | N75: -0.9249556573 | O75: -0.9249556573 | P75: -0.07504434271 | Q75: -1 | R75: -1 | S75: -1
F76: LV Generation Site Specific no RP Charge | G76: 1, 0 or -1 | J76: -1 | K76: -1 | L76: -1 | M76: -0.9249556573 | N76: -0.9249556573 | O76: -0.9249556573 | P76: -0.07504434271 | Q76: -1 | R76: -1 | S76: -1
F77: LV Sub Generation Site Specific | G77: 1, 0 or -1 | J77: -1 | K77: -1 | L77: -1 | M77: -0.9249556573 | N77: -0.9249556573 | O77: -0.9249556573 | P77: -0.07504434271 | Q77: -1 | R77: -1 | S77: 0
F78: LV Sub Generation Site Specific no RP Charge | G78: 1, 0 or -1 | J78: -1 | K78: -1 | L78: -1 | M78: -0.9249556573 | N78: -0.9249556573 | O78: -0.9249556573 | P78: -0.07504434271 | Q78: -1 | R78: -1 | S78: 0
F79: HV Generation Site Specific | G79: 1, 0 or -1 | J79: -1 | K79: -1 | L79: -1 | M79: -0.9249556573 | N79: -0.9249556573 | O79: -0.9249556573 | P79: -0.07504434271 | Q79: -1 | R79: 0 | S79: 0
F80: HV Generation Site Specific no RP Charge | G80: 1, 0 or -1 | J80: -1 | K80: -1 | L80: -1 | M80: -0.9249556573 | N80: -0.9249556573 | O80: -0.9249556573 | P80: -0.07504434271 | Q80: -1 | R80: 0 | S80: 0
E82: Network use factors (assuming generation makes no contribution at level of connection) | I82: > | W82: Paragraphs 62 and 71
E83: Equal to 0 for the network level at which generation is connected, otherwise equal to network use factor
F84: Domestic Aggregated | G84: 1 or 0 | J84: =TRANSPOSE('Fixed inputs'!J73:Y82) -> 1 | K84: 1 | L84: 1 | M84: 1 | N84: 1 | O84: 1 | P84: 1 | Q84: 1 | R84: 1 | S84: 1
F85: Domestic Aggregated (Related MPAN) | G85: 1 or 0 | J85: 1 | K85: 1 | L85: 1 | M85: 1 | N85: 1 | O85: 1 | P85: 1 | Q85: 1 | R85: 1 | S85: 1
F86: Non-Domestic Aggregated | G86: 1 or 0 | J86: 1 | K86: 1 | L86: 1 | M86: 1 | N86: 1 | O86: 1 | P86: 1 | Q86: 1 | R86: 1 | S86: 1
F87: Non-Domestic Aggregated (Related MPAN) | G87: 1 or 0 | J87: 1 | K87: 1 | L87: 1 | M87: 1 | N87: 1 | O87: 1 | P87: 1 | Q87: 1 | R87: 1 | S87: 1
F88: LV Site Specific | G88: 1 or 0 | J88: 1 | K88: 1 | L88: 1 | M88: 1 | N88: 1 | O88: 1 | P88: 1 | Q88: 1 | R88: 1 | S88: 1
F89: LV Sub Site Specific | G89: 1 or 0 | J89: 1 | K89: 1 | L89: 1 | M89: 1 | N89: 1 | O89: 1 | P89: 1 | Q89: 1 | R89: 1 | S89: 0
F90: HV Site Specific | G90: 1 or 0 | J90: 1 | K90: 1 | L90: 1 | M90: 1 | N90: 1 | O90: 1 | P90: 1 | Q90: 1 | R90: 0 | S90: 0
F91: Unmetered Supplies | G91: 1 or 0 | J91: 1 | K91: 1 | L91: 1 | M91: 1 | N91: 1 | O91: 1 | P91: 1 | Q91: 1 | R91: 1 | S91: 1
F92: LV Generation Aggregated | G92: 1 or 0 | J92: -1 | K92: -1 | L92: -1 | M92: -1 | N92: -1 | O92: -1 | P92: -1 | Q92: -1 | R92: -1 | S92: 0
F93: LV Sub Generation Aggregated | G93: 1 or 0 | J93: -1 | K93: -1 | L93: -1 | M93: -1 | N93: -1 | O93: -1 | P93: -1 | Q93: -1 | R93: 0 | S93: 0
F94: LV Generation Site Specific | G94: 1 or 0 | J94: -1 | K94: -1 | L94: -1 | M94: -1 | N94: -1 | O94: -1 | P94: -1 | Q94: -1 | R94: -1 | S94: 0
F95: LV Generation Site Specific no RP Charge | G95: 1 or 0 | J95: -1 | K95: -1 | L95: -1 | M95: -1 | N95: -1 | O95: -1 | P95: -1 | Q95: -1 | R95: -1 | S95: 0
F96: LV Sub Generation Site Specific | G96: 1 or 0 | J96: -1 | K96: -1 | L96: -1 | M96: -1 | N96: -1 | O96: -1 | P96: -1 | Q96: -1 | R96: 0 | S96: 0
F97: LV Sub Generation Site Specific no RP Charge | G97: 1 or 0 | J97: -1 | K97: -1 | L97: -1 | M97: -1 | N97: -1 | O97: -1 | P97: -1 | Q97: -1 | R97: 0 | S97: 0
F98: HV Generation Site Specific | G98: 1 or 0 | J98: -1 | K98: -1 | L98: -1 | M98: -1 | N98: -1 | O98: -1 | P98: -1 | Q98: 0 | R98: 0 | S98: 0
F99: HV Generation Site Specific no RP Charge | G99: 1 or 0 | J99: -1 | K99: -1 | L99: -1 | M99: -1 | N99: -1 | O99: -1 | P99: -1 | Q99: 0 | R99: 0 | S99: 0
E101: Network use factors (assuming generation makes no contribution at level of connection), scaled for 132/HV | I101: > | W101: Paragraphs 62 and 71
E102: Equal to 0 for the network level at which generation is connected, otherwise equal to network use factor
E103: These have been adjusted for the share of load going through 132/HV transformation
F104: Domestic Aggregated | G104: 1 or 0 | J104: =IF(J$38 = "", J84, J84 * J$38) -> 1 | K104: 1 | L104: 1 | M104: 0.9249556573 | N104: 0.9249556573 | O104: 0.9249556573 | P104: 0.07504434271 | Q104: 1 | R104: 1 | S104: 1
F105: Domestic Aggregated (Related MPAN) | G105: 1 or 0 | J105: 1 | K105: 1 | L105: 1 | M105: 0.9249556573 | N105: 0.9249556573 | O105: 0.9249556573 | P105: 0.07504434271 | Q105: 1 | R105: 1 | S105: 1
F106: Non-Domestic Aggregated | G106: 1 or 0 | J106: 1 | K106: 1 | L106: 1 | M106: 0.9249556573 | N106: 0.9249556573 | O106: 0.9249556573 | P106: 0.07504434271 | Q106: 1 | R106: 1 | S106: 1
F107: Non-Domestic Aggregated (Related MPAN) | G107: 1 or 0 | J107: 1 | K107: 1 | L107: 1 | M107: 0.9249556573 | N107: 0.9249556573 | O107: 0.9249556573 | P107: 0.07504434271 | Q107: 1 | R107: 1 | S107: 1
F108: LV Site Specific | G108: 1 or 0 | J108: 1 | K108: 1 | L108: 1 | M108: 0.9249556573 | N108: 0.9249556573 | O108: 0.9249556573 | P108: 0.07504434271 | Q108: 1 | R108: 1 | S108: 1
F109: LV Sub Site Specific | G109: 1 or 0 | J109: 1 | K109: 1 | L109: 1 | M109: 0.9249556573 | N109: 0.9249556573 | O109: 0.9249556573 | P109: 0.07504434271 | Q109: 1 | R109: 1 | S109: 0
F110: HV Site Specific | G110: 1 or 0 | J110: 1 | K110: 1 | L110: 1 | M110: 0.9249556573 | N110: 0.9249556573 | O110: 0.9249556573 | P110: 0.07504434271 | Q110: 1 | R110: 0 | S110: 0
F111: Unmetered Supplies | G111: 1 or 0 | J111: 1 | K111: 1 | L111: 1 | M111: 0.9249556573 | N111: 0.9249556573 | O111: 0.9249556573 | P111: 0.07504434271 | Q111: 1 | R111: 1 | S111: 1
F112: LV Generation Aggregated | G112: 1 or 0 | J112: -1 | K112: -1 | L112: -1 | M112: -0.9249556573 | N112: -0.9249556573 | O112: -0.9249556573 | P112: -0.07504434271 | Q112: -1 | R112: -1 | S112: 0
F113: LV Sub Generation Aggregated | G113: 1 or 0 | J113: -1 | K113: -1 | L113: -1 | M113: -0.9249556573 | N113: -0.9249556573 | O113: -0.9249556573 | P113: -0.07504434271 | Q113: -1 | R113: 0 | S113: 0
F114: LV Generation Site Specific | G114: 1 or 0 | J114: -1 | K114: -1 | L114: -1 | M114: -0.9249556573 | N114: -0.9249556573 | O114: -0.9249556573 | P114: -0.07504434271 | Q114: -1 | R114: -1 | S114: 0
F115: LV Generation Site Specific no RP Charge | G115: 1 or 0 | J115: -1 | K115: -1 | L115: -1 | M115: -0.9249556573 | N115: -0.9249556573 | O115: -0.9249556573 | P115: -0.07504434271 | Q115: -1 | R115: -1 | S115: 0
F116: LV Sub Generation Site Specific | G116: 1 or 0 | J116: -1 | K116: -1 | L116: -1 | M116: -0.9249556573 | N116: -0.9249556573 | O116: -0.9249556573 | P116: -0.07504434271 | Q116: -1 | R116: 0 | S116: 0
F117: LV Sub Generation Site Specific no RP Charge | G117: 1 or 0 | J117: -1 | K117: -1 | L117: -1 | M117: -0.9249556573 | N117: -0.9249556573 | O117: -0.9249556573 | P117: -0.07504434271 | Q117: -1 | R117: 0 | S117: 0
F118: HV Generation Site Specific | G118: 1 or 0 | J118: -1 | K118: -1 | L118: -1 | M118: -0.9249556573 | N118: -0.9249556573 | O118: -0.9249556573 | P118: -0.07504434271 | Q118: 0 | R118: 0 | S118: 0
F119: HV Generation Site Specific no RP Charge | G119: 1 or 0 | J119: -1 | K119: -1 | L119: -1 | M119: -0.9249556573 | N119: -0.9249556573 | O119: -0.9249556573 | P119: -0.07504434271 | Q119: 0 | R119: 0 | S119: 0
C121: =INDEX('Version control'!$H$36:$H$62,MATCH($A$1,'Version control'!$F$36:$F$62,0),1)&"-E: User loss factors" -> Section 505-E: User loss factors
E123: User loss factor (assuming generation contributes at level of connection)
E124: For demand, it is the loss factor at network level which user is supplied.
E125: For generation, it is the loss factor at network level which user is supplied. | H125: Maximum
F126: Domestic Aggregated | G126: scalar | H126: =MAX(J126:S126) -> 1.091 | J126: =OR(SUM(J65:$S65) = 1, SUM(J65:$S65) = -1) * J$29 -> 0 | K126: =OR(SUM(K65:$S65) = 1, SUM(K65:$S65) = -1) * K$29 -> 0 | L126: =OR(SUM(L65:$S65) = 1, SUM(L65:$S65) = -1) * L$29 -> 0 | M126: =OR(SUM(M65:$S65) = 1, SUM(M65:$S65) = -1) * M$29 -> 0 | N126: =OR(SUM(N65:$S65) = 1, SUM(N65:$S65) = -1) * N$29 -> 0 | O126: =OR(SUM(O65:$S65) = 1, SUM(O65:$S65) = -1) * O$29 -> 0 | P126: =OR(SUM(P65:$S65) = 1, SUM(P65:$S65) = -1) * P$29 -> 0 | Q126: =OR(SUM(Q65:$S65) = 1, SUM(Q65:$S65) = -1) * Q$29 -> 0 | R126: =OR(SUM(R65:$S65) = 1, SUM(R65:$S65) = -1) * R$29 -> 0 | S126: =OR(SUM(S65:$S65) = 1, SUM(S65:$S65) = -1) * S$29 -> 1.091
F127: Domestic Aggregated (Related MPAN) | G127: scalar | H127: 1.091 | J127: =OR(SUM(J66:$S66) = 1, SUM(J66:$S66) = -1) * J$29 -> 0 | K127: =OR(SUM(K66:$S66) = 1, SUM(K66:$S66) = -1) * K$29 -> 0 | L127: =OR(SUM(L66:$S66) = 1, SUM(L66:$S66) = -1) * L$29 -> 0 | M127: =OR(SUM(M66:$S66) = 1, SUM(M66:$S66) = -1) * M$29 -> 0 | N127: =OR(SUM(N66:$S66) = 1, SUM(N66:$S66) = -1) * N$29 -> 0 | O127: =OR(SUM(O66:$S66) = 1, SUM(O66:$S66) = -1) * O$29 -> 0 | P127: =OR(SUM(P66:$S66) = 1, SUM(P66:$S66) = -1) * P$29 -> 0 | Q127: =OR(SUM(Q66:$S66) = 1, SUM(Q66:$S66) = -1) * Q$29 -> 0 | R127: =OR(SUM(R66:$S66) = 1, SUM(R66:$S66) = -1) * R$29 -> 0 | S127: =OR(SUM(S66:$S66) = 1, SUM(S66:$S66) = -1) * S$29 -> 1.091
F128: Non-Domestic Aggregated | G128: scalar | H128: 1.091 | J128: =OR(SUM(J67:$S67) = 1, SUM(J67:$S67) = -1) * J$29 -> 0 | K128: =OR(SUM(K67:$S67) = 1, SUM(K67:$S67) = -1) * K$29 -> 0 | L128: =OR(SUM(L67:$S67) = 1, SUM(L67:$S67) = -1) * L$29 -> 0 | M128: =OR(SUM(M67:$S67) = 1, SUM(M67:$S67) = -1) * M$29 -> 0 | N128: =OR(SUM(N67:$S67) = 1, SUM(N67:$S67) = -1) * N$29 -> 0 | O128: =OR(SUM(O67:$S67) = 1, SUM(O67:$S67) = -1) * O$29 -> 0 | P128: =OR(SUM(P67:$S67) = 1, SUM(P67:$S67) = -1) * P$29 -> 0 | Q128: =OR(SUM(Q67:$S67) = 1, SUM(Q67:$S67) = -1) * Q$29 -> 0 | R128: =OR(SUM(R67:$S67) = 1, SUM(R67:$S67) = -1) * R$29 -> 0 | S128: =OR(SUM(S67:$S67) = 1, SUM(S67:$S67) = -1) * S$29 -> 1.091
F129: Non-Domestic Aggregated (Related MPAN) | G129: scalar | H129: 1.091 | J129: =OR(SUM(J68:$S68) = 1, SUM(J68:$S68) = -1) * J$29 -> 0 | K129: =OR(SUM(K68:$S68) = 1, SUM(K68:$S68) = -1) * K$29 -> 0 | L129: =OR(SUM(L68:$S68) = 1, SUM(L68:$S68) = -1) * L$29 -> 0 | M129: =OR(SUM(M68:$S68) = 1, SUM(M68:$S68) = -1) * M$29 -> 0 | N129: =OR(SUM(N68:$S68) = 1, SUM(N68:$S68) = -1) * N$29 -> 0 | O129: =OR(SUM(O68:$S68) = 1, SUM(O68:$S68) = -1) * O$29 -> 0 | P129: =OR(SUM(P68:$S68) = 1, SUM(P68:$S68) = -1) * P$29 -> 0 | Q129: =OR(SUM(Q68:$S68) = 1, SUM(Q68:$S68) = -1) * Q$29 -> 0 | R129: =OR(SUM(R68:$S68) = 1, SUM(R68:$S68) = -1) * R$29 -> 0 | S129: =OR(SUM(S68:$S68) = 1, SUM(S68:$S68) = -1) * S$29 -> 1.091
F130: LV Site Specific | G130: scalar | H130: 1.091 | J130: =OR(SUM(J69:$S69) = 1, SUM(J69:$S69) = -1) * J$29 -> 0 | K130: =OR(SUM(K69:$S69) = 1, SUM(K69:$S69) = -1) * K$29 -> 0 | L130: =OR(SUM(L69:$S69) = 1, SUM(L69:$S69) = -1) * L$29 -> 0 | M130: =OR(SUM(M69:$S69) = 1, SUM(M69:$S69) = -1) * M$29 -> 0 | N130: =OR(SUM(N69:$S69) = 1, SUM(N69:$S69) = -1) * N$29 -> 0 | O130: =OR(SUM(O69:$S69) = 1, SUM(O69:$S69) = -1) * O$29 -> 0 | P130: =OR(SUM(P69:$S69) = 1, SUM(P69:$S69) = -1) * P$29 -> 0 | Q130: =OR(SUM(Q69:$S69) = 1, SUM(Q69:$S69) = -1) * Q$29 -> 0 | R130: =OR(SUM(R69:$S69) = 1, SUM(R69:$S69) = -1) * R$29 -> 0 | S130: =OR(SUM(S69:$S69) = 1, SUM(S69:$S69) = -1) * S$29 -> 1.091
F131: LV Sub Site Specific | G131: scalar | H131: 1.062 | J131: =OR(SUM(J70:$S70) = 1, SUM(J70:$S70) = -1) * J$29 -> 0 | K131: =OR(SUM(K70:$S70) = 1, SUM(K70:$S70) = -1) * K$29 -> 0 | L131: =OR(SUM(L70:$S70) = 1, SUM(L70:$S70) = -1) * L$29 -> 0 | M131: =OR(SUM(M70:$S70) = 1, SUM(M70:$S70) = -1) * M$29 -> 0 | N131: =OR(SUM(N70:$S70) = 1, SUM(N70:$S70) = -1) * N$29 -> 0 | O131: =OR(SUM(O70:$S70) = 1, SUM(O70:$S70) = -1) * O$29 -> 0 | P131: =OR(SUM(P70:$S70) = 1, SUM(P70:$S70) = -1) * P$29 -> 0 | Q131: =OR(SUM(Q70:$S70) = 1, SUM(Q70:$S70) = -1) * Q$29 -> 0 | R131: =OR(SUM(R70:$S70) = 1, SUM(R70:$S70) = -1) * R$29 -> 1.062 | S131: =OR(SUM(S70:$S70) = 1, SUM(S70:$S70) = -1) * S$29 -> 0
F132: HV Site Specific | G132: scalar | H132: 1.047 | J132: =OR(SUM(J71:$S71) = 1, SUM(J71:$S71) = -1) * J$29 -> 0 | K132: =OR(SUM(K71:$S71) = 1, SUM(K71:$S71) = -1) * K$29 -> 0 | L132: =OR(SUM(L71:$S71) = 1, SUM(L71:$S71) = -1) * L$29 -> 0 | M132: =OR(SUM(M71:$S71) = 1, SUM(M71:$S71) = -1) * M$29 -> 0 | N132: =OR(SUM(N71:$S71) = 1, SUM(N71:$S71) = -1) * N$29 -> 0 | O132: =OR(SUM(O71:$S71) = 1, SUM(O71:$S71) = -1) * O$29 -> 0 | P132: =OR(SUM(P71:$S71) = 1, SUM(P71:$S71) = -1) * P$29 -> 0 | Q132: =OR(SUM(Q71:$S71) = 1, SUM(Q71:$S71) = -1) * Q$29 -> 1.047 | R132: =OR(SUM(R71:$S71) = 1, SUM(R71:$S71) = -1) * R$29 -> 0 | S132: =OR(SUM(S71:$S71) = 1, SUM(S71:$S71) = -1) * S$29 -> 0
F133: Unmetered Supplies | G133: scalar | H133: 1.091 | J133: =OR(SUM(J72:$S72) = 1, SUM(J72:$S72) = -1) * J$29 -> 0 | K133: =OR(SUM(K72:$S72) = 1, SUM(K72:$S72) = -1) * K$29 -> 0 | L133: =OR(SUM(L72:$S72) = 1, SUM(L72:$S72) = -1) * L$29 -> 0 | M133: =OR(SUM(M72:$S72) = 1, SUM(M72:$S72) = -1) * M$29 -> 0 | N133: =OR(SUM(N72:$S72) = 1, SUM(N72:$S72) = -1) * N$29 -> 0 | O133: =OR(SUM(O72:$S72) = 1, SUM(O72:$S72) = -1) * O$29 -> 0 | P133: =OR(SUM(P72:$S72) = 1, SUM(P72:$S72) = -1) * P$29 -> 0 | Q133: =OR(SUM(Q72:$S72) = 1, SUM(Q72:$S72) = -1) * Q$29 -> 0 | R133: =OR(SUM(R72:$S72) = 1, SUM(R72:$S72) = -1) * R$29 -> 0 | S133: =OR(SUM(S72:$S72) = 1, SUM(S72:$S72) = -1) * S$29 -> 1.091
F134: LV Generation Aggregated | G134: scalar | H134: 1.091 | J134: =OR(SUM(J73:$S73) = 1, SUM(J73:$S73) = -1) * J$29 -> 0 | K134: =OR(SUM(K73:$S73) = 1, SUM(K73:$S73) = -1) * K$29 -> 0 | L134: =OR(SUM(L73:$S73) = 1, SUM(L73:$S73) = -1) * L$29 -> 0 | M134: =OR(SUM(M73:$S73) = 1, SUM(M73:$S73) = -1) * M$29 -> 0 | N134: =OR(SUM(N73:$S73) = 1, SUM(N73:$S73) = -1) * N$29 -> 0 | O134: =OR(SUM(O73:$S73) = 1, SUM(O73:$S73) = -1) * O$29 -> 0 | P134: =OR(SUM(P73:$S73) = 1, SUM(P73:$S73) = -1) * P$29 -> 0 | Q134: =OR(SUM(Q73:$S73) = 1, SUM(Q73:$S73) = -1) * Q$29 -> 0 | R134: =OR(SUM(R73:$S73) = 1, SUM(R73:$S73) = -1) * R$29 -> 0 | S134: =OR(SUM(S73:$S73) = 1, SUM(S73:$S73) = -1) * S$29 -> 1.091
F135: LV Sub Generation Aggregated | G135: scalar | H135: 1.062 | J135: =OR(SUM(J74:$S74) = 1, SUM(J74:$S74) = -1) * J$29 -> 0 | K135: =OR(SUM(K74:$S74) = 1, SUM(K74:$S74) = -1) * K$29 -> 0 | L135: =OR(SUM(L74:$S74) = 1, SUM(L74:$S74) = -1) * L$29 -> 0 | M135: =OR(SUM(M74:$S74) = 1, SUM(M74:$S74) = -1) * M$29 -> 0 | N135: =OR(SUM(N74:$S74) = 1, SUM(N74:$S74) = -1) * N$29 -> 0 | O135: =OR(SUM(O74:$S74) = 1, SUM(O74:$S74) = -1) * O$29 -> 0 | P135: =OR(SUM(P74:$S74) = 1, SUM(P74:$S74) = -1) * P$29 -> 0 | Q135: =OR(SUM(Q74:$S74) = 1, SUM(Q74:$S74) = -1) * Q$29 -> 0 | R135: =OR(SUM(R74:$S74) = 1, SUM(R74:$S74) = -1) * R$29 -> 1.062 | S135: =OR(SUM(S74:$S74) = 1, SUM(S74:$S74) = -1) * S$29 -> 0
F136: LV Generation Site Specific | G136: scalar | H136: 1.091 | J136: =OR(SUM(J75:$S75) = 1, SUM(J75:$S75) = -1) * J$29 -> 0 | K136: =OR(SUM(K75:$S75) = 1, SUM(K75:$S75) = -1) * K$29 -> 0 | L136: =OR(SUM(L75:$S75) = 1, SUM(L75:$S75) = -1) * L$29 -> 0 | M136: =OR(SUM(M75:$S75) = 1, SUM(M75:$S75) = -1) * M$29 -> 0 | N136: =OR(SUM(N75:$S75) = 1, SUM(N75:$S75) = -1) * N$29 -> 0 | O136: =OR(SUM(O75:$S75) = 1, SUM(O75:$S75) = -1) * O$29 -> 0 | P136: =OR(SUM(P75:$S75) = 1, SUM(P75:$S75) = -1) * P$29 -> 0 | Q136: =OR(SUM(Q75:$S75) = 1, SUM(Q75:$S75) = -1) * Q$29 -> 0 | R136: =OR(SUM(R75:$S75) = 1, SUM(R75:$S75) = -1) * R$29 -> 0 | S136: =OR(SUM(S75:$S75) = 1, SUM(S75:$S75) = -1) * S$29 -> 1.091
F137: LV Generation Site Specific no RP Charge | G137: scalar | H137: 1.091 | J137: =OR(SUM(J76:$S76) = 1, SUM(J76:$S76) = -1) * J$29 -> 0 | K137: =OR(SUM(K76:$S76) = 1, SUM(K76:$S76) = -1) * K$29 -> 0 | L137: =OR(SUM(L76:$S76) = 1, SUM(L76:$S76) = -1) * L$29 -> 0 | M137: =OR(SUM(M76:$S76) = 1, SUM(M76:$S76) = -1) * M$29 -> 0 | N137: =OR(SUM(N76:$S76) = 1, SUM(N76:$S76) = -1) * N$29 -> 0 | O137: =OR(SUM(O76:$S76) = 1, SUM(O76:$S76) = -1) * O$29 -> 0 | P137: =OR(SUM(P76:$S76) = 1, SUM(P76:$S76) = -1) * P$29 -> 0 | Q137: =OR(SUM(Q76:$S76) = 1, SUM(Q76:$S76) = -1) * Q$29 -> 0 | R137: =OR(SUM(R76:$S76) = 1, SUM(R76:$S76) = -1) * R$29 -> 0 | S137: =OR(SUM(S76:$S76) = 1, SUM(S76:$S76) = -1) * S$29 -> 1.091
F138: LV Sub Generation Site Specific | G138: scalar | H138: 1.062 | J138: =OR(SUM(J77:$S77) = 1, SUM(J77:$S77) = -1) * J$29 -> 0 | K138: =OR(SUM(K77:$S77) = 1, SUM(K77:$S77) = -1) * K$29 -> 0 | L138: =OR(SUM(L77:$S77) = 1, SUM(L77:$S77) = -1) * L$29 -> 0 | M138: =OR(SUM(M77:$S77) = 1, SUM(M77:$S77) = -1) * M$29 -> 0 | N138: =OR(SUM(N77:$S77) = 1, SUM(N77:$S77) = -1) * N$29 -> 0 | O138: =OR(SUM(O77:$S77) = 1, SUM(O77:$S77) = -1) * O$29 -> 0 | P138: =OR(SUM(P77:$S77) = 1, SUM(P77:$S77) = -1) * P$29 -> 0 | Q138: =OR(SUM(Q77:$S77) = 1, SUM(Q77:$S77) = -1) * Q$29 -> 0 | R138: =OR(SUM(R77:$S77) = 1, SUM(R77:$S77) = -1) * R$29 -> 1.062 | S138: =OR(SUM(S77:$S77) = 1, SUM(S77:$S77) = -1) * S$29 -> 0
F139: LV Sub Generation Site Specific no RP Charge | G139: scalar | H139: 1.062 | J139: =OR(SUM(J78:$S78) = 1, SUM(J78:$S78) = -1) * J$29 -> 0 | K139: =OR(SUM(K78:$S78) = 1, SUM(K78:$S78) = -1) * K$29 -> 0 | L139: =OR(SUM(L78:$S78) = 1, SUM(L78:$S78) = -1) * L$29 -> 0 | M139: =OR(SUM(M78:$S78) = 1, SUM(M78:$S78) = -1) * M$29 -> 0 | N139: =OR(SUM(N78:$S78) = 1, SUM(N78:$S78) = -1) * N$29 -> 0 | O139: =OR(SUM(O78:$S78) = 1, SUM(O78:$S78) = -1) * O$29 -> 0 | P139: =OR(SUM(P78:$S78) = 1, SUM(P78:$S78) = -1) * P$29 -> 0 | Q139: =OR(SUM(Q78:$S78) = 1, SUM(Q78:$S78) = -1) * Q$29 -> 0 | R139: =OR(SUM(R78:$S78) = 1, SUM(R78:$S78) = -1) * R$29 -> 1.062 | S139: =OR(SUM(S78:$S78) = 1, SUM(S78:$S78) = -1) * S$29 -> 0
F140: HV Generation Site Specific | G140: scalar | H140: 1.047 | J140: =OR(SUM(J79:$S79) = 1, SUM(J79:$S79) = -1) * J$29 -> 0 | K140: =OR(SUM(K79:$S79) = 1, SUM(K79:$S79) = -1) * K$29 -> 0 | L140: =OR(SUM(L79:$S79) = 1, SUM(L79:$S79) = -1) * L$29 -> 0 | M140: =OR(SUM(M79:$S79) = 1, SUM(M79:$S79) = -1) * M$29 -> 0 | N140: =OR(SUM(N79:$S79) = 1, SUM(N79:$S79) = -1) * N$29 -> 0 | O140: =OR(SUM(O79:$S79) = 1, SUM(O79:$S79) = -1) * O$29 -> 0 | P140: =OR(SUM(P79:$S79) = 1, SUM(P79:$S79) = -1) * P$29 -> 0 | Q140: =OR(SUM(Q79:$S79) = 1, SUM(Q79:$S79) = -1) * Q$29 -> 1.047 | R140: =OR(SUM(R79:$S79) = 1, SUM(R79:$S79) = -1) * R$29 -> 0 | S140: =OR(SUM(S79:$S79) = 1, SUM(S79:$S79) = -1) * S$29 -> 0
F141: HV Generation Site Specific no RP Charge | G141: scalar | H141: 1.047 | J141: =OR(SUM(J80:$S80) = 1, SUM(J80:$S80) = -1) * J$29 -> 0 | K141: =OR(SUM(K80:$S80) = 1, SUM(K80:$S80) = -1) * K$29 -> 0 | L141: =OR(SUM(L80:$S80) = 1, SUM(L80:$S80) = -1) * L$29 -> 0 | M141: =OR(SUM(M80:$S80) = 1, SUM(M80:$S80) = -1) * M$29 -> 0 | N141: =OR(SUM(N80:$S80) = 1, SUM(N80:$S80) = -1) * N$29 -> 0 | O141: =OR(SUM(O80:$S80) = 1, SUM(O80:$S80) = -1) * O$29 -> 0 | P141: =OR(SUM(P80:$S80) = 1, SUM(P80:$S80) = -1) * P$29 -> 0 | Q141: =OR(SUM(Q80:$S80) = 1, SUM(Q80:$S80) = -1) * Q$29 -> 1.047 | R141: =OR(SUM(R80:$S80) = 1, SUM(R80:$S80) = -1) * R$29 -> 0 | S141: =OR(SUM(S80:$S80) = 1, SUM(S80:$S80) = -1) * S$29 -> 0
E143: User loss factor (assuming generation does not contribute at level of connection) | I143: > | W143: Paragraph 70 (a)
E144: These have been adjusted for the share of load going through 132/HV transformation
F145: Domestic Aggregated | G145: scalar | J145: =$H126 * J104 -> 1.091 | K145: 1.091 | L145: 1.091 | M145: 1.009126622 | N145: 1.009126622 | O145: 1.009126622 | P145: 0.0818733779 | Q145: 1.091 | R145: 1.091 | S145: 1.091
F146: Domestic Aggregated (Related MPAN) | G146: scalar | J146: 1.091 | K146: 1.091 | L146: 1.091 | M146: 1.009126622 | N146: 1.009126622 | O146: 1.009126622 | P146: 0.0818733779 | Q146: 1.091 | R146: 1.091 | S146: 1.091
F147: Non-Domestic Aggregated | G147: scalar | J147: 1.091 | K147: 1.091 | L147: 1.091 | M147: 1.009126622 | N147: 1.009126622 | O147: 1.009126622 | P147: 0.0818733779 | Q147: 1.091 | R147: 1.091 | S147: 1.091
F148: Non-Domestic Aggregated (Related MPAN) | G148: scalar | J148: 1.091 | K148: 1.091 | L148: 1.091 | M148: 1.009126622 | N148: 1.009126622 | O148: 1.009126622 | P148: 0.0818733779 | Q148: 1.091 | R148: 1.091 | S148: 1.091
F149: LV Site Specific | G149: scalar | J149: 1.091 | K149: 1.091 | L149: 1.091 | M149: 1.009126622 | N149: 1.009126622 | O149: 1.009126622 | P149: 0.0818733779 | Q149: 1.091 | R149: 1.091 | S149: 1.091
F150: LV Sub Site Specific | G150: scalar | J150: 1.062 | K150: 1.062 | L150: 1.062 | M150: 0.982302908 | N150: 0.982302908 | O150: 0.982302908 | P150: 0.07969709196 | Q150: 1.062 | R150: 1.062 | S150: 0
F151: HV Site Specific | G151: scalar | J151: 1.047 | K151: 1.047 | L151: 1.047 | M151: 0.9684285732 | N151: 0.9684285732 | O151: 0.9684285732 | P151: 0.07857142682 | Q151: 1.047 | R151: 0 | S151: 0
F152: Unmetered Supplies | G152: scalar | J152: 1.091 | K152: 1.091 | L152: 1.091 | M152: 1.009126622 | N152: 1.009126622 | O152: 1.009126622 | P152: 0.0818733779 | Q152: 1.091 | R152: 1.091 | S152: 1.091
F153: LV Generation Aggregated | G153: scalar | J153: -1.091 | K153: -1.091 | L153: -1.091 | M153: -1.009126622 | N153: -1.009126622 | O153: -1.009126622 | P153: -0.0818733779 | Q153: -1.091 | R153: -1.091 | S153: 0
F154: LV Sub Generation Aggregated | G154: scalar | J154: -1.062 | K154: -1.062 | L154: -1.062 | M154: -0.982302908 | N154: -0.982302908 | O154: -0.982302908 | P154: -0.07969709196 | Q154: -1.062 | R154: 0 | S154: 0
F155: LV Generation Site Specific | G155: scalar | J155: -1.091 | K155: -1.091 | L155: -1.091 | M155: -1.009126622 | N155: -1.009126622 | O155: -1.009126622 | P155: -0.0818733779 | Q155: -1.091 | R155: -1.091 | S155: 0
F156: LV Generation Site Specific no RP Charge | G156: scalar | J156: -1.091 | K156: -1.091 | L156: -1.091 | M156: -1.009126622 | N156: -1.009126622 | O156: -1.009126622 | P156: -0.0818733779 | Q156: -1.091 | R156: -1.091 | S156: 0
F157: LV Sub Generation Site Specific | G157: scalar | J157: -1.062 | K157: -1.062 | L157: -1.062 | M157: -0.982302908 | N157: -0.982302908 | O157: -0.982302908 | P157: -0.07969709196 | Q157: -1.062 | R157: 0 | S157: 0
F158: LV Sub Generation Site Specific no RP Charge | G158: scalar | J158: -1.062 | K158: -1.062 | L158: -1.062 | M158: -0.982302908 | N158: -0.982302908 | O158: -0.982302908 | P158: -0.07969709196 | Q158: -1.062 | R158: 0 | S158: 0
F159: HV Generation Site Specific | G159: scalar | J159: -1.047 | K159: -1.047 | L159: -1.047 | M159: -0.9684285732 | N159: -0.9684285732 | O159: -0.9684285732 | P159: -0.07857142682 | Q159: 0 | R159: 0 | S159: 0
F160: HV Generation Site Specific no RP Charge | G160: scalar | J160: -1.047 | K160: -1.047 | L160: -1.047 | M160: -0.9684285732 | N160: -0.9684285732 | O160: -0.9684285732 | P160: -0.07857142682 | Q160: 0 | R160: 0 | S160: 0
E162: User loss factor (assuming generation contributes at level of connection) | I162: > | W162: Paragraph 70 (a)
E163: These have been adjusted for the share of load going through 132/HV transformation
F164: Domestic Aggregated | G164: scalar
F165: Domestic Aggregated (Related MPAN) | G165: scalar
F166: Non-Domestic Aggregated | G166: scalar
F167: Non-Domestic Aggregated (Related MPAN) | G167: scalar
F168: LV Site Specific | G168: scalar
F169: LV Sub Site Specific | G169: scalar
F170: HV Site Specific | G170: scalar
F171: Unmetered Supplies | G171: scalar
F172: LV Generation Aggregated | G172: scalar | J172: =$H134 * J73 -> -1.091 | K172: -1.091 | L172: -1.091 | M172: -1.009126622 | N172: -1.009126622 | O172: -1.009126622 | P172: -0.0818733779 | Q172: -1.091 | R172: -1.091 | S172: -1.091
F173: LV Sub Generation Aggregated | G173: scalar | J173: -1.062 | K173: -1.062 | L173: -1.062 | M173: -0.982302908 | N173: -0.982302908 | O173: -0.982302908 | P173: -0.07969709196 | Q173: -1.062 | R173: -1.062 | S173: 0
F174: LV Generation Site Specific | G174: scalar | J174: -1.091 | K174: -1.091 | L174: -1.091 | M174: -1.009126622 | N174: -1.009126622 | O174: -1.009126622 | P174: -0.0818733779 | Q174: -1.091 | R174: -1.091 | S174: -1.091
F175: LV Generation Site Specific no RP Charge | G175: scalar | J175: -1.091 | K175: -1.091 | L175: -1.091 | M175: -1.009126622 | N175: -1.009126622 | O175: -1.009126622 | P175: -0.0818733779 | Q175: -1.091 | R175: -1.091 | S175: -1.091
F176: LV Sub Generation Site Specific | G176: scalar | J176: -1.062 | K176: -1.062 | L176: -1.062 | M176: -0.982302908 | N176: -0.982302908 | O176: -0.982302908 | P176: -0.07969709196 | Q176: -1.062 | R176: -1.062 | S176: 0
F177: LV Sub Generation Site Specific no RP Charge | G177: scalar | J177: -1.062 | K177: -1.062 | L177: -1.062 | M177: -0.982302908 | N177: -0.982302908 | O177: -0.982302908 | P177: -0.07969709196 | Q177: -1.062 | R177: -1.062 | S177: 0
F178: HV Generation Site Specific | G178: scalar | J178: -1.047 | K178: -1.047 | L178: -1.047 | M178: -0.9684285732 | N178: -0.9684285732 | O178: -0.9684285732 | P178: -0.07857142682 | Q178: -1.047 | R178: 0 | S178: 0
F179: HV Generation Site Specific no RP Charge | G179: scalar | J179: -1.047 | K179: -1.047 | L179: -1.047 | M179: -0.9684285732 | N179: -0.9684285732 | O179: -0.9684285732 | P179: -0.07857142682 | Q179: -1.047 | R179: 0 | S179: 0
B181: Checks
E183: Check for error values | G183: number of issues | H183: =SUM(IF(ISERROR(H19:W181), 1)) -> 0
B185: End of sheet

Sheet Customer contributions
A1: =MID(CELL("filename",A1),FIND("]",CELL("filename",A1))+1,255) -> Customer contributions
A2: =Cover!D21&" - "&Cover!D23 -> National Grid Electricity Distribution (East Midlands) - [enter data version name]
A3: =Cover!D2&" - "&Cover!D8&" v"&Cover!D10&" - "&Cover!D19 -> ARP model - Release for charge setting v7 - 2024/25
A4: =H70 & IF(H70 = 1, " issue", " issues") &" identified in checks on this sheet" -> 0 issues identified in checks on this sheet
B5: Click here to return to model map | G5: Units | H5: Constants | W5: Legal text reference
B7: Description
C9: This sheet calculates customer contributions towards assets (i.e. assets that are paid for, and should not be
C10: recovered under UoS charges)
B12: Customer contributions
C14: Maps customer contributions to customer categories
C16: =INDEX('Version control'!$H$36:$H$62,MATCH($A$1,'Version control'!$F$36:$F$62,0),1)&"-A: Network use factors" -> Section 506-A: Network use factors
E18: Network level at which users are supplied | I18: > | W18: Paragraph 30
E19: Network use factors based on customer contributed assets
J20: HV substation | K20: HV network | L20: LV substation | M20: LV network
F21: Domestic Aggregated | G21: 1 or 0 | J21: =TRANSPOSE('Fixed inputs'!J53:Y56) -> 0 | K21: 0 | L21: 0 | M21: 1
F22: Domestic Aggregated (Related MPAN) | G22: 1 or 0 | J22: 0 | K22: 0 | L22: 0 | M22: 1
F23: Non-Domestic Aggregated | G23: 1 or 0 | J23: 0 | K23: 0 | L23: 0 | M23: 1
F24: Non-Domestic Aggregated (Related MPAN) | G24: 1 or 0 | J24: 0 | K24: 0 | L24: 0 | M24: 1
F25: LV Site Specific | G25: 1 or 0 | J25: 0 | K25: 0 | L25: 0 | M25: 1
F26: LV Sub Site Specific | G26: 1 or 0 | J26: 0 | K26: 0 | L26: 1 | M26: 0
F27: HV Site Specific | G27: 1 or 0 | J27: 0 | K27: 1 | L27: 0 | M27: 0
F28: Unmetered Supplies | G28: 1 or 0 | J28: 0 | K28: 0 | L28: 0 | M28: 1
F29: LV Generation Aggregated | G29: 1 or 0 | J29: 0 | K29: 0 | L29: 0 | M29: 1
F30: LV Sub Generation Aggregated | G30: 1 or 0 | J30: 0 | K30: 0 | L30: 1 | M30: 0
F31: LV Generation Site Specific | G31: 1 or 0 | J31: 0 | K31: 0 | L31: 0 | M31: 1
F32: LV Generation Site Specific no RP Charge | G32: 1 or 0 | J32: 0 | K32: 0 | L32: 0 | M32: 1
F33: LV Sub Generation Site Specific | G33: 1 or 0 | J33: 0 | K33: 0 | L33: 1 | M33: 0
F34: LV Sub Generation Site Specific no RP Charge | G34: 1 or 0 | J34: 0 | K34: 0 | L34: 1 | M34: 0
F35: HV Generation Site Specific | G35: 1 or 0 | J35: 0 | K35: 1 | L35: 0 | M35: 0
F36: HV Generation Site Specific no RP Charge | G36: 1 or 0 | J36: 0 | K36: 1 | L36: 0 | M36: 0
C38: =INDEX('Version control'!$H$36:$H$62,MATCH($A$1,'Version control'!$F$36:$F$62,0),1)&"-B: Customer contributions" -> Section 506-B: Customer contributions
E40: Customer contributions, by network level of supply | I40: > | W40: Paragraph 29
E41: Share of customer contributions by network level and asset type
J42: Transmission exit | K42: GSPs | L42: 132kV | M42: 132kV/EHV | N42: EHV | O42: EHV/HV | P42: 132kV/HV | Q42: HV | R42: HV/LV | S42: LV circuits | T42: LV customers | U42: HV customers
F43: LV network | G43: % | L43: ='Inputs by network level'!L29 -> 0 | M43: ='Inputs by network level'!M29 -> 0 | N43: ='Inputs by network level'!N29 -> 0 | O43: ='Inputs by network level'!O29 -> 0 | P43: ='Inputs by network level'!P29 -> 0 | Q43: ='Inputs by network level'!Q29 -> 0.479133519 | R43: ='Inputs by network level'!R29 -> 0.7089238456 | S43: ='Inputs by network level'!S29 -> 0.9387141723
F44: LV substation | G44: % | L44: ='Inputs by network level'!L30 -> 0 | M44: ='Inputs by network level'!M30 -> 0 | N44: ='Inputs by network level'!N30 -> 0 | O44: ='Inputs by network level'!O30 -> 0 | P44: ='Inputs by network level'!P30 -> 0 | Q44: ='Inputs by network level'!Q30 -> 0.479133519 | R44: ='Inputs by network level'!R30 -> 0.7089238456 | S44: ='Inputs by network level'!S30 -> 0
F45: HV network | G45: % | L45: ='Inputs by network level'!L31 -> 0 | M45: ='Inputs by network level'!M31 -> 0 | N45: ='Inputs by network level'!N31 -> 0.06542004956 | O45: ='Inputs by network level'!O31 -> 0.3516296229 | P45: ='Inputs by network level'!P31 -> 0.3516296229 | Q45: ='Inputs by network level'!Q31 -> 0.6378391962 | R45: ='Inputs by network level'!R31 -> 0 | S45: ='Inputs by network level'!S31 -> 0
F46: HV substation | G46: % | L46: ='Inputs by network level'!L32 -> 0 | M46: ='Inputs by network level'!M32 -> 0 | N46: ='Inputs by network level'!N32 -> 0.06542004956 | O46: ='Inputs by network level'!O32 -> 0.3516296229 | P46: ='Inputs by network level'!P32 -> 0 | Q46: ='Inputs by network level'!Q32 -> 0 | R46: ='Inputs by network level'!R32 -> 0 | S46: ='Inputs by network level'!S32 -> 0
E48: Customer contributions, by network level
E49: Customer contributions by network level and customer type based on mappings above
J50: Transmission exit | K50: GSPs | L50: 132kV | M50: 132kV/EHV | N50: EHV | O50: EHV/HV | P50: 132kV/HV | Q50: HV | R50: HV/LV | S50: LV circuits | T50: LV customers | U50: HV customers
F51: Domestic Aggregated | H51: % | L51: =$M21 * L$43 + $L21 * L$44 + $K21 * L$45 + $J21 * L$46 -> 0 | M51: 0 | N51: 0 | O51: 0 | P51: 0 | Q51: 0.479133519 | R51: 0.7089238456 | S51: 0.9387141723
F52: Domestic Aggregated (Related MPAN) | H52: % | L52: 0 | M52: 0 | N52: 0 | O52: 0 | P52: 0 | Q52: 0.479133519 | R52: 0.7089238456 | S52: 0.9387141723
F53: Non-Domestic Aggregated | H53: % | L53: 0 | M53: 0 | N53: 0 | O53: 0 | P53: 0 | Q53: 0.479133519 | R53: 0.7089238456 | S53: 0.9387141723
F54: Non-Domestic Aggregated (Related MPAN) | H54: % | L54: 0 | M54: 0 | N54: 0 | O54: 0 | P54: 0 | Q54: 0.479133519 | R54: 0.7089238456 | S54: 0.9387141723
F55: LV Site Specific | H55: % | L55: 0 | M55: 0 | N55: 0 | O55: 0 | P55: 0 | Q55: 0.479133519 | R55: 0.7089238456 | S55: 0.9387141723
F56: LV Sub Site Specific | H56: % | L56: 0 | M56: 0 | N56: 0 | O56: 0 | P56: 0 | Q56: 0.479133519 | R56: 0.7089238456 | S56: 0
F57: HV Site Specific | H57: % | L57: 0 | M57: 0 | N57: 0.06542004956 | O57: 0.3516296229 | P57: 0.3516296229 | Q57: 0.6378391962 | R57: 0 | S57: 0
F58: Unmetered Supplies | H58: % | L58: 0 | M58: 0 | N58: 0 | O58: 0 | P58: 0 | Q58: 0.479133519 | R58: 0.7089238456 | S58: 0.9387141723
F59: LV Generation Aggregated | H59: % | L59: 0 | M59: 0 | N59: 0 | O59: 0 | P59: 0 | Q59: 0.479133519 | R59: 0.7089238456 | S59: 0.9387141723
F60: LV Sub Generation Aggregated | H60: % | L60: 0 | M60: 0 | N60: 0 | O60: 0 | P60: 0 | Q60: 0.479133519 | R60: 0.7089238456 | S60: 0
F61: LV Generation Site Specific | H61: % | L61: 0 | M61: 0 | N61: 0 | O61: 0 | P61: 0 | Q61: 0.479133519 | R61: 0.7089238456 | S61: 0.9387141723
F62: LV Generation Site Specific no RP Charge | H62: % | L62: 0 | M62: 0 | N62: 0 | O62: 0 | P62: 0 | Q62: 0.479133519 | R62: 0.7089238456 | S62: 0.9387141723
F63: LV Sub Generation Site Specific | H63: % | L63: 0 | M63: 0 | N63: 0 | O63: 0 | P63: 0 | Q63: 0.479133519 | R63: 0.7089238456 | S63: 0
F64: LV Sub Generation Site Specific no RP Charge | H64: % | L64: 0 | M64: 0 | N64: 0 | O64: 0 | P64: 0 | Q64: 0.479133519 | R64: 0.7089238456 | S64: 0
F65: HV Generation Site Specific | H65: % | L65: 0 | M65: 0 | N65: 0.06542004956 | O65: 0.3516296229 | P65: 0.3516296229 | Q65: 0.6378391962 | R65: 0 | S65: 0
F66: HV Generation Site Specific no RP Charge | H66: % | L66: 0 | M66: 0 | N66: 0.06542004956 | O66: 0.3516296229 | P66: 0.3516296229 | Q66: 0.6378391962 | R66: 0 | S66: 0
B68: Checks
E70: Check for error values | G70: number of issues | H70: =SUM(IF(ISERROR(H21:U66), 1)) -> 0
B72: End of sheet

Sheet Volume adjustments
A1: =MID(CELL("filename",A1),FIND("]",CELL("filename",A1))+1,255) -> Volume adjustments
A2: =Cover!D21&" - "&Cover!D23 -> National Grid Electricity Distribution (East Midlands) - [enter data version name]
A3: =Cover!D2&" - "&Cover!D8&" v"&Cover!D10&" - "&Cover!D19 -> ARP model - Release for charge setting v7 - 2024/25
A4: =H693 & IF(H693 = 1, " issue", " issues") &" identified in checks on this sheet" -> 0 issues identified in checks on this sheet
B5: Click here to return to model map | G5: Units | H5: Constants | J5: Domestic Aggregated | K5: Domestic Aggregated (Related MPAN) | L5: Non-Domestic Aggregated | M5: Non-Domestic Aggregated (Related MPAN) | N5: LV Site Specific | O5: LV Sub Site Specific | P5: HV Site Specific | Q5: Unmetered Supplies | R5: LV Generation Aggregated | S5: LV Sub Generation Aggregated | T5: LV Generation Site Specific | U5: LV Generation Site Specific no RP Charge | V5: LV Sub Generation Site Specific | W5: LV Sub Generation Site Specific no RP Charge | X5: HV Generation Site Specific | Y5: HV Generation Site Specific no RP Charge | AA5: Legal text reference
B7: Description
C9: This sheet calculates volumes (kWh, MPAN, import and exceeded capacity) to be used throughout the model.
C10: This sheet first calculates the discounts to be applied to LDNO volumes, then combines these with volumes for
C11: all the way customers.
B13: LDNO discounts
C15: =INDEX('Version control'!$H$36:$H$62,MATCH($A$1,'Version control'!$F$36:$F$62,0),1)&"-A: LDNO discounts" -> Section 507-A: LDNO discounts
D17: This section maps the LDNO discounts from the PCDM to different customer categories
D18: Generation LDNO customers do not receive the standard LDNO discounts, and this adjustment is made in this section
E20: Discounts from PCDM | I20: >
E21: LDNO discounts calculated in the PCDM | AA21: Paragraph 97
F22: LDNO LV: LV user | G22: % | H22: ='General inputs'!H33 -> 0.3157237856
F23: LDNO HV: LV user | G23: % | H23: ='General inputs'!H34 -> 0.4512313214
F24: LDNO HV: LV Sub user | G24: % | H24: ='General inputs'!H35 -> 0.1823533691
F25: LDNO HV: HV user | G25: % | H25: ='General inputs'!H36 -> 0.0739562248
E27: Discount mapping | I27: > | AA27: Paragraphs 98 & 99
E28: Maps customer types to LDNO discount categories and calculates the appropriate discount to be applied to
E29: each customer
F30: LDNO LV: LV user | G30: 1 or 0 | J30: ='Fixed inputs'!J46 -> 1 | K30: ='Fixed inputs'!K46 -> 1 | L30: ='Fixed inputs'!L46 -> 1 | M30: ='Fixed inputs'!M46 -> 1 | N30: ='Fixed inputs'!N46 -> 1 | O30: ='Fixed inputs'!O46 -> 0 | P30: ='Fixed inputs'!P46 -> 0 | Q30: ='Fixed inputs'!Q46 -> 1 | R30: ='Fixed inputs'!R46 -> 0 | S30: ='Fixed inputs'!S46 -> 0 | T30: ='Fixed inputs'!T46 -> 0 | U30: ='Fixed inputs'!U46 -> 0 | V30: ='Fixed inputs'!V46 -> 0 | W30: ='Fixed inputs'!W46 -> 0 | X30: ='Fixed inputs'!X46 -> 0 | Y30: ='Fixed inputs'!Y46 -> 0
F31: LDNO HV: LV user | G31: 1 or 0 | J31: ='Fixed inputs'!J47 -> 1 | K31: ='Fixed inputs'!K47 -> 1 | L31: ='Fixed inputs'!L47 -> 1 | M31: ='Fixed inputs'!M47 -> 1 | N31: ='Fixed inputs'!N47 -> 1 | O31: ='Fixed inputs'!O47 -> 0 | P31: ='Fixed inputs'!P47 -> 0 | Q31: ='Fixed inputs'!Q47 -> 1 | R31: ='Fixed inputs'!R47 -> 0 | S31: ='Fixed inputs'!S47 -> 0 | T31: ='Fixed inputs'!T47 -> 0 | U31: ='Fixed inputs'!U47 -> 0 | V31: ='Fixed inputs'!V47 -> 0 | W31: ='Fixed inputs'!W47 -> 0 | X31: ='Fixed inputs'!X47 -> 0 | Y31: ='Fixed inputs'!Y47 -> 0
F32: LDNO HV: LV Sub user | G32: 1 or 0 | J32: ='Fixed inputs'!J48 -> 0 | K32: ='Fixed inputs'!K48 -> 0 | L32: ='Fixed inputs'!L48 -> 0 | M32: ='Fixed inputs'!M48 -> 0 | N32: ='Fixed inputs'!N48 -> 0 | O32: ='Fixed inputs'!O48 -> 1 | P32: ='Fixed inputs'!P48 -> 0 | Q32: ='Fixed inputs'!Q48 -> 0 | R32: ='Fixed inputs'!R48 -> 0 | S32: ='Fixed inputs'!S48 -> 0 | T32: ='Fixed inputs'!T48 -> 0 | U32: ='Fixed inputs'!U48 -> 0 | V32: ='Fixed inputs'!V48 -> 0 | W32: ='Fixed inputs'!W48 -> 0 | X32: ='Fixed inputs'!X48 -> 0 | Y32: ='Fixed inputs'!Y48 -> 0
F33: LDNO HV: HV user | G33: 1 or 0 | J33: ='Fixed inputs'!J49 -> 0 | K33: ='Fixed inputs'!K49 -> 0 | L33: ='Fixed inputs'!L49 -> 0 | M33: ='Fixed inputs'!M49 -> 0 | N33: ='Fixed inputs'!N49 -> 0 | O33: ='Fixed inputs'!O49 -> 0 | P33: ='Fixed inputs'!P49 -> 1 | Q33: ='Fixed inputs'!Q49 -> 0 | R33: ='Fixed inputs'!R49 -> 0 | S33: ='Fixed inputs'!S49 -> 0 | T33: ='Fixed inputs'!T49 -> 0 | U33: ='Fixed inputs'!U49 -> 0 | V33: ='Fixed inputs'!V49 -> 0 | W33: ='Fixed inputs'!W49 -> 0 | X33: ='Fixed inputs'!X49 -> 0 | Y33: ='Fixed inputs'!Y49 -> 0
F34: LV discount | G34: % | J34: =J30 * $H$22 -> 0.3157237856 | K34: 0.3157237856 | L34: 0.3157237856 | M34: 0.3157237856 | N34: 0.3157237856 | O34: 0 | P34: 0 | Q34: 0.3157237856 | R34: 0 | S34: 0 | T34: 0 | U34: 0 | V34: 0 | W34: 0 | X34: 0 | Y34: 0
F35: HV discount | G35: % | J35: =SUMPRODUCT(J31:J33,$H$23:$H$25) -> 0.4512313214 | K35: 0.4512313214 | L35: 0.4512313214 | M35: 0.4512313214 | N35: 0.4512313214 | O35: 0.1823533691 | P35: 0.0739562248 | Q35: 0.4512313214 | R35: 0 | S35: 0 | T35: 0 | U35: 0 | V35: 0 | W35: 0 | X35: 0 | Y35: 0
E37: Discount override | I37: > | AA37: Paragraphs 98 & 99
E38: This table overrides discount factors for certain categories of user
F39: Flag for overriding MWh discount rate | G39: TRUE / FALSE | J39: ='Fixed inputs'!J105 -> FALSE | K39: ='Fixed inputs'!K105 -> FALSE | L39: ='Fixed inputs'!L105 -> FALSE | M39: ='Fixed inputs'!M105 -> FALSE | N39: ='Fixed inputs'!N105 -> FALSE | O39: ='Fixed inputs'!O105 -> FALSE | P39: ='Fixed inputs'!P105 -> FALSE | Q39: ='Fixed inputs'!Q105 -> FALSE | R39: ='Fixed inputs'!R105 -> TRUE | S39: ='Fixed inputs'!S105 -> TRUE | T39: ='Fixed inputs'!T105 -> TRUE | U39: ='Fixed inputs'!U105 -> TRUE | V39: ='Fixed inputs'!V105 -> TRUE | W39: ='Fixed inputs'!W105 -> TRUE | X39: ='Fixed inputs'!X105 -> TRUE | Y39: ='Fixed inputs'!Y105 -> TRUE
F40: Flag for overriding MPAN discount rate | G40: TRUE / FALSE | J40: ='Fixed inputs'!J109 -> FALSE | K40: ='Fixed inputs'!K109 -> FALSE | L40: ='Fixed inputs'!L109 -> FALSE | M40: ='Fixed inputs'!M109 -> FALSE | N40: ='Fixed inputs'!N109 -> FALSE | O40: ='Fixed inputs'!O109 -> FALSE | P40: ='Fixed inputs'!P109 -> FALSE | Q40: ='Fixed inputs'!Q109 -> FALSE | R40: ='Fixed inputs'!R109 -> TRUE | S40: ='Fixed inputs'!S109 -> TRUE | T40: ='Fixed inputs'!T109 -> TRUE | U40: ='Fixed inputs'!U109 -> TRUE | V40: ='Fixed inputs'!V109 -> TRUE | W40: ='Fixed inputs'!W109 -> TRUE | X40: ='Fixed inputs'!X109 -> TRUE | Y40: ='Fixed inputs'!Y109 -> TRUE
F41: Flag for overriding import capacity discount rate | G41: TRUE / FALSE | J41: ='Fixed inputs'!J113 -> FALSE | K41: ='Fixed inputs'!K113 -> FALSE | L41: ='Fixed inputs'!L113 -> FALSE | M41: ='Fixed inputs'!M113 -> FALSE | N41: ='Fixed inputs'!N113 -> FALSE | O41: ='Fixed inputs'!O113 -> FALSE | P41: ='Fixed inputs'!P113 -> FALSE | Q41: ='Fixed inputs'!Q113 -> FALSE | R41: ='Fixed inputs'!R113 -> TRUE | S41: ='Fixed inputs'!S113 -> TRUE | T41: ='Fixed inputs'!T113 -> TRUE | U41: ='Fixed inputs'!U113 -> TRUE | V41: ='Fixed inputs'!V113 -> TRUE | W41: ='Fixed inputs'!W113 -> TRUE | X41: ='Fixed inputs'!X113 -> TRUE | Y41: ='Fixed inputs'!Y113 -> TRUE
F42: Flag for overriding exceeded capacity discount rate | G42: TRUE / FALSE | J42: ='Fixed inputs'!J117 -> FALSE | K42: ='Fixed inputs'!K117 -> FALSE | L42: ='Fixed inputs'!L117 -> FALSE | M42: ='Fixed inputs'!M117 -> FALSE | N42: ='Fixed inputs'!N117 -> FALSE | O42: ='Fixed inputs'!O117 -> FALSE | P42: ='Fixed inputs'!P117 -> FALSE | Q42: ='Fixed inputs'!Q117 -> FALSE | R42: ='Fixed inputs'!R117 -> TRUE | S42: ='Fixed inputs'!S117 -> TRUE | T42: ='Fixed inputs'!T117 -> TRUE | U42: ='Fixed inputs'!U117 -> TRUE | V42: ='Fixed inputs'!V117 -> TRUE | W42: ='Fixed inputs'!W117 -> TRUE | X42: ='Fixed inputs'!X117 -> TRUE | Y42: ='Fixed inputs'!Y117 -> TRUE
F43: Flag for overriding reactive power units discount rate | G43: TRUE / FALSE | J43: ='Fixed inputs'!J121 -> FALSE | K43: ='Fixed inputs'!K121 -> FALSE | L43: ='Fixed inputs'!L121 -> FALSE | M43: ='Fixed inputs'!M121 -> FALSE | N43: ='Fixed inputs'!N121 -> FALSE | O43: ='Fixed inputs'!O121 -> FALSE | P43: ='Fixed inputs'!P121 -> FALSE | Q43: ='Fixed inputs'!Q121 -> FALSE | R43: ='Fixed inputs'!R121 -> TRUE | S43: ='Fixed inputs'!S121 -> TRUE | T43: ='Fixed inputs'!T121 -> TRUE | U43: ='Fixed inputs'!U121 -> TRUE | V43: ='Fixed inputs'!V121 -> TRUE | W43: ='Fixed inputs'!W121 -> TRUE | X43: ='Fixed inputs'!X121 -> TRUE | Y43: ='Fixed inputs'!Y121 -> TRUE
F45: Override MWh discount rate | G45: % | J45: ='Fixed inputs'!J106 -> 0 | K45: ='Fixed inputs'!K106 -> 0 | L45: ='Fixed inputs'!L106 -> 0 | M45: ='Fixed inputs'!M106 -> 0 | N45: ='Fixed inputs'!N106 -> 0 | O45: ='Fixed inputs'!O106 -> 0 | P45: ='Fixed inputs'!P106 -> 0 | Q45: ='Fixed inputs'!Q106 -> 0 | R45: ='Fixed inputs'!R106 -> 0 | S45: ='Fixed inputs'!S106 -> 0 | T45: ='Fixed inputs'!T106 -> 0 | U45: ='Fixed inputs'!U106 -> 0 | V45: ='Fixed inputs'!V106 -> 0 | W45: ='Fixed inputs'!W106 -> 0 | X45: ='Fixed inputs'!X106 -> 0 | Y45: ='Fixed inputs'!Y106 -> 0
F46: Override MPAN discount rate | G46: % | J46: ='Fixed inputs'!J110 -> 0 | K46: ='Fixed inputs'!K110 -> 0 | L46: ='Fixed inputs'!L110 -> 0 | M46: ='Fixed inputs'!M110 -> 0 | N46: ='Fixed inputs'!N110 -> 0 | O46: ='Fixed inputs'!O110 -> 0 | P46: ='Fixed inputs'!P110 -> 0 | Q46: ='Fixed inputs'!Q110 -> 0 | R46: ='Fixed inputs'!R110 -> 1 | S46: ='Fixed inputs'!S110 -> 1 | T46: ='Fixed inputs'!T110 -> 1 | U46: ='Fixed inputs'!U110 -> 1 | V46: ='Fixed inputs'!V110 -> 1 | W46: ='Fixed inputs'!W110 -> 1 | X46: ='Fixed inputs'!X110 -> 1 | Y46: ='Fixed inputs'!Y110 -> 1
F47: Override import capacity discount rate | G47: % | J47: ='Fixed inputs'!J114 -> 0 | K47: ='Fixed inputs'!K114 -> 0 | L47: ='Fixed inputs'!L114 -> 0 | M47: ='Fixed inputs'!M114 -> 0 | N47: ='Fixed inputs'!N114 -> 0 | O47: ='Fixed inputs'!O114 -> 0 | P47: ='Fixed inputs'!P114 -> 0 | Q47: ='Fixed inputs'!Q114 -> 0 | R47: ='Fixed inputs'!R114 -> 0 | S47: ='Fixed inputs'!S114 -> 0 | T47: ='Fixed inputs'!T114 -> 0 | U47: ='Fixed inputs'!U114 -> 0 | V47: ='Fixed inputs'!V114 -> 0 | W47: ='Fixed inputs'!W114 -> 0 | X47: ='Fixed inputs'!X114 -> 0 | Y47: ='Fixed inputs'!Y114 -> 0
F48: Override exceeded capacity discount rate | G48: % | J48: ='Fixed inputs'!J118 -> 0 | K48: ='Fixed inputs'!K118 -> 0 | L48: ='Fixed inputs'!L118 -> 0 | M48: ='Fixed inputs'!M118 -> 0 | N48: ='Fixed inputs'!N118 -> 0 | O48: ='Fixed inputs'!O118 -> 0 | P48: ='Fixed inputs'!P118 -> 0 | Q48: ='Fixed inputs'!Q118 -> 0 | R48: ='Fixed inputs'!R118 -> 0 | S48: ='Fixed inputs'!S118 -> 0 | T48: ='Fixed inputs'!T118 -> 0 | U48: ='Fixed inputs'!U118 -> 0 | V48: ='Fixed inputs'!V118 -> 0 | W48: ='Fixed inputs'!W118 -> 0 | X48: ='Fixed inputs'!X118 -> 0 | Y48: ='Fixed inputs'!Y118 -> 0
F49: Override reactive power units discount rate | G49: % | J49: ='Fixed inputs'!J122 -> 0 | K49: ='Fixed inputs'!K122 -> 0 | L49: ='Fixed inputs'!L122 -> 0 | M49: ='Fixed inputs'!M122 -> 0 | N49: ='Fixed inputs'!N122 -> 0 | O49: ='Fixed inputs'!O122 -> 0 | P49: ='Fixed inputs'!P122 -> 0 | Q49: ='Fixed inputs'!Q122 -> 0 | R49: ='Fixed inputs'!R122 -> 0 | S49: ='Fixed inputs'!S122 -> 0 | T49: ='Fixed inputs'!T122 -> 0 | U49: ='Fixed inputs'!U122 -> 0 | V49: ='Fixed inputs'!V122 -> 0 | W49: ='Fixed inputs'!W122 -> 0 | X49: ='Fixed inputs'!X122 -> 0 | Y49: ='Fixed inputs'!Y122 -> 0
B51: Volume discounting
C53: =INDEX('Version control'!$H$36:$H$62,MATCH($A$1,'Version control'!$F$36:$F$62,0),1)&"-B: Aggregation of volumes" -> Section 507-B: Aggregation of volumes
D55: Volumes for all the way tariffs are imported from the inputs, separately for each residual band.
E57: All the way volume forecast - No Residual | I57: >
F58: Rate 1 units | G58: MWh | K58: ='Inputs by customer type'!K26 -> 924.3914777 | L58: ='Inputs by customer type'!L26 -> 0.4857257086 | M58: ='Inputs by customer type'!M26 -> 14.97896821 | N58: ='Inputs by customer type'!N26 -> 170.0923137 | O58: ='Inputs by customer type'!O26 -> 9.256438149 | P58: ='Inputs by customer type'!P26 -> 864.9480633 | R58: ='Inputs by customer type'!R26 -> 550.5035216 | S58: ='Inputs by customer type'!S26 -> 0 | T58: ='Inputs by customer type'!T26 -> 4701.261161 | U58: ='Inputs by customer type'!U26 -> 0 | V58: ='Inputs by customer type'!V26 -> 782.3364198 | W58: ='Inputs by customer type'!W26 -> 0 | X58: ='Inputs by customer type'!X26 -> 204553.1855 | Y58: ='Inputs by customer type'!Y26 -> 0
F59: Rate 2 units | G59: MWh | K59: ='Inputs by customer type'!K27 -> 5947.64463 | L59: ='Inputs by customer type'!L27 -> 2.013741961 | M59: ='Inputs by customer type'!M27 -> 265.6529399 | N59: ='Inputs by customer type'!N27 -> 700.5958932 | O59: ='Inputs by customer type'!O27 -> 36.36246992 | P59: ='Inputs by customer type'!P27 -> 3316.849665 | R59: ='Inputs by customer type'!R27 -> 3304.412049 | S59: ='Inputs by customer type'!S27 -> 0 | T59: ='Inputs by customer type'!T27 -> 24162.77807 | U59: ='Inputs by customer type'!U27 -> 0 | V59: ='Inputs by customer type'!V27 -> 3056.143667 | W59: ='Inputs by customer type'!W27 -> 0 | X59: ='Inputs by customer type'!X27 -> 652329.434 | Y59: ='Inputs by customer type'!Y27 -> 0
F60: Rate 3 units | G60: MWh | K60: ='Inputs by customer type'!K28 -> 9848.374808 | L60: ='Inputs by customer type'!L28 -> 2.319408201 | M60: ='Inputs by customer type'!M28 -> 1076.711336 | N60: ='Inputs by customer type'!N28 -> 789.5733772 | O60: ='Inputs by customer type'!O28 -> 41.08632081 | P60: ='Inputs by customer type'!P28 -> 4865.181969 | R60: ='Inputs by customer type'!R28 -> 1638.448704 | S60: ='Inputs by customer type'!S28 -> 0 | T60: ='Inputs by customer type'!T28 -> 24343.70513 | U60: ='Inputs by customer type'!U28 -> 0 | V60: ='Inputs by customer type'!V28 -> 5098.269325 | W60: ='Inputs by customer type'!W28 -> 0 | X60: ='Inputs by customer type'!X28 -> 763459.485 | Y60: ='Inputs by customer type'!Y28 -> 0
F61: MPANs | G61: MPANs | K61: ='Inputs by customer type'!K29 -> 0 | L61: ='Inputs by customer type'!L29 -> 18.57556521 | M61: ='Inputs by customer type'!M29 -> 0 | N61: ='Inputs by customer type'!N29 -> 12.14601572 | O61: ='Inputs by customer type'!O29 -> 1.998910595 | P61: ='Inputs by customer type'!P29 -> 156.0219108 | R61: ='Inputs by customer type'!R29 -> 0 | S61: ='Inputs by customer type'!S29 -> 0 | T61: ='Inputs by customer type'!T29 -> 0 | U61: ='Inputs by customer type'!U29 -> 0 | V61: ='Inputs by customer type'!V29 -> 0 | W61: ='Inputs by customer type'!W29 -> 0 | X61: ='Inputs by customer type'!X29 -> 419.2334187 | Y61: ='Inputs by customer type'!Y29 -> 0
F62: Import capacity | G62: kVA | K62: ='Inputs by customer type'!K30 -> 0 | L62: ='Inputs by customer type'!L30 -> 0 | M62: ='Inputs by customer type'!M30 -> 0 | N62: ='Inputs by customer type'!N30 -> 1845.406836 | O62: ='Inputs by customer type'!O30 -> 164.9969713 | P62: ='Inputs by customer type'!P30 -> 28960.97977 | R62: ='Inputs by customer type'!R30 -> 0 | S62: ='Inputs by customer type'!S30 -> 0 | T62: ='Inputs by customer type'!T30 -> 0 | U62: ='Inputs by customer type'!U30 -> 0 | V62: ='Inputs by customer type'!V30 -> 0 | W62: ='Inputs by customer type'!W30 -> 0 | X62: ='Inputs by customer type'!X30 -> 0 | Y62: ='Inputs by customer type'!Y30 -> 0
F63: Exceeded capacity | G63: kVA | K63: ='Inputs by customer type'!K31 -> 0 | L63: ='Inputs by customer type'!L31 -> 0 | M63: ='Inputs by customer type'!M31 -> 0 | N63: ='Inputs by customer type'!N31 -> 0 | O63: ='Inputs by customer type'!O31 -> 0 | P63: ='Inputs by customer type'!P31 -> 707.1324082 | R63: ='Inputs by customer type'!R31 -> 0 | S63: ='Inputs by customer type'!S31 -> 0 | T63: ='Inputs by customer type'!T31 -> 0 | U63: ='Inputs by customer type'!U31 -> 0 | V63: ='Inputs by customer type'!V31 -> 0 | W63: ='Inputs by customer type'!W31 -> 0 | X63: ='Inputs by customer type'!X31 -> 0 | Y63: ='Inputs by customer type'!Y31 -> 0
F64: Reactive power units | G64: MVArh | K64: ='Inputs by customer type'!K32 -> 0 | L64: ='Inputs by customer type'!L32 -> 0 | M64: ='Inputs by customer type'!M32 -> 0 | N64: ='Inputs by customer type'!N32 -> 604.2964888 | O64: ='Inputs by customer type'!O32 -> 39.35640208 | P64: ='Inputs by customer type'!P32 -> 4982.220758 | R64: ='Inputs by customer type'!R32 -> 0 | S64: ='Inputs by customer type'!S32 -> 0 | T64: ='Inputs by customer type'!T32 -> 3844.493 | U64: ='Inputs by customer type'!U32 -> 0 | V64: ='Inputs by customer type'!V32 -> 428.348 | W64: ='Inputs by customer type'!W32 -> 0 | X64: ='Inputs by customer type'!X32 -> 27843.537 | Y64: ='Inputs by customer type'!Y32 -> 0
E66: All the way volume forecast - Residual Band 1 | I66: >
F67: Rate 1 units | G67: MWh | J67: ='Inputs by customer type'!J35 -> 975429.937 | L67: ='Inputs by customer type'!L35 -> 9704.71911 | N67: ='Inputs by customer type'!N35 -> 52220.85386 | O67: ='Inputs by customer type'!O35 -> 732.6621641 | P67: ='Inputs by customer type'!P35 -> 60750.65608 | Q67: ='Inputs by customer type'!Q35 -> 9195.778212
F68: Rate 2 units | G68: MWh | J68: ='Inputs by customer type'!J36 -> 2778294.32 | L68: ='Inputs by customer type'!L36 -> 40234.23044 | N68: ='Inputs by customer type'!N36 -> 215093.2924 | O68: ='Inputs by customer type'!O36 -> 2878.148751 | P68: ='Inputs by customer type'!P36 -> 232962.8816 | Q68: ='Inputs by customer type'!Q36 -> 39548.09734
F69: Rate 3 units | G69: MWh | J69: ='Inputs by customer type'!J37 -> 4541675.869 | L69: ='Inputs by customer type'!L37 -> 46341.39124 | N69: ='Inputs by customer type'!N37 -> 242410.6948 | O69: ='Inputs by customer type'!O37 -> 3252.049247 | P69: ='Inputs by customer type'!P37 -> 341711.8427 | Q69: ='Inputs by customer type'!Q37 -> 144666.2986
F70: MPANs | G70: MPANs | J70: ='Inputs by customer type'!J38 -> 2504951.132 | L70: ='Inputs by customer type'!L38 -> 72708.00382 | N70: ='Inputs by customer type'!N38 -> 5493.545153 | O70: ='Inputs by customer type'!O38 -> 21.85400318 | P70: ='Inputs by customer type'!P38 -> 1340.353373 | Q70: ='Inputs by customer type'!Q38 -> 3868
F71: Import capacity | G71: kVA | J71: ='Inputs by customer type'!J39 -> 0 | L71: ='Inputs by customer type'!L39 -> 0 | N71: ='Inputs by customer type'!N39 -> 274832.7843 | O71: ='Inputs by customer type'!O39 -> 1105.512296 | P71: ='Inputs by customer type'!P39 -> 312653.4316 | Q71: ='Inputs by customer type'!Q39 -> 0
F72: Exceeded capacity | G72: kVA | J72: ='Inputs by customer type'!J40 -> 0 | L72: ='Inputs by customer type'!L40 -> 0 | N72: ='Inputs by customer type'!N40 -> 24184.09078 | O72: ='Inputs by customer type'!O40 -> 2075.713489 | P72: ='Inputs by customer type'!P40 -> 12954.82295 | Q72: ='Inputs by customer type'!Q40 -> 0
F73: Reactive power units | G73: MVArh | J73: ='Inputs by customer type'!J41 -> 0 | L73: ='Inputs by customer type'!L41 -> 0 | N73: ='Inputs by customer type'!N41 -> 51926.74196 | O73: ='Inputs by customer type'!O41 -> 772.948487 | P73: ='Inputs by customer type'!P41 -> 79970.21394 | Q73: ='Inputs by customer type'!Q41 -> 0
E75: All the way volume forecast - Residual Band 2 | I75: >
F76: Rate 1 units | G76: MWh | L76: ='Inputs by customer type'!L44 -> 39516.43346 | N76: ='Inputs by customer type'!N44 -> 93718.46423 | O76: ='Inputs by customer type'!O44 -> 954.4783504 | P76: ='Inputs by customer type'!P44 -> 146999.6318
F77: Rate 2 units | G77: MWh | L77: ='Inputs by customer type'!L45 -> 163828.8828 | N77: ='Inputs by customer type'!N45 -> 386018.4493 | O77: ='Inputs by customer type'!O45 -> 3749.518956 | P77: ='Inputs by customer type'!P45 -> 563705.1521
F78: Rate 3 units | G78: MWh | L78: ='Inputs by customer type'!L46 -> 188696.4973 | N78: ='Inputs by customer type'!N46 -> 435043.7872 | O78: ='Inputs by customer type'!O46 -> 4236.619213 | P78: ='Inputs by customer type'!P46 -> 826847.2856
F79: MPANs | G79: MPANs | L79: ='Inputs by customer type'!L47 -> 53941.20376 | N79: ='Inputs by customer type'!N47 -> 5852.243203 | O79: ='Inputs by customer type'!O47 -> 27.99997076 | P79: ='Inputs by customer type'!P47 -> 1046.955857
F80: Import capacity | G80: kVA | L80: ='Inputs by customer type'!L48 -> 0 | N80: ='Inputs by customer type'!N48 -> 677910.2799 | O80: ='Inputs by customer type'!O48 -> 3423.996385 | P80: ='Inputs by customer type'!P48 -> 681797.5775
F81: Exceeded capacity | G81: kVA | L81: ='Inputs by customer type'!L49 -> 0 | N81: ='Inputs by customer type'!N49 -> 4418.833487 | O81: ='Inputs by customer type'!O49 -> 69.59932424 | P81: ='Inputs by customer type'!P49 -> 5505.599608
F82: Reactive power units | G82: MVArh | L82: ='Inputs by customer type'!L50 -> 0 | N82: ='Inputs by customer type'!N50 -> 89900.4172 | O82: ='Inputs by customer type'!O50 -> 516.8528444 | P82: ='Inputs by customer type'!P50 -> 111503.2697
E84: All the way volume forecast - Residual Band 3 | I84: >
F85: Rate 1 units | G85: MWh | L85: ='Inputs by customer type'!L53 -> 48387.60416 | N85: ='Inputs by customer type'!N53 -> 60151.05335 | O85: ='Inputs by customer type'!O53 -> 1800.497752 | P85: ='Inputs by customer type'!P53 -> 106796.5551
F86: Rate 2 units | G86: MWh | L86: ='Inputs by customer type'!L54 -> 200607.3534 | N86: ='Inputs by customer type'!N54 -> 247757.1152 | O86: ='Inputs by customer type'!O54 -> 7072.973888 | P86: ='Inputs by customer type'!P54 -> 409536.8647
F87: Rate 3 units | G87: MWh | L87: ='Inputs by customer type'!L55 -> 231057.5783 | N87: ='Inputs by customer type'!N55 -> 279222.9073 | O87: ='Inputs by customer type'!O55 -> 7991.824397 | P87: ='Inputs by customer type'!P55 -> 600711.9922
F88: MPANs | G88: MPANs | L88: ='Inputs by customer type'!L56 -> 26404.56913 | N88: ='Inputs by customer type'!N56 -> 2369.538627 | O88: ='Inputs by customer type'!O56 -> 35.00018354 | P88: ='Inputs by customer type'!P56 -> 331.041352
F89: Import capacity | G89: kVA | L89: ='Inputs by customer type'!L57 -> 0 | N89: ='Inputs by customer type'!N57 -> 437457.8224 | O89: ='Inputs by customer type'!O57 -> 6357.019394 | P89: ='Inputs by customer type'!P57 -> 454251.6589
F90: Exceeded capacity | G90: kVA | L90: ='Inputs by customer type'!L58 -> 0 | N90: ='Inputs by customer type'!N58 -> 2168.537881 | O90: ='Inputs by customer type'!O58 -> 49.81187025 | P90: ='Inputs by customer type'!P58 -> 7290.627056
F91: Reactive power units | G91: MVArh | L91: ='Inputs by customer type'!L59 -> 0 | N91: ='Inputs by customer type'!N59 -> 62023.22914 | O91: ='Inputs by customer type'!O59 -> 1238.546328 | P91: ='Inputs by customer type'!P59 -> 109060.2484
E93: All the way volume forecast - Residual Band 4 | I93: >
F94: Rate 1 units | G94: MWh | L94: ='Inputs by customer type'!L62 -> 174878.8278 | N94: ='Inputs by customer type'!N62 -> 103177.2415 | O94: ='Inputs by customer type'!O62 -> 28678.43698 | P94: ='Inputs by customer type'!P62 -> 322713.4235
F95: Rate 2 units | G95: MWh | L95: ='Inputs by customer type'!L63 -> 725019.9596 | N95: ='Inputs by customer type'!N63 -> 424978.3551 | O95: ='Inputs by customer type'!O63 -> 112658.7555 | P95: ='Inputs by customer type'!P63 -> 1237521.599
F96: Rate 3 units | G96: MWh | L96: ='Inputs by customer type'!L64 -> 835070.8647 | N96: ='Inputs by customer type'!N64 -> 478951.7014 | O96: ='Inputs by customer type'!O64 -> 127294.2619 | P96: ='Inputs by customer type'!P64 -> 1815206.711
F97: MPANs | G97: MPANs | L97: ='Inputs by customer type'!L65 -> 29474.53586 | N97: ='Inputs by customer type'!N65 -> 2032.800014 | O97: ='Inputs by customer type'!O65 -> 345.9649854 | P97: ='Inputs by customer type'!P65 -> 378.1672404
F98: Import capacity | G98: kVA | L98: ='Inputs by customer type'!L66 -> 0 | N98: ='Inputs by customer type'!N66 -> 698054.0823 | O98: ='Inputs by customer type'!O66 -> 173861.6068 | P98: ='Inputs by customer type'!P66 -> 1271080.889
F99: Exceeded capacity | G99: kVA | L99: ='Inputs by customer type'!L67 -> 0 | N99: ='Inputs by customer type'!N67 -> 2509.650249 | O99: ='Inputs by customer type'!O67 -> 268.2014746 | P99: ='Inputs by customer type'!P67 -> 10584.56818
F100: Reactive power units | G100: MVArh | L100: ='Inputs by customer type'!L68 -> 0 | N100: ='Inputs by customer type'!N68 -> 99237.88021 | O100: ='Inputs by customer type'!O68 -> 20626.51494 | P100: ='Inputs by customer type'!P68 -> 253676.8872
D102: Volumes for LNDO LV tariffs are imported from the inputs, separately for each residual band.
E104: LDNO LV volume forecast - No Residual | I104: >
F105: Rate 1 units | G105: MWh | K105: ='Inputs by customer type'!K73 -> 0 | L105: ='Inputs by customer type'!L73 -> 0.001688845307 | M105: ='Inputs by customer type'!M73 -> 0 | N105: ='Inputs by customer type'!N73 -> 1.444792823 | O105: ='Inputs by customer type'!O73 -> 0 | P105: ='Inputs by customer type'!P73 -> 0 | R105: ='Inputs by customer type'!R73 -> 10.342 | T105: ='Inputs by customer type'!T73 -> 0
F106: Rate 2 units | G106: MWh | K106: ='Inputs by customer type'!K74 -> 0 | L106: ='Inputs by customer type'!L74 -> 0.007094181841 | M106: ='Inputs by customer type'!M74 -> 0 | N106: ='Inputs by customer type'!N74 -> 5.407373549 | O106: ='Inputs by customer type'!O74 -> 0 | P106: ='Inputs by customer type'!P74 -> 0 | R106: ='Inputs by customer type'!R74 -> 46.381 | T106: ='Inputs by customer type'!T74 -> 0
F107: Rate 3 units | G107: MWh | K107: ='Inputs by customer type'!K75 -> 0 | L107: ='Inputs by customer type'!L75 -> 0.007163490609 | M107: ='Inputs by customer type'!M75 -> 0 | N107: ='Inputs by customer type'!N75 -> 7.113006746 | O107: ='Inputs by customer type'!O75 -> 0 | P107: ='Inputs by customer type'!P75 -> 0 | R107: ='Inputs by customer type'!R75 -> 19.3 | T107: ='Inputs by customer type'!T75 -> 0
F108: MPANs | G108: MPANs | K108: ='Inputs by customer type'!K76 -> 0 | L108: ='Inputs by customer type'!L76 -> 0.1156628403 | M108: ='Inputs by customer type'!M76 -> 0 | N108: ='Inputs by customer type'!N76 -> 0.1000642349 | O108: ='Inputs by customer type'!O76 -> 0 | P108: ='Inputs by customer type'!P76 -> 0 | R108: ='Inputs by customer type'!R76 -> 0 | T108: ='Inputs by customer type'!T76 -> 0
F109: Import capacity | G109: kVA | K109: ='Inputs by customer type'!K77 -> 0 | L109: ='Inputs by customer type'!L77 -> 0 | M109: ='Inputs by customer type'!M77 -> 0 | N109: ='Inputs by customer type'!N77 -> 18.81692516 | O109: ='Inputs by customer type'!O77 -> 0 | P109: ='Inputs by customer type'!P77 -> 0 | R109: ='Inputs by customer type'!R77 -> 0 | T109: ='Inputs by customer type'!T77 -> 0
F110: Exceeded capacity | G110: kVA | K110: ='Inputs by customer type'!K78 -> 0 | L110: ='Inputs by customer type'!L78 -> 0 | M110: ='Inputs by customer type'!M78 -> 0 | N110: ='Inputs by customer type'!N78 -> 0 | O110: ='Inputs by customer type'!O78 -> 0 | P110: ='Inputs by customer type'!P78 -> 0 | R110: ='Inputs by customer type'!R78 -> 0 | T110: ='Inputs by customer type'!T78 -> 0
F111: Reactive power units | G111: MVArh | K111: ='Inputs by customer type'!K79 -> 0 | L111: ='Inputs by customer type'!L79 -> 0 | M111: ='Inputs by customer type'!M79 -> 0 | N111: ='Inputs by customer type'!N79 -> 3.910955714 | O111: ='Inputs by customer type'!O79 -> 0 | P111: ='Inputs by customer type'!P79 -> 0 | R111: ='Inputs by customer type'!R79 -> 0 | T111: ='Inputs by customer type'!T79 -> 0
E113: LDNO LV volume forecast - Residual Band 1 | I113: >
F114: Rate 1 units | G114: MWh | J114: ='Inputs by customer type'!J82 -> 22204.02882 | L114: ='Inputs by customer type'!L82 -> 33.74284918 | N114: ='Inputs by customer type'!N82 -> 443.5727472 | O114: ='Inputs by customer type'!O82 -> 0 | P114: ='Inputs by customer type'!P82 -> 0 | Q114: ='Inputs by customer type'!Q82 -> 0
F115: Rate 2 units | G115: MWh | J115: ='Inputs by customer type'!J83 -> 60429.31594 | L115: ='Inputs by customer type'!L83 -> 141.7405768 | N115: ='Inputs by customer type'!N83 -> 1660.143588 | O115: ='Inputs by customer type'!O83 -> 0 | P115: ='Inputs by customer type'!P83 -> 0 | Q115: ='Inputs by customer type'!Q83 -> 0
F116: Rate 3 units | G116: MWh | J116: ='Inputs by customer type'!J84 -> 90936.62551 | L116: ='Inputs by customer type'!L84 -> 143.1253545 | N116: ='Inputs by customer type'!N84 -> 2183.798184 | O116: ='Inputs by customer type'!O84 -> 0 | P116: ='Inputs by customer type'!P84 -> 0 | Q116: ='Inputs by customer type'!Q84 -> 0
F117: MPANs | G117: MPANs | J117: ='Inputs by customer type'!J85 -> 57281.99508 | L117: ='Inputs by customer type'!L85 -> 452.7245412 | N117: ='Inputs by customer type'!N85 -> 45.2582481 | O117: ='Inputs by customer type'!O85 -> 0 | P117: ='Inputs by customer type'!P85 -> 0 | Q117: ='Inputs by customer type'!Q85 -> 0
F118: Import capacity | G118: kVA | J118: ='Inputs by customer type'!J86 -> 0 | L118: ='Inputs by customer type'!L86 -> 0 | N118: ='Inputs by customer type'!N86 -> 2802.367387 | O118: ='Inputs by customer type'!O86 -> 0 | P118: ='Inputs by customer type'!P86 -> 0 | Q118: ='Inputs by customer type'!Q86 -> 0
F119: Exceeded capacity | G119: kVA | J119: ='Inputs by customer type'!J87 -> 0 | L119: ='Inputs by customer type'!L87 -> 0 | N119: ='Inputs by customer type'!N87 -> 39.60046294 | O119: ='Inputs by customer type'!O87 -> 0 | P119: ='Inputs by customer type'!P87 -> 0 | Q119: ='Inputs by customer type'!Q87 -> 0
F120: Reactive power units | G120: MVArh | J120: ='Inputs by customer type'!J88 -> 0 | L120: ='Inputs by customer type'!L88 -> 0 | N120: ='Inputs by customer type'!N88 -> 336.0654777 | O120: ='Inputs by customer type'!O88 -> 0 | P120: ='Inputs by customer type'!P88 -> 0 | Q120: ='Inputs by customer type'!Q88 -> 0
E122: LDNO LV volume forecast - Residual Band 2 | I122: >
F123: Rate 1 units | G123: MWh | L123: ='Inputs by customer type'!L91 -> 137.3967695 | N123: ='Inputs by customer type'!N91 -> 796.0604543 | O123: ='Inputs by customer type'!O91 -> 0 | P123: ='Inputs by customer type'!P91 -> 0
F124: Rate 2 units | G124: MWh | L124: ='Inputs by customer type'!L92 -> 577.150354 | N124: ='Inputs by customer type'!N92 -> 2979.386509 | O124: ='Inputs by customer type'!O92 -> 0 | P124: ='Inputs by customer type'!P92 -> 0
F125: Rate 3 units | G125: MWh | L125: ='Inputs by customer type'!L93 -> 582.789 | N125: ='Inputs by customer type'!N93 -> 3919.166328 | O125: ='Inputs by customer type'!O93 -> 0 | P125: ='Inputs by customer type'!P93 -> 0
F126: MPANs | G126: MPANs | L126: ='Inputs by customer type'!L94 -> 335.8709557 | N126: ='Inputs by customer type'!N94 -> 48.21336086 | O126: ='Inputs by customer type'!O94 -> 0 | P126: ='Inputs by customer type'!P94 -> 0
F127: Import capacity | G127: kVA | L127: ='Inputs by customer type'!L95 -> 0 | N127: ='Inputs by customer type'!N95 -> 6912.398259 | O127: ='Inputs by customer type'!O95 -> 0 | P127: ='Inputs by customer type'!P95 -> 0
F128: Exceeded capacity | G128: kVA | L128: ='Inputs by customer type'!L96 -> 0 | N128: ='Inputs by customer type'!N96 -> 7.235659728 | O128: ='Inputs by customer type'!O96 -> 0 | P128: ='Inputs by customer type'!P96 -> 0
F129: Reactive power units | G129: MVArh | L129: ='Inputs by customer type'!L97 -> 0 | N129: ='Inputs by customer type'!N97 -> 581.8278889 | O129: ='Inputs by customer type'!O97 -> 0 | P129: ='Inputs by customer type'!P97 -> 0
E131: LDNO LV volume forecast - Residual Band 3 | I131: >
F132: Rate 1 units | G132: MWh | L132: ='Inputs by customer type'!L100 -> 168.2414103 | N132: ='Inputs by customer type'!N100 -> 510.9332003 | O132: ='Inputs by customer type'!O100 -> 0 | P132: ='Inputs by customer type'!P100 -> 0
F133: Rate 2 units | G133: MWh | L133: ='Inputs by customer type'!L101 -> 706.7166854 | N133: ='Inputs by customer type'!N101 -> 1912.251105 | O133: ='Inputs by customer type'!O101 -> 0 | P133: ='Inputs by customer type'!P101 -> 0
F134: Rate 3 units | G134: MWh | L134: ='Inputs by customer type'!L102 -> 713.6211691 | N134: ='Inputs by customer type'!N102 -> 2515.427294 | O134: ='Inputs by customer type'!O102 -> 0 | P134: ='Inputs by customer type'!P102 -> 0
F135: MPANs | G135: MPANs | L135: ='Inputs by customer type'!L103 -> 164.4110114 | N135: ='Inputs by customer type'!N103 -> 19.52130438 | O135: ='Inputs by customer type'!O103 -> 0 | P135: ='Inputs by customer type'!P103 -> 0
F136: Import capacity | G136: kVA | L136: ='Inputs by customer type'!L104 -> 0 | N136: ='Inputs by customer type'!N104 -> 4460.59424 | O136: ='Inputs by customer type'!O104 -> 0 | P136: ='Inputs by customer type'!P104 -> 0
F137: Exceeded capacity | G137: kVA | L137: ='Inputs by customer type'!L105 -> 0 | N137: ='Inputs by customer type'!N105 -> 3.550892393 | O137: ='Inputs by customer type'!O105 -> 0 | P137: ='Inputs by customer type'!P105 -> 0
F138: Reactive power units | G138: MVArh | L138: ='Inputs by customer type'!L106 -> 0 | N138: ='Inputs by customer type'!N106 -> 401.4090879 | O138: ='Inputs by customer type'!O106 -> 0 | P138: ='Inputs by customer type'!P106 -> 0
E140: LDNO LV volume forecast - Residual Band 4 | I140: >
F141: Rate 1 units | G141: MWh | L141: ='Inputs by customer type'!L109 -> 608.0454102 | N141: ='Inputs by customer type'!N109 -> 876.4049051 | O141: ='Inputs by customer type'!O109 -> 0 | P141: ='Inputs by customer type'!P109 -> 0
F142: Rate 2 units | G142: MWh | L142: ='Inputs by customer type'!L110 -> 2554.162118 | N142: ='Inputs by customer type'!N110 -> 3280.088762 | O142: ='Inputs by customer type'!O110 -> 0 | P142: ='Inputs by customer type'!P110 -> 0
F143: Rate 3 units | G143: MWh | L143: ='Inputs by customer type'!L111 -> 2579.115782 | N143: ='Inputs by customer type'!N111 -> 4314.718279 | O143: ='Inputs by customer type'!O111 -> 0 | P143: ='Inputs by customer type'!P111 -> 0
F144: MPANs | G144: MPANs | L144: ='Inputs by customer type'!L112 -> 183.5265036 | N144: ='Inputs by customer type'!N112 -> 16.74710316 | O144: ='Inputs by customer type'!O112 -> 0 | P144: ='Inputs by customer type'!P112 -> 0
F145: Import capacity | G145: kVA | L145: ='Inputs by customer type'!L113 -> 0 | N145: ='Inputs by customer type'!N113 -> 7117.797098 | O145: ='Inputs by customer type'!O113 -> 0 | P145: ='Inputs by customer type'!P113 -> 0
F146: Exceeded capacity | G146: kVA | L146: ='Inputs by customer type'!L114 -> 0 | N146: ='Inputs by customer type'!N114 -> 4.109449992 | O146: ='Inputs by customer type'!O114 -> 0 | P146: ='Inputs by customer type'!P114 -> 0
F147: Reactive power units | G147: MVArh | L147: ='Inputs by customer type'!L115 -> 0 | N147: ='Inputs by customer type'!N115 -> 642.2591589 | O147: ='Inputs by customer type'!O115 -> 0 | P147: ='Inputs by customer type'!P115 -> 0
D149: Volumes for LNDO HV tariffs are imported from the inputs, separately for each residual band.
E151: LDNO HV volume forecast - No Residual | I151: >
F152: Rate 1 units | G152: MWh | K152: ='Inputs by customer type'!K120 -> 0 | L152: ='Inputs by customer type'!L120 -> 0.006156730838 | M152: ='Inputs by customer type'!M120 -> 0 | N152: ='Inputs by customer type'!N120 -> 14.26963402 | O152: ='Inputs by customer type'!O120 -> 1.783623898 | P152: ='Inputs by customer type'!P120 -> 20.18597711 | R152: ='Inputs by customer type'!R120 -> 8.067 | S152: ='Inputs by customer type'!S120 -> 0 | T152: ='Inputs by customer type'!T120 -> 11.044 | U152: ='Inputs by customer type'!U120 -> 0 | V152: ='Inputs by customer type'!V120 -> 0 | W152: ='Inputs by customer type'!W120 -> 0 | X152: ='Inputs by customer type'!X120 -> 128.713 | Y152: ='Inputs by customer type'!Y120 -> 0
F153: Rate 2 units | G153: MWh | K153: ='Inputs by customer type'!K121 -> 0 | L153: ='Inputs by customer type'!L121 -> 0.02591556624 | M153: ='Inputs by customer type'!M121 -> 0 | N153: ='Inputs by customer type'!N121 -> 52.28103226 | O153: ='Inputs by customer type'!O121 -> 6.622971314 | P153: ='Inputs by customer type'!P121 -> 71.0456301 | R153: ='Inputs by customer type'!R121 -> 46.381 | S153: ='Inputs by customer type'!S121 -> 0 | T153: ='Inputs by customer type'!T121 -> 156.562 | U153: ='Inputs by customer type'!U121 -> 0 | V153: ='Inputs by customer type'!V121 -> 0 | W153: ='Inputs by customer type'!W121 -> 0 | X153: ='Inputs by customer type'!X121 -> 193.765 | Y153: ='Inputs by customer type'!Y121 -> 0
F154: Rate 3 units | G154: MWh | K154: ='Inputs by customer type'!K122 -> 0 | L154: ='Inputs by customer type'!L122 -> 0.02521764829 | M154: ='Inputs by customer type'!M122 -> 0 | N154: ='Inputs by customer type'!N122 -> 71.78736575 | O154: ='Inputs by customer type'!O122 -> 9.237182989 | P154: ='Inputs by customer type'!P122 -> 114.6212469 | R154: ='Inputs by customer type'!R122 -> 19.3 | S154: ='Inputs by customer type'!S122 -> 0 | T154: ='Inputs by customer type'!T122 -> 105.795 | U154: ='Inputs by customer type'!U122 -> 0 | V154: ='Inputs by customer type'!V122 -> 0 | W154: ='Inputs by customer type'!W122 -> 0 | X154: ='Inputs by customer type'!X122 -> 248.323 | Y154: ='Inputs by customer type'!Y122 -> 0
F155: MPANs | G155: MPANs | K155: ='Inputs by customer type'!K123 -> 0 | L155: ='Inputs by customer type'!L123 -> 0.3324103689 | M155: ='Inputs by customer type'!M123 -> 0 | N155: ='Inputs by customer type'!N123 -> 0.589017602 | O155: ='Inputs by customer type'!O123 -> 0.2883891806 | P155: ='Inputs by customer type'!P123 -> 3.27051687 | R155: ='Inputs by customer type'!R123 -> 0 | S155: ='Inputs by customer type'!S123 -> 0 | T155: ='Inputs by customer type'!T123 -> 0 | U155: ='Inputs by customer type'!U123 -> 0 | V155: ='Inputs by customer type'!V123 -> 0 | W155: ='Inputs by customer type'!W123 -> 0 | X155: ='Inputs by customer type'!X123 -> 0 | Y155: ='Inputs by customer type'!Y123 -> 0
F156: Import capacity | G156: kVA | K156: ='Inputs by customer type'!K124 -> 0 | L156: ='Inputs by customer type'!L124 -> 0 | M156: ='Inputs by customer type'!M124 -> 0 | N156: ='Inputs by customer type'!N124 -> 191.1151334 | O156: ='Inputs by customer type'!O124 -> 44.69724834 | P156: ='Inputs by customer type'!P124 -> 1056.783132 | R156: ='Inputs by customer type'!R124 -> 0 | S156: ='Inputs by customer type'!S124 -> 0 | T156: ='Inputs by customer type'!T124 -> 0 | U156: ='Inputs by customer type'!U124 -> 0 | V156: ='Inputs by customer type'!V124 -> 0 | W156: ='Inputs by customer type'!W124 -> 0 | X156: ='Inputs by customer type'!X124 -> 0 | Y156: ='Inputs by customer type'!Y124 -> 0
F157: Exceeded capacity | G157: kVA | K157: ='Inputs by customer type'!K125 -> 0 | L157: ='Inputs by customer type'!L125 -> 0 | M157: ='Inputs by customer type'!M125 -> 0 | N157: ='Inputs by customer type'!N125 -> 0 | O157: ='Inputs by customer type'!O125 -> 0 | P157: ='Inputs by customer type'!P125 -> 0.4148464325 | R157: ='Inputs by customer type'!R125 -> 0 | S157: ='Inputs by customer type'!S125 -> 0 | T157: ='Inputs by customer type'!T125 -> 0 | U157: ='Inputs by customer type'!U125 -> 0 | V157: ='Inputs by customer type'!V125 -> 0 | W157: ='Inputs by customer type'!W125 -> 0 | X157: ='Inputs by customer type'!X125 -> 0 | Y157: ='Inputs by customer type'!Y125 -> 0
F158: Reactive power units | G158: MVArh | K158: ='Inputs by customer type'!K126 -> 0 | L158: ='Inputs by customer type'!L126 -> 0 | M158: ='Inputs by customer type'!M126 -> 0 | N158: ='Inputs by customer type'!N126 -> 22.53154224 | O158: ='Inputs by customer type'!O126 -> 3.606942693 | P158: ='Inputs by customer type'!P126 -> 28.68160978 | R158: ='Inputs by customer type'!R126 -> 0 | S158: ='Inputs by customer type'!S126 -> 0 | T158: ='Inputs by customer type'!T126 -> 19.75442191 | U158: ='Inputs by customer type'!U126 -> 0 | V158: ='Inputs by customer type'!V126 -> 0 | W158: ='Inputs by customer type'!W126 -> 0 | X158: ='Inputs by customer type'!X126 -> 9.808495823 | Y158: ='Inputs by customer type'!Y126 -> 0
E160: LDNO HV volume forecast - Residual Band 1 | I160: >
F161: Rate 1 units | G161: MWh | J161: ='Inputs by customer type'!J129 -> 53865.61822 | L161: ='Inputs by customer type'!L129 -> 123.0104612 | N161: ='Inputs by customer type'!N129 -> 4380.988515 | O161: ='Inputs by customer type'!O129 -> 141.1767381 | P161: ='Inputs by customer type'!P129 -> 1417.786114 | Q161: ='Inputs by customer type'!Q129 -> 0
F162: Rate 2 units | G162: MWh | J162: ='Inputs by customer type'!J130 -> 146183.8961 | L162: ='Inputs by customer type'!L130 -> 517.788716 | N162: ='Inputs by customer type'!N130 -> 16051.04949 | O162: ='Inputs by customer type'!O130 -> 524.2189725 | P162: ='Inputs by customer type'!P130 -> 4989.974339 | Q162: ='Inputs by customer type'!Q130 -> 0
F163: Rate 3 units | G163: MWh | J163: ='Inputs by customer type'!J131 -> 219728.3121 | L163: ='Inputs by customer type'!L131 -> 503.844431 | N163: ='Inputs by customer type'!N131 -> 22039.78213 | O163: ='Inputs by customer type'!O131 -> 731.1380868 | P163: ='Inputs by customer type'!P131 -> 8050.559614 | Q163: ='Inputs by customer type'!Q131 -> 0
F164: MPANs | G164: MPANs | J164: ='Inputs by customer type'!J132 -> 137109.3555 | L164: ='Inputs by customer type'!L132 -> 1301.112192 | N164: ='Inputs by customer type'!N132 -> 266.4079207 | O164: ='Inputs by customer type'!O132 -> 3.152946453 | P164: ='Inputs by customer type'!P132 -> 28.09636348 | Q164: ='Inputs by customer type'!Q132 -> 0
F165: Import capacity | G165: kVA | J165: ='Inputs by customer type'!J133 -> 0 | L165: ='Inputs by customer type'!L133 -> 0 | N165: ='Inputs by customer type'!N133 -> 28462.39821 | O165: ='Inputs by customer type'!O133 -> 299.4803919 | P165: ='Inputs by customer type'!P133 -> 11408.69112 | Q165: ='Inputs by customer type'!Q133 -> 0
F166: Exceeded capacity | G166: kVA | J166: ='Inputs by customer type'!J134 -> 0 | L166: ='Inputs by customer type'!L134 -> 0 | N166: ='Inputs by customer type'!N134 -> 178.0100778 | O166: ='Inputs by customer type'!O134 -> 65.89958381 | P166: ='Inputs by customer type'!P134 -> 7.600078887 | Q166: ='Inputs by customer type'!Q134 -> 0
F167: Reactive power units | G167: MVArh | J167: ='Inputs by customer type'!J135 -> 0 | L167: ='Inputs by customer type'!L135 -> 0 | N167: ='Inputs by customer type'!N135 -> 1936.118447 | O167: ='Inputs by customer type'!O135 -> 70.83932348 | P167: ='Inputs by customer type'!P135 -> 460.3719068 | Q167: ='Inputs by customer type'!Q135 -> 0
E169: LDNO HV volume forecast - Residual Band 2 | I169: >
F170: Rate 1 units | G170: MWh | L170: ='Inputs by customer type'!L138 -> 500.883606 | N170: ='Inputs by customer type'!N138 -> 7862.36695 | O170: ='Inputs by customer type'!O138 -> 183.918519 | P170: ='Inputs by customer type'!P138 -> 3430.646683
F171: Rate 2 units | G171: MWh | L171: ='Inputs by customer type'!L139 -> 2108.372546 | N171: ='Inputs by customer type'!N139 -> 28806.11091 | O171: ='Inputs by customer type'!O139 -> 682.9282098 | P171: ='Inputs by customer type'!P139 -> 12074.34517
F172: Rate 3 units | G172: MWh | L172: ='Inputs by customer type'!L140 -> 2051.593117 | N172: ='Inputs by customer type'!N140 -> 39553.82536 | O172: ='Inputs by customer type'!O140 -> 952.492853 | P172: ='Inputs by customer type'!P140 -> 19480.10731
F173: MPANs | G173: MPANs | L173: ='Inputs by customer type'!L141 -> 965.2796693 | N173: ='Inputs by customer type'!N141 -> 283.8028814 | O173: ='Inputs by customer type'!O141 -> 4.039644717 | P173: ='Inputs by customer type'!P141 -> 21.94619188
F174: Import capacity | G174: kVA | L174: ='Inputs by customer type'!L142 -> 0 | N174: ='Inputs by customer type'!N142 -> 70206.1524 | O174: ='Inputs by customer type'!O142 -> 927.5516728 | P174: ='Inputs by customer type'!P142 -> 24878.7225
F175: Exceeded capacity | G175: kVA | L175: ='Inputs by customer type'!L143 -> 0 | N175: ='Inputs by customer type'!N143 -> 32.5253862 | O175: ='Inputs by customer type'!O143 -> 2.209633712 | P175: ='Inputs by customer type'!P143 -> 3.229916109
F176: Reactive power units | G176: MVArh | L176: ='Inputs by customer type'!L144 -> 0 | N176: ='Inputs by customer type'!N144 -> 3351.988775 | O176: ='Inputs by customer type'!O144 -> 47.36862345 | P176: ='Inputs by customer type'!P144 -> 641.9011572
E178: LDNO HV volume forecast - Residual Band 3 | I178: >
F179: Rate 1 units | G179: MWh | L179: ='Inputs by customer type'!L147 -> 613.3285709 | N179: ='Inputs by customer type'!N147 -> 5046.28045 | O179: ='Inputs by customer type'!O147 -> 346.9380733 | P179: ='Inputs by customer type'!P147 -> 2492.395681
F180: Rate 2 units | G180: MWh | L180: ='Inputs by customer type'!L148 -> 2581.687852 | N180: ='Inputs by customer type'!N148 -> 18488.54362 | O180: ='Inputs by customer type'!O148 -> 1288.254161 | P180: ='Inputs by customer type'!P148 -> 8772.120398
F181: Rate 3 units | G181: MWh | L181: ='Inputs by customer type'!L149 -> 2512.161826 | N181: ='Inputs by customer type'!N149 -> 25386.71839 | O181: ='Inputs by customer type'!O149 -> 1796.752372 | P181: ='Inputs by customer type'!P149 -> 14152.47322
F182: MPANs | G182: MPANs | L182: ='Inputs by customer type'!L150 -> 472.5106594 | N182: ='Inputs by customer type'!N150 -> 114.9101065 | O182: ='Inputs by customer type'!O150 -> 5.049587651 | P182: ='Inputs by customer type'!P150 -> 6.939258214
F183: Import capacity | G183: kVA | L183: ='Inputs by customer type'!L151 -> 0 | N183: ='Inputs by customer type'!N151 -> 45304.27028 | O183: ='Inputs by customer type'!O151 -> 1722.099941 | P183: ='Inputs by customer type'!P151 -> 16575.59566
F184: Exceeded capacity | G184: kVA | L184: ='Inputs by customer type'!L152 -> 0 | N184: ='Inputs by customer type'!N152 -> 15.96179903 | O184: ='Inputs by customer type'!O152 -> 1.581423224 | P184: ='Inputs by customer type'!P152 -> 4.27712065
F185: Reactive power units | G185: MVArh | L185: ='Inputs by customer type'!L153 -> 0 | N185: ='Inputs by customer type'!N153 -> 2312.57178 | O185: ='Inputs by customer type'!O153 -> 113.510519 | P185: ='Inputs by customer type'!P153 -> 627.8371913
E187: LDNO HV volume forecast - Residual Band 4 | I187: >
